Workbook

Sheet Races, Positions & Points
A1: 2013 | C1: BARTS Points Races | M1: DATE | N1: 2013-04-14 | O1: 1 | Q1: 2013-04-20 | S1: =1+O1 -> 2 | U1: 2013-04-21 | W1: =1+S1 -> 3 | Y1: 2013-04-27 | Z1: =1+W1 -> 4 | AB1: 2013-04-28 | AC1: =1+Z1 -> 5 | AE1: 2013-05-04 | AF1: =1+AC1 -> 6 | AH1: 2013-05-05 | AI1: =1+AF1 -> 7 | AK1: 2013-05-11 | AL1: =1+AI1 -> 8 | AN1: 2013-05-12 | AO1: =1+AL1 -> 9 | AQ1: 2013-05-18 | AR1: =1+AO1 -> 10 | AT1: 2013-05-19 | AV1: =1+AR1 -> 11 | AX1: 2013-05-25 | AY1: =1+AV1 -> 12 | BA1: 2013-05-26 | BB1: =1+AY1 -> 13 | BD1: 2013-06-08 | BE1: =1+BB1 -> 14 | BG1: 2013-06-08 | BH1: =1+BE1 -> 15 | BJ1: 2013-06-09 | BK1: =1+BH1 -> 16 | BM1: 2013-06-09 | BN1: =1+BK1 -> 17 | BP1: 2013-06-15 | BQ1: =1+BN1 -> 18 | BS1: 2013-06-16 | BT1: =1+BQ1 -> 19 | BV1: 2013-06-22 | BW1: =1+BT1 -> 20 | BY1: 2013-06-23 | BZ1: =1+BW1 -> 21 | CB1: 2013-06-23 | CD1: =1+BZ1 -> 22 | CF1: 2013-06-29 | CG1: =1+CD1 -> 23 | CI1: 2013-06-30 | CJ1: =1+CG1 -> 24 | CL1: 2013-07-06 | CM1: =1+CJ1 -> 25 | CO1: 2013-07-07 | CP1: =1+CM1 -> 26 | CR1: 2013-07-13 | CS1: =1+CP1 -> 27 | CU1: 2013-07-14 | CV1: =1+CS1 -> 28 | CX1: 2013-08-24 | CY1: =1+CV1 -> 29 | DA1: 2013-08-25 | DB1: =1+CY1 -> 30 | DC1: 2013-08-31 | DD1: =1+DB1 -> 31 | DF1: 2013-09-07 | DG1: =1+DD1 -> 32 | DI1: 2013-09-08 | DJ1: =1+DG1 -> 33 | DL1: 2013-09-15 | DM1: =1+DJ1 -> 34 | DO1: 2013-09-21 | DP1: =1+DM1 -> 35 | DR1: 2013-09-28 | DS1: =1+DP1 -> 36 | DU1: 2013-10-05 | DV1: =1+DS1 -> 37 | DX1: 2013-10-06 | DY1: =1+DV1 -> 38 | EA1: 2013-10-12 | EB1: =1+DY1 -> 39 | ED1: 2013-10-27 | EE1: =1+EB1 -> 40
A2: Interactive Results | M2: EVENT | N2: SSW Champery | Q2: Telford CN | U2: Manchester CN | Y2: GBR Indoor #1 | AB2: Anglo Welsh | AE2: GBR Outdoor #1 | AH2: GBR Outdoor #2 | AK2: GBR Indoor #2 | AN2: GBR Indoor #3 | AQ2: Welwyn CN | AT2: Milton Keynes CN | AX2: Pendle CN | BA2: Stoke CN | BD2: Twin Peaks 1 | BG2: Norfolk CN | BJ2: Twin Peaks 2 | BM2: Suffolk CN | BP2: GBR Indoor #4 | BS2: Scottish Indoor | BV2: Midland CN | BY2: Gloucester CN | CB2: Hemel CN | CF2: GBR Outdoor #3 | CI2: GBR Outdoor #4 | CL2: GBR Outdoor #5 | CO2: GBR Outdoor #6 | CR2: GBR Indoor #5 | CU2: GBR Indoor #6 | CX2: Scottish Champs | DA2: Scottish GS | DC2: All England | DF2: Welsh National | DI2: Welsh Open | DL2: Craig McFie Classic | DO2: British Outdoor | DR2: British Indoor | DU2: Irish Champs | DX2: Irish Champs | EA2: BARSC Indoor | ED2: Bairns/Lassies
A3: Race Registration | M3: VENUE | N3: Gloucester | Q3: Chill Factore | U3: Chill Factore | Y3: Milton Keynes | AB3: Milton Keynes | AE3: Pendle | AH3: Pendle | AK3: Chill Factore | AN3: Chill Factore | AQ3: Welwyn CN | AT3: Milton Keynes | AX3: Pendle | BA3: Pendle | BD3: Firpark | BG3: Norwich | BJ3: HillEnd | BM3: Ipswich | BP3: Braehead | BS3: Breahead | BV3: Gloucester | BY3: Gloucester | CB3: Snow Centre | CF3: Pontypool | CI3: Pontypool | CL3: Gloucester | CO3: Gloucester | CR3: Chill Factore | CU3: Chill Factore | CX3: HillEnd | DA3: HillEnd | DC3: Gloucester | DF3: Pontypool | DI3: Pontypool | DL3: HillEnd | DO3: Norwich | DR3: Chill Factore | DU3: Kilternan | DX3: Kilternan | EA3: Chill Factore | ED3: HillEnd
M4: Min | N4: 10 | O4: points | P4: Out | Q4: 10 | R4: points | S4: In | U4: 10 | V4: points | W4: In | Y4: 5 | Z4: points | AA4: In | AB4: 0 | AC4: points | AD4: In | AE4: 5 | AF4: points | AG4: Out | AH4: 5 | AI4: points | AJ4: Out | AK4: 5 | AL4: points | AM4: In | AN4: 5 | AO4: points | AP4: In | AQ4: 10 | AR4: points | AS4: Out | AT4: 10 | AU4: points | AV4: In | AX4: 10 | AY4: points | AZ4: Out | BA4: 10 | BB4: points | BC4: Out | BD4: 10 | BE4: points | BF4: Out | BG4: 10 | BH4: points | BI4: Out | BJ4: 10 | BK4: points | BL4: Out | BM4: 10 | BN4: points | BO4: Out | BP4: 5 | BQ4: points | BR4: In | BS4: 0 | BT4: points | BU4: In | BV4: 10 | BW4: points | BX4: Out | BY4: 10 | BZ4: points | CA4: Out | CB4: 10 | CC4: points | CD4: In | CF4: 5 | CG4: points | CH4: Out | CI4: 5 | CJ4: points | CK4: Out | CL4: 5 | CM4: points | CN4: Out | CO4: 5 | CP4: points | CQ4: Out | CR4: 5 | CS4: points | CT4: In | CU4: 5 | CV4: points | CW4: In | CX4: 0 | CY4: points | CZ4: Out | DB4: Out | DC4: 0 | DD4: points | DE4: Out | DF4: 5 | DG4: points | DH4: Out | DI4: 0 | DJ4: points | DK4: Out | DL4: 10 | DM4: points | DN4: Out | DO4: 0 | DP4: points | DQ4: Out | DR4: 0 | DS4: points | DT4: In | DU4: 0 | DV4: points | DW4: Out | DX4: 0 | DY4: points | DZ4: Out | EA4: 0 | EB4: points | EC4: In | EE4: Out
A5: Britski | B5: M/F | D5: AGE | E5: REG | F5: POINTS | I5: POINTS | J5: POINTS | K5: CURRENT | L5: NEXT | M5: 2013 | N5: Overall | O5: Age | P5: Event | Q5: Overall | R5: Age | S5: Run1 | T5: Run 2 | U5: Overall | V5: Age | W5: Run1 | X5: Run 2 | Y5: Overall | Z5: Age | AA5: Event | AB5: Overall | AC5: Age | AD5: Event | AE5: Overall | AF5: Age | AG5: Event | AH5: Overall | AI5: Age | AJ5: Event | AK5: Overall | AL5: Age | AM5: Event | AN5: Overall | AO5: Age | AP5: Event | AQ5: Overall | AR5: Age | AS5: Event | AT5: Overall | AU5: Age | AV5: Run1 | AW5: Run 2 | AX5: Overall | AY5: Age | AZ5: Event | BA5: Overall | BB5: Age | BC5: Event | BD5: Overall | BE5: Age | BF5: Event | BG5: Overall | BH5: Age | BI5: Event | BJ5: Overall | BK5: Age | BL5: Event | BM5: Overall | BN5: Age | BO5: Event | BP5: Overall | BQ5: Age | BR5: Event | BS5: Overall | BT5: Age | BU5: Event | BV5: Overall | BW5: Age | BX5: Event | BY5: Overall | BZ5: Age | CA5: Event | CB5: Overall | CC5: Age | CD5: Run1 | CE5: Run 2 | CF5: Overall | CG5: Age | CH5: Event | CI5: Overall | CJ5: Age | CK5: Event | CL5: Overall | CM5: Age | CN5: Event | CO5: Overall | CP5: Age | CQ5: Event | CR5: Overall | CS5: Age | CT5: Event | CU5: Overall | CV5: Age | CW5: Event | CX5: Overall | CY5: Age | CZ5: Event | DA5: Overall | DB5: Age | DC5: Overall | DD5: Age | DE5: Event | DF5: Overall | DG5: Age | DH5: Event | DI5: Overall | DJ5: Age | DK5: Event | DL5: Overall | DM5: Age | DN5: Event | DO5: Overall | DP5: Age | DQ5: Event | DR5: Overall | DS5: Age | DT5: Event | DU5: Overall | DV5: Age | DW5: Event | DX5: Overall | DY5: Age | DZ5: Event | EA5: Overall | EB5: Age | EC5: Event | ED5: Overall | EE5: Age
A6: Seeding | C6: YEAR | D6: GROUP | E6: NUM | F6: 2013 | G6: 2013.1 | H6: 2013.2 | I6: 2013.3 | J6: 2013.4 | K6: 2013.5 | L6: 2013.6 | M6: Change | N6: Position | O6: Position | P6: Points | Q6: Position | R6: Position | S6: Points | T6: Points | U6: Position | V6: Position | W6: Points | X6: Points | Y6: Position | Z6: Position | AA6: Points | AB6: Position | AC6: Position | AD6: Points | AE6: Position | AF6: Position | AG6: Points | AH6: Position | AI6: Position | AJ6: Points | AK6: Position | AL6: Position | AM6: Points | AN6: Position | AO6: Position | AP6: Points | AQ6: Position | AR6: Position | AS6: Points | AT6: Position | AU6: Position | AV6: Points | AW6: Points | AX6: Position | AY6: Position | AZ6: Points | BA6: Position | BB6: Position | BC6: Points | BD6: Position | BE6: Position | BF6: Points | BG6: Position | BH6: Position | BI6: Points | BJ6: Position | BK6: Position | BL6: Points | BM6: Position | BN6: Position | BO6: Points | BP6: Position | BQ6: Position | BR6: Points | BS6: Position | BT6: Position | BU6: Points | BV6: Position | BW6: Position | BX6: Points | BY6: Position | BZ6: Position | CA6: Points | CB6: Position | CC6: Position | CD6: Points | CE6: Points | CF6: Position | CG6: Position | CH6: Points | CI6: Position | CJ6: Position | CK6: Points | CL6: Position | CM6: Position | CN6: Points | CO6: Position | CP6: Position | CQ6: Points | CR6: Position | CS6: Position | CT6: Points | CU6: Position | CV6: Position | CW6: Points | CX6: Position | CY6: Position | CZ6: Points | DA6: Position | DB6: Position | DC6: Position | DD6: Position | DE6: Points | DF6: Position | DG6: Position | DH6: Points | DI6: Position | DJ6: Position | DK6: Points | DL6: Position | DM6: Position | DN6: Points | DO6: Position | DP6: Position | DQ6: Points | DR6: Position | DS6: Position | DT6: Points | DU6: Position | DV6: Position | DW6: Points | DX6: Position | DY6: Position | DZ6: Points | EA6: Position | EB6: Position | EC6: Points | ED6: Position | EE6: Position | EG6: Overall Podiums | EH6: Age Group Podiums | EJ6: 5 point | EK6: 2013 | EL6: Diff | EM6: % Diff | EN6: Start * | EQ6: ='Points Calculation'!BB1 -> Best Race Points | ER6: ='Points Calculation'!BC1 -> Second Best Race Points | ES6: ='Points Calculation'!BD1 -> Points Calc Based on Best Two Races | ET6: ='Points Calculation'!BG1 -> Points
A7: GIRLS
A8: Lauren Treuge | B8: F | C8: 2003 | D8: =INDEX('Age Calculation'!$A$1:'Age Calculation'!$Q$108,MATCH(C8,'Age Calculation'!$A$1:'Age Calculation'!$A$108),MATCH($A$1,'Age Calculation'!$A$1:'Age Calculation'!$Q$1)) -> U12 | E8: 20669 | F8: 999.99 | G8: 999.99 | H8: 999.99 | I8: 999.99 | J8: 999.99 | K8: 999.99 | M8: =IF(F8<999.99,IF(MIN(G8,L8)<F8,MIN(G8,L8)-F8,""),"") ->  | N8: DNF | O8: DNF | P8: 999.99 | DI8: 4 | DJ8: 4 | DK8: 999.99 | EH8: =SUM((O$5:EF$5="Age")*(O8:EF8<=3))-SUM((O$5:EF$5="Age")*(O8:EF8=0)) -> 0
A9: Tilley O'Brien | B9: F | C9: 2004 | D9: =INDEX('Age Calculation'!$A$1:'Age Calculation'!$Q$108,MATCH(C9,'Age Calculation'!$A$1:'Age Calculation'!$A$108),MATCH($A$1,'Age Calculation'!$A$1:'Age Calculation'!$Q$1)) -> U10 | E9: 20809 | F9: 999.99 | G9: 999.99 | H9: 999.99 | I9: 999.99 | J9: 999.99 | K9: 999.99 | M9: =IF(F9<999.99,IF(MIN(G9,L9)<F9,MIN(G9,L9)-F9,""),"") ->  | Q9: 6 | R9: 1 | S9: 999.99 | T9: 999.99 | U9: 6 | V9: 1 | W9: 999.99 | X9: 999.99 | AT9: 10 | AU9: 2 | AV9: 999.99 | AW9: 999.99 | CB9: 4 | CC9: 1 | CD9: 999.99 | CE9: 999.99 | CU9: 5 | CV9: 1 | CW9: 999.99 | DR9: 7 | DS9: 1 | DT9: 999.99 | EH9: =SUM((O$5:EF$5="Age")*(O9:EF9<=3))-SUM((O$5:EF$5="Age")*(O9:EF9=0)) -> 6
A10: Anya Hemming | B10: F | C10: 2005 | D10: =INDEX('Age Calculation'!$A$1:'Age Calculation'!$Q$108,MATCH(C10,'Age Calculation'!$A$1:'Age Calculation'!$A$108),MATCH($A$1,'Age Calculation'!$A$1:'Age Calculation'!$Q$1)) -> U10 | E10: 21569 | F10: 999.99 | G10: 999.99 | H10: 999.99 | I10: 999.99 | J10: 999.99 | K10: 999.99 | M10: =IF(F10<999.99,IF(MIN(G10,L10)<F10,MIN(G10,L10)-F10,""),"") ->  | N10: 4 | O10: 2 | P10: 999.99 | AB10: 17 | AC10: 3 | AD10: 999.99 | AQ10: 3 | AR10: 1 | AS10: 999.99 | AX10: 3 | AY10: 2 | AZ10: 999.99 | BA10: 4 | BB10: 2 | BC10: 999.99 | BG10: 7 | BH10: 1 | BI10: 999.99 | BM10: 6 | BN10: 1 | BO10: 999.99 | BV10: 9 | BW10: 3 | BX10: 999.99 | BY10: 7 | BZ10: 3 | CA10: 999.99 | DC10: 9 | DD10: 4 | DE10: 999.99 | DI10: 6 | DJ10: 2 | DK10: 999.99 | DO10: 5 | DP10: 1 | DQ10: 999.99 | EH10: =SUM((O$5:EF$5="Age")*(O10:EF10<=3))-SUM((O$5:EF$5="Age")*(O10:EF10=0)) -> 11
A11: BOYS
A12: James Care | B12: M | C12: 2002 | D12: =INDEX('Age Calculation'!$A$1:'Age Calculation'!$Q$108,MATCH(C12,'Age Calculation'!$A$1:'Age Calculation'!$A$108),MATCH($A$1,'Age Calculation'!$A$1:'Age Calculation'!$Q$1)) -> U12 | E12: 20590 | F12: 999.99 | G12: 999.99 | H12: 999.99 | I12: 999.99 | J12: 999.99 | K12: 999.99 | M12: =IF(F12<999.99,IF(MIN(G12,L12)<F12,MIN(G12,L12)-F12,""),"") ->  | N12: 12 | O12: 10 | P12: 999.99 | BY12: 16 | BZ12: 11 | CA12: 999.99 | EH12: =SUM((O$5:EF$5="Age")*(O12:EF12<=3))-SUM((O$5:EF$5="Age")*(O12:EF12=0)) -> 0
A13: Macaulay Clover | B13: M | C13: 2002 | D13: =INDEX('Age Calculation'!$A$1:'Age Calculation'!$Q$108,MATCH(C13,'Age Calculation'!$A$1:'Age Calculation'!$A$108),MATCH($A$1,'Age Calculation'!$A$1:'Age Calculation'!$Q$1)) -> U12 | E13: Day | F13: NR | G13: NR | H13: NR | I13: NR | J13: NR | K13: NR | N13: 10 | O13: 9 | P13: 999.99 | EH13: =SUM((O$5:EF$5="Age")*(O13:EF13<=3))-SUM((O$5:EF$5="Age")*(O13:EF13=0)) -> 0
A14: Seamus O'Brien | B14: M | C14: 2002 | D14: =INDEX('Age Calculation'!$A$1:'Age Calculation'!$Q$108,MATCH(C14,'Age Calculation'!$A$1:'Age Calculation'!$A$108),MATCH($A$1,'Age Calculation'!$A$1:'Age Calculation'!$Q$1)) -> U12 | E14: 19737 | F14: 999.99 | G14: 999.99 | H14: 999.99 | I14: 999.99 | J14: 999.99 | K14: 999.99 | Q14: DNF | R14: DNF | S14: 999.99 | T14: 999.99 | U14: 6 | V14: 6 | W14: 999.99 | X14: 999.99 | Y14: DNS | Z14: DNS | AK14: 4 | AL14: 4 | AM14: 999.99 | AN14: 5 | AO14: 5 | AP14: 999.99 | CB14: 2 | CC14: 2 | CD14: 999.99 | CE14: 999.99 | CU14: 6 | CV14: 6 | CW14: 999.99 | DR14: 2 | DS14: 2 | DT14: 999.99 | EH14: =SUM((O$5:EF$5="Age")*(O14:EF14<=3))-SUM((O$5:EF$5="Age")*(O14:EF14=0)) -> 2
A15: Matthew Treuge | B15: M | C15: 2002 | D15: =INDEX('Age Calculation'!$A$1:'Age Calculation'!$Q$108,MATCH(C15,'Age Calculation'!$A$1:'Age Calculation'!$A$108),MATCH($A$1,'Age Calculation'!$A$1:'Age Calculation'!$Q$1)) -> U12 | E15: 20670 | F15: 999.99 | G15: 999.99 | H15: 999.99 | I15: 999.99 | J15: 999.99 | K15: 999.99 | N15: 7 | O15: 6 | P15: 999.99 | DI15: 8 | DJ15: 7 | DK15: 999.99 | EH15: =SUM((O$5:EF$5="Age")*(O15:EF15<=3))-SUM((O$5:EF$5="Age")*(O15:EF15=0)) -> 0
A16: James Shakeshaft | B16: M | C16: 2003 | D16: =INDEX('Age Calculation'!$A$1:'Age Calculation'!$Q$108,MATCH(C16,'Age Calculation'!$A$1:'Age Calculation'!$A$108),MATCH($A$1,'Age Calculation'!$A$1:'Age Calculation'!$Q$1)) -> U12 | E16: 20340 | F16: 999.99 | G16: 999.99 | H16: 999.99 | I16: 999.99 | J16: 999.99 | K16: 999.99 | BV16: 15 | BW16: 11 | BX16: 999.99 | EG16: 0 | EH16: =SUM((O$5:EF$5="Age")*(O16:EF16<=3))-SUM((O$5:EF$5="Age")*(O16:EF16=0)) -> 0
A17: Daniel Hadley | B17: M | C17: 2004 | D17: =INDEX('Age Calculation'!$A$1:'Age Calculation'!$Q$108,MATCH(C17,'Age Calculation'!$A$1:'Age Calculation'!$A$108),MATCH($A$1,'Age Calculation'!$A$1:'Age Calculation'!$Q$1)) -> U10 | E17: 20719 | F17: 999.99 | G17: 999.99 | H17: 999.99 | I17: 999.99 | J17: 999.99 | K17: 999.99 | Y17: 15 | Z17: 4 | AA17: 999.99 | AB17: 12 | AC17: 3 | AD17: 999.99 | AT17: 9 | AU17: 3 | AV17: 999.99 | AW17: 999.99 | BV17: 14 | BW17: 4 | BX17: 999.99 | EH17: =SUM((O$5:EF$5="Age")*(O17:EF17<=3))-SUM((O$5:EF$5="Age")*(O17:EF17=0)) -> 2
A18: Jack Teague | B18: M | C18: 2004 | D18: =INDEX('Age Calculation'!$A$1:'Age Calculation'!$Q$108,MATCH(C18,'Age Calculation'!$A$1:'Age Calculation'!$A$108),MATCH($A$1,'Age Calculation'!$A$1:'Age Calculation'!$Q$1)) -> U10 | E18: 20630 | F18: 999.99 | G18: 999.99 | H18: 999.99 | I18: 999.99 | J18: 999.99 | K18: 999.99 | N18: 6 | O18: 1 | P18: 999.99 | BV18: 12 | BW18: 3 | BX18: 999.99 | EH18: =SUM((O$5:EF$5="Age")*(O18:EF18<=3))-SUM((O$5:EF$5="Age")*(O18:EF18=0)) -> 2
A19: Jack Upton | B19: M | C19: 2004 | D19: =INDEX('Age Calculation'!$A$1:'Age Calculation'!$Q$108,MATCH(C19,'Age Calculation'!$A$1:'Age Calculation'!$A$108),MATCH($A$1,'Age Calculation'!$A$1:'Age Calculation'!$Q$1)) -> U10 | E19: 21052 | F19: 999.99 | G19: 999.99 | H19: 999.99 | I19: 999.99 | J19: 999.99 | K19: 999.99 | AB19: 10 | AC19: 1 | AD19: 999.99 | AT19: 6 | AU19: 1 | AV19: 999.99 | AW19: 999.99 | AX19: 9 | AY19: 2 | AZ19: 999.99 | BA19: 5 | BB19: 1 | BC19: 999.99 | BG19: DNF | BH19: DNF | BI19: 999.99 | BM19: 4 | BN19: 1 | BO19: 999.99 | BV19: 7 | BW19: 1 | BX19: 999.99 | BY19: 6 | BZ19: 1 | CA19: 999.99 | CI19: 5 | CJ19: 1 | CK19: 999.99 | CL19: 4 | CM19: 1 | CN19: 999.99 | CO19: 3 | CP19: 1 | CQ19: 999.99 | DC19: 4 | DD19: 1 | DE19: 999.99 | DI19: 2 | DJ19: 1 | DK19: 999.99 | DO19: 2 | DP19: 1 | DQ19: 999.99 | EH19: =SUM((O$5:EF$5="Age")*(O19:EF19<=3))-SUM((O$5:EF$5="Age")*(O19:EF19=0)) -> 13
A20: FEMALES
A21: Lucy Deller | B21: F | C21: 1996 | D21: =INDEX('Age Calculation'!$A$1:'Age Calculation'!$Q$108,MATCH(C21,'Age Calculation'!$A$1:'Age Calculation'!$A$108),MATCH($A$1,'Age Calculation'!$A$1:'Age Calculation'!$Q$1)) -> U18 | E21: 17888 | F21: 15.68 | G21: 15.68 | H21: 15.68 | I21: 15.68 | J21: 15.68 | K21: 15.68 | L21: =IF('Points Calculation'!BG21<K21,'Points Calculation'!BG21,"") ->  | M21: =IF(F21<999.99,IF(MIN(K21,L21)<F21,MIN(K21,L21)-F21,""),"") ->  | N21: 10 | O21: 6 | P21: 116.79 | Q21: 20 | R21: 9 | S21: 108.54 | T21: 117.18 | U21: 18 | V21: 9 | W21: 100.34 | X21: 122.89 | Y21: 19 | Z21: 7 | AA21: 121.95 | AB21: 13 | AC21: 6 | AD21: 80.11 | AE21: 6 | AF21: 2 | AG21: 31.3 | AH21: 8 | AI21: 3 | AJ21: 45.53 | AK21: 14 | AL21: 5 | AM21: 98.64 | AN21: 9 | AO21: 4 | AP21: 78.77 | AQ21: 2 | AR21: 1 | AS21: 43.87 | AX21: 4 | AY21: 2 | AZ21: 25.01 | BA21: 5 | BB21: 2 | BC21: 26.15 | BG21: 4 | BH21: 2 | BI21: 26.36 | BM21: 6 | BN21: 3 | BO21: 35.95 | BP21: 7 | BQ21: 5 | BR21: 77.2 | BS21: 9 | BT21: 6 | BU21: 74.8 | BV21: 6 | BW21: 4 | BX21: 97.23 | BY21: 8 | BZ21: 4 | CA21: 56.72 | CF21: DNF | CG21: DNF | CH21: 999.99 | CL21: 11 | CM21: 5 | CN21: 37.54 | CO21: 9 | CP21: 5 | CQ21: 36.18 | CR21: 12 | CS21: 6 | CT21: 68.48 | CU21: 11 | CV21: 5 | CW21: 68.3 | DC21: DNF | DD21: DNF | DE21: 999.99 | DF21: 8 | DG21: 5 | DH21: 69.54 | DI21: DSQ | DJ21: DSQ | DK21: 999.99 | DO21: 8 | DP21: 4 | DQ21: 53.39 | DR21: 16 | DS21: 7 | DT21: 78.8 | DU21: DNF | DV21: DNF | DW21: 999.99 | DX21: 4 | DY21: 3 | DZ21: 81.6 | EA21: 6 | EB21: 3 | EC21: 57.22 | EG21: =SUM((N$5:EE$5="Overall")*(N21:EE21<=3))-SUM((N$5:EE$5="Overall")*(N21:EE21=0)) -> 1 | EH21: =SUM((O$5:EF$5="Age")*(O21:EF21<=3))-SUM((O$5:EF$5="Age")*(O21:EF21=0)) -> 9 | EJ21: =IF(MIN('Points Calculation'!CB21,'Points Calculation'!CC21)>0,MIN('Points Calculation'!CB21,'Points Calculation'!CC21),"") -> 33.74 | EK21: =IF(MIN('Points Calculation'!BD21,'Points Calculation'!BF21)>0,MIN('Points Calculation'!BD21,'Points Calculation'!BF21),"") -> 25.69 | EL21: =IF(EJ21<>"",EJ21-EK21,"") -> 8.05 | EM21: =IF(EJ21<>"",EL21/EK21,"") -> 0.3133514986 | EN21: =IF(F21>800,999.99,IF(F21<50,F21+10,F21*1.2)) -> 25.68 | EQ21: ='Points Calculation'!BB21 -> 25.01 | ER21: ='Points Calculation'!BC21 -> 26.36 | ES21: ='Points Calculation'!BD21 -> 25.69 | ET21: ='Points Calculation'!BG21 -> 15.68
A22: Rowan Vernon | B22: F | C22: 1988 | D22: =INDEX('Age Calculation'!$A$1:'Age Calculation'!$Q$108,MATCH(C22,'Age Calculation'!$A$1:'Age Calculation'!$A$108),MATCH($A$1,'Age Calculation'!$A$1:'Age Calculation'!$Q$1)) -> SEN | E22: 13381 | F22: 22.84 | G22: 22.84 | H22: 22.84 | I22: 22.84 | J22: 22.84 | K22: 22.84 | EG22: =SUM((N$5:EE$5="Overall")*(N22:EE22<=3))-SUM((N$5:EE$5="Overall")*(N22:EE22=0)) -> 0 | EH22: =SUM((O$5:EF$5="Age")*(O22:EF22<=3))-SUM((O$5:EF$5="Age")*(O22:EF22=0)) -> 0 | EK22: =IF(MIN('Points Calculation'!BD22,'Points Calculation'!BF22)>0,MIN('Points Calculation'!BD22,'Points Calculation'!BF22),"") ->  | EN22: =F22+10 -> 32.84 | EQ22: ='Points Calculation'!BB22 ->  | ER22: ='Points Calculation'!BC22 ->  | ES22: ='Points Calculation'!BD22 ->  | ET22: ='Points Calculation'!BG22 -> 22.84
A23: Rachel Bill | B23: F | C23: 1990 | D23: =INDEX('Age Calculation'!$A$1:'Age Calculation'!$Q$108,MATCH(C23,'Age Calculation'!$A$1:'Age Calculation'!$A$108),MATCH($A$1,'Age Calculation'!$A$1:'Age Calculation'!$Q$1)) -> SEN | E23: 20168 | F23: 33.85 | G23: 33.85 | H23: 33.85 | I23: 23.81 | J23: 23.81 | K23: 23.81 | L23: =IF('Points Calculation'!BG23<K23,'Points Calculation'!BG23,"") ->  | M23: -10.04 | N23: DNF | O23: DNF | P23: 999.99 | AN23: 11 | AO23: 1 | AP23: 79.43 | AX23: 5 | AY23: 2 | AZ23: 25.68 | BA23: 4 | BB23: 2 | BC23: 25.28 | BG23: 2 | BH23: 1 | BI23: 22.33 | BM23: 2 | BN23: 1 | BO23: 25.41 | BV23: DNF | BW23: DNF | BX23: 999.99 | BY23: DNS3 | BZ23: DNS3 | CA23: 999.99 | CI23: DNF | CJ23: DNF | CK23: 999.99 | CL23: DNF | CM23: DNF | CN23: 999.99 | DC23: DNF | DD23: DNF | DE23: 999.99 | DO23: DNF | DP23: DNF | DQ23: 999.99 | EG23: =SUM((N$5:EE$5="Overall")*(N23:EE23<=3))-SUM((N$5:EE$5="Overall")*(N23:EE23=0)) -> 2 | EH23: =SUM((O$5:EF$5="Age")*(O23:EF23<=3))-SUM((O$5:EF$5="Age")*(O23:EF23=0)) -> 5 | EJ23: =IF(MIN('Points Calculation'!CB23,'Points Calculation'!CC23)>0,MIN('Points Calculation'!CB23,'Points Calculation'!CC23),"") -> 95.316 | EK23: =IF(MIN('Points Calculation'!BD23,'Points Calculation'!BF23)>0,MIN('Points Calculation'!BD23,'Points Calculation'!BF23),"") -> 23.81 | EL23: =IF(EJ23<>"",EJ23-EK23,"") -> 71.506 | EM23: =IF(EJ23<>"",EL23/EK23,"") -> 3.003191936 | EN23: =IF(F23>800,999.99,IF(F23<50,F23+10,F23*1.2)) -> 43.85 | EQ23: ='Points Calculation'!BB23 -> 22.33 | ER23: ='Points Calculation'!BC23 -> 25.28 | ES23: ='Points Calculation'!BD23 -> 23.81 | ET23: ='Points Calculation'!BG23 -> 23.81
A24: Helena Newboult | B24: F | C24: 1998 | D24: =INDEX('Age Calculation'!$A$1:'Age Calculation'!$Q$108,MATCH(C24,'Age Calculation'!$A$1:'Age Calculation'!$A$108),MATCH($A$1,'Age Calculation'!$A$1:'Age Calculation'!$Q$1)) -> U16 | E24: 20696 | F24: 30.53 | G24: 30.53 | H24: 30.53 | I24: 27.39 | J24: 27.39 | K24: 27.39 | L24: =IF('Points Calculation'!BG24<K24,'Points Calculation'!BG24,"") ->  | M24: -3.14 | N24: 5 | O24: 1 | P24: 77.48 | Q24: 16 | R24: 5 | S24: 94.58 | T24: 111.63 | U24: 15 | V24: 4 | W24: 95.03 | X24: 103.49 | AE24: 12 | AF24: 2 | AG24: 83.32 | AH24: DSQ | AI24: DSQ | AJ24: 999.99 | AX24: 6 | AY24: 1 | AZ24: 36.28 | BA24: 6 | BB24: 1 | BC24: 38.76 | BG24: 5 | BH24: 2 | BI24: 27.26 | BM24: 4 | BN24: 1 | BO24: 27.52 | BV24: 8 | BW24: 1 | BX24: 113.48 | BY24: 11 | BZ24: 1 | CA24: 66.59 | DC24: DNF | DD24: DNF | DE24: 999.99 | DO24: 12 | DP24: 2 | DQ24: 61.96 | EG24: =SUM((N$5:EE$5="Overall")*(N24:EE24<=3))-SUM((N$5:EE$5="Overall")*(N24:EE24=0)) -> 0 | EH24: =SUM((O$5:EF$5="Age")*(O24:EF24<=3))-SUM((O$5:EF$5="Age")*(O24:EF24=0)) -> 9 | EJ24: =IF(MIN('Points Calculation'!CB24,'Points Calculation'!CC24)>0,MIN('Points Calculation'!CB24,'Points Calculation'!CC24),"") -> 69.72 | EK24: =IF(MIN('Points Calculation'!BD24,'Points Calculation'!BF24)>0,MIN('Points Calculation'!BD24,'Points Calculation'!BF24),"") -> 27.39 | EL24: 42.33 | EM24: 1.545454545 | EN24: 40.53 | EQ24: ='Points Calculation'!BB24 -> 27.26 | ER24: ='Points Calculation'!BC24 -> 27.52 | ES24: ='Points Calculation'!BD24 -> 27.39 | ET24: ='Points Calculation'!BG24 -> 27.39
A25: Amy Middleton | B25: F | C25: 1995 | D25: =INDEX('Age Calculation'!$A$1:'Age Calculation'!$Q$108,MATCH(C25,'Age Calculation'!$A$1:'Age Calculation'!$A$108),MATCH($A$1,'Age Calculation'!$A$1:'Age Calculation'!$Q$1)) -> U21 | E25: 20307 | F25: 69.36 | G25: 69.36 | H25: 69.36 | I25: 51.15 | J25: 51.15 | K25: 51.15 | L25: =IF('Points Calculation'!BG25<K25,'Points Calculation'!BG25,"") ->  | M25: -18.21 | N25: 6 | O25: 2 | P25: 78.33 | Q25: 21 | R25: 3 | S25: 103.04 | T25: 133.4 | AE25: DNF | AF25: DNF | AG25: 999.99 | AH25: 13 | AI25: 5 | AJ25: 101.75 | AX25: 7 | AY25: 2 | AZ25: 54.55 | BA25: 7 | BB25: 2 | BC25: 41.15 | BV25: DNF | BW25: DNF | BX25: 999.99 | BY25: 10 | BZ25: 5 | CA25: 64.47 | CF25: DNF | CG25: DNF | CH25: 999.99 | CI25: DNF | CJ25: DNF | CK25: 999.99 | CL25: 16 | CM25: 4 | CN25: 72.75 | CO25: 12 | CP25: 4 | CQ25: 68.98 | DC25: DNF | DD25: DNF | DE25: 999.99 | DF25: 10 | DG25: 3 | DH25: 87.35 | DI25: 8 | DJ25: 1 | DK25: 117.19 | DO25: 18 | DP25: 6 | DQ25: 97.33 | EG25: =SUM((N$5:EE$5="Overall")*(N25:EE25<=3))-SUM((N$5:EE$5="Overall")*(N25:EE25=0)) -> 0 | EH25: =SUM((O$5:EF$5="Age")*(O25:EF25<=3))-SUM((O$5:EF$5="Age")*(O25:EF25=0)) -> 6 | EJ25: =IF(MIN('Points Calculation'!CB25,'Points Calculation'!CC25)>0,MIN('Points Calculation'!CB25,'Points Calculation'!CC25),"") -> 78.165 | EK25: =IF(MIN('Points Calculation'!BD25,'Points Calculation'!BF25)>0,MIN('Points Calculation'!BD25,'Points Calculation'!BF25),"") -> 51.15 | EL25: 27.015 | EM25: 0.5281524927 | EN25: 83.232 | EQ25: ='Points Calculation'!BB25 -> 41.15 | ER25: ='Points Calculation'!BC25 -> 64.47 | ES25: ='Points Calculation'!BD25 -> 52.81 | ET25: ='Points Calculation'!BG25 -> 51.15
A26: Elisabeth Thomas | B26: F | C26: 1996 | D26: =INDEX('Age Calculation'!$A$1:'Age Calculation'!$Q$108,MATCH(C26,'Age Calculation'!$A$1:'Age Calculation'!$A$108),MATCH($A$1,'Age Calculation'!$A$1:'Age Calculation'!$Q$1)) -> U18 | E26: 18033 | F26: 60.58 | G26: 60.58 | H26: 60.58 | I26: 60.58 | J26: 60.58 | K26: 60.58 | L26: =IF('Points Calculation'!BG26<K26,'Points Calculation'!BG26,"") ->  | DI26: DNS | DJ26: DNS | DK26: 999.99 | DO26: 16 | DP26: 8 | DQ26: 74.26 | EG26: =SUM((N$5:EE$5="Overall")*(N26:EE26<=3))-SUM((N$5:EE$5="Overall")*(N26:EE26=0)) -> 0 | EH26: =SUM((O$5:EF$5="Age")*(O26:EF26<=3))-SUM((O$5:EF$5="Age")*(O26:EF26=0)) -> 0 | EJ26: =IF(MIN('Points Calculation'!CB26,'Points Calculation'!CC26)>0,MIN('Points Calculation'!CB26,'Points Calculation'!CC26),"") -> 89.112 | EK26: =IF(MIN('Points Calculation'!BD26,'Points Calculation'!BF26)>0,MIN('Points Calculation'!BD26,'Points Calculation'!BF26),"") -> 89.11 | EL26: 0.002 | EM26: 2.244417013e-05 | EN26: 72.696 | EQ26: ='Points Calculation'!BB26 -> 74.26 | ER26: ='Points Calculation'!BC26 -> 999.99 | ES26: ='Points Calculation'!BD26 -> 537.13 | ET26: ='Points Calculation'!BG26 -> 60.58
A27: Maxine Hancock | B27: F | C27: 1997 | D27: =INDEX('Age Calculation'!$A$1:'Age Calculation'!$Q$108,MATCH(C27,'Age Calculation'!$A$1:'Age Calculation'!$A$108),MATCH($A$1,'Age Calculation'!$A$1:'Age Calculation'!$Q$1)) -> U18 | E27: 18617 | F27: 124.82 | G27: 94.5 | H27: 74.28 | I27: 74.28 | J27: 74.28 | K27: 74.28 | L27: =IF('Points Calculation'!BG27<K27,'Points Calculation'!BG27,"") ->  | M27: -50.54 | Q27: 13 | R27: 7 | S27: 79.78 | T27: 78.75 | U27: 16 | V27: 8 | W27: 106.54 | X27: 111.42 | Y27: 12 | Z27: 5 | AA27: 87.55 | AB27: 12 | AC27: 5 | AD27: 78.76 | AK27: 17 | AL27: 6 | AM27: 120.91 | AN27: 13 | AO27: 5 | AP27: 94.66 | AT27: 18 | AU27: 6 | AV27: 69.8 | BP27: 9 | BQ27: 6 | BR27: 90.93 | BS27: 13 | BT27: 8 | BU27: 94.75 | CB27: 19 | CC27: 5 | CD27: 269.07 | CE27: 117.57 | CR27: 18 | CS27: 7 | CT27: 103.39 | CU27: 18 | CV27: 6 | CW27: 119.45 | DR27: 23 | DS27: 8 | DT27: 131.18 | EA27: 12 | EB27: 4 | EC27: 122.26 | EG27: =SUM((N$5:EE$5="Overall")*(N27:EE27<=3))-SUM((N$5:EE$5="Overall")*(N27:EE27=0)) -> 0 | EH27: =SUM((O$5:EF$5="Age")*(O27:EF27<=3))-SUM((O$5:EF$5="Age")*(O27:EF27=0)) -> 0 | EJ27: =IF(MIN('Points Calculation'!CB27,'Points Calculation'!CC27)>0,MIN('Points Calculation'!CB27,'Points Calculation'!CC27),"") -> 84.845 | EK27: =IF(MIN('Points Calculation'!BD27,'Points Calculation'!BF27)>0,MIN('Points Calculation'!BD27,'Points Calculation'!BF27),"") -> 74.28 | EL27: 10.565 | EM27: 0.1422320948 | EN27: 149.784 | EQ27: ='Points Calculation'!BB27 -> 69.8 | ER27: ='Points Calculation'!BC27 -> 78.75 | ES27: ='Points Calculation'!BD27 -> 74.28 | ET27: ='Points Calculation'!BG27 -> 74.28
A28: Jessica Mayhew | B28: F | C28: 2000 | D28: =INDEX('Age Calculation'!$A$1:'Age Calculation'!$Q$108,MATCH(C28,'Age Calculation'!$A$1:'Age Calculation'!$A$108),MATCH($A$1,'Age Calculation'!$A$1:'Age Calculation'!$Q$1)) -> U14 | E28: 21014 | F28: 124.09 | G28: 124.09 | H28: 113.11 | I28: 87.53 | J28: 84.18 | K28: 84.18 | L28: =IF('Points Calculation'!BG28<K28,'Points Calculation'!BG28,"") ->  | M28: -39.91 | N28: 11 | O28: 2 | P28: 125.9 | U28: 23 | V28: 4 | W28: 129.57 | X28: 185.5 | AE28: 15 | AF28: 2 | AG28: 102.13 | AH28: 14 | AI28: 1 | AJ28: 103.99 | BG28: 17 | BH28: 2 | BI28: 91.81 | BM28: 15 | BN28: 2 | BO28: 83.25 | BV28: 9 | BW28: 1 | BX28: 118 | BY28: 14 | BZ28: 1 | CA28: 85.1 | CL28: 17 | CM28: 2 | CN28: 99.31 | CO28: 14 | CP28: 2 | CQ28: 88.75 | EG28: =SUM((N$5:EE$5="Overall")*(N28:EE28<=3))-SUM((N$5:EE$5="Overall")*(N28:EE28=0)) -> 0 | EH28: =SUM((O$5:EF$5="Age")*(O28:EF28<=3))-SUM((O$5:EF$5="Age")*(O28:EF28=0)) -> 9 | EJ28: =IF(MIN('Points Calculation'!CB28,'Points Calculation'!CC28)>0,MIN('Points Calculation'!CB28,'Points Calculation'!CC28),"") -> 95.44 | EK28: =IF(MIN('Points Calculation'!BD28,'Points Calculation'!BF28)>0,MIN('Points Calculation'!BD28,'Points Calculation'!BF28),"") -> 84.18 | EL28: 11.26 | EM28: 0.1337609884 | EN28: 148.908 | EQ28: ='Points Calculation'!BB28 -> 83.25 | ER28: ='Points Calculation'!BC28 -> 85.1 | ES28: ='Points Calculation'!BD28 -> 84.18 | ET28: ='Points Calculation'!BG28 -> 84.18
A29: Hannah Shakeshaft | B29: F | C29: 1996 | D29: =INDEX('Age Calculation'!$A$1:'Age Calculation'!$Q$108,MATCH(C29,'Age Calculation'!$A$1:'Age Calculation'!$A$108),MATCH($A$1,'Age Calculation'!$A$1:'Age Calculation'!$Q$1)) -> U18 | E29: 19833 | F29: 116.91 | G29: 116.91 | H29: 116.91 | I29: 116.91 | J29: 116.91 | K29: 116.91 | L29: =IF('Points Calculation'!BG29<K29,'Points Calculation'!BG29,"") ->  | EG29: =SUM((N$5:EE$5="Overall")*(N29:EE29<=3))-SUM((N$5:EE$5="Overall")*(N29:EE29=0)) -> 0 | EH29: =SUM((O$5:EF$5="Age")*(O29:EF29<=3))-SUM((O$5:EF$5="Age")*(O29:EF29=0)) -> 0 | EJ29: =IF(MIN('Points Calculation'!CB29,'Points Calculation'!CC29)>0,MIN('Points Calculation'!CB29,'Points Calculation'!CC29),"") ->  | EK29: =IF(MIN('Points Calculation'!BD29,'Points Calculation'!BF29)>0,MIN('Points Calculation'!BD29,'Points Calculation'!BF29),"") ->  | EN29: 140.292 | EQ29: ='Points Calculation'!BB29 ->  | ER29: ='Points Calculation'!BC29 ->  | ES29: ='Points Calculation'!BD29 ->  | ET29: ='Points Calculation'!BG29 -> 116.91
A30: Chloe Care | B30: F | C30: 1998 | D30: =INDEX('Age Calculation'!$A$1:'Age Calculation'!$Q$108,MATCH(C30,'Age Calculation'!$A$1:'Age Calculation'!$A$108),MATCH($A$1,'Age Calculation'!$A$1:'Age Calculation'!$Q$1)) -> U16 | E30: 19983 | F30: 224.39 | G30: 224.39 | H30: 207.02 | I30: 207.02 | J30: 203.01 | K30: 203.01 | L30: =IF('Points Calculation'!BG30<K30,'Points Calculation'!BG30,"") ->  | M30: -21.38 | N30: 16 | O30: 3 | P30: 290.22 | AQ30: 20 | AR30: 6 | AS30: 189.64 | BY30: 26 | BZ30: 2 | CA30: 244.28 | CO30: 22 | CP30: 5 | CQ30: 216.38 | EG30: =SUM((N$5:EE$5="Overall")*(N30:EE30<=3))-SUM((N$5:EE$5="Overall")*(N30:EE30=0)) -> 0 | EH30: =SUM((O$5:EF$5="Age")*(O30:EF30<=3))-SUM((O$5:EF$5="Age")*(O30:EF30=0)) -> 2 | EJ30: =IF(MIN('Points Calculation'!CB30,'Points Calculation'!CC30)>0,MIN('Points Calculation'!CB30,'Points Calculation'!CC30),"") -> 259.656 | EK30: =IF(MIN('Points Calculation'!BD30,'Points Calculation'!BF30)>0,MIN('Points Calculation'!BD30,'Points Calculation'!BF30),"") -> 203.01 | EL30: 56.646 | EM30: 0.2790305896 | EN30: 269.268 | EQ30: ='Points Calculation'!BB30 -> 189.64 | ER30: ='Points Calculation'!BC30 -> 216.38 | ES30: ='Points Calculation'!BD30 -> 203.01 | ET30: ='Points Calculation'!BG30 -> 203.01
A31: Geraldine Elgy | B31: F | C31: 1954 | D31: =INDEX('Age Calculation'!$A$1:'Age Calculation'!$Q$108,MATCH(C31,'Age Calculation'!$A$1:'Age Calculation'!$A$108),MATCH($A$1,'Age Calculation'!$A$1:'Age Calculation'!$Q$1)) -> MAS | E31: 19165 | F31: 275.21 | G31: 275.21 | H31: 275.21 | I31: 275.21 | J31: 275.21 | K31: 275.21 | L31: =IF('Points Calculation'!BG31<K31,'Points Calculation'!BG31,"") ->  | EG31: =SUM((N$5:EE$5="Overall")*(N31:EE31<=3))-SUM((N$5:EE$5="Overall")*(N31:EE31=0)) -> 0 | EH31: =SUM((O$5:EF$5="Age")*(O31:EF31<=3))-SUM((O$5:EF$5="Age")*(O31:EF31=0)) -> 0 | EJ31: =IF(MIN('Points Calculation'!CB31,'Points Calculation'!CC31)>0,MIN('Points Calculation'!CB31,'Points Calculation'!CC31),"") ->  | EK31: =IF(MIN('Points Calculation'!BD31,'Points Calculation'!BF31)>0,MIN('Points Calculation'!BD31,'Points Calculation'!BF31),"") ->  | EN31: =F31 -> 275.21 | EQ31: ='Points Calculation'!BB31 ->  | ER31: ='Points Calculation'!BC31 ->  | ES31: ='Points Calculation'!BD31 ->  | ET31: ='Points Calculation'!BG31 -> 275.21
A32: Laura Newboult | B32: F | C32: 1995 | D32: =INDEX('Age Calculation'!$A$1:'Age Calculation'!$Q$108,MATCH(C32,'Age Calculation'!$A$1:'Age Calculation'!$A$108),MATCH($A$1,'Age Calculation'!$A$1:'Age Calculation'!$Q$1)) -> U21 | E32: 20781 | F32: 357.45 | G32: 357.45 | H32: 357.45 | I32: 357.45 | J32: 357.45 | K32: 357.45 | L32: =IF('Points Calculation'!BG32<K32,'Points Calculation'!BG32,"") ->  | EG32: =SUM((N$5:EE$5="Overall")*(N32:EE32<=3))-SUM((N$5:EE$5="Overall")*(N32:EE32=0)) -> 0 | EH32: =SUM((O$5:EF$5="Age")*(O32:EF32<=3))-SUM((O$5:EF$5="Age")*(O32:EF32=0)) -> 0 | EJ32: =IF(MIN('Points Calculation'!CB32,'Points Calculation'!CC32)>0,MIN('Points Calculation'!CB32,'Points Calculation'!CC32),"") ->  | EK32: =IF(MIN('Points Calculation'!BD32,'Points Calculation'!BF32)>0,MIN('Points Calculation'!BD32,'Points Calculation'!BF32),"") ->  | EN32: 357.45 | EQ32: ='Points Calculation'!BB32 ->  | ER32: ='Points Calculation'!BC32 ->  | ES32: ='Points Calculation'!BD32 ->  | ET32: ='Points Calculation'!BG32 -> 357.45
A33: Robyn Doherty | B33: F | C33: 1996 | D33: =INDEX('Age Calculation'!$A$1:'Age Calculation'!$Q$108,MATCH(C33,'Age Calculation'!$A$1:'Age Calculation'!$A$108),MATCH($A$1,'Age Calculation'!$A$1:'Age Calculation'!$Q$1)) -> U18 | E33: 19573 | F33: 530.29 | G33: 530.29 | H33: 530.29 | I33: 530.29 | J33: 530.29 | K33: 530.29 | L33: =IF('Points Calculation'!BG33<K33,'Points Calculation'!BG33,"") ->  | EG33: =SUM((N$5:EE$5="Overall")*(N33:EE33<=3))-SUM((N$5:EE$5="Overall")*(N33:EE33=0)) -> 0 | EH33: =SUM((O$5:EF$5="Age")*(O33:EF33<=3))-SUM((O$5:EF$5="Age")*(O33:EF33=0)) -> 0 | EJ33: =IF(MIN('Points Calculation'!CB33,'Points Calculation'!CC33)>0,MIN('Points Calculation'!CB33,'Points Calculation'!CC33),"") ->  | EK33: =IF(MIN('Points Calculation'!BD33,'Points Calculation'!BF33)>0,MIN('Points Calculation'!BD33,'Points Calculation'!BF33),"") ->  | EN33: 530.29 | EQ33: ='Points Calculation'!BB33 ->  | ER33: ='Points Calculation'!BC33 ->  | ES33: ='Points Calculation'!BD33 ->  | ET33: ='Points Calculation'!BG33 -> 530.29
A34: Jane Lee | B34: F | C34: 1954 | D34: =INDEX('Age Calculation'!$A$1:'Age Calculation'!$Q$108,MATCH(C34,'Age Calculation'!$A$1:'Age Calculation'!$A$108),MATCH($A$1,'Age Calculation'!$A$1:'Age Calculation'!$Q$1)) -> MAS | E34: 41577 | F34: 533.71 | G34: 533.71 | H34: 533.71 | I34: 533.71 | J34: 533.71 | K34: 533.71 | L34: =IF('Points Calculation'!BG34<K34,'Points Calculation'!BG34,"") ->  | EG34: =SUM((N$5:EE$5="Overall")*(N34:EE34<=3))-SUM((N$5:EE$5="Overall")*(N34:EE34=0)) -> 0 | EH34: =SUM((O$5:EF$5="Age")*(O34:EF34<=3))-SUM((O$5:EF$5="Age")*(O34:EF34=0)) -> 0 | EJ34: =IF(MIN('Points Calculation'!CB34,'Points Calculation'!CC34)>0,MIN('Points Calculation'!CB34,'Points Calculation'!CC34),"") ->  | EK34: =IF(MIN('Points Calculation'!BD34,'Points Calculation'!BF34)>0,MIN('Points Calculation'!BD34,'Points Calculation'!BF34),"") ->  | EN34: 533.71 | EQ34: ='Points Calculation'!BB34 ->  | ER34: ='Points Calculation'!BC34 ->  | ES34: ='Points Calculation'!BD34 ->  | ET34: ='Points Calculation'!BG34 -> 533.71
A35: Emily Dawes | B35: F | C35: 1991 | D35: =INDEX('Age Calculation'!$A$1:'Age Calculation'!$Q$108,MATCH(C35,'Age Calculation'!$A$1:'Age Calculation'!$A$108),MATCH($A$1,'Age Calculation'!$A$1:'Age Calculation'!$Q$1)) -> SEN | E35: 14263 | F35: NR | G35: NR | H35: NR | I35: NR | J35: NR | K35: NR | EG35: =SUM((N$5:EE$5="Overall")*(N35:EE35<=3))-SUM((N$5:EE$5="Overall")*(N35:EE35=0)) -> 0 | EH35: =SUM((O$5:EF$5="Age")*(O35:EF35<=3))-SUM((O$5:EF$5="Age")*(O35:EF35=0)) -> 0 | EJ35: =IF(MIN('Points Calculation'!CB35,'Points Calculation'!CC35)>0,MIN('Points Calculation'!CB35,'Points Calculation'!CC35),"") ->  | EK35: =IF(MIN('Points Calculation'!BD35,'Points Calculation'!BF35)>0,MIN('Points Calculation'!BD35,'Points Calculation'!BF35),"") ->  | EN35: NR | EQ35: ='Points Calculation'!BB35 ->  | ER35: ='Points Calculation'!BC35 -> 0 | ES35: ='Points Calculation'!BD35 -> 0 | ET35: ='Points Calculation'!BG35 -> 0
A36: Sophia Phelps | B36: F | C36: 1994 | D36: =INDEX('Age Calculation'!$A$1:'Age Calculation'!$Q$108,MATCH(C36,'Age Calculation'!$A$1:'Age Calculation'!$A$108),MATCH($A$1,'Age Calculation'!$A$1:'Age Calculation'!$Q$1)) -> U21 | E36: 17839 | F36: NR | G36: NR | H36: NR | I36: NR | J36: NR | K36: NR | EG36: =SUM((N$5:EE$5="Overall")*(N36:EE36<=3))-SUM((N$5:EE$5="Overall")*(N36:EE36=0)) -> 0 | EH36: =SUM((O$5:EF$5="Age")*(O36:EF36<=3))-SUM((O$5:EF$5="Age")*(O36:EF36=0)) -> 0 | EJ36: =IF(MIN('Points Calculation'!CB36,'Points Calculation'!CC36)>0,MIN('Points Calculation'!CB36,'Points Calculation'!CC36),"") ->  | EK36: =IF(MIN('Points Calculation'!BD36,'Points Calculation'!BF36)>0,MIN('Points Calculation'!BD36,'Points Calculation'!BF36),"") ->  | EN36: NR | EQ36: ='Points Calculation'!BB36 ->  | ER36: ='Points Calculation'!BC36 -> 0 | ES36: ='Points Calculation'!BD36 -> 0 | ET36: ='Points Calculation'!BG36 -> 0
A37: Olivia Waller | B37: F | C37: 1994 | D37: =INDEX('Age Calculation'!$A$1:'Age Calculation'!$Q$108,MATCH(C37,'Age Calculation'!$A$1:'Age Calculation'!$A$108),MATCH($A$1,'Age Calculation'!$A$1:'Age Calculation'!$Q$1)) -> U21 | E37: 17516 | F37: NR | G37: NR | H37: NR | I37: NR | J37: NR | K37: NR | EG37: =SUM((N$5:EE$5="Overall")*(N37:EE37<=3))-SUM((N$5:EE$5="Overall")*(N37:EE37=0)) -> 0 | EH37: =SUM((O$5:EF$5="Age")*(O37:EF37<=3))-SUM((O$5:EF$5="Age")*(O37:EF37=0)) -> 0 | EJ37: =IF(MIN('Points Calculation'!CB37,'Points Calculation'!CC37)>0,MIN('Points Calculation'!CB37,'Points Calculation'!CC37),"") ->  | EK37: =IF(MIN('Points Calculation'!BD37,'Points Calculation'!BF37)>0,MIN('Points Calculation'!BD37,'Points Calculation'!BF37),"") ->  | EN37: NR | EQ37: ='Points Calculation'!BB37 ->  | ER37: ='Points Calculation'!BC37 -> 0 | ES37: ='Points Calculation'!BD37 -> 0 | ET37: ='Points Calculation'!BG37 -> 0
A38: Agathe Vallat | B38: F | C38: 1999 | D38: U16 | E38: 21606 | F38: 999.99 | G38: 999.99 | H38: 999.99 | I38: 999.99 | J38: 465.82 | K38: 465.82 | L38: =IF('Points Calculation'!BG38<K38,'Points Calculation'!BG38,"") ->  | BV38: 27 | BW38: 5 | BX38: 388.18 | EG38: =SUM((N$5:EE$5="Overall")*(N38:EE38<=3))-SUM((N$5:EE$5="Overall")*(N38:EE38=0)) -> 0 | EH38: =SUM((O$5:EF$5="Age")*(O38:EF38<=3))-SUM((O$5:EF$5="Age")*(O38:EF38=0)) -> 0 | EJ38: =IF(MIN('Points Calculation'!CB37,'Points Calculation'!CC37)>0,MIN('Points Calculation'!CB37,'Points Calculation'!CC37),"") ->  | EK38: =IF(MIN('Points Calculation'!BD38,'Points Calculation'!BF38)>0,MIN('Points Calculation'!BD38,'Points Calculation'!BF38),"") -> 465.82 | EL38: =IF(EJ38<>"",EJ38-EK38,"") ->  | EM38: =IF(EJ38<>"",EL38/EK38,"") ->  | EN38: 999.99 | EQ38: ='Points Calculation'!BB38 -> 388.18 | ER38: ='Points Calculation'!BC38 ->  | ES38: ='Points Calculation'!BD38 ->  | ET38: ='Points Calculation'!BG38 -> 465.82
A39: Carys Phillips | B39: F | C39: 1999 | D39: U16 | E39: Day | F39: NR | G39: NR | H39: NR | I39: NR | J39: NR | K39: NR | BV39: 26 | BW39: 4 | BX39: 333.45 | EG39: =SUM((N$5:EE$5="Overall")*(N39:EE39<=3))-SUM((N$5:EE$5="Overall")*(N39:EE39=0)) -> 0 | EH39: =SUM((O$5:EF$5="Age")*(O39:EF39<=3))-SUM((O$5:EF$5="Age")*(O39:EF39=0)) -> 0 | EJ39: =IF(MIN('Points Calculation'!CB38,'Points Calculation'!CC38)>0,MIN('Points Calculation'!CB38,'Points Calculation'!CC38),"") ->  | EK39: =IF(MIN('Points Calculation'!BD39,'Points Calculation'!BF39)>0,MIN('Points Calculation'!BD39,'Points Calculation'!BF39),"") -> 400.14 | EL39: =IF(EJ39<>"",EJ39-EK39,"") ->  | EM39: =IF(EJ39<>"",EL39/EK39,"") ->  | EN39: NR | EQ39: ='Points Calculation'!BB39 -> 333.45 | ER39: ='Points Calculation'!BC39 ->  | ES39: ='Points Calculation'!BD39 ->  | ET39: ='Points Calculation'!BG39 -> 400.14
A40: MALES | L40: =IF('Points Calculation'!BG40<I40,'Points Calculation'!BG40,"") -> 
A41: Harry Hornsby | B41: M | C41: 1991 | D41: =INDEX('Age Calculation'!$A$1:'Age Calculation'!$Q$108,MATCH(C41,'Age Calculation'!$A$1:'Age Calculation'!$A$108),MATCH($A$1,'Age Calculation'!$A$1:'Age Calculation'!$Q$1)) -> SEN | E41: 17356 | F41: 4.17 | G41: 4.17 | H41: 4.17 | I41: 4.17 | J41: 4.17 | K41: 4.17 | L41: =IF('Points Calculation'!BG41<K41,'Points Calculation'!BG41,"") ->  | M41: =IF(F41<999.99,IF(MIN(K41,L41)<F41,MIN(K41,L41)-F41,""),"") ->  | N41: 1 | O41: 1 | P41: 10 | BG41: 4 | BH41: 3 | BI41: 19.49 | BM41: 1 | BN41: 1 | BO41: 10 | BV41: 1 | BW41: 1 | BX41: 10 | BY41: 4 | BZ41: 2 | CA41: 33.77 | CF41: 51 | CG41: 8 | CH41: 1046.98 | CI41: DSQ | CJ41: DSQ | CK41: 999.99 | CL41: 5 | CM41: 4 | CN41: 29.61 | CO41: DNF | CP41: DNF | CQ41: 999.99 | DC41: 4 | DD41: 4 | DE41: 14.76 | DO41: DSQ | DP41: DSQ | DQ41: 999.99 | EG41: =SUM((N$5:EE$5="Overall")*(N41:EE41<=3))-SUM((N$5:EE$5="Overall")*(N41:EE41=0)) -> 3 | EH41: =SUM((O$5:EF$5="Age")*(O41:EF41<=3))-SUM((O$5:EF$5="Age")*(O41:EF41=0)) -> 5 | EJ41: =IF(MIN('Points Calculation'!CB41,'Points Calculation'!CC41)>0,MIN('Points Calculation'!CB41,'Points Calculation'!CC41),"") -> 20 | EK41: =IF(MIN('Points Calculation'!BD41,'Points Calculation'!BF41)>0,MIN('Points Calculation'!BD41,'Points Calculation'!BF41),"") -> 10 | EL41: 10 | EM41: 1 | EN41: =IF(F41>800,999.99,IF(F41<50,F41+10,F41*1.2)) -> 14.17 | EQ41: ='Points Calculation'!BB41 -> 10 | ER41: ='Points Calculation'!BC41 -> 10 | ES41: ='Points Calculation'!BD41 -> 10 | ET41: ='Points Calculation'!BG41 -> 4.17
A42: Andrew Du Plessis | B42: M | C42: 1985 | D42: =INDEX('Age Calculation'!$A$1:'Age Calculation'!$Q$108,MATCH(C42,'Age Calculation'!$A$1:'Age Calculation'!$A$108),MATCH($A$1,'Age Calculation'!$A$1:'Age Calculation'!$Q$1)) -> SEN | E42: 12318 | F42: 25.51 | G42: 25.51 | H42: 25.51 | I42: 25.51 | J42: 24.62 | K42: 24.62 | L42: =IF('Points Calculation'!BG42<K42,'Points Calculation'!BG42,"") ->  | M42: -0.89 | U42: 5 | V42: 1 | W42: 31.44 | X42: =29.4+12.34 -> 41.74 | AB42: 4 | AC42: 1 | AD42: 38.87 | BM42: 6 | BN42: 4 | BO42: 33.85 | BV42: 4 | BW42: 3 | BX42: 23.72 | CF42: 6 | CG42: 4 | CH42: 49.36 | CL42: 8 | CM42: 7 | CN42: 42.47 | DC42: DNF | DD42: DNF | DE42: 999.99 | DO42: 8 | DP42: 6 | DQ42: 43.41 | EG42: =SUM((N$5:EE$5="Overall")*(N42:EE42<=3))-SUM((N$5:EE$5="Overall")*(N42:EE42=0)) -> 0 | EH42: =SUM((O$5:EF$5="Age")*(O42:EF42<=3))-SUM((O$5:EF$5="Age")*(O42:EF42=0)) -> 3 | EJ42: =IF(MIN('Points Calculation'!CB42,'Points Calculation'!CC42)>0,MIN('Points Calculation'!CB42,'Points Calculation'!CC42),"") -> 40.67 | EK42: =IF(MIN('Points Calculation'!BD42,'Points Calculation'!BF42)>0,MIN('Points Calculation'!BD42,'Points Calculation'!BF42),"") -> 27.58 | EL42: 13.09 | EM42: 0.4746192893 | EN42: 35.51 | EQ42: ='Points Calculation'!BB42 -> 23.72 | ER42: ='Points Calculation'!BC42 -> 31.44 | ES42: ='Points Calculation'!BD42 -> 27.58 | ET42: ='Points Calculation'!BG42 -> 24.62
A43: Adam Beardmore | B43: M | C43: 1986 | D43: =INDEX('Age Calculation'!$A$1:'Age Calculation'!$Q$108,MATCH(C43,'Age Calculation'!$A$1:'Age Calculation'!$A$108),MATCH($A$1,'Age Calculation'!$A$1:'Age Calculation'!$Q$1)) -> SEN | E43: 19704 | F43: 29.85 | G43: 29.85 | H43: 29.85 | I43: 29.85 | J43: 29.85 | K43: 29.85 | L43: =IF('Points Calculation'!BG43<K43,'Points Calculation'!BG43,"") ->  | BV43: DNF | BW43: DNF | BX43: 999.99 | DO43: 20 | DP43: 9 | DQ43: 64.56 | EG43: =SUM((N$5:EE$5="Overall")*(N43:EE43<=3))-SUM((N$5:EE$5="Overall")*(N43:EE43=0)) -> 0 | EH43: =SUM((O$5:EF$5="Age")*(O43:EF43<=3))-SUM((O$5:EF$5="Age")*(O43:EF43=0)) -> 0 | EJ43: =IF(MIN('Points Calculation'!CB43,'Points Calculation'!CC43)>0,MIN('Points Calculation'!CB43,'Points Calculation'!CC43),"") -> 77.472 | EK43: =IF(MIN('Points Calculation'!BD43,'Points Calculation'!BF43)>0,MIN('Points Calculation'!BD43,'Points Calculation'!BF43),"") -> 77.47 | EL43: 0.002 | EM43: 2.581644508e-05 | EN43: 39.85 | EQ43: ='Points Calculation'!BB43 -> 64.56 | ER43: ='Points Calculation'!BC43 -> 999.99 | ES43: ='Points Calculation'!BD43 -> 532.28 | ET43: ='Points Calculation'!BG43 -> 29.85
A44: Jonny Powell | B44: M | C44: 1986 | D44: =INDEX('Age Calculation'!$A$1:'Age Calculation'!$Q$108,MATCH(C44,'Age Calculation'!$A$1:'Age Calculation'!$A$108),MATCH($A$1,'Age Calculation'!$A$1:'Age Calculation'!$Q$1)) -> SEN | E44: 17479 | F44: 30.83 | G44: 30.83 | H44: 30.83 | I44: 30.83 | J44: 30.83 | K44: 28.96 | L44: =IF('Points Calculation'!BG44<K44,'Points Calculation'!BG44,"") -> 23.31 | M44: -7.52 | N44: 4 | O44: 3 | P44: 51.55 | Q44: 15 | R44: 1 | S44: =41.12+18.92 -> 60.04 | T44: =56.28+15.74 -> 72.02 | U44: 11 | V44: 2 | W44: =45.89+19.15 -> 65.04 | X44: =34.3+12.34 -> 46.64 | AB44: 12 | AC44: 2 | AD44: 70.91 | AE44: 2 | AF44: 1 | AG44: 57.24 | AH44: DNF | AI44: DNF | AJ44: 999.99 | AQ44: 3 | AR44: 2 | AS44: 36.36 | AT44: 6 | AU44: 2 | AV44: 62.71 | BG44: 9 | BH44: 7 | BI44: 45.46 | BM44: 8 | BN44: 6 | BO44: 42.71 | BP44: 10 | BQ44: 3 | BR44: 51.64 | BS44: 11 | BT44: 3 | BU44: 47.75 | BV44: 6 | BW44: 4 | BX44: 37.81 | BY44: 5 | BZ44: 3 | CA44: 47.61 | CX44: 3 | CY44: 2 | CZ44: 27.08 | DA44: 5 | DB44: 2 | DC44: 7 | DD44: 7 | DE44: 32.91 | DF44: 7 | DG44: 6 | DH44: 45.99 | DI44: 1 | DJ44: 1 | DK44: 20.71 | DL44: 3 | DM44: 1 | DN44: 26.12 | DO44: 6 | DP44: 5 | DQ44: 30.96 | DU44: 2 | DV44: 2 | DW44: 25.91 | DX44: 2 | DY44: 2 | DZ44: 25.95 | EA44: 9 | EB44: 3 | EC44: 48.46 | EG44: =SUM((N$5:EE$5="Overall")*(N44:EE44<=3))-SUM((N$5:EE$5="Overall")*(N44:EE44=0)) -> 7 | EH44: =SUM((O$5:EF$5="Age")*(O44:EF44<=3))-SUM((O$5:EF$5="Age")*(O44:EF44=0)) -> 17 | EJ44: =IF(MIN('Points Calculation'!CB44,'Points Calculation'!CC44)>0,MIN('Points Calculation'!CB44,'Points Calculation'!CC44),"") -> 23.31 | EK44: =IF(MIN('Points Calculation'!BD44,'Points Calculation'!BF44)>0,MIN('Points Calculation'!BD44,'Points Calculation'!BF44),"") -> 23.31 | EL44: 3.552713679e-15 | EM44: 1.524115692e-16 | EN44: 40.83 | EQ44: ='Points Calculation'!BB44 -> 20.71 | ER44: ='Points Calculation'!BC44 -> 25.91 | ES44: ='Points Calculation'!BD44 -> 23.31 | ET44: ='Points Calculation'!BG44 -> 23.31
A45: Nick Miller | B45: M | C45: 1993 | D45: =INDEX('Age Calculation'!$A$1:'Age Calculation'!$Q$108,MATCH(C45,'Age Calculation'!$A$1:'Age Calculation'!$A$108),MATCH($A$1,'Age Calculation'!$A$1:'Age Calculation'!$Q$1)) -> U21 | E45: 18607 | F45: 56.48 | G45: 56.48 | H45: 56.48 | I45: 56.48 | J45: 56.48 | K45: 56.48 | L45: =IF('Points Calculation'!BG45<K45,'Points Calculation'!BG45,"") ->  | EG45: =SUM((N$5:EE$5="Overall")*(N45:EE45<=3))-SUM((N$5:EE$5="Overall")*(N45:EE45=0)) -> 0 | EH45: =SUM((O$5:EF$5="Age")*(O45:EF45<=3))-SUM((O$5:EF$5="Age")*(O45:EF45=0)) -> 0 | EJ45: =IF(MIN('Points Calculation'!CB45,'Points Calculation'!CC45)>0,MIN('Points Calculation'!CB45,'Points Calculation'!CC45),"") ->  | EK45: =IF(MIN('Points Calculation'!BD45,'Points Calculation'!BF45)>0,MIN('Points Calculation'!BD45,'Points Calculation'!BF45),"") ->  | EN45: 67.776 | EQ45: ='Points Calculation'!BB45 ->  | ER45: ='Points Calculation'!BC45 ->  | ES45: ='Points Calculation'!BD45 ->  | ET45: ='Points Calculation'!BG45 -> 56.48
A46: Mark Hawkins | B46: M | C46: 1979 | D46: =INDEX('Age Calculation'!$A$1:'Age Calculation'!$Q$108,MATCH(C46,'Age Calculation'!$A$1:'Age Calculation'!$A$108),MATCH($A$1,'Age Calculation'!$A$1:'Age Calculation'!$Q$1)) -> MAS | E46: 19163 | F46: 57.13 | G46: 57.13 | H46: 57.13 | I46: 57.13 | J46: 57.13 | K46: 57.13 | L46: =IF('Points Calculation'!BG46<K46,'Points Calculation'!BG46,"") ->  | AE46: 10 | AF46: 1 | AG46: 102.79 | AH46: 24 | AI46: 4 | AJ46: 153.54 | AX46: 10 | AY46: 1 | AZ46: 79.27 | BA46: 10 | BB46: 1 | BC46: 65.55 | BV46: 20 | BW46: 1 | BX46: 78.03 | BY46: 24 | BZ46: 1 | CA46: 100.6 | CF46: 8 | CG46: 1 | CH46: 66.53 | CI46: 22 | CJ46: 3 | CK46: 166.33 | CL46: 42 | CM46: 5 | CN46: 142.94 | CO46: 15 | CP46: 1 | CQ46: 82.95 | DC46: 23 | DD46: 1 | DE46: 96.77 | DF46: 14 | DG46: 2 | DH46: 72.36 | DI46: 12 | DJ46: 1 | DK46: 71.08 | DO46: 34 | DP46: 2 | DQ46: 85 | EG46: =SUM((N$5:EE$5="Overall")*(N46:EE46<=3))-SUM((N$5:EE$5="Overall")*(N46:EE46=0)) -> 0 | EH46: =SUM((O$5:EF$5="Age")*(O46:EF46<=3))-SUM((O$5:EF$5="Age")*(O46:EF46=0)) -> 12 | EJ46: =IF(MIN('Points Calculation'!CB46,'Points Calculation'!CC46)>0,MIN('Points Calculation'!CB46,'Points Calculation'!CC46),"") -> 74.74 | EK46: =IF(MIN('Points Calculation'!BD46,'Points Calculation'!BF46)>0,MIN('Points Calculation'!BD46,'Points Calculation'!BF46),"") -> 66.04 | EL46: 8.7 | EM46: 0.1317383404 | EN46: 68.556 | EQ46: ='Points Calculation'!BB46 -> 65.55 | ER46: ='Points Calculation'!BC46 -> 66.53 | ES46: ='Points Calculation'!BD46 -> 66.04 | ET46: ='Points Calculation'!BG46 -> 57.13
A47: Jack Rigby | B47: M | C47: 1995 | D47: =INDEX('Age Calculation'!$A$1:'Age Calculation'!$Q$108,MATCH(C47,'Age Calculation'!$A$1:'Age Calculation'!$A$108),MATCH($A$1,'Age Calculation'!$A$1:'Age Calculation'!$Q$1)) -> U21 | E47: 41722 | F47: 62.46 | G47: 58.49 | H47: 53.73 | I47: 53.73 | J47: 53.73 | K47: 53.73 | L47: =IF('Points Calculation'!BG47<K47,'Points Calculation'!BG47,"") ->  | M47: -8.73 | Q47: 11 | R47: 3 | S47: =45.69+18.92 -> 64.61 | T47: =38.78+15.74 -> 54.52 | Y47: 24 | Z47: 4 | AA47: 167.44 | AB47: 10 | AC47: 6 | AD47: 69.25 | AK47: 9 | AL47: 4 | AM47: 44.99 | AN47: DNF | AO47: DNF | AP47: 999.99 | CU47: DNF | CV47: DNF | CW47: 999.99 | DR47: DNF | DS47: DNF | DT47: 999.99 | EA47: 14 | EB47: 5 | EC47: 65.75 | EG47: =SUM((N$5:EE$5="Overall")*(N47:EE47<=3))-SUM((N$5:EE$5="Overall")*(N47:EE47=0)) -> 0 | EH47: =SUM((O$5:EF$5="Age")*(O47:EF47<=3))-SUM((O$5:EF$5="Age")*(O47:EF47=0)) -> 1 | EJ47: =IF(MIN('Points Calculation'!CB47,'Points Calculation'!CC47)>0,MIN('Points Calculation'!CB47,'Points Calculation'!CC47),"") -> 54.99 | EK47: =IF(MIN('Points Calculation'!BD47,'Points Calculation'!BF47)>0,MIN('Points Calculation'!BD47,'Points Calculation'!BF47),"") -> 54.99 | EL47: 0 | EM47: 0 | EN47: 74.952 | EQ47: ='Points Calculation'!BB47 -> 44.99 | ER47: ='Points Calculation'!BC47 -> 69.25 | ES47: ='Points Calculation'!BD47 -> 57.12 | ET47: ='Points Calculation'!BG47 -> 53.73
A48: Adam. Lee | B48: M | C48: 1994 | D48: =INDEX('Age Calculation'!$A$1:'Age Calculation'!$Q$108,MATCH(C48,'Age Calculation'!$A$1:'Age Calculation'!$A$108),MATCH($A$1,'Age Calculation'!$A$1:'Age Calculation'!$Q$1)) -> U21 | E48: 41578 | F48: 59.81 | G48: 59.81 | H48: 59.81 | I48: 59.81 | J48: 59.49 | K48: 59.49 | L48: =IF('Points Calculation'!BG48<K48,'Points Calculation'!BG48,"") -> 43.52 | M48: -16.29 | N48: 6 | O48: 2 | P48: 69.41 | Q48: 22 | R48: 8 | S48: =72.19+18.92 -> 91.11 | T48: =72.36+15.74 -> 88.1 | U48: 21 | V48: 9 | W48: =82.61+19.15 -> 101.76 | X48: =81.06+12.34 -> 93.4 | AE48: 5 | AF48: 3 | AG48: 70.19 | AH48: DNF | AI48: DNF | AJ48: 999.99 | AX48: 5 | AY48: 3 | AZ48: 61.86 | BA48: 5 | BB48: 3 | BC48: 62.87 | BV48: 19 | BW48: 7 | BX48: 74.09 | BY48: 16 | BZ48: 7 | CA48: 88.13 | CF48: 18 | CG48: 3 | CH48: 106.96 | CI48: DSQ | CJ48: DSQ | CK48: 999.99 | CL48: 19 | CM48: 6 | CN48: 75.46 | CO48: 9 | CP48: 3 | CQ48: 59.17 | CX48: 7 | CY48: 2 | CZ48: 73.56 | DA48: 8 | DB48: 4 | DC48: DNF | DD48: DNF | DE48: 999.99 | DF48: 15 | DG48: 3 | DH48: 73.89 | DI48: 7 | DJ48: 2 | DK48: 48.28 | DO48: 22 | DP48: 6 | DQ48: 65.03 | DR48: 13 | DS48: 4 | DT48: 66.86 | DU48: 3 | DV48: 1 | DW48: 38.76 | DX48: DSQ | DY48: DSQ | DZ48: 999.99 | EG48: =SUM((N$5:EE$5="Overall")*(N48:EE48<=3))-SUM((N$5:EE$5="Overall")*(N48:EE48=0)) -> 1 | EH48: =SUM((O$5:EF$5="Age")*(O48:EF48<=3))-SUM((O$5:EF$5="Age")*(O48:EF48=0)) -> 10 | EJ48: =IF(MIN('Points Calculation'!CB48,'Points Calculation'!CC48)>0,MIN('Points Calculation'!CB48,'Points Calculation'!CC48),"") -> 43.52 | EK48: =IF(MIN('Points Calculation'!BD48,'Points Calculation'!BF48)>0,MIN('Points Calculation'!BD48,'Points Calculation'!BF48),"") -> 43.52 | EL48: -7.105427358e-15 | EM48: -1.632680919e-16 | EN48: 71.772 | EQ48: ='Points Calculation'!BB48 -> 38.76 | ER48: ='Points Calculation'!BC48 -> 48.28 | ES48: ='Points Calculation'!BD48 -> 43.52 | ET48: ='Points Calculation'!BG48 -> 43.52
A49: Alasdair Thorley | B49: M | C49: 1994 | D49: =INDEX('Age Calculation'!$A$1:'Age Calculation'!$Q$108,MATCH(C49,'Age Calculation'!$A$1:'Age Calculation'!$A$108),MATCH($A$1,'Age Calculation'!$A$1:'Age Calculation'!$Q$1)) -> U21 | E49: 18586 | F49: 61.87 | G49: 61.87 | H49: 61.87 | I49: 61.87 | J49: 61.87 | K49: 61.87 | L49: =IF('Points Calculation'!BG49<K49,'Points Calculation'!BG49,"") ->  | EG49: =SUM((N$5:EE$5="Overall")*(N49:EE49<=3))-SUM((N$5:EE$5="Overall")*(N49:EE49=0)) -> 0 | EH49: =SUM((O$5:EF$5="Age")*(O49:EF49<=3))-SUM((O$5:EF$5="Age")*(O49:EF49=0)) -> 0 | EJ49: =IF(MIN('Points Calculation'!CB49,'Points Calculation'!CC49)>0,MIN('Points Calculation'!CB49,'Points Calculation'!CC49),"") ->  | EK49: =IF(MIN('Points Calculation'!BD49,'Points Calculation'!BF49)>0,MIN('Points Calculation'!BD49,'Points Calculation'!BF49),"") ->  | EN49: 74.244 | EQ49: ='Points Calculation'!BB49 ->  | ER49: ='Points Calculation'!BC49 ->  | ES49: ='Points Calculation'!BD49 ->  | ET49: ='Points Calculation'!BG49 -> 61.87
A50: Phil Emmerson | B50: M | C50: 1990 | D50: =INDEX('Age Calculation'!$A$1:'Age Calculation'!$Q$108,MATCH(C50,'Age Calculation'!$A$1:'Age Calculation'!$A$108),MATCH($A$1,'Age Calculation'!$A$1:'Age Calculation'!$Q$1)) -> SEN | E50: 21084 | F50: 104.55 | G50: 97.42 | H50: 97.42 | I50: 62.32 | J50: 62.32 | K50: 62.32 | L50: =IF('Points Calculation'!BG50<K50,'Points Calculation'!BG50,"") ->  | M50: -42.23 | N50: DNF | O50: DNF | P50: 999.99 | Q50: 31 | R50: 3 | S50: =100.52+18.92 -> 119.44 | T50: =107.83+15.74 -> 123.57 | U50: 23 | V50: 5 | W50: =96.83+19.15 -> 115.98 | X50: =77.95+12.34 -> 90.29 | AE50: DNF | AF50: DNF | AG50: 999.99 | AH50: 15 | AI50: 2 | AJ50: 127.92 | AQ50: DSQ | AR50: DSQ | AS50: 999.99 | AX50: 17 | AY50: 3 | AZ50: 98.44 | BG50: DSQ | BH50: DSQ | BI50: 999.99 | BM50: 14 | BN50: 8 | BO50: 51.93 | BV50: DSQ | BW50: DSQ | BX50: 999.99 | BY50: 12 | BZ50: 5 | CA50: 76.83 | CF50: DNF | CG50: DNF | CH50: 999.99 | CI50: DNF | CJ50: DNF | CK50: 999.99 | CL50: DNF | CM50: DNF | CN50: 999.99 | CO50: DNF | CP50: DNF | CQ50: 999.99 | DC50: DNF | DD50: DNF | DE50: 999.99 | DO50: 36 | DP50: 11 | DQ50: 85.23 | EG50: =SUM((N$5:EE$5="Overall")*(N50:EE50<=3))-SUM((N$5:EE$5="Overall")*(N50:EE50=0)) -> 0 | EH50: =SUM((O$5:EF$5="Age")*(O50:EF50<=3))-SUM((O$5:EF$5="Age")*(O50:EF50=0)) -> 3 | EJ50: =IF(MIN('Points Calculation'!CB50,'Points Calculation'!CC50)>0,MIN('Points Calculation'!CB50,'Points Calculation'!CC50),"") -> 102.276 | EK50: =IF(MIN('Points Calculation'!BD50,'Points Calculation'!BF50)>0,MIN('Points Calculation'!BD50,'Points Calculation'!BF50),"") -> 62.32 | EL50: 39.956 | EM50: 0.6411424904 | EN50: 125.46 | EQ50: ='Points Calculation'!BB50 -> 51.93 | ER50: ='Points Calculation'!BC50 -> 76.83 | ES50: ='Points Calculation'!BD50 -> 64.38 | ET50: ='Points Calculation'!BG50 -> 62.32
A51: Nick Phelps | B51: M | C51: 1997 | D51: =INDEX('Age Calculation'!$A$1:'Age Calculation'!$Q$108,MATCH(C51,'Age Calculation'!$A$1:'Age Calculation'!$A$108),MATCH($A$1,'Age Calculation'!$A$1:'Age Calculation'!$Q$1)) -> U18 | E51: 17840 | F51: 62.44 | G51: 62.44 | H51: 62.44 | I51: 62.44 | J51: 62.44 | K51: 62.44 | L51: =IF('Points Calculation'!BG51<K51,'Points Calculation'!BG51,"") ->  | BV51: 24 | BW51: 6 | BX51: 82.54 | BY51: 25 | BZ51: 6 | CA51: 102.36 | CF51: DNF | CG51: DNF | CH51: 999.99 | CI51: 8 | CJ51: 2 | CK51: 87.12 | CL51: 36 | CM51: 5 | CN51: 121.69 | CO51: 19 | CP51: 1 | CQ51: 89.56 | DC51: 16 | DD51: 4 | DE51: 81.24 | DI51: DNS | DJ51: DNS | DK51: 999.99 | EG51: =SUM((N$5:EE$5="Overall")*(N51:EE51<=3))-SUM((N$5:EE$5="Overall")*(N51:EE51=0)) -> 0 | EH51: =SUM((O$5:EF$5="Age")*(O51:EF51<=3))-SUM((O$5:EF$5="Age")*(O51:EF51=0)) -> 2 | EJ51: =IF(MIN('Points Calculation'!CB51,'Points Calculation'!CC51)>0,MIN('Points Calculation'!CB51,'Points Calculation'!CC51),"") -> 84.18 | EK51: =IF(MIN('Points Calculation'!BD51,'Points Calculation'!BF51)>0,MIN('Points Calculation'!BD51,'Points Calculation'!BF51),"") -> 84.18 | EL51: 0 | EM51: 0 | EN51: 74.928 | EQ51: ='Points Calculation'!BB51 -> 81.24 | ER51: ='Points Calculation'!BC51 -> 87.12 | ES51: ='Points Calculation'!BD51 -> 84.18 | ET51: ='Points Calculation'!BG51 -> 62.44
A52: James Smith | B52: M | C52: 1992 | D52: =INDEX('Age Calculation'!$A$1:'Age Calculation'!$Q$108,MATCH(C52,'Age Calculation'!$A$1:'Age Calculation'!$A$108),MATCH($A$1,'Age Calculation'!$A$1:'Age Calculation'!$Q$1)) -> SEN | E52: 21595 | F52: 999.99 | G52: 105.14 | H52: 105.14 | I52: 87.48 | J52: 87.48 | K52: 87.48 | L52: =IF('Points Calculation'!BG52<K52,'Points Calculation'!BG52,"") ->  | N52: DNF | O52: DNF | P52: 999.99 | Q52: 25 | R52: 2 | S52: =87.72+18.92 -> 106.64 | T52: =71.88+15.74 -> 87.62 | U52: 20 | V52: 4 | W52: =79.85+19.15 -> 99 | X52: =77.05+12.34 -> 89.39 | AE52: 25 | AF52: 3 | AG52: 219.8 | AH52: 34 | AI52: 4 | AJ52: 369.27 | AQ52: DSQ | AR52: DSQ | AS52: 999.99 | AX52: 12 | AY52: 2 | AZ52: 87.34 | EG52: =SUM((N$5:EE$5="Overall")*(N52:EE52<=3))-SUM((N$5:EE$5="Overall")*(N52:EE52=0)) -> 0 | EH52: =SUM((O$5:EF$5="Age")*(O52:EF52<=3))-SUM((O$5:EF$5="Age")*(O52:EF52=0)) -> 3 | EJ52: =IF(MIN('Points Calculation'!CB52,'Points Calculation'!CC52)>0,MIN('Points Calculation'!CB52,'Points Calculation'!CC52),"") -> 263.76 | EK52: =IF(MIN('Points Calculation'!BD52,'Points Calculation'!BF52)>0,MIN('Points Calculation'!BD52,'Points Calculation'!BF52),"") -> 87.48 | EL52: 176.28 | EM52: 2.015089163 | EN52: 999.99 | EQ52: ='Points Calculation'!BB52 -> 87.34 | ER52: ='Points Calculation'!BC52 -> 87.62 | ES52: ='Points Calculation'!BD52 -> 87.48 | ET52: ='Points Calculation'!BG52 -> 87.48
A53: Oliver Weeks | B53: M | C53: 2001 | D53: =INDEX('Age Calculation'!$A$1:'Age Calculation'!$Q$108,MATCH(C53,'Age Calculation'!$A$1:'Age Calculation'!$A$108),MATCH($A$1,'Age Calculation'!$A$1:'Age Calculation'!$Q$1)) -> U14 | E53: 19051 | F53: 119.29 | G53: 104.12 | H53: 90.4 | I53: 90.4 | J53: 87.55 | K53: 83.72 | L53: =IF('Points Calculation'!BG53<K53,'Points Calculation'!BG53,"") -> 75.58 | M53: =IF(F53<999.99,IF(MIN(K53,L53)<F53,MIN(K53,L53)-F53,""),"") -> -43.71 | N53: DSQ | O53: DSQ | P53: 999.99 | Q53: 28 | R53: 1 | S53: =101.43+18.92 -> 120.35 | T53: =83.23+15.74 -> 98.97 | U53: 19 | V53: 1 | W53: =79.85+19.15 -> 99 | X53: =76.61+12.34 -> 88.95 | Y53: 12 | Z53: 1 | AA53: 105.39 | AB53: 20 | AC53: 1 | AD53: 94.4 | AE53: 32 | AF53: 5 | AG53: 344.79 | AH53: 22 | AI53: 1 | AJ53: 151.07 | AN53: 22 | AO53: 1 | AP53: 88.91 | AQ53: 16 | AR53: 1 | AS53: 118.09 | AT53: 10 | AU53: 1 | AV53: 91.88 | AX53: 28 | AY53: 2 | AZ53: 142.83 | BA53: 20 | BB53: 2 | BC53: 105.27 | BG53: 38 | BH53: 3 | BI53: 137.1 | BM53: 32 | BN53: 1 | BO53: 95.95 | BV53: 30 | BW53: 2 | BX53: 101.9 | CB53: 58 | CC53: 16 | CD53: 86.19 | CE53: 537.46 | CF53: DNF | CG53: DNF | CH53: 999.99 | CI53: 20 | CJ53: 1 | CK53: 146.48 | CL53: 59 | CM53: 10 | CN53: 681.67 | CO53: 25 | CP53: 1 | CQ53: 115.13 | CR53: 53 | CS53: 14 | CT53: 418.28 | CU53: 46 | CV53: 8 | CW53: 210.68 | DC53: 16 | DD53: 1 | DE53: 81.24 | DF53: 22 | DG53: 1 | DH53: 107.74 | DI53: 13 | DJ53: 1 | DK53: 92.95 | DO53: 39 | DP53: 2 | DQ53: 102.15 | DR53: 17 | DS53: 1 | DT53: 77.94 | EA53: 18 | EB53: 1 | EC53: 69.91 | EG53: =SUM((N$5:EE$5="Overall")*(N53:EE53<=3))-SUM((N$5:EE$5="Overall")*(N53:EE53=0)) -> 0 | EH53: =SUM((O$5:EF$5="Age")*(O53:EF53<=3))-SUM((O$5:EF$5="Age")*(O53:EF53=0)) -> 21 | EJ53: =IF(MIN('Points Calculation'!CB53,'Points Calculation'!CC53)>0,MIN('Points Calculation'!CB53,'Points Calculation'!CC53),"") -> 75.575 | EK53: =IF(MIN('Points Calculation'!BD53,'Points Calculation'!BF53)>0,MIN('Points Calculation'!BD53,'Points Calculation'!BF53),"") -> 75.58 | EL53: -0.005 | EM53: -6.615506748e-05 | EN53: 143.148 | EQ53: ='Points Calculation'!BB53 -> 69.91 | ER53: ='Points Calculation'!BC53 -> 81.24 | ES53: ='Points Calculation'!BD53 -> 75.58 | ET53: ='Points Calculation'!BG53 -> 75.58
A54: Roger Crombleholme | B54: M | C54: 1957 | D54: =INDEX('Age Calculation'!$A$1:'Age Calculation'!$Q$108,MATCH(C54,'Age Calculation'!$A$1:'Age Calculation'!$A$108),MATCH($A$1,'Age Calculation'!$A$1:'Age Calculation'!$Q$1)) -> MAS | E54: 5666 | F54: 104.12 | G54: 104.12 | H54: 104.12 | I54: 104.12 | J54: 104.12 | K54: 104.12 | L54: =IF('Points Calculation'!BG54<K54,'Points Calculation'!BG54,"") ->  | M54: =IF(F54<999.99,IF(MIN(K54,L54)<F54,MIN(K54,L54)-F54,""),"") ->  | BV54: 40 | BW54: 6 | BX54: 141.93 | BY54: DNF | BZ54: DNF | CA54: 999.99 | EG54: =SUM((N$5:EE$5="Overall")*(N54:EE54<=3))-SUM((N$5:EE$5="Overall")*(N54:EE54=0)) -> 0 | EH54: =SUM((O$5:EF$5="Age")*(O54:EF54<=3))-SUM((O$5:EF$5="Age")*(O54:EF54=0)) -> 0 | EJ54: =IF(MIN('Points Calculation'!CB54,'Points Calculation'!CC54)>0,MIN('Points Calculation'!CB54,'Points Calculation'!CC54),"") ->  | EK54: =IF(MIN('Points Calculation'!BD54,'Points Calculation'!BF54)>0,MIN('Points Calculation'!BD54,'Points Calculation'!BF54),"") -> 170.32 | EN54: 124.944 | EQ54: ='Points Calculation'!BB54 -> 141.93 | ER54: ='Points Calculation'!BC54 ->  | ES54: ='Points Calculation'!BD54 ->  | ET54: ='Points Calculation'!BG54 -> 104.12
A55: Joey Frost | B55: M | C55: 1995 | D55: =INDEX('Age Calculation'!$A$1:'Age Calculation'!$Q$108,MATCH(C55,'Age Calculation'!$A$1:'Age Calculation'!$A$108),MATCH($A$1,'Age Calculation'!$A$1:'Age Calculation'!$Q$1)) -> U21 | E55: 20677 | F55: 110.32 | G55: 110.32 | H55: 110.32 | I55: 110.32 | J55: 110.32 | K55: 110.32 | L55: =IF('Points Calculation'!BG55<K55,'Points Calculation'!BG55,"") ->  | EG55: =SUM((N$5:EE$5="Overall")*(N55:EE55<=3))-SUM((N$5:EE$5="Overall")*(N55:EE55=0)) -> 0 | EH55: =SUM((O$5:EF$5="Age")*(O55:EF55<=3))-SUM((O$5:EF$5="Age")*(O55:EF55=0)) -> 0 | EJ55: =IF(MIN('Points Calculation'!CB55,'Points Calculation'!CC55)>0,MIN('Points Calculation'!CB55,'Points Calculation'!CC55),"") ->  | EK55: =IF(MIN('Points Calculation'!BD55,'Points Calculation'!BF55)>0,MIN('Points Calculation'!BD55,'Points Calculation'!BF55),"") ->  | EN55: 132.384 | EQ55: ='Points Calculation'!BB55 ->  | ER55: ='Points Calculation'!BC55 ->  | ES55: ='Points Calculation'!BD55 ->  | ET55: ='Points Calculation'!BG55 -> 110.32
A56: Jordan Rigby | B56: M | C56: 2000 | D56: =INDEX('Age Calculation'!$A$1:'Age Calculation'!$Q$108,MATCH(C56,'Age Calculation'!$A$1:'Age Calculation'!$A$108),MATCH($A$1,'Age Calculation'!$A$1:'Age Calculation'!$Q$1)) -> U14 | E56: 19910 | F56: 144.43 | G56: 139.45 | H56: 135.66 | I56: 135.66 | J56: 116.41 | K56: 116.41 | L56: =IF('Points Calculation'!BG56<K56,'Points Calculation'!BG56,"") ->  | M56: -28.02 | N56: 14 | O56: 1 | P56: 134.47 | Q56: 51 | R56: 5 | S56: =188.7+18.92 -> 207.62 | T56: =192.01+15.74 -> 207.75 | AE56: 22 | AF56: 1 | AG56: 190.65 | AH56: 35 | AI56: 6 | AJ56: 474.44 | AQ56: 26 | AR56: 4 | AS56: 136.84 | AX56: 33 | AY56: 3 | AZ56: 158.72 | BA56: 30 | BB56: 3 | BC56: 143.53 | BV56: 28 | BW56: 1 | BX56: 97.01 | BY56: 32 | BZ56: 1 | CA56: 125.74 | CO56: DSQ | CP56: DSQ | CQ56: 999.99 | EG56: =SUM((N$5:EE$5="Overall")*(N56:EE56<=3))-SUM((N$5:EE$5="Overall")*(N56:EE56=0)) -> 0 | EH56: =SUM((O$5:EF$5="Age")*(O56:EF56<=3))-SUM((O$5:EF$5="Age")*(O56:EF56=0)) -> 6 | EJ56: =IF(MIN('Points Calculation'!CB56,'Points Calculation'!CC56)>0,MIN('Points Calculation'!CB56,'Points Calculation'!CC56),"") -> 161.364 | EK56: =IF(MIN('Points Calculation'!BD56,'Points Calculation'!BF56)>0,MIN('Points Calculation'!BD56,'Points Calculation'!BF56),"") -> 116.41 | EL56: 44.954 | EM56: 0.3861695731 | EN56: 173.316 | EQ56: ='Points Calculation'!BB56 -> 97.01 | ER56: ='Points Calculation'!BC56 -> 136.84 | ES56: ='Points Calculation'!BD56 -> 116.93 | ET56: ='Points Calculation'!BG56 -> 116.41
A57: James Elgy | B57: M | C57: 1993 | D57: =INDEX('Age Calculation'!$A$1:'Age Calculation'!$Q$108,MATCH(C57,'Age Calculation'!$A$1:'Age Calculation'!$A$108),MATCH($A$1,'Age Calculation'!$A$1:'Age Calculation'!$Q$1)) -> U21 | E57: 19166 | F57: 142.46 | G57: 142.46 | H57: 142.46 | I57: 142.46 | J57: 142.46 | K57: 142.46 | L57: =IF('Points Calculation'!BG57<K57,'Points Calculation'!BG57,"") ->  | EG57: =SUM((N$5:EE$5="Overall")*(N57:EE57<=3))-SUM((N$5:EE$5="Overall")*(N57:EE57=0)) -> 0 | EH57: =SUM((O$5:EF$5="Age")*(O57:EF57<=3))-SUM((O$5:EF$5="Age")*(O57:EF57=0)) -> 0 | EJ57: =IF(MIN('Points Calculation'!CB57,'Points Calculation'!CC57)>0,MIN('Points Calculation'!CB57,'Points Calculation'!CC57),"") ->  | EK57: =IF(MIN('Points Calculation'!BD57,'Points Calculation'!BF57)>0,MIN('Points Calculation'!BD57,'Points Calculation'!BF57),"") ->  | EN57: 170.952 | EQ57: ='Points Calculation'!BB57 ->  | ER57: ='Points Calculation'!BC57 ->  | ES57: ='Points Calculation'!BD57 ->  | ET57: ='Points Calculation'!BG57 -> 142.46
A58: Sam Lee | B58: M | C58: 1996 | D58: =INDEX('Age Calculation'!$A$1:'Age Calculation'!$Q$108,MATCH(C58,'Age Calculation'!$A$1:'Age Calculation'!$A$108),MATCH($A$1,'Age Calculation'!$A$1:'Age Calculation'!$Q$1)) -> U18 | E58: 41662 | F58: 154.66 | G58: 154.66 | H58: 154.66 | I58: 143.62 | J58: 138.66 | K58: 138.66 | L58: =IF('Points Calculation'!BG58<K58,'Points Calculation'!BG58,"") -> 133.41 | M58: -21.25 | N58: DNF | O58: DNF | P58: 999.99 | AE58: DNF | AF58: DNF | AG58: 999.99 | AH58: 29 | AI58: 5 | AJ58: 189.94 | AX58: 34 | AY58: 5 | AZ58: 161.24 | BA58: 27 | BB58: 4 | BC58: 132.57 | BV58: 42 | BW58: 9 | BX58: 144.75 | BY58: 44 | BZ58: 10 | CA58: 175.81 | CF58: 40 | CG58: 9 | CH58: 198.01 | CI58: 39 | CJ58: 8 | CK58: 376.93 | CL58: DNF | CM58: DNF | CN58: 999.99 | CO58: 38 | CP58: 6 | CQ58: 166.79 | DC58: 38 | DD58: 10 | DE58: 163.61 | DF58: 29 | DG58: 10 | DH58: 175.95 | DI58: 17 | DJ58: 8 | DK58: 134.24 | DO58: 61 | DP58: 9 | DQ58: 185.55 | EG58: =SUM((N$5:EE$5="Overall")*(N58:EE58<=3))-SUM((N$5:EE$5="Overall")*(N58:EE58=0)) -> 0 | EH58: =SUM((O$5:EF$5="Age")*(O58:EF58<=3))-SUM((O$5:EF$5="Age")*(O58:EF58=0)) -> 0 | EJ58: =IF(MIN('Points Calculation'!CB58,'Points Calculation'!CC58)>0,MIN('Points Calculation'!CB58,'Points Calculation'!CC58),"") -> 148.925 | EK58: =IF(MIN('Points Calculation'!BD58,'Points Calculation'!BF58)>0,MIN('Points Calculation'!BD58,'Points Calculation'!BF58),"") -> 133.41 | EL58: 15.515 | EM58: 0.11629563 | EN58: 185.592 | EQ58: ='Points Calculation'!BB58 -> 132.57 | ER58: ='Points Calculation'!BC58 -> 134.24 | ES58: ='Points Calculation'!BD58 -> 133.41 | ET58: ='Points Calculation'!BG58 -> 133.41
A59: Sam Dewison | B59: M | C59: 1998 | D59: =INDEX('Age Calculation'!$A$1:'Age Calculation'!$Q$108,MATCH(C59,'Age Calculation'!$A$1:'Age Calculation'!$A$108),MATCH($A$1,'Age Calculation'!$A$1:'Age Calculation'!$Q$1)) -> U16 | E59: 20846 | F59: 238.66 | G59: 238.66 | H59: 207.52 | I59: 124.45 | J59: 124.45 | K59: 124.45 | L59: =IF('Points Calculation'!BG59<K59,'Points Calculation'!BG59,"") ->  | M59: -114.21 | AQ59: 32 | AR59: 12 | AS59: 176.37 | BG59: 35 | BH59: 4 | BI59: 129.36 | BM59: 43 | BN59: 10 | BO59: 119.54 | BV59: DSQ | BW59: DSQ | BX59: 999.99 | BY59: 41 | BZ59: 9 | CA59: 167.05 | DO59: DNF | DP59: DNF | DQ59: 999.99 | EG59: =SUM((N$5:EE$5="Overall")*(N59:EE59<=3))-SUM((N$5:EE$5="Overall")*(N59:EE59=0)) -> 0 | EH59: =SUM((O$5:EF$5="Age")*(O59:EF59<=3))-SUM((O$5:EF$5="Age")*(O59:EF59=0)) -> 0 | EJ59: =IF(MIN('Points Calculation'!CB59,'Points Calculation'!CC59)>0,MIN('Points Calculation'!CB59,'Points Calculation'!CC59),"") -> 1199.988 | EK59: =IF(MIN('Points Calculation'!BD59,'Points Calculation'!BF59)>0,MIN('Points Calculation'!BD59,'Points Calculation'!BF59),"") -> 124.45 | EL59: 1075.538 | EM59: 8.642330253 | EN59: 286.392 | EQ59: ='Points Calculation'!BB59 -> 119.54 | ER59: ='Points Calculation'!BC59 -> 129.36 | ES59: ='Points Calculation'!BD59 -> 124.45 | ET59: ='Points Calculation'!BG59 -> 124.45
A60: Thomas Lawrence | B60: M | C60: 1999 | D60: =INDEX('Age Calculation'!$A$1:'Age Calculation'!$Q$108,MATCH(C60,'Age Calculation'!$A$1:'Age Calculation'!$A$108),MATCH($A$1,'Age Calculation'!$A$1:'Age Calculation'!$Q$1)) -> U16 | E60: 19941 | F60: 191.81 | G60: 191.81 | H60: 190.21 | I60: 149.2 | J60: 149.2 | K60: 149.2 | L60: =IF('Points Calculation'!BG60<K60,'Points Calculation'!BG60,"") ->  | M60: -42.61 | Q60: 56 | R60: 18 | S60: =235.3+18.92 -> 254.22 | T60: =251.12+15.74 -> 266.86 | U60: 50 | V60: 18 | W60: =610.82+19.15 -> 629.97 | X60: =194.64+12.34 -> 206.98 | AE60: 29 | AF60: 11 | AG60: 274.2 | AH60: 28 | AI60: 9 | AJ60: 188.6 | BA60: 37 | BB60: 14 | BC60: 176.44 | BG60: 47 | BH60: 9 | BI60: 156.07 | BM60: 53 | BN60: 12 | BO60: 142.33 | BV60: 48 | BW60: 9 | BX60: 168.24 | BY60: 39 | BZ60: 8 | CA60: 159.25 | CF60: 36 | CG60: 10 | CH60: 191.75 | CI60: DNF | CJ60: DNF | CK60: 999.99 | DC60: DNF | DD60: DNF | DE60: 999.99 | DF60: 28 | DG60: 6 | DH60: 165.91 | DI60: DNF | DJ60: DNF | DK60: 999.99 | DO60: 54 | DP60: 12 | DQ60: 156.42 | EG60: =SUM((N$5:EE$5="Overall")*(N60:EE60<=3))-SUM((N$5:EE$5="Overall")*(N60:EE60=0)) -> 0 | EH60: =SUM((O$5:EF$5="Age")*(O60:EF60<=3))-SUM((O$5:EF$5="Age")*(O60:EF60=0)) -> 0 | EJ60: =IF(MIN('Points Calculation'!CB60,'Points Calculation'!CC60)>0,MIN('Points Calculation'!CB60,'Points Calculation'!CC60),"") -> 161.165 | EK60: =IF(MIN('Points Calculation'!BD60,'Points Calculation'!BF60)>0,MIN('Points Calculation'!BD60,'Points Calculation'!BF60),"") -> 149.2 | EL60: 11.965 | EM60: 0.08019436997 | EN60: 230.172 | EQ60: ='Points Calculation'!BB60 -> 142.33 | ER60: ='Points Calculation'!BC60 -> 156.07 | ES60: ='Points Calculation'!BD60 -> 149.2 | ET60: ='Points Calculation'!BG60 -> 149.2
A61: Ethan Hemming | B61: M | C61: 2001 | D61: =INDEX('Age Calculation'!$A$1:'Age Calculation'!$Q$108,MATCH(C61,'Age Calculation'!$A$1:'Age Calculation'!$A$108),MATCH($A$1,'Age Calculation'!$A$1:'Age Calculation'!$Q$1)) -> U14 | E61: 19829 | F61: 211.91 | G61: 196.43 | H61: 191.39 | I61: 157.65 | J61: 154.8 | K61: 154.8 | L61: =IF('Points Calculation'!BG61<K61,'Points Calculation'!BG61,"") ->  | M61: -57.11 | N61: 23 | O61: 3 | P61: 180.95 | AB61: 50 | AC61: 18 | AD61: 302.72 | AQ61: 38 | AR61: 8 | AS61: 201.82 | AX61: 36 | AY61: 4 | AZ61: 169.82 | BA61: 34 | BB61: 4 | BC61: 170.34 | BG61: 53 | BH61: 7 | BI61: 174.55 | BM61: 59 | BN61: 7 | BO61: 145.48 | BV61: 46 | BW61: 11 | BX61: 164.11 | BY61: 45 | BZ61: 4 | CA61: 176.4 | CL61: 48 | CM61: 3 | CN61: 190.48 | DC61: 46 | DD61: 7 | DE61: 196.76 | DI61: 22 | DJ61: 4 | DK61: 170.9 | DO61: 60 | DP61: 5 | DQ61: 182.5 | EG61: =SUM((N$5:EE$5="Overall")*(N61:EE61<=3))-SUM((N$5:EE$5="Overall")*(N61:EE61=0)) -> 0 | EH61: =SUM((O$5:EF$5="Age")*(O61:EF61<=3))-SUM((O$5:EF$5="Age")*(O61:EF61=0)) -> 2 | EJ61: =IF(MIN('Points Calculation'!CB61,'Points Calculation'!CC61)>0,MIN('Points Calculation'!CB61,'Points Calculation'!CC61),"") -> 175.925 | EK61: =IF(MIN('Points Calculation'!BD61,'Points Calculation'!BF61)>0,MIN('Points Calculation'!BD61,'Points Calculation'!BF61),"") -> 154.8 | EL61: 21.125 | EM61: 0.1364664083 | EN61: 254.292 | EQ61: ='Points Calculation'!BB61 -> 145.48 | ER61: ='Points Calculation'!BC61 -> 164.11 | ES61: ='Points Calculation'!BD61 -> 154.8 | ET61: ='Points Calculation'!BG61 -> 154.8
A62: Duncan Thorley | B62: M | C62: 1997 | D62: =INDEX('Age Calculation'!$A$1:'Age Calculation'!$Q$108,MATCH(C62,'Age Calculation'!$A$1:'Age Calculation'!$A$108),MATCH($A$1,'Age Calculation'!$A$1:'Age Calculation'!$Q$1)) -> U18 | E62: 18998 | F62: 197.45 | G62: 197.45 | H62: 197.45 | I62: 159.29 | J62: 159.29 | K62: 138.54 | L62: =IF('Points Calculation'!BG62<K62,'Points Calculation'!BG62,"") ->  | M62: -58.91 | AX62: 27 | AY62: 4 | AZ62: 132.74 | BV62: DNF | BW62: DNF | BX62: 999.99 | CX62: 18 | CY62: 2 | CZ62: 144.33 | DA62: 21 | DB62: 4 | EG62: =SUM((N$5:EE$5="Overall")*(N62:EE62<=3))-SUM((N$5:EE$5="Overall")*(N62:EE62=0)) -> 0 | EH62: =SUM((O$5:EF$5="Age")*(O62:EF62<=3))-SUM((O$5:EF$5="Age")*(O62:EF62=0)) -> 1 | EJ62: =IF(MIN('Points Calculation'!CB62,'Points Calculation'!CC62)>0,MIN('Points Calculation'!CB62,'Points Calculation'!CC62),"") -> 173.196 | EK62: =IF(MIN('Points Calculation'!BD62,'Points Calculation'!BF62)>0,MIN('Points Calculation'!BD62,'Points Calculation'!BF62),"") -> 138.54 | EL62: 34.656 | EM62: 0.2501515808 | EN62: 236.94 | EQ62: ='Points Calculation'!BB62 -> 132.74 | ER62: ='Points Calculation'!BC62 -> 144.33 | ES62: ='Points Calculation'!BD62 -> 138.54 | ET62: ='Points Calculation'!BG62 -> 138.54
A63: Toby Tarrant | B63: M | C63: 1997 | D63: =INDEX('Age Calculation'!$A$1:'Age Calculation'!$Q$108,MATCH(C63,'Age Calculation'!$A$1:'Age Calculation'!$A$108),MATCH($A$1,'Age Calculation'!$A$1:'Age Calculation'!$Q$1)) -> U18 | E63: 21550 | F63: 999.99 | G63: 999.99 | H63: 246.2 | I63: 190.79 | J63: 190.79 | K63: 190.79 | L63: =IF('Points Calculation'!BG63<K63,'Points Calculation'!BG63,"") ->  | AQ63: 41 | AR63: 6 | AS63: 205.17 | BG63: 76 | BH63: 16 | BI63: 556.09 | BM63: 68 | BN63: 17 | BO63: 176.4 | BV63: DNF | BW63: DNF | BX63: 999.99 | BY63: DNS | BZ63: DNS | CA63: 999.99 | EG63: =SUM((N$5:EE$5="Overall")*(N63:EE63<=3))-SUM((N$5:EE$5="Overall")*(N63:EE63=0)) -> 0 | EH63: =SUM((O$5:EF$5="Age")*(O63:EF63<=3))-SUM((O$5:EF$5="Age")*(O63:EF63=0)) -> 0 | EJ63: =IF(MIN('Points Calculation'!CB63,'Points Calculation'!CC63)>0,MIN('Points Calculation'!CB63,'Points Calculation'!CC63),"") ->  | EK63: =IF(MIN('Points Calculation'!BD63,'Points Calculation'!BF63)>0,MIN('Points Calculation'!BD63,'Points Calculation'!BF63),"") -> 190.79 | EN63: 999.99 | EQ63: ='Points Calculation'!BB63 -> 176.4 | ER63: ='Points Calculation'!BC63 -> 205.17 | ES63: ='Points Calculation'!BD63 -> 190.79 | ET63: ='Points Calculation'!BG63 -> 190.79
A64: Thomas Upton | B64: M | C64: 2001 | D64: =INDEX('Age Calculation'!$A$1:'Age Calculation'!$Q$108,MATCH(C64,'Age Calculation'!$A$1:'Age Calculation'!$A$108),MATCH($A$1,'Age Calculation'!$A$1:'Age Calculation'!$Q$1)) -> U14 | E64: 21051 | F64: 341.66 | G64: 341.66 | H64: 297.64 | I64: 203.96 | J64: 194.78 | K64: 194.78 | L64: =IF('Points Calculation'!BG64<K64,'Points Calculation'!BG64,"") -> 194.46 | M64: -147.2 | AB64: 46 | AC64: 15 | AD64: 253.61 | AT64: 36 | AU64: 10 | AV64: 260.56 | AX64: 42 | AY64: 7 | AZ64: 240.7 | BA64: 41 | BB64: 6 | BC64: 226.64 | BG64: 66 | BH64: 12 | BI64: 215 | BM64: 75 | BN64: 11 | BO64: 192.91 | BV64: 54 | BW64: 9 | BX64: 211.47 | BY64: 55 | BZ64: 8 | CA64: 236.02 | CI64: 38 | CJ64: 8 | CK64: 341 | CL64: 52 | CM64: 6 | CN64: 226.46 | CO64: 41 | CP64: 4 | CQ64: 196.65 | DC64: DNF | DD64: DNF | DE64: 999.99 | DI64: 24 | DJ64: 6 | DK64: 196 | DO64: 66 | DP64: 7 | DQ64: 337.79 | EG64: =SUM((N$5:EE$5="Overall")*(N64:EE64<=3))-SUM((N$5:EE$5="Overall")*(N64:EE64=0)) -> 0 | EH64: =SUM((O$5:EF$5="Age")*(O64:EF64<=3))-SUM((O$5:EF$5="Age")*(O64:EF64=0)) -> 0 | EJ64: =IF(MIN('Points Calculation'!CB64,'Points Calculation'!CC64)>0,MIN('Points Calculation'!CB64,'Points Calculation'!CC64),"") -> 196.325 | EK64: =IF(MIN('Points Calculation'!BD64,'Points Calculation'!BF64)>0,MIN('Points Calculation'!BD64,'Points Calculation'!BF64),"") -> 194.46 | EL64: 1.865 | EM64: 0.009590661319 | EN64: 409.992 | EQ64: ='Points Calculation'!BB64 -> 192.91 | ER64: ='Points Calculation'!BC64 -> 196 | ES64: ='Points Calculation'!BD64 -> 194.46 | ET64: ='Points Calculation'!BG64 -> 194.46
A65: Edward Guy | B65: M | C65: 2001 | D65: =INDEX('Age Calculation'!$A$1:'Age Calculation'!$Q$108,MATCH(C65,'Age Calculation'!$A$1:'Age Calculation'!$A$108),MATCH($A$1,'Age Calculation'!$A$1:'Age Calculation'!$Q$1)) -> U14 | E65: 19379 | F65: 210.93 | G65: 210.93 | H65: 210.93 | I65: 210.93 | J65: 210.93 | K65: 210.93 | L65: =IF('Points Calculation'!BG65<K65,'Points Calculation'!BG65,"") ->  | Q65: 55 | R65: 8 | S65: =242.61+18.92 -> 261.53 | T65: =238.35+15.74 -> 254.09 | AE65: 31 | AF65: 4 | AG65: 311.55 | AH65: 31 | AI65: 3 | AJ65: 232.87 | AX65: 45 | AY65: 10 | AZ65: 258.61 | BA65: 43 | BB65: 8 | BC65: 237.85 | CF65: DSQ | CG65: DSQ | CH65: 999.99 | EG65: =SUM((N$5:EE$5="Overall")*(N65:EE65<=3))-SUM((N$5:EE$5="Overall")*(N65:EE65=0)) -> 0 | EH65: =SUM((O$5:EF$5="Age")*(O65:EF65<=3))-SUM((O$5:EF$5="Age")*(O65:EF65=0)) -> 1 | EJ65: =IF(MIN('Points Calculation'!CB65,'Points Calculation'!CC65)>0,MIN('Points Calculation'!CB65,'Points Calculation'!CC65),"") -> 279.444 | EK65: =IF(MIN('Points Calculation'!BD65,'Points Calculation'!BF65)>0,MIN('Points Calculation'!BD65,'Points Calculation'!BF65),"") -> 243.48 | EL65: 35.964 | EM65: 0.1477082307 | EN65: 253.116 | EQ65: ='Points Calculation'!BB65 -> 232.87 | ER65: ='Points Calculation'!BC65 -> 254.09 | ES65: ='Points Calculation'!BD65 -> 243.48 | ET65: ='Points Calculation'!BG65 -> 210.93
A66: Samuel Doherty | B66: M | C66: 1999 | D66: =INDEX('Age Calculation'!$A$1:'Age Calculation'!$Q$108,MATCH(C66,'Age Calculation'!$A$1:'Age Calculation'!$A$108),MATCH($A$1,'Age Calculation'!$A$1:'Age Calculation'!$Q$1)) -> U16 | E66: 19572 | F66: 218.06 | G66: 218.06 | H66: 218.06 | I66: 218.06 | J66: 218.06 | K66: 218.06 | L66: =IF('Points Calculation'!BG66<K66,'Points Calculation'!BG66,"") ->  | EG66: =SUM((N$5:EE$5="Overall")*(N66:EE66<=3))-SUM((N$5:EE$5="Overall")*(N66:EE66=0)) -> 0 | EH66: =SUM((O$5:EF$5="Age")*(O66:EF66<=3))-SUM((O$5:EF$5="Age")*(O66:EF66=0)) -> 0 | EJ66: =IF(MIN('Points Calculation'!CB66,'Points Calculation'!CC66)>0,MIN('Points Calculation'!CB66,'Points Calculation'!CC66),"") ->  | EK66: =IF(MIN('Points Calculation'!BD66,'Points Calculation'!BF66)>0,MIN('Points Calculation'!BD66,'Points Calculation'!BF66),"") ->  | EN66: 261.672 | EQ66: ='Points Calculation'!BB66 ->  | ER66: ='Points Calculation'!BC66 ->  | ES66: ='Points Calculation'!BD66 ->  | ET66: ='Points Calculation'!BG66 -> 218.06
A67: Karl Hancock | B67: M | C67: 1995 | D67: =INDEX('Age Calculation'!$A$1:'Age Calculation'!$Q$108,MATCH(C67,'Age Calculation'!$A$1:'Age Calculation'!$A$108),MATCH($A$1,'Age Calculation'!$A$1:'Age Calculation'!$Q$1)) -> U21 | E67: 18616 | F67: 245.23 | G67: 245.23 | H67: 232.6 | I67: 232.6 | J67: 232.6 | K67: 232.6 | L67: =IF('Points Calculation'!BG67<K67,'Points Calculation'!BG67,"") ->  | M67: -12.63 | Y67: 39 | Z67: 6 | AA67: 219.97 | EG67: =SUM((N$5:EE$5="Overall")*(N67:EE67<=3))-SUM((N$5:EE$5="Overall")*(N67:EE67=0)) -> 0 | EH67: =SUM((O$5:EF$5="Age")*(O67:EF67<=3))-SUM((O$5:EF$5="Age")*(O67:EF67=0)) -> 0 | EJ67: =IF(MIN('Points Calculation'!CB67,'Points Calculation'!CC67)>0,MIN('Points Calculation'!CB67,'Points Calculation'!CC67),"") -> 263.964 | EK67: =IF(MIN('Points Calculation'!BD67,'Points Calculation'!BF67)>0,MIN('Points Calculation'!BD67,'Points Calculation'!BF67),"") -> 263.96 | EL67: 0.004 | EM67: 1.515381118e-05 | EN67: 294.276 | EQ67: ='Points Calculation'!BB67 -> 219.97 | ER67: ='Points Calculation'!BC67 ->  | ES67: ='Points Calculation'!BD67 ->  | ET67: ='Points Calculation'!BG67 -> 232.6
A68: John Elgy | B68: M | C68: 1951 | D68: =INDEX('Age Calculation'!$A$1:'Age Calculation'!$Q$108,MATCH(C68,'Age Calculation'!$A$1:'Age Calculation'!$A$108),MATCH($A$1,'Age Calculation'!$A$1:'Age Calculation'!$Q$1)) -> MAS | E68: 19164 | F68: 280.96 | G68: 280.96 | H68: 280.96 | I68: 280.96 | J68: 280.96 | K68: 280.96 | L68: =IF('Points Calculation'!BG68<K68,'Points Calculation'!BG68,"") ->  | EG68: =SUM((N$5:EE$5="Overall")*(N68:EE68<=3))-SUM((N$5:EE$5="Overall")*(N68:EE68=0)) -> 0 | EH68: =SUM((O$5:EF$5="Age")*(O68:EF68<=3))-SUM((O$5:EF$5="Age")*(O68:EF68=0)) -> 0 | EJ68: =IF(MIN('Points Calculation'!CB68,'Points Calculation'!CC68)>0,MIN('Points Calculation'!CB68,'Points Calculation'!CC68),"") ->  | EK68: =IF(MIN('Points Calculation'!BD68,'Points Calculation'!BF68)>0,MIN('Points Calculation'!BD68,'Points Calculation'!BF68),"") ->  | EN68: 337.152 | EQ68: ='Points Calculation'!BB68 ->  | ER68: ='Points Calculation'!BC68 ->  | ES68: ='Points Calculation'!BD68 ->  | ET68: ='Points Calculation'!BG68 -> 280.96
A69: Phil Deller | B69: M | C69: 1959 | D69: =INDEX('Age Calculation'!$A$1:'Age Calculation'!$Q$108,MATCH(C69,'Age Calculation'!$A$1:'Age Calculation'!$A$108),MATCH($A$1,'Age Calculation'!$A$1:'Age Calculation'!$Q$1)) -> MAS | E69: 17039 | F69: 654.11 | G69: 654.11 | H69: 654.11 | I69: 654.11 | J69: 654.11 | K69: 654.11 | L69: =IF('Points Calculation'!BG69<K69,'Points Calculation'!BG69,"") ->  | EG69: =SUM((N$5:EE$5="Overall")*(N69:EE69<=3))-SUM((N$5:EE$5="Overall")*(N69:EE69=0)) -> 0 | EH69: =SUM((O$5:EF$5="Age")*(O69:EF69<=3))-SUM((O$5:EF$5="Age")*(O69:EF69=0)) -> 0 | EJ69: =IF(MIN('Points Calculation'!CB69,'Points Calculation'!CC69)>0,MIN('Points Calculation'!CB69,'Points Calculation'!CC69),"") ->  | EK69: =IF(MIN('Points Calculation'!BD69,'Points Calculation'!BF69)>0,MIN('Points Calculation'!BD69,'Points Calculation'!BF69),"") ->  | EN69: 784.932 | EQ69: ='Points Calculation'!BB69 ->  | ER69: ='Points Calculation'!BC69 ->  | ES69: ='Points Calculation'!BD69 ->  | ET69: ='Points Calculation'!BG69 -> 654.11
A70: David Hancock | B70: M | C70: 1964 | D70: =INDEX('Age Calculation'!$A$1:'Age Calculation'!$Q$108,MATCH(C70,'Age Calculation'!$A$1:'Age Calculation'!$A$108),MATCH($A$1,'Age Calculation'!$A$1:'Age Calculation'!$Q$1)) -> MAS | E70: 17037 | F70: 999.99 | G70: 999.99 | H70: 999.99 | I70: 999.99 | J70: 999.99 | K70: 999.99 | L70: =IF('Points Calculation'!BG70<K70,'Points Calculation'!BG70,"") ->  | EG70: =SUM((N$5:EE$5="Overall")*(N70:EE70<=3))-SUM((N$5:EE$5="Overall")*(N70:EE70=0)) -> 0 | EH70: =SUM((O$5:EF$5="Age")*(O70:EF70<=3))-SUM((O$5:EF$5="Age")*(O70:EF70=0)) -> 0 | EJ70: =IF(MIN('Points Calculation'!CB70,'Points Calculation'!CC70)>0,MIN('Points Calculation'!CB70,'Points Calculation'!CC70),"") ->  | EK70: =IF(MIN('Points Calculation'!BD70,'Points Calculation'!BF70)>0,MIN('Points Calculation'!BD70,'Points Calculation'!BF70),"") ->  | EN70: 999.99 | EQ70: ='Points Calculation'!BB70 ->  | ER70: ='Points Calculation'!BC70 ->  | ES70: ='Points Calculation'!BD70 ->  | ET70: ='Points Calculation'!BG70 -> 999.99
A71: Matthew Kirkland | B71: M | C71: 1992 | D71: =INDEX('Age Calculation'!$A$1:'Age Calculation'!$Q$108,MATCH(C71,'Age Calculation'!$A$1:'Age Calculation'!$A$108),MATCH($A$1,'Age Calculation'!$A$1:'Age Calculation'!$Q$1)) -> SEN | E71: 21633 | F71: 999.99 | G71: 999.99 | H71: 999.99 | I71: 999.99 | J71: 350.57 | K71: 350.57 | L71: =IF('Points Calculation'!BG71<K71,'Points Calculation'!BG71,"") ->  | BV71: 64 | BW71: 8 | BX71: 293.18 | BY71: 65 | BZ71: 8 | CA71: 292.14 | EG71: =SUM((N$5:EE$5="Overall")*(N71:EE71<=3))-SUM((N$5:EE$5="Overall")*(N71:EE71=0)) -> 0 | EH71: =SUM((O$5:EF$5="Age")*(O71:EF71<=3))-SUM((O$5:EF$5="Age")*(O71:EF71=0)) -> 0 | EJ71: =IF(MIN('Points Calculation'!CB71,'Points Calculation'!CC71)>0,MIN('Points Calculation'!CB71,'Points Calculation'!CC71),"") ->  | EK71: =IF(MIN('Points Calculation'!BD71,'Points Calculation'!BF71)>0,MIN('Points Calculation'!BD71,'Points Calculation'!BF71),"") -> 350.57 | EN71: 999.99 | EQ71: ='Points Calculation'!BB71 -> 292.14 | ER71: ='Points Calculation'!BC71 ->  | ES71: ='Points Calculation'!BD71 ->  | ET71: ='Points Calculation'!BG71 -> 350.57
A72: Ben Hall | B72: M | C72: 1994 | D72: =INDEX('Age Calculation'!$A$1:'Age Calculation'!$Q$108,MATCH(C72,'Age Calculation'!$A$1:'Age Calculation'!$A$108),MATCH($A$1,'Age Calculation'!$A$1:'Age Calculation'!$Q$1)) -> U21 | E72: 21130 | F72: NR | G72: NR | H72: NR | I72: NR | EG72: =SUM((N$5:EE$5="Overall")*(N72:EE72<=3))-SUM((N$5:EE$5="Overall")*(N72:EE72=0)) -> 0 | EH72: =SUM((O$5:EF$5="Age")*(O72:EF72<=3))-SUM((O$5:EF$5="Age")*(O72:EF72=0)) -> 0 | EJ72: =IF(MIN('Points Calculation'!CB72,'Points Calculation'!CC72)>0,MIN('Points Calculation'!CB72,'Points Calculation'!CC72),"") ->  | EK72: =IF(MIN('Points Calculation'!BD72,'Points Calculation'!BF72)>0,MIN('Points Calculation'!BD72,'Points Calculation'!BF72),"") ->  | EN72: =F72 -> NR | EQ72: ='Points Calculation'!BB72 ->  | ER72: ='Points Calculation'!BC72 -> 0 | ES72: ='Points Calculation'!BD72 -> 0 | ET72: ='Points Calculation'!BG72 -> 0
A73: Matthew Waller | B73: M | C73: 1999 | D73: =INDEX('Age Calculation'!$A$1:'Age Calculation'!$Q$108,MATCH(C73,'Age Calculation'!$A$1:'Age Calculation'!$A$108),MATCH($A$1,'Age Calculation'!$A$1:'Age Calculation'!$Q$1)) -> U16 | E73: 17958 | F73: NR | G73: NR | H73: NR | I73: NR | EG73: =SUM((N$5:EE$5="Overall")*(N73:EE73<=3))-SUM((N$5:EE$5="Overall")*(N73:EE73=0)) -> 0 | EH73: =SUM((O$5:EF$5="Age")*(O73:EF73<=3))-SUM((O$5:EF$5="Age")*(O73:EF73=0)) -> 0 | EJ73: =IF(MIN('Points Calculation'!CB73,'Points Calculation'!CC73)>0,MIN('Points Calculation'!CB73,'Points Calculation'!CC73),"") ->  | EK73: =IF(MIN('Points Calculation'!BD73,'Points Calculation'!BF73)>0,MIN('Points Calculation'!BD73,'Points Calculation'!BF73),"") ->  | EN73: NR | EQ73: ='Points Calculation'!BB73 ->  | ER73: ='Points Calculation'!BC73 -> 0 | ES73: ='Points Calculation'!BD73 -> 0 | ET73: ='Points Calculation'!BG73 -> 0
A74: JJ Frost | B74: M | C74: 1993 | D74: =INDEX('Age Calculation'!$A$1:'Age Calculation'!$Q$108,MATCH(C74,'Age Calculation'!$A$1:'Age Calculation'!$A$108),MATCH($A$1,'Age Calculation'!$A$1:'Age Calculation'!$Q$1)) -> U21 | E74: 20676 | F74: NR | G74: NR | H74: NR | I74: NR | EG74: =SUM((N$5:EE$5="Overall")*(N74:EE74<=3))-SUM((N$5:EE$5="Overall")*(N74:EE74=0)) -> 0 | EH74: =SUM((O$5:EF$5="Age")*(O74:EF74<=3))-SUM((O$5:EF$5="Age")*(O74:EF74=0)) -> 0 | EJ74: =IF(MIN('Points Calculation'!CB74,'Points Calculation'!CC74)>0,MIN('Points Calculation'!CB74,'Points Calculation'!CC74),"") ->  | EK74: =IF(MIN('Points Calculation'!BD74,'Points Calculation'!BF74)>0,MIN('Points Calculation'!BD74,'Points Calculation'!BF74),"") ->  | EN74: NR | EQ74: ='Points Calculation'!BB74 ->  | ER74: ='Points Calculation'!BC74 -> 0 | ES74: ='Points Calculation'!BD74 -> 0 | ET74: ='Points Calculation'!BG74 -> 0
A75: Jake Heard | B75: M | C75: 1998 | D75: =INDEX('Age Calculation'!$A$1:'Age Calculation'!$Q$108,MATCH(C75,'Age Calculation'!$A$1:'Age Calculation'!$A$108),MATCH($A$1,'Age Calculation'!$A$1:'Age Calculation'!$Q$1)) -> U16 | E75: 21075 | F75: NR | G75: NR | H75: NR | I75: NR | BV75: DNF | BW75: DNF | BX75: 999.99 | BY75: DSQ | BZ75: DSQ | CA75: 999.99 | EG75: =SUM((N$5:EE$5="Overall")*(N75:EE75<=3))-SUM((N$5:EE$5="Overall")*(N75:EE75=0)) -> 0 | EH75: =SUM((O$5:EF$5="Age")*(O75:EF75<=3))-SUM((O$5:EF$5="Age")*(O75:EF75=0)) -> 0 | EJ75: =IF(MIN('Points Calculation'!CB75,'Points Calculation'!CC75)>0,MIN('Points Calculation'!CB75,'Points Calculation'!CC75),"") ->  | EK75: =IF(MIN('Points Calculation'!BD75,'Points Calculation'!BF75)>0,MIN('Points Calculation'!BD75,'Points Calculation'!BF75),"") ->  | EN75: NR | EQ75: ='Points Calculation'!BB75 ->  | ER75: ='Points Calculation'!BC75 -> 0 | ES75: ='Points Calculation'!BD75 -> 0 | ET75: ='Points Calculation'!BG75 -> 0
A76: Joe Bird | B76: M | C76: 1994 | D76: =INDEX('Age Calculation'!$A$1:'Age Calculation'!$Q$108,MATCH(C76,'Age Calculation'!$A$1:'Age Calculation'!$A$108),MATCH($A$1,'Age Calculation'!$A$1:'Age Calculation'!$Q$1)) -> U21 | E76: 21714 | F76: 999.99 | G76: 999.99 | H76: 999.99 | I76: 999.99 | EG76: =SUM((N$5:EE$5="Overall")*(N76:EE76<=3))-SUM((N$5:EE$5="Overall")*(N76:EE76=0)) -> 0 | EH76: =SUM((O$5:EF$5="Age")*(O76:EF76<=3))-SUM((O$5:EF$5="Age")*(O76:EF76=0)) -> 0 | EJ76: =IF(MIN('Points Calculation'!CB76,'Points Calculation'!CC76)>0,MIN('Points Calculation'!CB76,'Points Calculation'!CC76),"") ->  | EK76: =IF(MIN('Points Calculation'!BD76,'Points Calculation'!BF76)>0,MIN('Points Calculation'!BD76,'Points Calculation'!BF76),"") ->  | EN76: 999.99 | EQ76: ='Points Calculation'!BB76 ->  | ER76: ='Points Calculation'!BC76 -> 0 | ES76: ='Points Calculation'!BD76 -> 0 | ET76: ='Points Calculation'!BG76 -> 0
A77: Edmund Walker | B77: M | C77: 1992 | D77: =INDEX('Age Calculation'!$A$1:'Age Calculation'!$Q$108,MATCH(C77,'Age Calculation'!$A$1:'Age Calculation'!$A$108),MATCH($A$1,'Age Calculation'!$A$1:'Age Calculation'!$Q$1)) -> SEN | E77: Day | F77: NR | G77: NR | H77: NR | I77: NR | J77: NR | K77: NR | BG77: 23 | BH77: 9 | BI77: 91.4 | BM77: 20 | BN77: 9 | BO77: 72.1 | EG77: =SUM((N$5:EE$5="Overall")*(N77:EE77<=3))-SUM((N$5:EE$5="Overall")*(N77:EE77=0)) -> 0 | EH77: =SUM((O$5:EF$5="Age")*(O77:EF77<=3))-SUM((O$5:EF$5="Age")*(O77:EF77=0)) -> 0 | EJ77: =IF(MIN('Points Calculation'!CB77,'Points Calculation'!CC77)>0,MIN('Points Calculation'!CB77,'Points Calculation'!CC77),"") ->  | EK77: =IF(MIN('Points Calculation'!BD77,'Points Calculation'!BF77)>0,MIN('Points Calculation'!BD77,'Points Calculation'!BF77),"") -> 81.75 | EN77: NR | EQ77: ='Points Calculation'!BB77 -> 72.1 | ER77: ='Points Calculation'!BC77 -> 91.4 | ES77: ='Points Calculation'!BD77 -> 81.75 | ET77: ='Points Calculation'!BG77 -> 81.75
A78: Total Podiums | N78: =COUNTIF(N21:N76,"<=3") -> 1 | O78: =COUNTIF(O8:O76,"<=3") -> 11 | P78: =COUNT(P8:P71) -> 21 | Q78: =COUNTIF(Q21:Q76,"<=3") -> 0 | R78: =COUNTIF(R8:R76,"<=3") -> 7 | S78: =COUNT(S8:S71) -> 15 | T78: =COUNT(T8:T71) -> 15 | U78: =COUNTIF(U21:U76,"<=3") -> 0 | V78: =COUNTIF(V8:V76,"<=3") -> 4 | W78: =COUNT(W8:W71) -> 13 | X78: =COUNT(X8:X71) -> 13 | Y78: =COUNTIF(Y21:Y76,"<=3") -> 0 | Z78: =COUNTIF(Z8:Z76,"<=3") -> 1 | AA78: =COUNT(AA8:AA71) -> 6 | AB78: =COUNTIF(AB21:AB76,"<=3") -> 0 | AC78: =COUNTIF(AC8:AC76,"<=3") -> 6 | AD78: =COUNT(AD8:AD71) -> 11 | AE78: =COUNTIF(AE21:AE76,"<=3") -> 1 | AF78: =COUNTIF(AF8:AF76,"<=3") -> 8 | AG78: =COUNT(AG8:AG71) -> 14 | AH78: =COUNTIF(AH21:AH76,"<=3") -> 0 | AI78: =COUNTIF(AI8:AI76,"<=3") -> 5 | AJ78: =COUNT(AJ8:AJ71) -> 14 | AK78: =COUNTIF(AK21:AK76,"<=3") -> 0 | AL78: =COUNTIF(AL8:AL76,"<=3") -> 0 | AM78: =COUNT(AM8:AM71) -> 4 | AN78: =COUNTIF(AN21:AN76,"<=3") -> 0 | AO78: =COUNTIF(AO8:AO76,"<=3") -> 2 | AP78: =COUNT(AP8:AP71) -> 6 | AQ78: =COUNTIF(AQ21:AQ76,"<=3") -> 2 | AR78: =COUNTIF(AR8:AR76,"<=3") -> 4 | AS78: =COUNT(AS8:AS71) -> 11 | AT78: =COUNTIF(AT21:AT76,"<=3") -> 0 | AU78: =COUNTIF(AU8:AU76,"<=3") -> 5 | AV78: =COUNT(AV8:AV71) -> 7 | AW78: =COUNT(AW8:AW71) -> 3 | AX78: =COUNTIF(AX21:AX76,"<=3") -> 0 | AY78: =COUNTIF(AY8:AY76,"<=3") -> 12 | AZ78: =COUNT(AZ8:AZ71) -> 17 | BA78: =COUNTIF(BA21:BA76,"<=3") -> 0 | BB78: =COUNTIF(BB8:BB76,"<=3") -> 10 | BC78: =COUNT(BC8:BC71) -> 15 | BD78: =COUNTIF(BD21:BD76,"<=3") -> 0 | BE78: =COUNTIF(BE8:BE76,"<=3") -> 0 | BG78: =COUNTIF(BG21:BG76,"<=3") -> 1 | BH78: =COUNTIF(BH8:BH76,"<=3") -> 7 | BI78: =COUNT(BI8:BI71) -> 15 | BJ78: =COUNTIF(BJ21:BJ76,"<=3") -> 0 | BK78: =COUNTIF(BK8:BK76,"<=3") -> 0 | BM78: =COUNTIF(BM21:BM76,"<=3") -> 2 | BN78: =COUNTIF(BN8:BN76,"<=3") -> 8 | BO78: =COUNT(BO8:BO71) -> 16 | BP78: =COUNTIF(BP21:BP76,"<=3") -> 0 | BQ78: =COUNTIF(BQ8:BQ76,"<=3") -> 1 | BR78: =COUNT(BR8:BR71) -> 3 | BS78: =COUNTIF(BS21:BS76,"<=3") -> 0 | BT78: =COUNTIF(BT8:BT76,"<=3") -> 1 | BU78: =COUNT(BU8:BU71) -> 3 | BV78: =COUNTIF(BV21:BV76,"<=3") -> 1 | BW78: =COUNTIF(BW8:BW76,"<=3") -> 10 | BX78: =COUNT(BX8:BX71) -> 31 | BY78: =COUNTIF(BY21:BY76,"<=3") -> 0 | BZ78: =COUNTIF(BZ8:BZ76,"<=3") -> 9 | CA78: =COUNT(CA8:CA71) -> 24 | CB78: =COUNTIF(CB21:CB76,"<=3") -> 0 | CC78: =COUNTIF(CC8:CC76,"<=3") -> 2 | CD78: =COUNT(CD8:CD71) -> 4 | CE78: =COUNT(CE8:CE71) -> 4 | CF78: =COUNTIF(CF21:CF76,"<=3") -> 0 | CG78: =COUNTIF(CG8:CG76,"<=3") -> 2 | CH78: =COUNT(CH8:CH71) -> 12 | CI78: =COUNTIF(CI21:CI76,"<=3") -> 0 | CJ78: =COUNTIF(CJ8:CJ76,"<=3") -> 4 | CK78: =COUNT(CK8:CK71) -> 12 | CL78: =COUNTIF(CL21:CL76,"<=3") -> 0 | CM78: =COUNTIF(CM8:CM76,"<=3") -> 3 | CN78: =COUNT(CN8:CN71) -> 15 | CO78: =COUNTIF(CO21:CO76,"<=3") -> 0 | CP78: =COUNTIF(CP8:CP76,"<=3") -> 6 | CQ78: =COUNT(CQ8:CQ71) -> 14 | CR78: =COUNTIF(CR21:CR76,"<=3") -> 0 | CS78: =COUNTIF(CS8:CS76,"<=3") -> 0 | CT78: =COUNT(CT8:CT71) -> 3 | CU78: =COUNTIF(CU21:CU76,"<=3") -> 0 | CV78: =COUNTIF(CV8:CV76,"<=3") -> 1 | CW78: =COUNT(CW8:CW71) -> 6 | CX78: =COUNTIF(CX21:CX76,"<=3") -> 1 | CY78: =COUNTIF(CY8:CY76,"<=3") -> 3 | CZ78: =COUNT(CZ8:CZ71) -> 3 | DA78: =COUNTIF(DA21:DA76,"<=3") -> 0 | DB78: =COUNTIF(DB8:DB76,"<=3") -> 1 | DC78: =COUNTIF(DC21:DC76,"<=3") -> 0 | DD78: =COUNTIF(DD8:DD76,"<=3") -> 3 | DE78: =COUNT(DE8:DE71) -> 18 | DF78: =COUNTIF(DF21:DF76,"<=3") -> 0 | DG78: =COUNTIF(DG8:DG76,"<=3") -> 4 | DH78: =COUNT(DH8:DH71) -> 8 | DI78: =COUNTIF(DI21:DI76,"<=3") -> 1 | DJ78: =COUNTIF(DJ8:DJ76,"<=3") -> 7 | DK78: =COUNT(DK8:DK71) -> 16 | DL78: =COUNTIF(DL21:DL76,"<=3") -> 1 | DM78: =COUNTIF(DM8:DM76,"<=3") -> 1 | DN78: =COUNT(DN8:DN71) -> 1 | DO78: =COUNTIF(DO21:DO76,"<=3") -> 0 | DP78: =COUNTIF(DP8:DP76,"<=3") -> 5 | DQ78: =COUNT(DQ8:DQ71) -> 20 | DR78: =COUNTIF(DR21:DR76,"<=3") -> 0 | DS78: =COUNTIF(DS8:DS76,"<=3") -> 3 | DT78: =COUNT(DT8:DT71) -> 7 | DU78: =COUNTIF(DU21:DU76,"<=3") -> 2 | DV78: =COUNTIF(DV8:DV76,"<=3") -> 2 | DW78: =COUNT(DW8:DW71) -> 3 | DX78: =COUNTIF(DX21:DX76,"<=3") -> 1 | DY78: =COUNTIF(DY8:DY76,"<=3") -> 2 | DZ78: =COUNT(DZ8:DZ71) -> 3 | EA78: =COUNTIF(EA21:EA76,"<=3") -> 0 | EB78: =COUNTIF(EB8:EB76,"<=3") -> 3 | EC78: =COUNT(EC8:EC71) -> 5 | ED78: =COUNTIF(ED21:ED76,"<=3") -> 0 | EE78: =COUNTIF(EE8:EE76,"<=3") -> 0 | EG78: =SUM(EG8:EG76) -> 14 | EH78: =SUM(EH8:EH76) -> 163
A79: Figures in red - used for current year seed point calculations
A80: Note: Final seed point list cannot use start of year in the calculation unless used alone | EG80: 5 point - only 2013 - 5 or zero point races
EG82: Start * - result based on start of season, x1.2 or +10
D85: Number of Registered Racers | E85: =COUNTIFS(K8:K77,">0") -> 56
D86: Number of Unregistered Racers | E86: =COUNTIF(K8:K77,"=NR") -> 6
F87: Number of Seeded Racers | G87: =COUNTIFS(G21:G76,">0") -> 47 | I87: =COUNTIFS(K8:K77,">0",K8:K77,"<999.99") -> 45
E89: Number of Point Reductions | M89: =COUNTIF(M8:M77,"<0") -> 20
A93: Data collection for club statistics sheet below:
E94: Mini Age 1st | M94: =SUM(N94:EE94) -> 22 | O94: =COUNTIFS(O$8:O$76,"=1",$D$8:$D$76,"=U10")+COUNTIFS(O$8:O$76,"=1",$D$8:$D$76,"=U12") -> 1 | R94: =COUNTIFS(R$8:R$76,"=1",$D$8:$D$76,"=U10")+COUNTIFS(R$8:R$76,"=1",$D$8:$D$76,"=U12") -> 1 | V94: =COUNTIFS(V$8:V$76,"=1",$D$8:$D$76,"=U10")+COUNTIFS(V$8:V$76,"=1",$D$8:$D$76,"=U12") -> 1 | Z94: =COUNTIFS(Z$8:Z$76,"=1",$D$8:$D$76,"=U10")+COUNTIFS(Z$8:Z$76,"=1",$D$8:$D$76,"=U12") -> 0 | AC94: =COUNTIFS(AC$8:AC$76,"=1",$D$8:$D$76,"=U10")+COUNTIFS(AC$8:AC$76,"=1",$D$8:$D$76,"=U12") -> 1 | AF94: =COUNTIFS(AF$8:AF$76,"=1",$D$8:$D$76,"=U10")+COUNTIFS(AF$8:AF$76,"=1",$D$8:$D$76,"=U12") -> 0 | AI94: =COUNTIFS(AI$8:AI$76,"=1",$D$8:$D$76,"=U10")+COUNTIFS(AI$8:AI$76,"=1",$D$8:$D$76,"=U12") -> 0 | AL94: =COUNTIFS(AL$8:AL$76,"=1",$D$8:$D$76,"=U10")+COUNTIFS(AL$8:AL$76,"=1",$D$8:$D$76,"=U12") -> 0 | AO94: =COUNTIFS(AO$8:AO$76,"=1",$D$8:$D$76,"=U10")+COUNTIFS(AO$8:AO$76,"=1",$D$8:$D$76,"=U12") -> 0 | AR94: =COUNTIFS(AR$8:AR$76,"=1",$D$8:$D$76,"=U10")+COUNTIFS(AR$8:AR$76,"=1",$D$8:$D$76,"=U12") -> 1 | AU94: =COUNTIFS(AU$8:AU$76,"=1",$D$8:$D$76,"=U10")+COUNTIFS(AU$8:AU$76,"=1",$D$8:$D$76,"=U12") -> 1 | AY94: =COUNTIFS(AY$8:AY$76,"=1",$D$8:$D$76,"=U10")+COUNTIFS(AY$8:AY$76,"=1",$D$8:$D$76,"=U12") -> 0 | BB94: =COUNTIFS(BB$8:BB$76,"=1",$D$8:$D$76,"=U10")+COUNTIFS(BB$8:BB$76,"=1",$D$8:$D$76,"=U12") -> 1 | BE94: =COUNTIFS(BE$8:BE$76,"=1",$D$8:$D$76,"=U10")+COUNTIFS(BE$8:BE$76,"=1",$D$8:$D$76,"=U12") -> 0 | BH94: =COUNTIFS(BH$8:BH$76,"=1",$D$8:$D$76,"=U10")+COUNTIFS(BH$8:BH$76,"=1",$D$8:$D$76,"=U12") -> 1 | BK94: =COUNTIFS(BK$8:BK$76,"=1",$D$8:$D$76,"=U10")+COUNTIFS(BK$8:BK$76,"=1",$D$8:$D$76,"=U12") -> 0 | BN94: =COUNTIFS(BN$8:BN$76,"=1",$D$8:$D$76,"=U10")+COUNTIFS(BN$8:BN$76,"=1",$D$8:$D$76,"=U12") -> 2 | BQ94: =COUNTIFS(BQ$8:BQ$76,"=1",$D$8:$D$76,"=U10")+COUNTIFS(BQ$8:BQ$76,"=1",$D$8:$D$76,"=U12") -> 0 | BT94: =COUNTIFS(BT$8:BT$76,"=1",$D$8:$D$76,"=U10")+COUNTIFS(BT$8:BT$76,"=1",$D$8:$D$76,"=U12") -> 0 | BW94: =COUNTIFS(BW$8:BW$76,"=1",$D$8:$D$76,"=U10")+COUNTIFS(BW$8:BW$76,"=1",$D$8:$D$76,"=U12") -> 1 | BZ94: =COUNTIFS(BZ$8:BZ$76,"=1",$D$8:$D$76,"=U10")+COUNTIFS(BZ$8:BZ$76,"=1",$D$8:$D$76,"=U12") -> 1 | CC94: =COUNTIFS(CC$8:CC$76,"=1",$D$8:$D$76,"=U10")+COUNTIFS(CC$8:CC$76,"=1",$D$8:$D$76,"=U12") -> 1 | CG94: =COUNTIFS(CG$8:CG$76,"=1",$D$8:$D$76,"=U10")+COUNTIFS(CG$8:CG$76,"=1",$D$8:$D$76,"=U12") -> 0 | CJ94: =COUNTIFS(CJ$8:CJ$76,"=1",$D$8:$D$76,"=U10")+COUNTIFS(CJ$8:CJ$76,"=1",$D$8:$D$76,"=U12") -> 1 | CM94: =COUNTIFS(CM$8:CM$76,"=1",$D$8:$D$76,"=U10")+COUNTIFS(CM$8:CM$76,"=1",$D$8:$D$76,"=U12") -> 1 | CP94: =COUNTIFS(CP$8:CP$76,"=1",$D$8:$D$76,"=U10")+COUNTIFS(CP$8:CP$76,"=1",$D$8:$D$76,"=U12") -> 1 | CS94: =COUNTIFS(CS$8:CS$76,"=1",$D$8:$D$76,"=U10")+COUNTIFS(CS$8:CS$76,"=1",$D$8:$D$76,"=U12") -> 0 | CV94: =COUNTIFS(CV$8:CV$76,"=1",$D$8:$D$76,"=U10")+COUNTIFS(CV$8:CV$76,"=1",$D$8:$D$76,"=U12") -> 1 | CY94: =COUNTIFS(CY$8:CY$76,"=1",$D$8:$D$76,"=U10")+COUNTIFS(CY$8:CY$76,"=1",$D$8:$D$76,"=U12") -> 0 | DB94: =COUNTIFS(DB$8:DB$76,"=1",$D$8:$D$76,"=U10")+COUNTIFS(DB$8:DB$76,"=1",$D$8:$D$76,"=U12") -> 0 | DD94: =COUNTIFS(DD$8:DD$76,"=1",$D$8:$D$76,"=U10")+COUNTIFS(DD$8:DD$76,"=1",$D$8:$D$76,"=U12") -> 1 | DG94: =COUNTIFS(DG$8:DG$76,"=1",$D$8:$D$76,"=U10")+COUNTIFS(DG$8:DG$76,"=1",$D$8:$D$76,"=U12") -> 0 | DJ94: =COUNTIFS(DJ$8:DJ$76,"=1",$D$8:$D$76,"=U10")+COUNTIFS(DJ$8:DJ$76,"=1",$D$8:$D$76,"=U12") -> 1 | DM94: =COUNTIFS(DM$8:DM$76,"=1",$D$8:$D$76,"=U10")+COUNTIFS(DM$8:DM$76,"=1",$D$8:$D$76,"=U12") -> 0 | DP94: =COUNTIFS(DP$8:DP$76,"=1",$D$8:$D$76,"=U10")+COUNTIFS(DP$8:DP$76,"=1",$D$8:$D$76,"=U12") -> 2 | DS94: =COUNTIFS(DS$8:DS$76,"=1",$D$8:$D$76,"=U10")+COUNTIFS(DS$8:DS$76,"=1",$D$8:$D$76,"=U12") -> 1 | DV94: =COUNTIFS(DV$8:DV$76,"=1",$D$8:$D$76,"=U10")+COUNTIFS(DV$8:DV$76,"=1",$D$8:$D$76,"=U12") -> 0 | DY94: =COUNTIFS(DY$8:DY$76,"=1",$D$8:$D$76,"=U10")+COUNTIFS(DY$8:DY$76,"=1",$D$8:$D$76,"=U12") -> 0 | EB94: =COUNTIFS(EB$8:EB$76,"=1",$D$8:$D$76,"=U10")+COUNTIFS(EB$8:EB$76,"=1",$D$8:$D$76,"=U12") -> 0 | EE94: =COUNTIFS(EE$8:EE$76,"=1",$D$8:$D$76,"=U10")+COUNTIFS(EE$8:EE$76,"=1",$D$8:$D$76,"=U12") -> 0
E95: Mini Age 2nd | M95: 8 | O95: =COUNTIFS(O$8:O$76,"=2",$D$8:$D$76,"=U10")+COUNTIFS(O$8:O$76,"=2",$D$8:$D$76,"=U12") -> 1 | R95: =COUNTIFS(R$8:R$76,"=2",$D$8:$D$76,"=U10")+COUNTIFS(R$8:R$76,"=2",$D$8:$D$76,"=U12") -> 0 | V95: =COUNTIFS(V$8:V$76,"=2",$D$8:$D$76,"=U10")+COUNTIFS(V$8:V$76,"=2",$D$8:$D$76,"=U12") -> 0 | Z95: =COUNTIFS(Z$8:Z$76,"=2",$D$8:$D$76,"=U10")+COUNTIFS(Z$8:Z$76,"=2",$D$8:$D$76,"=U12") -> 0 | AC95: =COUNTIFS(AC$8:AC$76,"=2",$D$8:$D$76,"=U10")+COUNTIFS(AC$8:AC$76,"=2",$D$8:$D$76,"=U12") -> 0 | AF95: =COUNTIFS(AF$8:AF$76,"=2",$D$8:$D$76,"=U10")+COUNTIFS(AF$8:AF$76,"=2",$D$8:$D$76,"=U12") -> 0 | AI95: =COUNTIFS(AI$8:AI$76,"=2",$D$8:$D$76,"=U10")+COUNTIFS(AI$8:AI$76,"=2",$D$8:$D$76,"=U12") -> 0 | AL95: =COUNTIFS(AL$8:AL$76,"=2",$D$8:$D$76,"=U10")+COUNTIFS(AL$8:AL$76,"=2",$D$8:$D$76,"=U12") -> 0 | AO95: =COUNTIFS(AO$8:AO$76,"=2",$D$8:$D$76,"=U10")+COUNTIFS(AO$8:AO$76,"=2",$D$8:$D$76,"=U12") -> 0 | AR95: =COUNTIFS(AR$8:AR$76,"=2",$D$8:$D$76,"=U10")+COUNTIFS(AR$8:AR$76,"=2",$D$8:$D$76,"=U12") -> 0 | AU95: =COUNTIFS(AU$8:AU$76,"=2",$D$8:$D$76,"=U10")+COUNTIFS(AU$8:AU$76,"=2",$D$8:$D$76,"=U12") -> 1 | AY95: =COUNTIFS(AY$8:AY$76,"=2",$D$8:$D$76,"=U10")+COUNTIFS(AY$8:AY$76,"=2",$D$8:$D$76,"=U12") -> 2 | BB95: =COUNTIFS(BB$8:BB$76,"=2",$D$8:$D$76,"=U10")+COUNTIFS(BB$8:BB$76,"=2",$D$8:$D$76,"=U12") -> 1 | BE95: =COUNTIFS(BE$8:BE$76,"=2",$D$8:$D$76,"=U10")+COUNTIFS(BE$8:BE$76,"=2",$D$8:$D$76,"=U12") -> 0 | BH95: =COUNTIFS(BH$8:BH$76,"=2",$D$8:$D$76,"=U10")+COUNTIFS(BH$8:BH$76,"=2",$D$8:$D$76,"=U12") -> 0 | BK95: =COUNTIFS(BK$8:BK$76,"=2",$D$8:$D$76,"=U10")+COUNTIFS(BK$8:BK$76,"=2",$D$8:$D$76,"=U12") -> 0 | BN95: =COUNTIFS(BN$8:BN$76,"=2",$D$8:$D$76,"=U10")+COUNTIFS(BN$8:BN$76,"=2",$D$8:$D$76,"=U12") -> 0 | BQ95: =COUNTIFS(BQ$8:BQ$76,"=2",$D$8:$D$76,"=U10")+COUNTIFS(BQ$8:BQ$76,"=2",$D$8:$D$76,"=U12") -> 0 | BT95: =COUNTIFS(BT$8:BT$76,"=2",$D$8:$D$76,"=U10")+COUNTIFS(BT$8:BT$76,"=2",$D$8:$D$76,"=U12") -> 0 | BW95: =COUNTIFS(BW$8:BW$76,"=2",$D$8:$D$76,"=U10")+COUNTIFS(BW$8:BW$76,"=2",$D$8:$D$76,"=U12") -> 0 | BZ95: =COUNTIFS(BZ$8:BZ$76,"=2",$D$8:$D$76,"=U10")+COUNTIFS(BZ$8:BZ$76,"=2",$D$8:$D$76,"=U12") -> 0 | CC95: =COUNTIFS(CC$8:CC$76,"=2",$D$8:$D$76,"=U10")+COUNTIFS(CC$8:CC$76,"=2",$D$8:$D$76,"=U12") -> 1 | CG95: =COUNTIFS(CG$8:CG$76,"=2",$D$8:$D$76,"=U10")+COUNTIFS(CG$8:CG$76,"=2",$D$8:$D$76,"=U12") -> 0 | CJ95: =COUNTIFS(CJ$8:CJ$76,"=2",$D$8:$D$76,"=U10")+COUNTIFS(CJ$8:CJ$76,"=2",$D$8:$D$76,"=U12") -> 0 | CM95: =COUNTIFS(CM$8:CM$76,"=2",$D$8:$D$76,"=U10")+COUNTIFS(CM$8:CM$76,"=2",$D$8:$D$76,"=U12") -> 0 | CP95: =COUNTIFS(CP$8:CP$76,"=2",$D$8:$D$76,"=U10")+COUNTIFS(CP$8:CP$76,"=2",$D$8:$D$76,"=U12") -> 0 | CS95: =COUNTIFS(CS$8:CS$76,"=2",$D$8:$D$76,"=U10")+COUNTIFS(CS$8:CS$76,"=2",$D$8:$D$76,"=U12") -> 0 | CV95: =COUNTIFS(CV$8:CV$76,"=2",$D$8:$D$76,"=U10")+COUNTIFS(CV$8:CV$76,"=2",$D$8:$D$76,"=U12") -> 0 | CY95: =COUNTIFS(CY$8:CY$76,"=2",$D$8:$D$76,"=U10")+COUNTIFS(CY$8:CY$76,"=2",$D$8:$D$76,"=U12") -> 0 | DB95: =COUNTIFS(DB$8:DB$76,"=2",$D$8:$D$76,"=U10")+COUNTIFS(DB$8:DB$76,"=2",$D$8:$D$76,"=U12") -> 0 | DD95: =COUNTIFS(DD$8:DD$76,"=2",$D$8:$D$76,"=U10")+COUNTIFS(DD$8:DD$76,"=2",$D$8:$D$76,"=U12") -> 0 | DG95: =COUNTIFS(DG$8:DG$76,"=2",$D$8:$D$76,"=U10")+COUNTIFS(DG$8:DG$76,"=2",$D$8:$D$76,"=U12") -> 0 | DJ95: =COUNTIFS(DJ$8:DJ$76,"=2",$D$8:$D$76,"=U10")+COUNTIFS(DJ$8:DJ$76,"=2",$D$8:$D$76,"=U12") -> 1 | DM95: =COUNTIFS(DM$8:DM$76,"=2",$D$8:$D$76,"=U10")+COUNTIFS(DM$8:DM$76,"=2",$D$8:$D$76,"=U12") -> 0 | DP95: =COUNTIFS(DP$8:DP$76,"=2",$D$8:$D$76,"=U10")+COUNTIFS(DP$8:DP$76,"=2",$D$8:$D$76,"=U12") -> 0 | DS95: =COUNTIFS(DS$8:DS$76,"=2",$D$8:$D$76,"=U10")+COUNTIFS(DS$8:DS$76,"=2",$D$8:$D$76,"=U12") -> 1 | DV95: =COUNTIFS(DV$8:DV$76,"=2",$D$8:$D$76,"=U10")+COUNTIFS(DV$8:DV$76,"=2",$D$8:$D$76,"=U12") -> 0 | DY95: =COUNTIFS(DY$8:DY$76,"=2",$D$8:$D$76,"=U10")+COUNTIFS(DY$8:DY$76,"=2",$D$8:$D$76,"=U12") -> 0 | EB95: =COUNTIFS(EB$8:EB$76,"=2",$D$8:$D$76,"=U10")+COUNTIFS(EB$8:EB$76,"=2",$D$8:$D$76,"=U12") -> 0 | EE95: =COUNTIFS(EE$8:EE$76,"=2",$D$8:$D$76,"=U10")+COUNTIFS(EE$8:EE$76,"=2",$D$8:$D$76,"=U12") -> 0
E96: Mini Age 3rd | M96: 6 | O96: =COUNTIFS(O$8:O$76,"=3",$D$8:$D$76,"=U10")+COUNTIFS(O$8:O$76,"=3",$D$8:$D$76,"=U12") -> 0 | R96: =COUNTIFS(R$8:R$76,"=3",$D$8:$D$76,"=U10")+COUNTIFS(R$8:R$76,"=3",$D$8:$D$76,"=U12") -> 0 | V96: =COUNTIFS(V$8:V$76,"=3",$D$8:$D$76,"=U10")+COUNTIFS(V$8:V$76,"=3",$D$8:$D$76,"=U12") -> 0 | Z96: =COUNTIFS(Z$8:Z$76,"=3",$D$8:$D$76,"=U10")+COUNTIFS(Z$8:Z$76,"=3",$D$8:$D$76,"=U12") -> 0 | AC96: =COUNTIFS(AC$8:AC$76,"=3",$D$8:$D$76,"=U10")+COUNTIFS(AC$8:AC$76,"=3",$D$8:$D$76,"=U12") -> 2 | AF96: =COUNTIFS(AF$8:AF$76,"=3",$D$8:$D$76,"=U10")+COUNTIFS(AF$8:AF$76,"=3",$D$8:$D$76,"=U12") -> 0 | AI96: =COUNTIFS(AI$8:AI$76,"=3",$D$8:$D$76,"=U10")+COUNTIFS(AI$8:AI$76,"=3",$D$8:$D$76,"=U12") -> 0 | AL96: =COUNTIFS(AL$8:AL$76,"=3",$D$8:$D$76,"=U10")+COUNTIFS(AL$8:AL$76,"=3",$D$8:$D$76,"=U12") -> 0 | AO96: =COUNTIFS(AO$8:AO$76,"=3",$D$8:$D$76,"=U10")+COUNTIFS(AO$8:AO$76,"=3",$D$8:$D$76,"=U12") -> 0 | AR96: =COUNTIFS(AR$8:AR$76,"=3",$D$8:$D$76,"=U10")+COUNTIFS(AR$8:AR$76,"=3",$D$8:$D$76,"=U12") -> 0 | AU96: =COUNTIFS(AU$8:AU$76,"=3",$D$8:$D$76,"=U10")+COUNTIFS(AU$8:AU$76,"=3",$D$8:$D$76,"=U12") -> 1 | AY96: =COUNTIFS(AY$8:AY$76,"=3",$D$8:$D$76,"=U10")+COUNTIFS(AY$8:AY$76,"=3",$D$8:$D$76,"=U12") -> 0 | BB96: =COUNTIFS(BB$8:BB$76,"=3",$D$8:$D$76,"=U10")+COUNTIFS(BB$8:BB$76,"=3",$D$8:$D$76,"=U12") -> 0 | BE96: =COUNTIFS(BE$8:BE$76,"=3",$D$8:$D$76,"=U10")+COUNTIFS(BE$8:BE$76,"=3",$D$8:$D$76,"=U12") -> 0 | BH96: =COUNTIFS(BH$8:BH$76,"=3",$D$8:$D$76,"=U10")+COUNTIFS(BH$8:BH$76,"=3",$D$8:$D$76,"=U12") -> 0 | BK96: =COUNTIFS(BK$8:BK$76,"=3",$D$8:$D$76,"=U10")+COUNTIFS(BK$8:BK$76,"=3",$D$8:$D$76,"=U12") -> 0 | BN96: =COUNTIFS(BN$8:BN$76,"=3",$D$8:$D$76,"=U10")+COUNTIFS(BN$8:BN$76,"=3",$D$8:$D$76,"=U12") -> 0 | BQ96: =COUNTIFS(BQ$8:BQ$76,"=3",$D$8:$D$76,"=U10")+COUNTIFS(BQ$8:BQ$76,"=3",$D$8:$D$76,"=U12") -> 0 | BT96: =COUNTIFS(BT$8:BT$76,"=3",$D$8:$D$76,"=U10")+COUNTIFS(BT$8:BT$76,"=3",$D$8:$D$76,"=U12") -> 0 | BW96: =COUNTIFS(BW$8:BW$76,"=3",$D$8:$D$76,"=U10")+COUNTIFS(BW$8:BW$76,"=3",$D$8:$D$76,"=U12") -> 2 | BZ96: =COUNTIFS(BZ$8:BZ$76,"=3",$D$8:$D$76,"=U10")+COUNTIFS(BZ$8:BZ$76,"=3",$D$8:$D$76,"=U12") -> 1 | CC96: =COUNTIFS(CC$8:CC$76,"=3",$D$8:$D$76,"=U10")+COUNTIFS(CC$8:CC$76,"=3",$D$8:$D$76,"=U12") -> 0 | CG96: =COUNTIFS(CG$8:CG$76,"=3",$D$8:$D$76,"=U10")+COUNTIFS(CG$8:CG$76,"=3",$D$8:$D$76,"=U12") -> 0 | CJ96: =COUNTIFS(CJ$8:CJ$76,"=3",$D$8:$D$76,"=U10")+COUNTIFS(CJ$8:CJ$76,"=3",$D$8:$D$76,"=U12") -> 0 | CM96: =COUNTIFS(CM$8:CM$76,"=3",$D$8:$D$76,"=U10")+COUNTIFS(CM$8:CM$76,"=3",$D$8:$D$76,"=U12") -> 0 | CP96: =COUNTIFS(CP$8:CP$76,"=3",$D$8:$D$76,"=U10")+COUNTIFS(CP$8:CP$76,"=3",$D$8:$D$76,"=U12") -> 0 | CS96: =COUNTIFS(CS$8:CS$76,"=3",$D$8:$D$76,"=U10")+COUNTIFS(CS$8:CS$76,"=3",$D$8:$D$76,"=U12") -> 0 | CV96: =COUNTIFS(CV$8:CV$76,"=3",$D$8:$D$76,"=U10")+COUNTIFS(CV$8:CV$76,"=3",$D$8:$D$76,"=U12") -> 0 | CY96: =COUNTIFS(CY$8:CY$76,"=3",$D$8:$D$76,"=U10")+COUNTIFS(CY$8:CY$76,"=3",$D$8:$D$76,"=U12") -> 0 | DB96: =COUNTIFS(DB$8:DB$76,"=3",$D$8:$D$76,"=U10")+COUNTIFS(DB$8:DB$76,"=3",$D$8:$D$76,"=U12") -> 0 | DD96: =COUNTIFS(DD$8:DD$76,"=3",$D$8:$D$76,"=U10")+COUNTIFS(DD$8:DD$76,"=3",$D$8:$D$76,"=U12") -> 0 | DG96: =COUNTIFS(DG$8:DG$76,"=3",$D$8:$D$76,"=U10")+COUNTIFS(DG$8:DG$76,"=3",$D$8:$D$76,"=U12") -> 0 | DJ96: =COUNTIFS(DJ$8:DJ$76,"=3",$D$8:$D$76,"=U10")+COUNTIFS(DJ$8:DJ$76,"=3",$D$8:$D$76,"=U12") -> 0 | DM96: =COUNTIFS(DM$8:DM$76,"=3",$D$8:$D$76,"=U10")+COUNTIFS(DM$8:DM$76,"=3",$D$8:$D$76,"=U12") -> 0 | DP96: =COUNTIFS(DP$8:DP$76,"=3",$D$8:$D$76,"=U10")+COUNTIFS(DP$8:DP$76,"=3",$D$8:$D$76,"=U12") -> 0 | DS96: =COUNTIFS(DS$8:DS$76,"=3",$D$8:$D$76,"=U10")+COUNTIFS(DS$8:DS$76,"=3",$D$8:$D$76,"=U12") -> 0 | DV96: =COUNTIFS(DV$8:DV$76,"=3",$D$8:$D$76,"=U10")+COUNTIFS(DV$8:DV$76,"=3",$D$8:$D$76,"=U12") -> 0 | DY96: =COUNTIFS(DY$8:DY$76,"=3",$D$8:$D$76,"=U10")+COUNTIFS(DY$8:DY$76,"=3",$D$8:$D$76,"=U12") -> 0 | EB96: =COUNTIFS(EB$8:EB$76,"=3",$D$8:$D$76,"=U10")+COUNTIFS(EB$8:EB$76,"=3",$D$8:$D$76,"=U12") -> 0 | EE96: =COUNTIFS(EE$8:EE$76,"=3",$D$8:$D$76,"=U10")+COUNTIFS(EE$8:EE$76,"=3",$D$8:$D$76,"=U12") -> 0
E97: CH Age 1st | M97: 29 | O97: =COUNTIFS(O$8:O$76,"=1",$D8:$D76,"=U14")+COUNTIFS(O$8:O$76,"=1",$D8:$D76,"=U16") -> 2 | R97: =COUNTIFS(R$8:R$76,"=1",$D8:$D76,"=U14")+COUNTIFS(R$8:R$76,"=1",$D8:$D76,"=U16") -> 1 | V97: =COUNTIFS(V$8:V$76,"=1",$D8:$D76,"=U14")+COUNTIFS(V$8:V$76,"=1",$D8:$D76,"=U16") -> 1 | Z97: =COUNTIFS(Z$8:Z$76,"=1",$D8:$D76,"=U14")+COUNTIFS(Z$8:Z$76,"=1",$D8:$D76,"=U16") -> 1 | AC97: =COUNTIFS(AC$8:AC$76,"=1",$D8:$D76,"=U14")+COUNTIFS(AC$8:AC$76,"=1",$D8:$D76,"=U16") -> 1 | AF97: =COUNTIFS(AF$8:AF$76,"=1",$D8:$D76,"=U14")+COUNTIFS(AF$8:AF$76,"=1",$D8:$D76,"=U16") -> 1 | AI97: =COUNTIFS(AI$8:AI$76,"=1",$D8:$D76,"=U14")+COUNTIFS(AI$8:AI$76,"=1",$D8:$D76,"=U16") -> 2 | AL97: =COUNTIFS(AL$8:AL$76,"=1",$D8:$D76,"=U14")+COUNTIFS(AL$8:AL$76,"=1",$D8:$D76,"=U16") -> 0 | AO97: =COUNTIFS(AO$8:AO$76,"=1",$D8:$D76,"=U14")+COUNTIFS(AO$8:AO$76,"=1",$D8:$D76,"=U16") -> 1 | AR97: =COUNTIFS(AR$8:AR$76,"=1",$D8:$D76,"=U14")+COUNTIFS(AR$8:AR$76,"=1",$D8:$D76,"=U16") -> 1 | AU97: =COUNTIFS(AU$8:AU$76,"=1",$D8:$D76,"=U14")+COUNTIFS(AU$8:AU$76,"=1",$D8:$D76,"=U16") -> 1 | AY97: =COUNTIFS(AY$8:AY$76,"=1",$D8:$D76,"=U14")+COUNTIFS(AY$8:AY$76,"=1",$D8:$D76,"=U16") -> 1 | BB97: =COUNTIFS(BB$8:BB$76,"=1",$D8:$D76,"=U14")+COUNTIFS(BB$8:BB$76,"=1",$D8:$D76,"=U16") -> 1 | BE97: =COUNTIFS(BE$8:BE$76,"=1",$D8:$D76,"=U14")+COUNTIFS(BE$8:BE$76,"=1",$D8:$D76,"=U16") -> 0 | BH97: =COUNTIFS(BH$8:BH$76,"=1",$D8:$D76,"=U14")+COUNTIFS(BH$8:BH$76,"=1",$D8:$D76,"=U16") -> 0 | BK97: =COUNTIFS(BK$8:BK$76,"=1",$D8:$D76,"=U14")+COUNTIFS(BK$8:BK$76,"=1",$D8:$D76,"=U16") -> 0 | BN97: =COUNTIFS(BN$8:BN$76,"=1",$D8:$D76,"=U14")+COUNTIFS(BN$8:BN$76,"=1",$D8:$D76,"=U16") -> 2 | BQ97: =COUNTIFS(BQ$8:BQ$76,"=1",$D8:$D76,"=U14")+COUNTIFS(BQ$8:BQ$76,"=1",$D8:$D76,"=U16") -> 0 | BT97: =COUNTIFS(BT$8:BT$76,"=1",$D8:$D76,"=U14")+COUNTIFS(BT$8:BT$76,"=1",$D8:$D76,"=U16") -> 0 | BW97: =COUNTIFS(BW$8:BW$76,"=1",$D8:$D76,"=U14")+COUNTIFS(BW$8:BW$76,"=1",$D8:$D76,"=U16") -> 3 | BZ97: =COUNTIFS(BZ$8:BZ$76,"=1",$D8:$D76,"=U14")+COUNTIFS(BZ$8:BZ$76,"=1",$D8:$D76,"=U16") -> 3 | CC97: =COUNTIFS(CC$8:CC$76,"=1",$D8:$D76,"=U14")+COUNTIFS(CC$8:CC$76,"=1",$D8:$D76,"=U16") -> 0 | CG97: =COUNTIFS(CG$8:CG$76,"=1",$D8:$D76,"=U14")+COUNTIFS(CG$8:CG$76,"=1",$D8:$D76,"=U16") -> 0 | CJ97: =COUNTIFS(CJ$8:CJ$76,"=1",$D8:$D76,"=U14")+COUNTIFS(CJ$8:CJ$76,"=1",$D8:$D76,"=U16") -> 1 | CM97: =COUNTIFS(CM$8:CM$76,"=1",$D8:$D76,"=U14")+COUNTIFS(CM$8:CM$76,"=1",$D8:$D76,"=U16") -> 0 | CP97: =COUNTIFS(CP$8:CP$76,"=1",$D8:$D76,"=U14")+COUNTIFS(CP$8:CP$76,"=1",$D8:$D76,"=U16") -> 1 | CS97: =COUNTIFS(CS$8:CS$76,"=1",$D8:$D76,"=U14")+COUNTIFS(CS$8:CS$76,"=1",$D8:$D76,"=U16") -> 0 | CV97: =COUNTIFS(CV$8:CV$76,"=1",$D8:$D76,"=U14")+COUNTIFS(CV$8:CV$76,"=1",$D8:$D76,"=U16") -> 0 | CY97: =COUNTIFS(CY$8:CY$76,"=1",$D8:$D76,"=U14")+COUNTIFS(CY$8:CY$76,"=1",$D8:$D76,"=U16") -> 0 | DB97: =COUNTIFS(DB$8:DB$76,"=1",$D8:$D76,"=U14")+COUNTIFS(DB$8:DB$76,"=1",$D8:$D76,"=U16") -> 0 | DD97: =COUNTIFS(DD$8:DD$76,"=1",$D8:$D76,"=U14")+COUNTIFS(DD$8:DD$76,"=1",$D8:$D76,"=U16") -> 1 | DG97: =COUNTIFS(DG$8:DG$76,"=1",$D8:$D76,"=U14")+COUNTIFS(DG$8:DG$76,"=1",$D8:$D76,"=U16") -> 1 | DJ97: =COUNTIFS(DJ$8:DJ$76,"=1",$D8:$D76,"=U14")+COUNTIFS(DJ$8:DJ$76,"=1",$D8:$D76,"=U16") -> 1 | DM97: =COUNTIFS(DM$8:DM$76,"=1",$D8:$D76,"=U14")+COUNTIFS(DM$8:DM$76,"=1",$D8:$D76,"=U16") -> 0 | DP97: =COUNTIFS(DP$8:DP$76,"=1",$D8:$D76,"=U14")+COUNTIFS(DP$8:DP$76,"=1",$D8:$D76,"=U16") -> 0 | DS97: =COUNTIFS(DS$8:DS$76,"=1",$D8:$D76,"=U14")+COUNTIFS(DS$8:DS$76,"=1",$D8:$D76,"=U16") -> 1 | DV97: =COUNTIFS(DV$8:DV$76,"=1",$D8:$D76,"=U14")+COUNTIFS(DV$8:DV$76,"=1",$D8:$D76,"=U16") -> 0 | DY97: =COUNTIFS(DY$8:DY$76,"=1",$D8:$D76,"=U14")+COUNTIFS(DY$8:DY$76,"=1",$D8:$D76,"=U16") -> 0 | EB97: =COUNTIFS(EB$8:EB$76,"=1",$D8:$D76,"=U14")+COUNTIFS(EB$8:EB$76,"=1",$D8:$D76,"=U16") -> 1 | EE97: =COUNTIFS(EE$8:EE$76,"=1",$D8:$D76,"=U14")+COUNTIFS(EE$8:EE$76,"=1",$D8:$D76,"=U16") -> 0
E98: CH Age 2nd | M98: 14 | O98: =COUNTIFS(O$8:O$76,"=2",$D$8:$D$76,"=U14")+COUNTIFS(O$8:O$76,"=2",$D$8:$D$76,"=U16") -> 1 | R98: =COUNTIFS(R$8:R$76,"=2",$D$8:$D$76,"=U14")+COUNTIFS(R$8:R$76,"=2",$D$8:$D$76,"=U16") -> 0 | V98: =COUNTIFS(V$8:V$76,"=2",$D$8:$D$76,"=U14")+COUNTIFS(V$8:V$76,"=2",$D$8:$D$76,"=U16") -> 0 | Z98: =COUNTIFS(Z$8:Z$76,"=2",$D$8:$D$76,"=U14")+COUNTIFS(Z$8:Z$76,"=2",$D$8:$D$76,"=U16") -> 0 | AC98: =COUNTIFS(AC$8:AC$76,"=2",$D$8:$D$76,"=U14")+COUNTIFS(AC$8:AC$76,"=2",$D$8:$D$76,"=U16") -> 0 | AF98: =COUNTIFS(AF$8:AF$76,"=2",$D$8:$D$76,"=U14")+COUNTIFS(AF$8:AF$76,"=2",$D$8:$D$76,"=U16") -> 2 | AI98: =COUNTIFS(AI$8:AI$76,"=2",$D$8:$D$76,"=U14")+COUNTIFS(AI$8:AI$76,"=2",$D$8:$D$76,"=U16") -> 0 | AL98: =COUNTIFS(AL$8:AL$76,"=2",$D$8:$D$76,"=U14")+COUNTIFS(AL$8:AL$76,"=2",$D$8:$D$76,"=U16") -> 0 | AO98: =COUNTIFS(AO$8:AO$76,"=2",$D$8:$D$76,"=U14")+COUNTIFS(AO$8:AO$76,"=2",$D$8:$D$76,"=U16") -> 0 | AR98: =COUNTIFS(AR$8:AR$76,"=2",$D$8:$D$76,"=U14")+COUNTIFS(AR$8:AR$76,"=2",$D$8:$D$76,"=U16") -> 0 | AU98: =COUNTIFS(AU$8:AU$76,"=2",$D$8:$D$76,"=U14")+COUNTIFS(AU$8:AU$76,"=2",$D$8:$D$76,"=U16") -> 0 | AY98: =COUNTIFS(AY$8:AY$76,"=2",$D$8:$D$76,"=U14")+COUNTIFS(AY$8:AY$76,"=2",$D$8:$D$76,"=U16") -> 1 | BB98: =COUNTIFS(BB$8:BB$76,"=2",$D$8:$D$76,"=U14")+COUNTIFS(BB$8:BB$76,"=2",$D$8:$D$76,"=U16") -> 1 | BE98: =COUNTIFS(BE$8:BE$76,"=2",$D$8:$D$76,"=U14")+COUNTIFS(BE$8:BE$76,"=2",$D$8:$D$76,"=U16") -> 0 | BH98: =COUNTIFS(BH$8:BH$76,"=2",$D$8:$D$76,"=U14")+COUNTIFS(BH$8:BH$76,"=2",$D$8:$D$76,"=U16") -> 2 | BK98: =COUNTIFS(BK$8:BK$76,"=2",$D$8:$D$76,"=U14")+COUNTIFS(BK$8:BK$76,"=2",$D$8:$D$76,"=U16") -> 0 | BN98: =COUNTIFS(BN$8:BN$76,"=2",$D$8:$D$76,"=U14")+COUNTIFS(BN$8:BN$76,"=2",$D$8:$D$76,"=U16") -> 1 | BQ98: =COUNTIFS(BQ$8:BQ$76,"=2",$D$8:$D$76,"=U14")+COUNTIFS(BQ$8:BQ$76,"=2",$D$8:$D$76,"=U16") -> 0 | BT98: =COUNTIFS(BT$8:BT$76,"=2",$D$8:$D$76,"=U14")+COUNTIFS(BT$8:BT$76,"=2",$D$8:$D$76,"=U16") -> 0 | BW98: =COUNTIFS(BW$8:BW$76,"=2",$D$8:$D$76,"=U14")+COUNTIFS(BW$8:BW$76,"=2",$D$8:$D$76,"=U16") -> 1 | BZ98: =COUNTIFS(BZ$8:BZ$76,"=2",$D$8:$D$76,"=U14")+COUNTIFS(BZ$8:BZ$76,"=2",$D$8:$D$76,"=U16") -> 1 | CC98: =COUNTIFS(CC$8:CC$76,"=2",$D$8:$D$76,"=U14")+COUNTIFS(CC$8:CC$76,"=2",$D$8:$D$76,"=U16") -> 0 | CG98: =COUNTIFS(CG$8:CG$76,"=2",$D$8:$D$76,"=U14")+COUNTIFS(CG$8:CG$76,"=2",$D$8:$D$76,"=U16") -> 0 | CJ98: =COUNTIFS(CJ$8:CJ$76,"=2",$D$8:$D$76,"=U14")+COUNTIFS(CJ$8:CJ$76,"=2",$D$8:$D$76,"=U16") -> 0 | CM98: =COUNTIFS(CM$8:CM$76,"=2",$D$8:$D$76,"=U14")+COUNTIFS(CM$8:CM$76,"=2",$D$8:$D$76,"=U16") -> 1 | CP98: =COUNTIFS(CP$8:CP$76,"=2",$D$8:$D$76,"=U14")+COUNTIFS(CP$8:CP$76,"=2",$D$8:$D$76,"=U16") -> 1 | CS98: =COUNTIFS(CS$8:CS$76,"=2",$D$8:$D$76,"=U14")+COUNTIFS(CS$8:CS$76,"=2",$D$8:$D$76,"=U16") -> 0 | CV98: =COUNTIFS(CV$8:CV$76,"=2",$D$8:$D$76,"=U14")+COUNTIFS(CV$8:CV$76,"=2",$D$8:$D$76,"=U16") -> 0 | CY98: =COUNTIFS(CY$8:CY$76,"=2",$D$8:$D$76,"=U14")+COUNTIFS(CY$8:CY$76,"=2",$D$8:$D$76,"=U16") -> 0 | DB98: =COUNTIFS(DB$8:DB$76,"=2",$D$8:$D$76,"=U14")+COUNTIFS(DB$8:DB$76,"=2",$D$8:$D$76,"=U16") -> 0 | DD98: =COUNTIFS(DD$8:DD$76,"=2",$D$8:$D$76,"=U14")+COUNTIFS(DD$8:DD$76,"=2",$D$8:$D$76,"=U16") -> 0 | DG98: =COUNTIFS(DG$8:DG$76,"=2",$D$8:$D$76,"=U14")+COUNTIFS(DG$8:DG$76,"=2",$D$8:$D$76,"=U16") -> 0 | DJ98: =COUNTIFS(DJ$8:DJ$76,"=2",$D$8:$D$76,"=U14")+COUNTIFS(DJ$8:DJ$76,"=2",$D$8:$D$76,"=U16") -> 0 | DM98: =COUNTIFS(DM$8:DM$76,"=2",$D$8:$D$76,"=U14")+COUNTIFS(DM$8:DM$76,"=2",$D$8:$D$76,"=U16") -> 0 | DP98: =COUNTIFS(DP$8:DP$76,"=2",$D$8:$D$76,"=U14")+COUNTIFS(DP$8:DP$76,"=2",$D$8:$D$76,"=U16") -> 2 | DS98: =COUNTIFS(DS$8:DS$76,"=2",$D$8:$D$76,"=U14")+COUNTIFS(DS$8:DS$76,"=2",$D$8:$D$76,"=U16") -> 0 | DV98: =COUNTIFS(DV$8:DV$76,"=2",$D$8:$D$76,"=U14")+COUNTIFS(DV$8:DV$76,"=2",$D$8:$D$76,"=U16") -> 0 | DY98: =COUNTIFS(DY$8:DY$76,"=2",$D$8:$D$76,"=U14")+COUNTIFS(DY$8:DY$76,"=2",$D$8:$D$76,"=U16") -> 0 | EB98: =COUNTIFS(EB$8:EB$76,"=2",$D$8:$D$76,"=U14")+COUNTIFS(EB$8:EB$76,"=2",$D$8:$D$76,"=U16") -> 0 | EE98: =COUNTIFS(EE$8:EE$76,"=2",$D$8:$D$76,"=U14")+COUNTIFS(EE$8:EE$76,"=2",$D$8:$D$76,"=U16") -> 0
E99: CH Age 3rd | M99: 7 | O99: =COUNTIFS(O$8:O$76,"=3",$D$8:$D$76,"=U14")+COUNTIFS(O$8:O$76,"=3",$D$8:$D$76,"=U16") -> 2 | R99: =COUNTIFS(R$8:R$76,"=3",$D$8:$D$76,"=U14")+COUNTIFS(R$8:R$76,"=3",$D$8:$D$76,"=U16") -> 0 | V99: =COUNTIFS(V$8:V$76,"=3",$D$8:$D$76,"=U14")+COUNTIFS(V$8:V$76,"=3",$D$8:$D$76,"=U16") -> 0 | Z99: =COUNTIFS(Z$8:Z$76,"=3",$D$8:$D$76,"=U14")+COUNTIFS(Z$8:Z$76,"=3",$D$8:$D$76,"=U16") -> 0 | AC99: =COUNTIFS(AC$8:AC$76,"=3",$D$8:$D$76,"=U14")+COUNTIFS(AC$8:AC$76,"=3",$D$8:$D$76,"=U16") -> 0 | AF99: =COUNTIFS(AF$8:AF$76,"=3",$D$8:$D$76,"=U14")+COUNTIFS(AF$8:AF$76,"=3",$D$8:$D$76,"=U16") -> 0 | AI99: =COUNTIFS(AI$8:AI$76,"=3",$D$8:$D$76,"=U14")+COUNTIFS(AI$8:AI$76,"=3",$D$8:$D$76,"=U16") -> 1 | AL99: =COUNTIFS(AL$8:AL$76,"=3",$D$8:$D$76,"=U14")+COUNTIFS(AL$8:AL$76,"=3",$D$8:$D$76,"=U16") -> 0 | AO99: =COUNTIFS(AO$8:AO$76,"=3",$D$8:$D$76,"=U14")+COUNTIFS(AO$8:AO$76,"=3",$D$8:$D$76,"=U16") -> 0 | AR99: =COUNTIFS(AR$8:AR$76,"=3",$D$8:$D$76,"=U14")+COUNTIFS(AR$8:AR$76,"=3",$D$8:$D$76,"=U16") -> 0 | AU99: =COUNTIFS(AU$8:AU$76,"=3",$D$8:$D$76,"=U14")+COUNTIFS(AU$8:AU$76,"=3",$D$8:$D$76,"=U16") -> 0 | AY99: =COUNTIFS(AY$8:AY$76,"=3",$D$8:$D$76,"=U14")+COUNTIFS(AY$8:AY$76,"=3",$D$8:$D$76,"=U16") -> 1 | BB99: =COUNTIFS(BB$8:BB$76,"=3",$D$8:$D$76,"=U14")+COUNTIFS(BB$8:BB$76,"=3",$D$8:$D$76,"=U16") -> 1 | BE99: =COUNTIFS(BE$8:BE$76,"=3",$D$8:$D$76,"=U14")+COUNTIFS(BE$8:BE$76,"=3",$D$8:$D$76,"=U16") -> 0 | BH99: =COUNTIFS(BH$8:BH$76,"=3",$D$8:$D$76,"=U14")+COUNTIFS(BH$8:BH$76,"=3",$D$8:$D$76,"=U16") -> 1 | BK99: =COUNTIFS(BK$8:BK$76,"=3",$D$8:$D$76,"=U14")+COUNTIFS(BK$8:BK$76,"=3",$D$8:$D$76,"=U16") -> 0 | BN99: =COUNTIFS(BN$8:BN$76,"=3",$D$8:$D$76,"=U14")+COUNTIFS(BN$8:BN$76,"=3",$D$8:$D$76,"=U16") -> 0 | BQ99: =COUNTIFS(BQ$8:BQ$76,"=3",$D$8:$D$76,"=U14")+COUNTIFS(BQ$8:BQ$76,"=3",$D$8:$D$76,"=U16") -> 0 | BT99: =COUNTIFS(BT$8:BT$76,"=3",$D$8:$D$76,"=U14")+COUNTIFS(BT$8:BT$76,"=3",$D$8:$D$76,"=U16") -> 0 | BW99: =COUNTIFS(BW$8:BW$76,"=3",$D$8:$D$76,"=U14")+COUNTIFS(BW$8:BW$76,"=3",$D$8:$D$76,"=U16") -> 0 | BZ99: =COUNTIFS(BZ$8:BZ$76,"=3",$D$8:$D$76,"=U14")+COUNTIFS(BZ$8:BZ$76,"=3",$D$8:$D$76,"=U16") -> 0 | CC99: =COUNTIFS(CC$8:CC$76,"=3",$D$8:$D$76,"=U14")+COUNTIFS(CC$8:CC$76,"=3",$D$8:$D$76,"=U16") -> 0 | CG99: =COUNTIFS(CG$8:CG$76,"=3",$D$8:$D$76,"=U14")+COUNTIFS(CG$8:CG$76,"=3",$D$8:$D$76,"=U16") -> 0 | CJ99: =COUNTIFS(CJ$8:CJ$76,"=3",$D$8:$D$76,"=U14")+COUNTIFS(CJ$8:CJ$76,"=3",$D$8:$D$76,"=U16") -> 0 | CM99: =COUNTIFS(CM$8:CM$76,"=3",$D$8:$D$76,"=U14")+COUNTIFS(CM$8:CM$76,"=3",$D$8:$D$76,"=U16") -> 1 | CP99: =COUNTIFS(CP$8:CP$76,"=3",$D$8:$D$76,"=U14")+COUNTIFS(CP$8:CP$76,"=3",$D$8:$D$76,"=U16") -> 0 | CS99: =COUNTIFS(CS$8:CS$76,"=3",$D$8:$D$76,"=U14")+COUNTIFS(CS$8:CS$76,"=3",$D$8:$D$76,"=U16") -> 0 | CV99: =COUNTIFS(CV$8:CV$76,"=3",$D$8:$D$76,"=U14")+COUNTIFS(CV$8:CV$76,"=3",$D$8:$D$76,"=U16") -> 0 | CY99: =COUNTIFS(CY$8:CY$76,"=3",$D$8:$D$76,"=U14")+COUNTIFS(CY$8:CY$76,"=3",$D$8:$D$76,"=U16") -> 0 | DB99: =COUNTIFS(DB$8:DB$76,"=3",$D$8:$D$76,"=U14")+COUNTIFS(DB$8:DB$76,"=3",$D$8:$D$76,"=U16") -> 0 | DD99: =COUNTIFS(DD$8:DD$76,"=3",$D$8:$D$76,"=U14")+COUNTIFS(DD$8:DD$76,"=3",$D$8:$D$76,"=U16") -> 0 | DG99: =COUNTIFS(DG$8:DG$76,"=3",$D$8:$D$76,"=U14")+COUNTIFS(DG$8:DG$76,"=3",$D$8:$D$76,"=U16") -> 0 | DJ99: =COUNTIFS(DJ$8:DJ$76,"=3",$D$8:$D$76,"=U14")+COUNTIFS(DJ$8:DJ$76,"=3",$D$8:$D$76,"=U16") -> 0 | DM99: =COUNTIFS(DM$8:DM$76,"=3",$D$8:$D$76,"=U14")+COUNTIFS(DM$8:DM$76,"=3",$D$8:$D$76,"=U16") -> 0 | DP99: =COUNTIFS(DP$8:DP$76,"=3",$D$8:$D$76,"=U14")+COUNTIFS(DP$8:DP$76,"=3",$D$8:$D$76,"=U16") -> 0 | DS99: =COUNTIFS(DS$8:DS$76,"=3",$D$8:$D$76,"=U14")+COUNTIFS(DS$8:DS$76,"=3",$D$8:$D$76,"=U16") -> 0 | DV99: =COUNTIFS(DV$8:DV$76,"=3",$D$8:$D$76,"=U14")+COUNTIFS(DV$8:DV$76,"=3",$D$8:$D$76,"=U16") -> 0 | DY99: =COUNTIFS(DY$8:DY$76,"=3",$D$8:$D$76,"=U14")+COUNTIFS(DY$8:DY$76,"=3",$D$8:$D$76,"=U16") -> 0 | EB99: =COUNTIFS(EB$8:EB$76,"=3",$D$8:$D$76,"=U14")+COUNTIFS(EB$8:EB$76,"=3",$D$8:$D$76,"=U16") -> 0 | EE99: =COUNTIFS(EE$8:EE$76,"=3",$D$8:$D$76,"=U14")+COUNTIFS(EE$8:EE$76,"=3",$D$8:$D$76,"=U16") -> 0
E100: JN Age 1st | M100: 4 | O100: =COUNTIFS(O$8:O$76,"=1",$D$8:$D$76,"=U18")+COUNTIFS(O$8:O$76,"=1",$D$8:$D$76,"=U21") -> 0 | R100: =COUNTIFS(R$8:R$76,"=1",$D$8:$D$76,"=U18")+COUNTIFS(R$8:R$76,"=1",$D$8:$D$76,"=U21") -> 0 | V100: =COUNTIFS(V$8:V$76,"=1",$D$8:$D$76,"=U18")+COUNTIFS(V$8:V$76,"=1",$D$8:$D$76,"=U21") -> 0 | Z100: =COUNTIFS(Z$8:Z$76,"=1",$D$8:$D$76,"=U18")+COUNTIFS(Z$8:Z$76,"=1",$D$8:$D$76,"=U21") -> 0 | AC100: =COUNTIFS(AC$8:AC$76,"=1",$D$8:$D$76,"=U18")+COUNTIFS(AC$8:AC$76,"=1",$D$8:$D$76,"=U21") -> 0 | AF100: =COUNTIFS(AF$8:AF$76,"=1",$D$8:$D$76,"=U18")+COUNTIFS(AF$8:AF$76,"=1",$D$8:$D$76,"=U21") -> 0 | AI100: =COUNTIFS(AI$8:AI$76,"=1",$D$8:$D$76,"=U18")+COUNTIFS(AI$8:AI$76,"=1",$D$8:$D$76,"=U21") -> 0 | AL100: =COUNTIFS(AL$8:AL$76,"=1",$D$8:$D$76,"=U18")+COUNTIFS(AL$8:AL$76,"=1",$D$8:$D$76,"=U21") -> 0 | AO100: =COUNTIFS(AO$8:AO$76,"=1",$D$8:$D$76,"=U18")+COUNTIFS(AO$8:AO$76,"=1",$D$8:$D$76,"=U21") -> 0 | AR100: =COUNTIFS(AR$8:AR$76,"=1",$D$8:$D$76,"=U18")+COUNTIFS(AR$8:AR$76,"=1",$D$8:$D$76,"=U21") -> 1 | AU100: =COUNTIFS(AU$8:AU$76,"=1",$D$8:$D$76,"=U18")+COUNTIFS(AU$8:AU$76,"=1",$D$8:$D$76,"=U21") -> 0 | AY100: =COUNTIFS(AY$8:AY$76,"=1",$D$8:$D$76,"=U18")+COUNTIFS(AY$8:AY$76,"=1",$D$8:$D$76,"=U21") -> 0 | BB100: =COUNTIFS(BB$8:BB$76,"=1",$D$8:$D$76,"=U18")+COUNTIFS(BB$8:BB$76,"=1",$D$8:$D$76,"=U21") -> 0 | BE100: =COUNTIFS(BE$8:BE$76,"=1",$D$8:$D$76,"=U18")+COUNTIFS(BE$8:BE$76,"=1",$D$8:$D$76,"=U21") -> 0 | BH100: =COUNTIFS(BH$8:BH$76,"=1",$D$8:$D$76,"=U18")+COUNTIFS(BH$8:BH$76,"=1",$D$8:$D$76,"=U21") -> 0 | BK100: =COUNTIFS(BK$8:BK$76,"=1",$D$8:$D$76,"=U18")+COUNTIFS(BK$8:BK$76,"=1",$D$8:$D$76,"=U21") -> 0 | BN100: =COUNTIFS(BN$8:BN$76,"=1",$D$8:$D$76,"=U18")+COUNTIFS(BN$8:BN$76,"=1",$D$8:$D$76,"=U21") -> 0 | BQ100: =COUNTIFS(BQ$8:BQ$76,"=1",$D$8:$D$76,"=U18")+COUNTIFS(BQ$8:BQ$76,"=1",$D$8:$D$76,"=U21") -> 0 | BT100: =COUNTIFS(BT$8:BT$76,"=1",$D$8:$D$76,"=U18")+COUNTIFS(BT$8:BT$76,"=1",$D$8:$D$76,"=U21") -> 0 | BW100: =COUNTIFS(BW$8:BW$76,"=1",$D$8:$D$76,"=U18")+COUNTIFS(BW$8:BW$76,"=1",$D$8:$D$76,"=U21") -> 0 | BZ100: =COUNTIFS(BZ$8:BZ$76,"=1",$D$8:$D$76,"=U18")+COUNTIFS(BZ$8:BZ$76,"=1",$D$8:$D$76,"=U21") -> 0 | CC100: =COUNTIFS(CC$8:CC$76,"=1",$D$8:$D$76,"=U18")+COUNTIFS(CC$8:CC$76,"=1",$D$8:$D$76,"=U21") -> 0 | CG100: =COUNTIFS(CG$8:CG$76,"=1",$D$8:$D$76,"=U18")+COUNTIFS(CG$8:CG$76,"=1",$D$8:$D$76,"=U21") -> 0 | CJ100: =COUNTIFS(CJ$8:CJ$76,"=1",$D$8:$D$76,"=U18")+COUNTIFS(CJ$8:CJ$76,"=1",$D$8:$D$76,"=U21") -> 0 | CM100: =COUNTIFS(CM$8:CM$76,"=1",$D$8:$D$76,"=U18")+COUNTIFS(CM$8:CM$76,"=1",$D$8:$D$76,"=U21") -> 0 | CP100: =COUNTIFS(CP$8:CP$76,"=1",$D$8:$D$76,"=U18")+COUNTIFS(CP$8:CP$76,"=1",$D$8:$D$76,"=U21") -> 1 | CS100: =COUNTIFS(CS$8:CS$76,"=1",$D$8:$D$76,"=U18")+COUNTIFS(CS$8:CS$76,"=1",$D$8:$D$76,"=U21") -> 0 | CV100: =COUNTIFS(CV$8:CV$76,"=1",$D$8:$D$76,"=U18")+COUNTIFS(CV$8:CV$76,"=1",$D$8:$D$76,"=U21") -> 0 | CY100: =COUNTIFS(CY$8:CY$76,"=1",$D$8:$D$76,"=U18")+COUNTIFS(CY$8:CY$76,"=1",$D$8:$D$76,"=U21") -> 0 | DB100: =COUNTIFS(DB$8:DB$76,"=1",$D$8:$D$76,"=U18")+COUNTIFS(DB$8:DB$76,"=1",$D$8:$D$76,"=U21") -> 0 | DD100: =COUNTIFS(DD$8:DD$76,"=1",$D$8:$D$76,"=U18")+COUNTIFS(DD$8:DD$76,"=1",$D$8:$D$76,"=U21") -> 0 | DG100: =COUNTIFS(DG$8:DG$76,"=1",$D$8:$D$76,"=U18")+COUNTIFS(DG$8:DG$76,"=1",$D$8:$D$76,"=U21") -> 0 | DJ100: =COUNTIFS(DJ$8:DJ$76,"=1",$D$8:$D$76,"=U18")+COUNTIFS(DJ$8:DJ$76,"=1",$D$8:$D$76,"=U21") -> 1 | DM100: =COUNTIFS(DM$8:DM$76,"=1",$D$8:$D$76,"=U18")+COUNTIFS(DM$8:DM$76,"=1",$D$8:$D$76,"=U21") -> 0 | DP100: =COUNTIFS(DP$8:DP$76,"=1",$D$8:$D$76,"=U18")+COUNTIFS(DP$8:DP$76,"=1",$D$8:$D$76,"=U21") -> 0 | DS100: =COUNTIFS(DS$8:DS$76,"=1",$D$8:$D$76,"=U18")+COUNTIFS(DS$8:DS$76,"=1",$D$8:$D$76,"=U21") -> 0 | DV100: =COUNTIFS(DV$8:DV$76,"=1",$D$8:$D$76,"=U18")+COUNTIFS(DV$8:DV$76,"=1",$D$8:$D$76,"=U21") -> 1 | DY100: =COUNTIFS(DY$8:DY$76,"=1",$D$8:$D$76,"=U18")+COUNTIFS(DY$8:DY$76,"=1",$D$8:$D$76,"=U21") -> 0 | EB100: =COUNTIFS(EB$8:EB$76,"=1",$D$8:$D$76,"=U18")+COUNTIFS(EB$8:EB$76,"=1",$D$8:$D$76,"=U21") -> 0 | EE100: =COUNTIFS(EE$8:EE$76,"=1",$D$8:$D$76,"=U18")+COUNTIFS(EE$8:EE$76,"=1",$D$8:$D$76,"=U21") -> 0
E101: JN Age 2nd | M101: 12 | O101: =COUNTIFS(O$8:O$76,"=2",$D$8:$D$76,"=U18")+COUNTIFS(O$8:O$76,"=2",$D$8:$D$76,"=U21") -> 2 | R101: =COUNTIFS(R$8:R$76,"=2",$D$8:$D$76,"=U18")+COUNTIFS(R$8:R$76,"=2",$D$8:$D$76,"=U21") -> 0 | V101: =COUNTIFS(V$8:V$76,"=2",$D$8:$D$76,"=U18")+COUNTIFS(V$8:V$76,"=2",$D$8:$D$76,"=U21") -> 0 | Z101: =COUNTIFS(Z$8:Z$76,"=2",$D$8:$D$76,"=U18")+COUNTIFS(Z$8:Z$76,"=2",$D$8:$D$76,"=U21") -> 0 | AC101: =COUNTIFS(AC$8:AC$76,"=2",$D$8:$D$76,"=U18")+COUNTIFS(AC$8:AC$76,"=2",$D$8:$D$76,"=U21") -> 0 | AF101: =COUNTIFS(AF$8:AF$76,"=2",$D$8:$D$76,"=U18")+COUNTIFS(AF$8:AF$76,"=2",$D$8:$D$76,"=U21") -> 1 | AI101: =COUNTIFS(AI$8:AI$76,"=2",$D$8:$D$76,"=U18")+COUNTIFS(AI$8:AI$76,"=2",$D$8:$D$76,"=U21") -> 0 | AL101: =COUNTIFS(AL$8:AL$76,"=2",$D$8:$D$76,"=U18")+COUNTIFS(AL$8:AL$76,"=2",$D$8:$D$76,"=U21") -> 0 | AO101: =COUNTIFS(AO$8:AO$76,"=2",$D$8:$D$76,"=U18")+COUNTIFS(AO$8:AO$76,"=2",$D$8:$D$76,"=U21") -> 0 | AR101: =COUNTIFS(AR$8:AR$76,"=2",$D$8:$D$76,"=U18")+COUNTIFS(AR$8:AR$76,"=2",$D$8:$D$76,"=U21") -> 0 | AU101: =COUNTIFS(AU$8:AU$76,"=2",$D$8:$D$76,"=U18")+COUNTIFS(AU$8:AU$76,"=2",$D$8:$D$76,"=U21") -> 0 | AY101: =COUNTIFS(AY$8:AY$76,"=2",$D$8:$D$76,"=U18")+COUNTIFS(AY$8:AY$76,"=2",$D$8:$D$76,"=U21") -> 2 | BB101: =COUNTIFS(BB$8:BB$76,"=2",$D$8:$D$76,"=U18")+COUNTIFS(BB$8:BB$76,"=2",$D$8:$D$76,"=U21") -> 2 | BE101: =COUNTIFS(BE$8:BE$76,"=2",$D$8:$D$76,"=U18")+COUNTIFS(BE$8:BE$76,"=2",$D$8:$D$76,"=U21") -> 0 | BH101: =COUNTIFS(BH$8:BH$76,"=2",$D$8:$D$76,"=U18")+COUNTIFS(BH$8:BH$76,"=2",$D$8:$D$76,"=U21") -> 1 | BK101: =COUNTIFS(BK$8:BK$76,"=2",$D$8:$D$76,"=U18")+COUNTIFS(BK$8:BK$76,"=2",$D$8:$D$76,"=U21") -> 0 | BN101: =COUNTIFS(BN$8:BN$76,"=2",$D$8:$D$76,"=U18")+COUNTIFS(BN$8:BN$76,"=2",$D$8:$D$76,"=U21") -> 0 | BQ101: =COUNTIFS(BQ$8:BQ$76,"=2",$D$8:$D$76,"=U18")+COUNTIFS(BQ$8:BQ$76,"=2",$D$8:$D$76,"=U21") -> 0 | BT101: =COUNTIFS(BT$8:BT$76,"=2",$D$8:$D$76,"=U18")+COUNTIFS(BT$8:BT$76,"=2",$D$8:$D$76,"=U21") -> 0 | BW101: =COUNTIFS(BW$8:BW$76,"=2",$D$8:$D$76,"=U18")+COUNTIFS(BW$8:BW$76,"=2",$D$8:$D$76,"=U21") -> 0 | BZ101: =COUNTIFS(BZ$8:BZ$76,"=2",$D$8:$D$76,"=U18")+COUNTIFS(BZ$8:BZ$76,"=2",$D$8:$D$76,"=U21") -> 0 | CC101: =COUNTIFS(CC$8:CC$76,"=2",$D$8:$D$76,"=U18")+COUNTIFS(CC$8:CC$76,"=2",$D$8:$D$76,"=U21") -> 0 | CG101: =COUNTIFS(CG$8:CG$76,"=2",$D$8:$D$76,"=U18")+COUNTIFS(CG$8:CG$76,"=2",$D$8:$D$76,"=U21") -> 0 | CJ101: =COUNTIFS(CJ$8:CJ$76,"=2",$D$8:$D$76,"=U18")+COUNTIFS(CJ$8:CJ$76,"=2",$D$8:$D$76,"=U21") -> 1 | CM101: =COUNTIFS(CM$8:CM$76,"=2",$D$8:$D$76,"=U18")+COUNTIFS(CM$8:CM$76,"=2",$D$8:$D$76,"=U21") -> 0 | CP101: =COUNTIFS(CP$8:CP$76,"=2",$D$8:$D$76,"=U18")+COUNTIFS(CP$8:CP$76,"=2",$D$8:$D$76,"=U21") -> 0 | CS101: =COUNTIFS(CS$8:CS$76,"=2",$D$8:$D$76,"=U18")+COUNTIFS(CS$8:CS$76,"=2",$D$8:$D$76,"=U21") -> 0 | CV101: =COUNTIFS(CV$8:CV$76,"=2",$D$8:$D$76,"=U18")+COUNTIFS(CV$8:CV$76,"=2",$D$8:$D$76,"=U21") -> 0 | CY101: =COUNTIFS(CY$8:CY$76,"=2",$D$8:$D$76,"=U18")+COUNTIFS(CY$8:CY$76,"=2",$D$8:$D$76,"=U21") -> 2 | DB101: =COUNTIFS(DB$8:DB$76,"=2",$D$8:$D$76,"=U18")+COUNTIFS(DB$8:DB$76,"=2",$D$8:$D$76,"=U21") -> 0 | DD101: =COUNTIFS(DD$8:DD$76,"=2",$D$8:$D$76,"=U18")+COUNTIFS(DD$8:DD$76,"=2",$D$8:$D$76,"=U21") -> 0 | DG101: =COUNTIFS(DG$8:DG$76,"=2",$D$8:$D$76,"=U18")+COUNTIFS(DG$8:DG$76,"=2",$D$8:$D$76,"=U21") -> 0 | DJ101: =COUNTIFS(DJ$8:DJ$76,"=2",$D$8:$D$76,"=U18")+COUNTIFS(DJ$8:DJ$76,"=2",$D$8:$D$76,"=U21") -> 1 | DM101: =COUNTIFS(DM$8:DM$76,"=2",$D$8:$D$76,"=U18")+COUNTIFS(DM$8:DM$76,"=2",$D$8:$D$76,"=U21") -> 0 | DP101: =COUNTIFS(DP$8:DP$76,"=2",$D$8:$D$76,"=U18")+COUNTIFS(DP$8:DP$76,"=2",$D$8:$D$76,"=U21") -> 0 | DS101: =COUNTIFS(DS$8:DS$76,"=2",$D$8:$D$76,"=U18")+COUNTIFS(DS$8:DS$76,"=2",$D$8:$D$76,"=U21") -> 0 | DV101: =COUNTIFS(DV$8:DV$76,"=2",$D$8:$D$76,"=U18")+COUNTIFS(DV$8:DV$76,"=2",$D$8:$D$76,"=U21") -> 0 | DY101: =COUNTIFS(DY$8:DY$76,"=2",$D$8:$D$76,"=U18")+COUNTIFS(DY$8:DY$76,"=2",$D$8:$D$76,"=U21") -> 0 | EB101: =COUNTIFS(EB$8:EB$76,"=2",$D$8:$D$76,"=U18")+COUNTIFS(EB$8:EB$76,"=2",$D$8:$D$76,"=U21") -> 0 | EE101: =COUNTIFS(EE$8:EE$76,"=2",$D$8:$D$76,"=U18")+COUNTIFS(EE$8:EE$76,"=2",$D$8:$D$76,"=U21") -> 0
E102: JN Age 3rd | M102: 13 | O102: =COUNTIFS(O$8:O$76,"=3",$D$8:$D$76,"=U18")+COUNTIFS(O$8:O$76,"=3",$D$8:$D$76,"=U21") -> 0 | R102: =COUNTIFS(R$8:R$76,"=3",$D$8:$D$76,"=U18")+COUNTIFS(R$8:R$76,"=3",$D$8:$D$76,"=U21") -> 2 | V102: =COUNTIFS(V$8:V$76,"=3",$D$8:$D$76,"=U18")+COUNTIFS(V$8:V$76,"=3",$D$8:$D$76,"=U21") -> 0 | Z102: =COUNTIFS(Z$8:Z$76,"=3",$D$8:$D$76,"=U18")+COUNTIFS(Z$8:Z$76,"=3",$D$8:$D$76,"=U21") -> 0 | AC102: =COUNTIFS(AC$8:AC$76,"=3",$D$8:$D$76,"=U18")+COUNTIFS(AC$8:AC$76,"=3",$D$8:$D$76,"=U21") -> 0 | AF102: =COUNTIFS(AF$8:AF$76,"=3",$D$8:$D$76,"=U18")+COUNTIFS(AF$8:AF$76,"=3",$D$8:$D$76,"=U21") -> 1 | AI102: =COUNTIFS(AI$8:AI$76,"=3",$D$8:$D$76,"=U18")+COUNTIFS(AI$8:AI$76,"=3",$D$8:$D$76,"=U21") -> 1 | AL102: =COUNTIFS(AL$8:AL$76,"=3",$D$8:$D$76,"=U18")+COUNTIFS(AL$8:AL$76,"=3",$D$8:$D$76,"=U21") -> 0 | AO102: =COUNTIFS(AO$8:AO$76,"=3",$D$8:$D$76,"=U18")+COUNTIFS(AO$8:AO$76,"=3",$D$8:$D$76,"=U21") -> 0 | AR102: =COUNTIFS(AR$8:AR$76,"=3",$D$8:$D$76,"=U18")+COUNTIFS(AR$8:AR$76,"=3",$D$8:$D$76,"=U21") -> 0 | AU102: =COUNTIFS(AU$8:AU$76,"=3",$D$8:$D$76,"=U18")+COUNTIFS(AU$8:AU$76,"=3",$D$8:$D$76,"=U21") -> 0 | AY102: =COUNTIFS(AY$8:AY$76,"=3",$D$8:$D$76,"=U18")+COUNTIFS(AY$8:AY$76,"=3",$D$8:$D$76,"=U21") -> 1 | BB102: =COUNTIFS(BB$8:BB$76,"=3",$D$8:$D$76,"=U18")+COUNTIFS(BB$8:BB$76,"=3",$D$8:$D$76,"=U21") -> 1 | BE102: =COUNTIFS(BE$8:BE$76,"=3",$D$8:$D$76,"=U18")+COUNTIFS(BE$8:BE$76,"=3",$D$8:$D$76,"=U21") -> 0 | BH102: =COUNTIFS(BH$8:BH$76,"=3",$D$8:$D$76,"=U18")+COUNTIFS(BH$8:BH$76,"=3",$D$8:$D$76,"=U21") -> 0 | BK102: =COUNTIFS(BK$8:BK$76,"=3",$D$8:$D$76,"=U18")+COUNTIFS(BK$8:BK$76,"=3",$D$8:$D$76,"=U21") -> 0 | BN102: =COUNTIFS(BN$8:BN$76,"=3",$D$8:$D$76,"=U18")+COUNTIFS(BN$8:BN$76,"=3",$D$8:$D$76,"=U21") -> 1 | BQ102: =COUNTIFS(BQ$8:BQ$76,"=3",$D$8:$D$76,"=U18")+COUNTIFS(BQ$8:BQ$76,"=3",$D$8:$D$76,"=U21") -> 0 | BT102: =COUNTIFS(BT$8:BT$76,"=3",$D$8:$D$76,"=U18")+COUNTIFS(BT$8:BT$76,"=3",$D$8:$D$76,"=U21") -> 0 | BW102: =COUNTIFS(BW$8:BW$76,"=3",$D$8:$D$76,"=U18")+COUNTIFS(BW$8:BW$76,"=3",$D$8:$D$76,"=U21") -> 0 | BZ102: =COUNTIFS(BZ$8:BZ$76,"=3",$D$8:$D$76,"=U18")+COUNTIFS(BZ$8:BZ$76,"=3",$D$8:$D$76,"=U21") -> 0 | CC102: =COUNTIFS(CC$8:CC$76,"=3",$D$8:$D$76,"=U18")+COUNTIFS(CC$8:CC$76,"=3",$D$8:$D$76,"=U21") -> 0 | CG102: =COUNTIFS(CG$8:CG$76,"=3",$D$8:$D$76,"=U18")+COUNTIFS(CG$8:CG$76,"=3",$D$8:$D$76,"=U21") -> 1 | CJ102: =COUNTIFS(CJ$8:CJ$76,"=3",$D$8:$D$76,"=U18")+COUNTIFS(CJ$8:CJ$76,"=3",$D$8:$D$76,"=U21") -> 0 | CM102: =COUNTIFS(CM$8:CM$76,"=3",$D$8:$D$76,"=U18")+COUNTIFS(CM$8:CM$76,"=3",$D$8:$D$76,"=U21") -> 0 | CP102: =COUNTIFS(CP$8:CP$76,"=3",$D$8:$D$76,"=U18")+COUNTIFS(CP$8:CP$76,"=3",$D$8:$D$76,"=U21") -> 1 | CS102: =COUNTIFS(CS$8:CS$76,"=3",$D$8:$D$76,"=U18")+COUNTIFS(CS$8:CS$76,"=3",$D$8:$D$76,"=U21") -> 0 | CV102: =COUNTIFS(CV$8:CV$76,"=3",$D$8:$D$76,"=U18")+COUNTIFS(CV$8:CV$76,"=3",$D$8:$D$76,"=U21") -> 0 | CY102: =COUNTIFS(CY$8:CY$76,"=3",$D$8:$D$76,"=U18")+COUNTIFS(CY$8:CY$76,"=3",$D$8:$D$76,"=U21") -> 0 | DB102: =COUNTIFS(DB$8:DB$76,"=3",$D$8:$D$76,"=U18")+COUNTIFS(DB$8:DB$76,"=3",$D$8:$D$76,"=U21") -> 0 | DD102: =COUNTIFS(DD$8:DD$76,"=3",$D$8:$D$76,"=U18")+COUNTIFS(DD$8:DD$76,"=3",$D$8:$D$76,"=U21") -> 0 | DG102: =COUNTIFS(DG$8:DG$76,"=3",$D$8:$D$76,"=U18")+COUNTIFS(DG$8:DG$76,"=3",$D$8:$D$76,"=U21") -> 2 | DJ102: =COUNTIFS(DJ$8:DJ$76,"=3",$D$8:$D$76,"=U18")+COUNTIFS(DJ$8:DJ$76,"=3",$D$8:$D$76,"=U21") -> 0 | DM102: =COUNTIFS(DM$8:DM$76,"=3",$D$8:$D$76,"=U18")+COUNTIFS(DM$8:DM$76,"=3",$D$8:$D$76,"=U21") -> 0 | DP102: =COUNTIFS(DP$8:DP$76,"=3",$D$8:$D$76,"=U18")+COUNTIFS(DP$8:DP$76,"=3",$D$8:$D$76,"=U21") -> 0 | DS102: =COUNTIFS(DS$8:DS$76,"=3",$D$8:$D$76,"=U18")+COUNTIFS(DS$8:DS$76,"=3",$D$8:$D$76,"=U21") -> 0 | DV102: =COUNTIFS(DV$8:DV$76,"=3",$D$8:$D$76,"=U18")+COUNTIFS(DV$8:DV$76,"=3",$D$8:$D$76,"=U21") -> 0 | DY102: =COUNTIFS(DY$8:DY$76,"=3",$D$8:$D$76,"=U18")+COUNTIFS(DY$8:DY$76,"=3",$D$8:$D$76,"=U21") -> 1 | EB102: =COUNTIFS(EB$8:EB$76,"=3",$D$8:$D$76,"=U18")+COUNTIFS(EB$8:EB$76,"=3",$D$8:$D$76,"=U21") -> 1 | EE102: =COUNTIFS(EE$8:EE$76,"=3",$D$8:$D$76,"=U18")+COUNTIFS(EE$8:EE$76,"=3",$D$8:$D$76,"=U21") -> 0
E103: SEN Age 1st | M103: 12 | O103: =COUNTIFS(O$8:O$76,"=1",$D$8:$D$76,"=SEN") -> 1 | R103: =COUNTIFS(R$8:R$76,"=1",$D$8:$D$76,"=SEN") -> 1 | V103: =COUNTIFS(V$8:V$76,"=1",$D$8:$D$76,"=SEN") -> 1 | Z103: =COUNTIFS(Z$8:Z$76,"=1",$D$8:$D$76,"=SEN") -> 0 | AC103: =COUNTIFS(AC$8:AC$76,"=1",$D$8:$D$76,"=SEN") -> 1 | AF103: =COUNTIFS(AF$8:AF$76,"=1",$D$8:$D$76,"=SEN") -> 1 | AI103: =COUNTIFS(AI$8:AI$76,"=1",$D$8:$D$76,"=SEN") -> 0 | AL103: =COUNTIFS(AL$8:AL$76,"=1",$D$8:$D$76,"=SEN") -> 0 | AO103: =COUNTIFS(AO$8:AO$76,"=1",$D$8:$D$76,"=SEN") -> 1 | AR103: =COUNTIFS(AR$8:AR$76,"=1",$D$8:$D$76,"=SEN") -> 0 | AU103: =COUNTIFS(AU$8:AU$76,"=1",$D$8:$D$76,"=SEN") -> 0 | AY103: =COUNTIFS(AY$8:AY$76,"=1",$D$8:$D$76,"=SEN") -> 0 | BB103: =COUNTIFS(BB$8:BB$76,"=1",$D$8:$D$76,"=SEN") -> 0 | BE103: =COUNTIFS(BE$8:BE$76,"=1",$D$8:$D$76,"=SEN") -> 0 | BH103: =COUNTIFS(BH$8:BH$76,"=1",$D$8:$D$76,"=SEN") -> 1 | BK103: =COUNTIFS(BK$8:BK$76,"=1",$D$8:$D$76,"=SEN") -> 0 | BN103: =COUNTIFS(BN$8:BN$76,"=1",$D$8:$D$76,"=SEN") -> 2 | BQ103: =COUNTIFS(BQ$8:BQ$76,"=1",$D$8:$D$76,"=SEN") -> 0 | BT103: =COUNTIFS(BT$8:BT$76,"=1",$D$8:$D$76,"=SEN") -> 0 | BW103: =COUNTIFS(BW$8:BW$76,"=1",$D$8:$D$76,"=SEN") -> 1 | BZ103: =COUNTIFS(BZ$8:BZ$76,"=1",$D$8:$D$76,"=SEN") -> 0 | CC103: =COUNTIFS(CC$8:CC$76,"=1",$D$8:$D$76,"=SEN") -> 0 | CG103: =COUNTIFS(CG$8:CG$76,"=1",$D$8:$D$76,"=SEN") -> 0 | CJ103: =COUNTIFS(CJ$8:CJ$76,"=1",$D$8:$D$76,"=SEN") -> 0 | CM103: =COUNTIFS(CM$8:CM$76,"=1",$D$8:$D$76,"=SEN") -> 0 | CP103: =COUNTIFS(CP$8:CP$76,"=1",$D$8:$D$76,"=SEN") -> 0 | CS103: =COUNTIFS(CS$8:CS$76,"=1",$D$8:$D$76,"=SEN") -> 0 | CV103: =COUNTIFS(CV$8:CV$76,"=1",$D$8:$D$76,"=SEN") -> 0 | CY103: =COUNTIFS(CY$8:CY$76,"=1",$D$8:$D$76,"=SEN") -> 0 | DB103: =COUNTIFS(DB$8:DB$76,"=1",$D$8:$D$76,"=SEN") -> 0 | DD103: =COUNTIFS(DD$8:DD$76,"=1",$D$8:$D$76,"=SEN") -> 0 | DG103: =COUNTIFS(DG$8:DG$76,"=1",$D$8:$D$76,"=SEN") -> 0 | DJ103: =COUNTIFS(DJ$8:DJ$76,"=1",$D$8:$D$76,"=SEN") -> 1 | DM103: =COUNTIFS(DM$8:DM$76,"=1",$D$8:$D$76,"=SEN") -> 1 | DP103: =COUNTIFS(DP$8:DP$76,"=1",$D$8:$D$76,"=SEN") -> 0 | DS103: =COUNTIFS(DS$8:DS$76,"=1",$D$8:$D$76,"=SEN") -> 0 | DV103: =COUNTIFS(DV$8:DV$76,"=1",$D$8:$D$76,"=SEN") -> 0 | DY103: =COUNTIFS(DY$8:DY$76,"=1",$D$8:$D$76,"=SEN") -> 0 | EB103: =COUNTIFS(EB$8:EB$76,"=1",$D$8:$D$76,"=SEN") -> 0 | EE103: =COUNTIFS(EE$8:EE$76,"=1",$D$8:$D$76,"=SEN") -> 0
E104: SEN Age 2nd | M104: 14 | O104: =COUNTIFS(O$8:O$76,"=2",$D$8:$D$76,"=SEN") -> 0 | R104: =COUNTIFS(R$8:R$76,"=2",$D$8:$D$76,"=SEN") -> 1 | V104: =COUNTIFS(V$8:V$76,"=2",$D$8:$D$76,"=SEN") -> 1 | Z104: =COUNTIFS(Z$8:Z$76,"=2",$D$8:$D$76,"=SEN") -> 0 | AC104: =COUNTIFS(AC$8:AC$76,"=2",$D$8:$D$76,"=SEN") -> 1 | AF104: =COUNTIFS(AF$8:AF$76,"=2",$D$8:$D$76,"=SEN") -> 0 | AI104: =COUNTIFS(AI$8:AI$76,"=2",$D$8:$D$76,"=SEN") -> 1 | AL104: =COUNTIFS(AL$8:AL$76,"=2",$D$8:$D$76,"=SEN") -> 0 | AO104: =COUNTIFS(AO$8:AO$76,"=2",$D$8:$D$76,"=SEN") -> 0 | AR104: =COUNTIFS(AR$8:AR$76,"=2",$D$8:$D$76,"=SEN") -> 1 | AU104: =COUNTIFS(AU$8:AU$76,"=2",$D$8:$D$76,"=SEN") -> 1 | AY104: =COUNTIFS(AY$8:AY$76,"=2",$D$8:$D$76,"=SEN") -> 2 | BB104: =COUNTIFS(BB$8:BB$76,"=2",$D$8:$D$76,"=SEN") -> 1 | BE104: =COUNTIFS(BE$8:BE$76,"=2",$D$8:$D$76,"=SEN") -> 0 | BH104: =COUNTIFS(BH$8:BH$76,"=2",$D$8:$D$76,"=SEN") -> 0 | BK104: =COUNTIFS(BK$8:BK$76,"=2",$D$8:$D$76,"=SEN") -> 0 | BN104: =COUNTIFS(BN$8:BN$76,"=2",$D$8:$D$76,"=SEN") -> 0 | BQ104: =COUNTIFS(BQ$8:BQ$76,"=2",$D$8:$D$76,"=SEN") -> 0 | BT104: =COUNTIFS(BT$8:BT$76,"=2",$D$8:$D$76,"=SEN") -> 0 | BW104: =COUNTIFS(BW$8:BW$76,"=2",$D$8:$D$76,"=SEN") -> 0 | BZ104: =COUNTIFS(BZ$8:BZ$76,"=2",$D$8:$D$76,"=SEN") -> 1 | CC104: =COUNTIFS(CC$8:CC$76,"=2",$D$8:$D$76,"=SEN") -> 0 | CG104: =COUNTIFS(CG$8:CG$76,"=2",$D$8:$D$76,"=SEN") -> 0 | CJ104: =COUNTIFS(CJ$8:CJ$76,"=2",$D$8:$D$76,"=SEN") -> 0 | CM104: =COUNTIFS(CM$8:CM$76,"=2",$D$8:$D$76,"=SEN") -> 0 | CP104: =COUNTIFS(CP$8:CP$76,"=2",$D$8:$D$76,"=SEN") -> 0 | CS104: =COUNTIFS(CS$8:CS$76,"=2",$D$8:$D$76,"=SEN") -> 0 | CV104: =COUNTIFS(CV$8:CV$76,"=2",$D$8:$D$76,"=SEN") -> 0 | CY104: =COUNTIFS(CY$8:CY$76,"=2",$D$8:$D$76,"=SEN") -> 1 | DB104: =COUNTIFS(DB$8:DB$76,"=2",$D$8:$D$76,"=SEN") -> 1 | DD104: =COUNTIFS(DD$8:DD$76,"=2",$D$8:$D$76,"=SEN") -> 0 | DG104: =COUNTIFS(DG$8:DG$76,"=2",$D$8:$D$76,"=SEN") -> 0 | DJ104: =COUNTIFS(DJ$8:DJ$76,"=2",$D$8:$D$76,"=SEN") -> 0 | DM104: =COUNTIFS(DM$8:DM$76,"=2",$D$8:$D$76,"=SEN") -> 0 | DP104: =COUNTIFS(DP$8:DP$76,"=2",$D$8:$D$76,"=SEN") -> 0 | DS104: =COUNTIFS(DS$8:DS$76,"=2",$D$8:$D$76,"=SEN") -> 0 | DV104: =COUNTIFS(DV$8:DV$76,"=2",$D$8:$D$76,"=SEN") -> 1 | DY104: =COUNTIFS(DY$8:DY$76,"=2",$D$8:$D$76,"=SEN") -> 1 | EB104: =COUNTIFS(EB$8:EB$76,"=2",$D$8:$D$76,"=SEN") -> 0 | EE104: =COUNTIFS(EE$8:EE$76,"=2",$D$8:$D$76,"=SEN") -> 0
E105: SEN Age 3rd | M105: 10 | O105: =COUNTIFS(O$8:O$76,"=3",$D$8:$D$76,"=SEN") -> 1 | R105: =COUNTIFS(R$8:R$76,"=3",$D$8:$D$76,"=SEN") -> 1 | V105: =COUNTIFS(V$8:V$76,"=3",$D$8:$D$76,"=SEN") -> 0 | Z105: =COUNTIFS(Z$8:Z$76,"=3",$D$8:$D$76,"=SEN") -> 0 | AC105: =COUNTIFS(AC$8:AC$76,"=3",$D$8:$D$76,"=SEN") -> 0 | AF105: =COUNTIFS(AF$8:AF$76,"=3",$D$8:$D$76,"=SEN") -> 1 | AI105: =COUNTIFS(AI$8:AI$76,"=3",$D$8:$D$76,"=SEN") -> 0 | AL105: =COUNTIFS(AL$8:AL$76,"=3",$D$8:$D$76,"=SEN") -> 0 | AO105: =COUNTIFS(AO$8:AO$76,"=3",$D$8:$D$76,"=SEN") -> 0 | AR105: =COUNTIFS(AR$8:AR$76,"=3",$D$8:$D$76,"=SEN") -> 0 | AU105: =COUNTIFS(AU$8:AU$76,"=3",$D$8:$D$76,"=SEN") -> 0 | AY105: =COUNTIFS(AY$8:AY$76,"=3",$D$8:$D$76,"=SEN") -> 1 | BB105: =COUNTIFS(BB$8:BB$76,"=3",$D$8:$D$76,"=SEN") -> 0 | BE105: =COUNTIFS(BE$8:BE$76,"=3",$D$8:$D$76,"=SEN") -> 0 | BH105: =COUNTIFS(BH$8:BH$76,"=3",$D$8:$D$76,"=SEN") -> 1 | BK105: =COUNTIFS(BK$8:BK$76,"=3",$D$8:$D$76,"=SEN") -> 0 | BN105: =COUNTIFS(BN$8:BN$76,"=3",$D$8:$D$76,"=SEN") -> 0 | BQ105: =COUNTIFS(BQ$8:BQ$76,"=3",$D$8:$D$76,"=SEN") -> 1 | BT105: =COUNTIFS(BT$8:BT$76,"=3",$D$8:$D$76,"=SEN") -> 1 | BW105: =COUNTIFS(BW$8:BW$76,"=3",$D$8:$D$76,"=SEN") -> 1 | BZ105: =COUNTIFS(BZ$8:BZ$76,"=3",$D$8:$D$76,"=SEN") -> 1 | CC105: =COUNTIFS(CC$8:CC$76,"=3",$D$8:$D$76,"=SEN") -> 0 | CG105: =COUNTIFS(CG$8:CG$76,"=3",$D$8:$D$76,"=SEN") -> 0 | CJ105: =COUNTIFS(CJ$8:CJ$76,"=3",$D$8:$D$76,"=SEN") -> 0 | CM105: =COUNTIFS(CM$8:CM$76,"=3",$D$8:$D$76,"=SEN") -> 0 | CP105: =COUNTIFS(CP$8:CP$76,"=3",$D$8:$D$76,"=SEN") -> 0 | CS105: =COUNTIFS(CS$8:CS$76,"=3",$D$8:$D$76,"=SEN") -> 0 | CV105: =COUNTIFS(CV$8:CV$76,"=3",$D$8:$D$76,"=SEN") -> 0 | CY105: =COUNTIFS(CY$8:CY$76,"=3",$D$8:$D$76,"=SEN") -> 0 | DB105: =COUNTIFS(DB$8:DB$76,"=3",$D$8:$D$76,"=SEN") -> 0 | DD105: =COUNTIFS(DD$8:DD$76,"=3",$D$8:$D$76,"=SEN") -> 0 | DG105: =COUNTIFS(DG$8:DG$76,"=3",$D$8:$D$76,"=SEN") -> 0 | DJ105: =COUNTIFS(DJ$8:DJ$76,"=3",$D$8:$D$76,"=SEN") -> 0 | DM105: =COUNTIFS(DM$8:DM$76,"=3",$D$8:$D$76,"=SEN") -> 0 | DP105: =COUNTIFS(DP$8:DP$76,"=3",$D$8:$D$76,"=SEN") -> 0 | DS105: =COUNTIFS(DS$8:DS$76,"=3",$D$8:$D$76,"=SEN") -> 0 | DV105: =COUNTIFS(DV$8:DV$76,"=3",$D$8:$D$76,"=SEN") -> 0 | DY105: =COUNTIFS(DY$8:DY$76,"=3",$D$8:$D$76,"=SEN") -> 0 | EB105: =COUNTIFS(EB$8:EB$76,"=3",$D$8:$D$76,"=SEN") -> 1 | EE105: =COUNTIFS(EE$8:EE$76,"=3",$D$8:$D$76,"=SEN") -> 0
E106: MAS Age 1st | M106: 9 | O106: =COUNTIFS(O$8:O$76,"=1",$D$8:$D$76,"=MAS") -> 0 | R106: =COUNTIFS(R$8:R$76,"=1",$D$8:$D$76,"=MAS") -> 0 | V106: =COUNTIFS(V$8:V$76,"=1",$D$8:$D$76,"=MAS") -> 0 | Z106: =COUNTIFS(Z$8:Z$76,"=1",$D$8:$D$76,"=MAS") -> 0 | AC106: =COUNTIFS(AC$8:AC$76,"=1",$D$8:$D$76,"=MAS") -> 0 | AF106: =COUNTIFS(AF$8:AF$76,"=1",$D$8:$D$76,"=MAS") -> 1 | AI106: =COUNTIFS(AI$8:AI$76,"=1",$D$8:$D$76,"=MAS") -> 0 | AL106: =COUNTIFS(AL$8:AL$76,"=1",$D$8:$D$76,"=MAS") -> 0 | AO106: =COUNTIFS(AO$8:AO$76,"=1",$D$8:$D$76,"=MAS") -> 0 | AR106: =COUNTIFS(AR$8:AR$76,"=1",$D$8:$D$76,"=MAS") -> 0 | AU106: =COUNTIFS(AU$8:AU$76,"=1",$D$8:$D$76,"=MAS") -> 0 | AY106: =COUNTIFS(AY$8:AY$76,"=1",$D$8:$D$76,"=MAS") -> 1 | BB106: =COUNTIFS(BB$8:BB$76,"=1",$D$8:$D$76,"=MAS") -> 1 | BE106: =COUNTIFS(BE$8:BE$76,"=1",$D$8:$D$76,"=MAS") -> 0 | BH106: =COUNTIFS(BH$8:BH$76,"=1",$D$8:$D$76,"=MAS") -> 0 | BK106: =COUNTIFS(BK$8:BK$76,"=1",$D$8:$D$76,"=MAS") -> 0 | BN106: =COUNTIFS(BN$8:BN$76,"=1",$D$8:$D$76,"=MAS") -> 0 | BQ106: =COUNTIFS(BQ$8:BQ$76,"=1",$D$8:$D$76,"=MAS") -> 0 | BT106: =COUNTIFS(BT$8:BT$76,"=1",$D$8:$D$76,"=MAS") -> 0 | BW106: =COUNTIFS(BW$8:BW$76,"=1",$D$8:$D$76,"=MAS") -> 1 | BZ106: =COUNTIFS(BZ$8:BZ$76,"=1",$D$8:$D$76,"=MAS") -> 1 | CC106: =COUNTIFS(CC$8:CC$76,"=1",$D$8:$D$76,"=MAS") -> 0 | CG106: =COUNTIFS(CG$8:CG$76,"=1",$D$8:$D$76,"=MAS") -> 1 | CJ106: =COUNTIFS(CJ$8:CJ$76,"=1",$D$8:$D$76,"=MAS") -> 0 | CM106: =COUNTIFS(CM$8:CM$76,"=1",$D$8:$D$76,"=MAS") -> 0 | CP106: =COUNTIFS(CP$8:CP$76,"=1",$D$8:$D$76,"=MAS") -> 1 | CS106: =COUNTIFS(CS$8:CS$76,"=1",$D$8:$D$76,"=MAS") -> 0 | CV106: =COUNTIFS(CV$8:CV$76,"=1",$D$8:$D$76,"=MAS") -> 0 | CY106: =COUNTIFS(CY$8:CY$76,"=1",$D$8:$D$76,"=MAS") -> 0 | DB106: =COUNTIFS(DB$8:DB$76,"=1",$D$8:$D$76,"=MAS") -> 0 | DD106: =COUNTIFS(DD$8:DD$76,"=1",$D$8:$D$76,"=MAS") -> 1 | DG106: =COUNTIFS(DG$8:DG$76,"=1",$D$8:$D$76,"=MAS") -> 0 | DJ106: =COUNTIFS(DJ$8:DJ$76,"=1",$D$8:$D$76,"=MAS") -> 1 | DM106: =COUNTIFS(DM$8:DM$76,"=1",$D$8:$D$76,"=MAS") -> 0 | DP106: =COUNTIFS(DP$8:DP$76,"=1",$D$8:$D$76,"=MAS") -> 0 | DS106: =COUNTIFS(DS$8:DS$76,"=1",$D$8:$D$76,"=MAS") -> 0 | DV106: =COUNTIFS(DV$8:DV$76,"=1",$D$8:$D$76,"=MAS") -> 0 | DY106: =COUNTIFS(DY$8:DY$76,"=1",$D$8:$D$76,"=MAS") -> 0 | EB106: =COUNTIFS(EB$8:EB$76,"=1",$D$8:$D$76,"=MAS") -> 0 | EE106: =COUNTIFS(EE$8:EE$76,"=1",$D$8:$D$76,"=MAS") -> 0
E107: MAS Age 2nd | M107: 2 | O107: =COUNTIFS(O$8:O$76,"=2",$D$8:$D$76,"=MAS") -> 0 | R107: =COUNTIFS(R$8:R$76,"=2",$D$8:$D$76,"=MAS") -> 0 | V107: =COUNTIFS(V$8:V$76,"=2",$D$8:$D$76,"=MAS") -> 0 | Z107: =COUNTIFS(Z$8:Z$76,"=2",$D$8:$D$76,"=MAS") -> 0 | AC107: =COUNTIFS(AC$8:AC$76,"=2",$D$8:$D$76,"=MAS") -> 0 | AF107: =COUNTIFS(AF$8:AF$76,"=2",$D$8:$D$76,"=MAS") -> 0 | AI107: =COUNTIFS(AI$8:AI$76,"=2",$D$8:$D$76,"=MAS") -> 0 | AL107: =COUNTIFS(AL$8:AL$76,"=2",$D$8:$D$76,"=MAS") -> 0 | AO107: =COUNTIFS(AO$8:AO$76,"=2",$D$8:$D$76,"=MAS") -> 0 | AR107: =COUNTIFS(AR$8:AR$76,"=2",$D$8:$D$76,"=MAS") -> 0 | AU107: =COUNTIFS(AU$8:AU$76,"=2",$D$8:$D$76,"=MAS") -> 0 | AY107: =COUNTIFS(AY$8:AY$76,"=2",$D$8:$D$76,"=MAS") -> 0 | BB107: =COUNTIFS(BB$8:BB$76,"=2",$D$8:$D$76,"=MAS") -> 0 | BE107: =COUNTIFS(BE$8:BE$76,"=2",$D$8:$D$76,"=MAS") -> 0 | BH107: =COUNTIFS(BH$8:BH$76,"=2",$D$8:$D$76,"=MAS") -> 0 | BK107: =COUNTIFS(BK$8:BK$76,"=2",$D$8:$D$76,"=MAS") -> 0 | BN107: =COUNTIFS(BN$8:BN$76,"=2",$D$8:$D$76,"=MAS") -> 0 | BQ107: =COUNTIFS(BQ$8:BQ$76,"=2",$D$8:$D$76,"=MAS") -> 0 | BT107: =COUNTIFS(BT$8:BT$76,"=2",$D$8:$D$76,"=MAS") -> 0 | BW107: =COUNTIFS(BW$8:BW$76,"=2",$D$8:$D$76,"=MAS") -> 0 | BZ107: =COUNTIFS(BZ$8:BZ$76,"=2",$D$8:$D$76,"=MAS") -> 0 | CC107: =COUNTIFS(CC$8:CC$76,"=2",$D$8:$D$76,"=MAS") -> 0 | CG107: =COUNTIFS(CG$8:CG$76,"=2",$D$8:$D$76,"=MAS") -> 0 | CJ107: =COUNTIFS(CJ$8:CJ$76,"=2",$D$8:$D$76,"=MAS") -> 0 | CM107: =COUNTIFS(CM$8:CM$76,"=2",$D$8:$D$76,"=MAS") -> 0 | CP107: =COUNTIFS(CP$8:CP$76,"=2",$D$8:$D$76,"=MAS") -> 0 | CS107: =COUNTIFS(CS$8:CS$76,"=2",$D$8:$D$76,"=MAS") -> 0 | CV107: =COUNTIFS(CV$8:CV$76,"=2",$D$8:$D$76,"=MAS") -> 0 | CY107: =COUNTIFS(CY$8:CY$76,"=2",$D$8:$D$76,"=MAS") -> 0 | DB107: =COUNTIFS(DB$8:DB$76,"=2",$D$8:$D$76,"=MAS") -> 0 | DD107: =COUNTIFS(DD$8:DD$76,"=2",$D$8:$D$76,"=MAS") -> 0 | DG107: =COUNTIFS(DG$8:DG$76,"=2",$D$8:$D$76,"=MAS") -> 1 | DJ107: =COUNTIFS(DJ$8:DJ$76,"=2",$D$8:$D$76,"=MAS") -> 0 | DM107: =COUNTIFS(DM$8:DM$76,"=2",$D$8:$D$76,"=MAS") -> 0 | DP107: =COUNTIFS(DP$8:DP$76,"=2",$D$8:$D$76,"=MAS") -> 1 | DS107: =COUNTIFS(DS$8:DS$76,"=2",$D$8:$D$76,"=MAS") -> 0 | DV107: =COUNTIFS(DV$8:DV$76,"=2",$D$8:$D$76,"=MAS") -> 0 | DY107: =COUNTIFS(DY$8:DY$76,"=2",$D$8:$D$76,"=MAS") -> 0 | EB107: =COUNTIFS(EB$8:EB$76,"=2",$D$8:$D$76,"=MAS") -> 0 | EE107: =COUNTIFS(EE$8:EE$76,"=2",$D$8:$D$76,"=MAS") -> 0
E108: MAS Age 3rd | M108: 1 | O108: =COUNTIFS(O$8:O$76,"=3",$D$8:$D$76,"=MAS") -> 0 | R108: =COUNTIFS(R$8:R$76,"=3",$D$8:$D$76,"=MAS") -> 0 | V108: =COUNTIFS(V$8:V$76,"=3",$D$8:$D$76,"=MAS") -> 0 | Z108: =COUNTIFS(Z$8:Z$76,"=3",$D$8:$D$76,"=MAS") -> 0 | AC108: =COUNTIFS(AC$8:AC$76,"=3",$D$8:$D$76,"=MAS") -> 0 | AF108: =COUNTIFS(AF$8:AF$76,"=3",$D$8:$D$76,"=MAS") -> 0 | AI108: =COUNTIFS(AI$8:AI$76,"=3",$D$8:$D$76,"=MAS") -> 0 | AL108: =COUNTIFS(AL$8:AL$76,"=3",$D$8:$D$76,"=MAS") -> 0 | AO108: =COUNTIFS(AO$8:AO$76,"=3",$D$8:$D$76,"=MAS") -> 0 | AR108: =COUNTIFS(AR$8:AR$76,"=3",$D$8:$D$76,"=MAS") -> 0 | AU108: =COUNTIFS(AU$8:AU$76,"=3",$D$8:$D$76,"=MAS") -> 0 | AY108: =COUNTIFS(AY$8:AY$76,"=3",$D$8:$D$76,"=MAS") -> 0 | BB108: =COUNTIFS(BB$8:BB$76,"=3",$D$8:$D$76,"=MAS") -> 0 | BE108: =COUNTIFS(BE$8:BE$76,"=3",$D$8:$D$76,"=MAS") -> 0 | BH108: =COUNTIFS(BH$8:BH$76,"=3",$D$8:$D$76,"=MAS") -> 0 | BK108: =COUNTIFS(BK$8:BK$76,"=3",$D$8:$D$76,"=MAS") -> 0 | BN108: =COUNTIFS(BN$8:BN$76,"=3",$D$8:$D$76,"=MAS") -> 0 | BQ108: =COUNTIFS(BQ$8:BQ$76,"=3",$D$8:$D$76,"=MAS") -> 0 | BT108: =COUNTIFS(BT$8:BT$76,"=3",$D$8:$D$76,"=MAS") -> 0 | BW108: =COUNTIFS(BW$8:BW$76,"=3",$D$8:$D$76,"=MAS") -> 0 | BZ108: =COUNTIFS(BZ$8:BZ$76,"=3",$D$8:$D$76,"=MAS") -> 0 | CC108: =COUNTIFS(CC$8:CC$76,"=3",$D$8:$D$76,"=MAS") -> 0 | CG108: =COUNTIFS(CG$8:CG$76,"=3",$D$8:$D$76,"=MAS") -> 0 | CJ108: =COUNTIFS(CJ$8:CJ$76,"=3",$D$8:$D$76,"=MAS") -> 1 | CM108: =COUNTIFS(CM$8:CM$76,"=3",$D$8:$D$76,"=MAS") -> 0 | CP108: =COUNTIFS(CP$8:CP$76,"=3",$D$8:$D$76,"=MAS") -> 0 | CS108: =COUNTIFS(CS$8:CS$76,"=3",$D$8:$D$76,"=MAS") -> 0 | CV108: =COUNTIFS(CV$8:CV$76,"=3",$D$8:$D$76,"=MAS") -> 0 | CY108: =COUNTIFS(CY$8:CY$76,"=3",$D$8:$D$76,"=MAS") -> 0 | DB108: =COUNTIFS(DB$8:DB$76,"=3",$D$8:$D$76,"=MAS") -> 0 | DD108: =COUNTIFS(DD$8:DD$76,"=3",$D$8:$D$76,"=MAS") -> 0 | DG108: =COUNTIFS(DG$8:DG$76,"=3",$D$8:$D$76,"=MAS") -> 0 | DJ108: =COUNTIFS(DJ$8:DJ$76,"=3",$D$8:$D$76,"=MAS") -> 0 | DM108: =COUNTIFS(DM$8:DM$76,"=3",$D$8:$D$76,"=MAS") -> 0 | DP108: =COUNTIFS(DP$8:DP$76,"=3",$D$8:$D$76,"=MAS") -> 0 | DS108: =COUNTIFS(DS$8:DS$76,"=3",$D$8:$D$76,"=MAS") -> 0 | DV108: =COUNTIFS(DV$8:DV$76,"=3",$D$8:$D$76,"=MAS") -> 0 | DY108: =COUNTIFS(DY$8:DY$76,"=3",$D$8:$D$76,"=MAS") -> 0 | EB108: =COUNTIFS(EB$8:EB$76,"=3",$D$8:$D$76,"=MAS") -> 0 | EE108: =COUNTIFS(EE$8:EE$76,"=3",$D$8:$D$76,"=MAS") -> 0
E109: Male Age Podiums | M109: 106 | O109: =COUNTIFS(O$8:O$76,"<=3",$B$8:$B$76,"=M") -> 6 | R109: =COUNTIFS(R$8:R$76,"<=3",$B$8:$B$76,"=M") -> 5 | V109: =COUNTIFS(V$8:V$76,"<=3",$B$8:$B$76,"=M") -> 3 | Z109: =COUNTIFS(Z$8:Z$76,"<=3",$B$8:$B$76,"=M") -> 1 | AC109: =COUNTIFS(AC$8:AC$76,"<=3",$B$8:$B$76,"=M") -> 5 | AF109: =COUNTIFS(AF$8:AF$76,"<=3",$B$8:$B$76,"=M") -> 5 | AI109: =COUNTIFS(AI$8:AI$76,"<=3",$B$8:$B$76,"=M") -> 3 | AL109: =COUNTIFS(AL$8:AL$76,"<=3",$B$8:$B$76,"=M") -> 0 | AO109: =COUNTIFS(AO$8:AO$76,"<=3",$B$8:$B$76,"=M") -> 1 | AR109: =COUNTIFS(AR$8:AR$76,"<=3",$B$8:$B$76,"=M") -> 2 | AU109: =COUNTIFS(AU$8:AU$76,"<=3",$B$8:$B$76,"=M") -> 4 | AY109: =COUNTIFS(AY$8:AY$76,"<=3",$B$8:$B$76,"=M") -> 7 | BB109: =COUNTIFS(BB$8:BB$76,"<=3",$B$8:$B$76,"=M") -> 5 | BE109: =COUNTIFS(BE$8:BE$76,"<=3",$B$8:$B$76,"=M") -> 0 | BH109: =COUNTIFS(BH$8:BH$76,"<=3",$B$8:$B$76,"=M") -> 2 | BK109: =COUNTIFS(BK$8:BK$76,"<=3",$B$8:$B$76,"=M") -> 0 | BN109: =COUNTIFS(BN$8:BN$76,"<=3",$B$8:$B$76,"=M") -> 3 | BQ109: =COUNTIFS(BQ$8:BQ$76,"<=3",$B$8:$B$76,"=M") -> 1 | BT109: =COUNTIFS(BT$8:BT$76,"<=3",$B$8:$B$76,"=M") -> 1 | BW109: =COUNTIFS(BW$8:BW$76,"<=3",$B$8:$B$76,"=M") -> 7 | BZ109: =COUNTIFS(BZ$8:BZ$76,"<=3",$B$8:$B$76,"=M") -> 5 | CC109: =COUNTIFS(CC$8:CC$76,"<=3",$B$8:$B$76,"=M") -> 1 | CG109: =COUNTIFS(CG$8:CG$76,"<=3",$B$8:$B$76,"=M") -> 2 | CJ109: =COUNTIFS(CJ$8:CJ$76,"<=3",$B$8:$B$76,"=M") -> 4 | CM109: =COUNTIFS(CM$8:CM$76,"<=3",$B$8:$B$76,"=M") -> 2 | CP109: =COUNTIFS(CP$8:CP$76,"<=3",$B$8:$B$76,"=M") -> 5 | CS109: =COUNTIFS(CS$8:CS$76,"<=3",$B$8:$B$76,"=M") -> 0 | CV109: =COUNTIFS(CV$8:CV$76,"<=3",$B$8:$B$76,"=M") -> 0 | CY109: =COUNTIFS(CY$8:CY$76,"<=3",$B$8:$B$76,"=M") -> 3 | DB109: =COUNTIFS(DB$8:DB$76,"<=3",$B$8:$B$76,"=M") -> 1 | DD109: =COUNTIFS(DD$8:DD$76,"<=3",$B$8:$B$76,"=M") -> 3 | DG109: =COUNTIFS(DG$8:DG$76,"<=3",$B$8:$B$76,"=M") -> 3 | DJ109: =COUNTIFS(DJ$8:DJ$76,"<=3",$B$8:$B$76,"=M") -> 5 | DM109: =COUNTIFS(DM$8:DM$76,"<=3",$B$8:$B$76,"=M") -> 1 | DP109: =COUNTIFS(DP$8:DP$76,"<=3",$B$8:$B$76,"=M") -> 3 | DS109: =COUNTIFS(DS$8:DS$76,"<=3",$B$8:$B$76,"=M") -> 2 | DV109: =COUNTIFS(DV$8:DV$76,"<=3",$B$8:$B$76,"=M") -> 2 | DY109: =COUNTIFS(DY$8:DY$76,"<=3",$B$8:$B$76,"=M") -> 1 | EB109: =COUNTIFS(EB$8:EB$76,"<=3",$B$8:$B$76,"=M") -> 2 | EE109: =COUNTIFS(EE$8:EE$76,"<=3",$B$8:$B$76,"=M") -> 0
E110: Female Age Podiums | M110: 57 | O110: =COUNTIFS(O$8:O$76,"<=3",$B$8:$B$76,"=F") -> 5 | R110: =COUNTIFS(R$8:R$76,"<=3",$B$8:$B$76,"=F") -> 2 | V110: =COUNTIFS(V$8:V$76,"<=3",$B$8:$B$76,"=F") -> 1 | Z110: =COUNTIFS(Z$8:Z$76,"<=3",$B$8:$B$76,"=F") -> 0 | AC110: =COUNTIFS(AC$8:AC$76,"<=3",$B$8:$B$76,"=F") -> 1 | AF110: =COUNTIFS(AF$8:AF$76,"<=3",$B$8:$B$76,"=F") -> 3 | AI110: =COUNTIFS(AI$8:AI$76,"<=3",$B$8:$B$76,"=F") -> 2 | AL110: =COUNTIFS(AL$8:AL$76,"<=3",$B$8:$B$76,"=F") -> 0 | AO110: =COUNTIFS(AO$8:AO$76,"<=3",$B$8:$B$76,"=F") -> 1 | AR110: =COUNTIFS(AR$8:AR$76,"<=3",$B$8:$B$76,"=F") -> 2 | AU110: =COUNTIFS(AU$8:AU$76,"<=3",$B$8:$B$76,"=F") -> 1 | AY110: =COUNTIFS(AY$8:AY$76,"<=3",$B$8:$B$76,"=F") -> 5 | BB110: =COUNTIFS(BB$8:BB$76,"<=3",$B$8:$B$76,"=F") -> 5 | BE110: =COUNTIFS(BE$8:BE$76,"<=3",$B$8:$B$76,"=F") -> 0 | BH110: =COUNTIFS(BH$8:BH$76,"<=3",$B$8:$B$76,"=F") -> 5 | BK110: =COUNTIFS(BK$8:BK$76,"<=3",$B$8:$B$76,"=F") -> 0 | BN110: =COUNTIFS(BN$8:BN$76,"<=3",$B$8:$B$76,"=F") -> 5 | BQ110: =COUNTIFS(BQ$8:BQ$76,"<=3",$B$8:$B$76,"=F") -> 0 | BT110: =COUNTIFS(BT$8:BT$76,"<=3",$B$8:$B$76,"=F") -> 0 | BW110: =COUNTIFS(BW$8:BW$76,"<=3",$B$8:$B$76,"=F") -> 3 | BZ110: =COUNTIFS(BZ$8:BZ$76,"<=3",$B$8:$B$76,"=F") -> 4 | CC110: =COUNTIFS(CC$8:CC$76,"<=3",$B$8:$B$76,"=F") -> 1 | CG110: =COUNTIFS(CG$8:CG$76,"<=3",$B$8:$B$76,"=F") -> 0 | CJ110: =COUNTIFS(CJ$8:CJ$76,"<=3",$B$8:$B$76,"=F") -> 0 | CM110: =COUNTIFS(CM$8:CM$76,"<=3",$B$8:$B$76,"=F") -> 1 | CP110: =COUNTIFS(CP$8:CP$76,"<=3",$B$8:$B$76,"=F") -> 1 | CS110: =COUNTIFS(CS$8:CS$76,"<=3",$B$8:$B$76,"=F") -> 0 | CV110: =COUNTIFS(CV$8:CV$76,"<=3",$B$8:$B$76,"=F") -> 1 | CY110: =COUNTIFS(CY$8:CY$76,"<=3",$B$8:$B$76,"=F") -> 0 | DB110: =COUNTIFS(DB$8:DB$76,"<=3",$B$8:$B$76,"=F") -> 0 | DD110: =COUNTIFS(DD$8:DD$76,"<=3",$B$8:$B$76,"=F") -> 0 | DG110: =COUNTIFS(DG$8:DG$76,"<=3",$B$8:$B$76,"=F") -> 1 | DJ110: =COUNTIFS(DJ$8:DJ$76,"<=3",$B$8:$B$76,"=F") -> 2 | DM110: =COUNTIFS(DM$8:DM$76,"<=3",$B$8:$B$76,"=F") -> 0 | DP110: =COUNTIFS(DP$8:DP$76,"<=3",$B$8:$B$76,"=F") -> 2 | DS110: =COUNTIFS(DS$8:DS$76,"<=3",$B$8:$B$76,"=F") -> 1 | DV110: =COUNTIFS(DV$8:DV$76,"<=3",$B$8:$B$76,"=F") -> 0 | DY110: =COUNTIFS(DY$8:DY$76,"<=3",$B$8:$B$76,"=F") -> 1 | EB110: =COUNTIFS(EB$8:EB$76,"<=3",$B$8:$B$76,"=F") -> 1 | EE110: =COUNTIFS(EE$8:EE$76,"<=3",$B$8:$B$76,"=F") -> 0
E111: CH Overall 1st | M111: =SUM(N111:EE111) -> 0 | N111: =COUNTIFS(N$8:N$76,"=1",$D$8:$D$76,"=U14")+COUNTIFS(N$8:N$76,"=1",$D$8:$D$76,"=U16") -> 0 | Q111: =COUNTIFS(Q$8:Q$76,"=1",$D$8:$D$76,"=U14")+COUNTIFS(Q$8:Q$76,"=1",$D$8:$D$76,"=U16") -> 0 | U111: =COUNTIFS(U$8:U$76,"=1",$D$8:$D$76,"=U14")+COUNTIFS(U$8:U$76,"=1",$D$8:$D$76,"=U16") -> 0 | Y111: =COUNTIFS(Y$8:Y$76,"=1",$D$8:$D$76,"=U14")+COUNTIFS(Y$8:Y$76,"=1",$D$8:$D$76,"=U16") -> 0 | AB111: =COUNTIFS(AB$8:AB$76,"=1",$D$8:$D$76,"=U14")+COUNTIFS(AB$8:AB$76,"=1",$D$8:$D$76,"=U16") -> 0 | AE111: =COUNTIFS(AE$8:AE$76,"=1",$D$8:$D$76,"=U14")+COUNTIFS(AE$8:AE$76,"=1",$D$8:$D$76,"=U16") -> 0 | AH111: =COUNTIFS(AH$8:AH$76,"=1",$D$8:$D$76,"=U14")+COUNTIFS(AH$8:AH$76,"=1",$D$8:$D$76,"=U16") -> 0 | AK111: =COUNTIFS(AK$8:AK$76,"=1",$D$8:$D$76,"=U14")+COUNTIFS(AK$8:AK$76,"=1",$D$8:$D$76,"=U16") -> 0 | AN111: =COUNTIFS(AN$8:AN$76,"=1",$D$8:$D$76,"=U14")+COUNTIFS(AN$8:AN$76,"=1",$D$8:$D$76,"=U16") -> 0 | AQ111: =COUNTIFS(AQ$8:AQ$76,"=1",$D$8:$D$76,"=U14")+COUNTIFS(AQ$8:AQ$76,"=1",$D$8:$D$76,"=U16") -> 0 | AT111: =COUNTIFS(AT$8:AT$76,"=1",$D$8:$D$76,"=U14")+COUNTIFS(AT$8:AT$76,"=1",$D$8:$D$76,"=U16") -> 0 | AX111: =COUNTIFS(AX$8:AX$76,"=1",$D$8:$D$76,"=U14")+COUNTIFS(AX$8:AX$76,"=1",$D$8:$D$76,"=U16") -> 0 | BA111: =COUNTIFS(BA$8:BA$76,"=1",$D$8:$D$76,"=U14")+COUNTIFS(BA$8:BA$76,"=1",$D$8:$D$76,"=U16") -> 0 | BD111: =COUNTIFS(BD$8:BD$76,"=1",$D$8:$D$76,"=U14")+COUNTIFS(BD$8:BD$76,"=1",$D$8:$D$76,"=U16") -> 0 | BG111: =COUNTIFS(BG$8:BG$76,"=1",$D$8:$D$76,"=U14")+COUNTIFS(BG$8:BG$76,"=1",$D$8:$D$76,"=U16") -> 0 | BJ111: =COUNTIFS(BJ$8:BJ$76,"=1",$D$8:$D$76,"=U14")+COUNTIFS(BJ$8:BJ$76,"=1",$D$8:$D$76,"=U16") -> 0 | BM111: =COUNTIFS(BM$8:BM$76,"=1",$D$8:$D$76,"=U14")+COUNTIFS(BM$8:BM$76,"=1",$D$8:$D$76,"=U16") -> 0 | BP111: =COUNTIFS(BP$8:BP$76,"=1",$D$8:$D$76,"=U14")+COUNTIFS(BP$8:BP$76,"=1",$D$8:$D$76,"=U16") -> 0 | BS111: =COUNTIFS(BS$8:BS$76,"=1",$D$8:$D$76,"=U14")+COUNTIFS(BS$8:BS$76,"=1",$D$8:$D$76,"=U16") -> 0 | BV111: =COUNTIFS(BV$8:BV$76,"=1",$D$8:$D$76,"=U14")+COUNTIFS(BV$8:BV$76,"=1",$D$8:$D$76,"=U16") -> 0 | BY111: =COUNTIFS(BY$8:BY$76,"=1",$D$8:$D$76,"=U14")+COUNTIFS(BY$8:BY$76,"=1",$D$8:$D$76,"=U16") -> 0 | CB111: =COUNTIFS(CB$8:CB$76,"=1",$D$8:$D$76,"=U14")+COUNTIFS(CB$8:CB$76,"=1",$D$8:$D$76,"=U16") -> 0 | CF111: =COUNTIFS(CF$8:CF$76,"=1",$D$8:$D$76,"=U14")+COUNTIFS(CF$8:CF$76,"=1",$D$8:$D$76,"=U16") -> 0 | CI111: =COUNTIFS(CI$8:CI$76,"=1",$D$8:$D$76,"=U14")+COUNTIFS(CI$8:CI$76,"=1",$D$8:$D$76,"=U16") -> 0 | CL111: =COUNTIFS(CL$8:CL$76,"=1",$D$8:$D$76,"=U14")+COUNTIFS(CL$8:CL$76,"=1",$D$8:$D$76,"=U16") -> 0 | CO111: =COUNTIFS(CO$8:CO$76,"=1",$D$8:$D$76,"=U14")+COUNTIFS(CO$8:CO$76,"=1",$D$8:$D$76,"=U16") -> 0 | CR111: =COUNTIFS(CR$8:CR$76,"=1",$D$8:$D$76,"=U14")+COUNTIFS(CR$8:CR$76,"=1",$D$8:$D$76,"=U16") -> 0 | CU111: =COUNTIFS(CU$8:CU$76,"=1",$D$8:$D$76,"=U14")+COUNTIFS(CU$8:CU$76,"=1",$D$8:$D$76,"=U16") -> 0 | CX111: =COUNTIFS(CX$8:CX$76,"=1",$D$8:$D$76,"=U14")+COUNTIFS(CX$8:CX$76,"=1",$D$8:$D$76,"=U16") -> 0 | DA111: =COUNTIFS(DA$8:DA$76,"=1",$D$8:$D$76,"=U14")+COUNTIFS(DA$8:DA$76,"=1",$D$8:$D$76,"=U16") -> 0 | DC111: =COUNTIFS(DC$8:DC$76,"=1",$D$8:$D$76,"=U14")+COUNTIFS(DC$8:DC$76,"=1",$D$8:$D$76,"=U16") -> 0 | DF111: =COUNTIFS(DF$8:DF$76,"=1",$D$8:$D$76,"=U14")+COUNTIFS(DF$8:DF$76,"=1",$D$8:$D$76,"=U16") -> 0 | DI111: =COUNTIFS(DI$8:DI$76,"=1",$D$8:$D$76,"=U14")+COUNTIFS(DI$8:DI$76,"=1",$D$8:$D$76,"=U16") -> 0 | DL111: =COUNTIFS(DL$8:DL$76,"=1",$D$8:$D$76,"=U14")+COUNTIFS(DL$8:DL$76,"=1",$D$8:$D$76,"=U16") -> 0 | DO111: =COUNTIFS(DO$8:DO$76,"=1",$D$8:$D$76,"=U14")+COUNTIFS(DO$8:DO$76,"=1",$D$8:$D$76,"=U16") -> 0 | DR111: =COUNTIFS(DR$8:DR$76,"=1",$D$8:$D$76,"=U14")+COUNTIFS(DR$8:DR$76,"=1",$D$8:$D$76,"=U16") -> 0 | DU111: =COUNTIFS(DU$8:DU$76,"=1",$D$8:$D$76,"=U14")+COUNTIFS(DU$8:DU$76,"=1",$D$8:$D$76,"=U16") -> 0 | DX111: =COUNTIFS(DX$8:DX$76,"=1",$D$8:$D$76,"=U14")+COUNTIFS(DX$8:DX$76,"=1",$D$8:$D$76,"=U16") -> 0 | EA111: =COUNTIFS(EA$8:EA$76,"=1",$D$8:$D$76,"=U14")+COUNTIFS(EA$8:EA$76,"=1",$D$8:$D$76,"=U16") -> 0 | ED111: =COUNTIFS(ED$8:ED$76,"=1",$D$8:$D$76,"=U14")+COUNTIFS(ED$8:ED$76,"=1",$D$8:$D$76,"=U16") -> 0
E112: CH Overall 2nd | M112: 0 | N112: =COUNTIFS(N$8:N$76,"=2",$D$8:$D$76,"=U14")+COUNTIFS(N$8:N$76,"=2",$D$8:$D$76,"=U16") -> 0 | Q112: =COUNTIFS(Q$8:Q$76,"=2",$D$8:$D$76,"=U14")+COUNTIFS(Q$8:Q$76,"=2",$D$8:$D$76,"=U16") -> 0 | U112: =COUNTIFS(U$8:U$76,"=2",$D$8:$D$76,"=U14")+COUNTIFS(U$8:U$76,"=2",$D$8:$D$76,"=U16") -> 0 | Y112: =COUNTIFS(Y$8:Y$76,"=2",$D$8:$D$76,"=U14")+COUNTIFS(Y$8:Y$76,"=2",$D$8:$D$76,"=U16") -> 0 | AB112: =COUNTIFS(AB$8:AB$76,"=2",$D$8:$D$76,"=U14")+COUNTIFS(AB$8:AB$76,"=2",$D$8:$D$76,"=U16") -> 0 | AE112: =COUNTIFS(AE$8:AE$76,"=2",$D$8:$D$76,"=U14")+COUNTIFS(AE$8:AE$76,"=2",$D$8:$D$76,"=U16") -> 0 | AH112: =COUNTIFS(AH$8:AH$76,"=2",$D$8:$D$76,"=U14")+COUNTIFS(AH$8:AH$76,"=2",$D$8:$D$76,"=U16") -> 0 | AK112: =COUNTIFS(AK$8:AK$76,"=2",$D$8:$D$76,"=U14")+COUNTIFS(AK$8:AK$76,"=2",$D$8:$D$76,"=U16") -> 0 | AN112: =COUNTIFS(AN$8:AN$76,"=2",$D$8:$D$76,"=U14")+COUNTIFS(AN$8:AN$76,"=2",$D$8:$D$76,"=U16") -> 0 | AQ112: =COUNTIFS(AQ$8:AQ$76,"=2",$D$8:$D$76,"=U14")+COUNTIFS(AQ$8:AQ$76,"=2",$D$8:$D$76,"=U16") -> 0 | AT112: =COUNTIFS(AT$8:AT$76,"=2",$D$8:$D$76,"=U14")+COUNTIFS(AT$8:AT$76,"=2",$D$8:$D$76,"=U16") -> 0 | AX112: =COUNTIFS(AX$8:AX$76,"=2",$D$8:$D$76,"=U14")+COUNTIFS(AX$8:AX$76,"=2",$D$8:$D$76,"=U16") -> 0 | BA112: =COUNTIFS(BA$8:BA$76,"=2",$D$8:$D$76,"=U14")+COUNTIFS(BA$8:BA$76,"=2",$D$8:$D$76,"=U16") -> 0 | BD112: =COUNTIFS(BD$8:BD$76,"=2",$D$8:$D$76,"=U14")+COUNTIFS(BD$8:BD$76,"=2",$D$8:$D$76,"=U16") -> 0 | BG112: =COUNTIFS(BG$8:BG$76,"=2",$D$8:$D$76,"=U14")+COUNTIFS(BG$8:BG$76,"=2",$D$8:$D$76,"=U16") -> 0 | BJ112: =COUNTIFS(BJ$8:BJ$76,"=2",$D$8:$D$76,"=U14")+COUNTIFS(BJ$8:BJ$76,"=2",$D$8:$D$76,"=U16") -> 0 | BM112: =COUNTIFS(BM$8:BM$76,"=2",$D$8:$D$76,"=U14")+COUNTIFS(BM$8:BM$76,"=2",$D$8:$D$76,"=U16") -> 0 | BP112: =COUNTIFS(BP$8:BP$76,"=2",$D$8:$D$76,"=U14")+COUNTIFS(BP$8:BP$76,"=2",$D$8:$D$76,"=U16") -> 0 | BS112: =COUNTIFS(BS$8:BS$76,"=2",$D$8:$D$76,"=U14")+COUNTIFS(BS$8:BS$76,"=2",$D$8:$D$76,"=U16") -> 0 | BV112: =COUNTIFS(BV$8:BV$76,"=2",$D$8:$D$76,"=U14")+COUNTIFS(BV$8:BV$76,"=2",$D$8:$D$76,"=U16") -> 0 | BY112: =COUNTIFS(BY$8:BY$76,"=2",$D$8:$D$76,"=U14")+COUNTIFS(BY$8:BY$76,"=2",$D$8:$D$76,"=U16") -> 0 | CB112: =COUNTIFS(CB$8:CB$76,"=2",$D$8:$D$76,"=U14")+COUNTIFS(CB$8:CB$76,"=2",$D$8:$D$76,"=U16") -> 0 | CF112: =COUNTIFS(CF$8:CF$76,"=2",$D$8:$D$76,"=U14")+COUNTIFS(CF$8:CF$76,"=2",$D$8:$D$76,"=U16") -> 0 | CI112: =COUNTIFS(CI$8:CI$76,"=2",$D$8:$D$76,"=U14")+COUNTIFS(CI$8:CI$76,"=2",$D$8:$D$76,"=U16") -> 0 | CL112: =COUNTIFS(CL$8:CL$76,"=2",$D$8:$D$76,"=U14")+COUNTIFS(CL$8:CL$76,"=2",$D$8:$D$76,"=U16") -> 0 | CO112: =COUNTIFS(CO$8:CO$76,"=2",$D$8:$D$76,"=U14")+COUNTIFS(CO$8:CO$76,"=2",$D$8:$D$76,"=U16") -> 0 | CR112: =COUNTIFS(CR$8:CR$76,"=2",$D$8:$D$76,"=U14")+COUNTIFS(CR$8:CR$76,"=2",$D$8:$D$76,"=U16") -> 0 | CU112: =COUNTIFS(CU$8:CU$76,"=2",$D$8:$D$76,"=U14")+COUNTIFS(CU$8:CU$76,"=2",$D$8:$D$76,"=U16") -> 0 | CX112: =COUNTIFS(CX$8:CX$76,"=2",$D$8:$D$76,"=U14")+COUNTIFS(CX$8:CX$76,"=2",$D$8:$D$76,"=U16") -> 0 | DA112: =COUNTIFS(DA$8:DA$76,"=2",$D$8:$D$76,"=U14")+COUNTIFS(DA$8:DA$76,"=2",$D$8:$D$76,"=U16") -> 0 | DC112: =COUNTIFS(DC$8:DC$76,"=2",$D$8:$D$76,"=U14")+COUNTIFS(DC$8:DC$76,"=2",$D$8:$D$76,"=U16") -> 0 | DF112: =COUNTIFS(DF$8:DF$76,"=2",$D$8:$D$76,"=U14")+COUNTIFS(DF$8:DF$76,"=2",$D$8:$D$76,"=U16") -> 0 | DI112: =COUNTIFS(DI$8:DI$76,"=2",$D$8:$D$76,"=U14")+COUNTIFS(DI$8:DI$76,"=2",$D$8:$D$76,"=U16") -> 0 | DL112: =COUNTIFS(DL$8:DL$76,"=2",$D$8:$D$76,"=U14")+COUNTIFS(DL$8:DL$76,"=2",$D$8:$D$76,"=U16") -> 0 | DO112: =COUNTIFS(DO$8:DO$76,"=2",$D$8:$D$76,"=U14")+COUNTIFS(DO$8:DO$76,"=2",$D$8:$D$76,"=U16") -> 0 | DR112: =COUNTIFS(DR$8:DR$76,"=2",$D$8:$D$76,"=U14")+COUNTIFS(DR$8:DR$76,"=2",$D$8:$D$76,"=U16") -> 0 | DU112: =COUNTIFS(DU$8:DU$76,"=2",$D$8:$D$76,"=U14")+COUNTIFS(DU$8:DU$76,"=2",$D$8:$D$76,"=U16") -> 0 | DX112: =COUNTIFS(DX$8:DX$76,"=2",$D$8:$D$76,"=U14")+COUNTIFS(DX$8:DX$76,"=2",$D$8:$D$76,"=U16") -> 0 | EA112: =COUNTIFS(EA$8:EA$76,"=2",$D$8:$D$76,"=U14")+COUNTIFS(EA$8:EA$76,"=2",$D$8:$D$76,"=U16") -> 0 | ED112: =COUNTIFS(ED$8:ED$76,"=2",$D$8:$D$76,"=U14")+COUNTIFS(ED$8:ED$76,"=2",$D$8:$D$76,"=U16") -> 0
E113: CH Overall 3rd | M113: 0 | N113: =COUNTIFS(N$8:N$76,"=3",$D$8:$D$76,"=U14")+COUNTIFS(N$8:N$76,"=3",$D$8:$D$76,"=U16") -> 0 | Q113: =COUNTIFS(Q$8:Q$76,"=3",$D$8:$D$76,"=U14")+COUNTIFS(Q$8:Q$76,"=3",$D$8:$D$76,"=U16") -> 0 | U113: =COUNTIFS(U$8:U$76,"=3",$D$8:$D$76,"=U14")+COUNTIFS(U$8:U$76,"=3",$D$8:$D$76,"=U16") -> 0 | Y113: =COUNTIFS(Y$8:Y$76,"=3",$D$8:$D$76,"=U14")+COUNTIFS(Y$8:Y$76,"=3",$D$8:$D$76,"=U16") -> 0 | AB113: =COUNTIFS(AB$8:AB$76,"=3",$D$8:$D$76,"=U14")+COUNTIFS(AB$8:AB$76,"=3",$D$8:$D$76,"=U16") -> 0 | AE113: =COUNTIFS(AE$8:AE$76,"=3",$D$8:$D$76,"=U14")+COUNTIFS(AE$8:AE$76,"=3",$D$8:$D$76,"=U16") -> 0 | AH113: =COUNTIFS(AH$8:AH$76,"=3",$D$8:$D$76,"=U14")+COUNTIFS(AH$8:AH$76,"=3",$D$8:$D$76,"=U16") -> 0 | AK113: =COUNTIFS(AK$8:AK$76,"=3",$D$8:$D$76,"=U14")+COUNTIFS(AK$8:AK$76,"=3",$D$8:$D$76,"=U16") -> 0 | AN113: =COUNTIFS(AN$8:AN$76,"=3",$D$8:$D$76,"=U14")+COUNTIFS(AN$8:AN$76,"=3",$D$8:$D$76,"=U16") -> 0 | AQ113: =COUNTIFS(AQ$8:AQ$76,"=3",$D$8:$D$76,"=U14")+COUNTIFS(AQ$8:AQ$76,"=3",$D$8:$D$76,"=U16") -> 0 | AT113: =COUNTIFS(AT$8:AT$76,"=3",$D$8:$D$76,"=U14")+COUNTIFS(AT$8:AT$76,"=3",$D$8:$D$76,"=U16") -> 0 | AX113: =COUNTIFS(AX$8:AX$76,"=3",$D$8:$D$76,"=U14")+COUNTIFS(AX$8:AX$76,"=3",$D$8:$D$76,"=U16") -> 0 | BA113: =COUNTIFS(BA$8:BA$76,"=3",$D$8:$D$76,"=U14")+COUNTIFS(BA$8:BA$76,"=3",$D$8:$D$76,"=U16") -> 0 | BD113: =COUNTIFS(BD$8:BD$76,"=3",$D$8:$D$76,"=U14")+COUNTIFS(BD$8:BD$76,"=3",$D$8:$D$76,"=U16") -> 0 | BG113: =COUNTIFS(BG$8:BG$76,"=3",$D$8:$D$76,"=U14")+COUNTIFS(BG$8:BG$76,"=3",$D$8:$D$76,"=U16") -> 0 | BJ113: =COUNTIFS(BJ$8:BJ$76,"=3",$D$8:$D$76,"=U14")+COUNTIFS(BJ$8:BJ$76,"=3",$D$8:$D$76,"=U16") -> 0 | BM113: =COUNTIFS(BM$8:BM$76,"=3",$D$8:$D$76,"=U14")+COUNTIFS(BM$8:BM$76,"=3",$D$8:$D$76,"=U16") -> 0 | BP113: =COUNTIFS(BP$8:BP$76,"=3",$D$8:$D$76,"=U14")+COUNTIFS(BP$8:BP$76,"=3",$D$8:$D$76,"=U16") -> 0 | BS113: =COUNTIFS(BS$8:BS$76,"=3",$D$8:$D$76,"=U14")+COUNTIFS(BS$8:BS$76,"=3",$D$8:$D$76,"=U16") -> 0 | BV113: =COUNTIFS(BV$8:BV$76,"=3",$D$8:$D$76,"=U14")+COUNTIFS(BV$8:BV$76,"=3",$D$8:$D$76,"=U16") -> 0 | BY113: =COUNTIFS(BY$8:BY$76,"=3",$D$8:$D$76,"=U14")+COUNTIFS(BY$8:BY$76,"=3",$D$8:$D$76,"=U16") -> 0 | CB113: =COUNTIFS(CB$8:CB$76,"=3",$D$8:$D$76,"=U14")+COUNTIFS(CB$8:CB$76,"=3",$D$8:$D$76,"=U16") -> 0 | CF113: =COUNTIFS(CF$8:CF$76,"=3",$D$8:$D$76,"=U14")+COUNTIFS(CF$8:CF$76,"=3",$D$8:$D$76,"=U16") -> 0 | CI113: =COUNTIFS(CI$8:CI$76,"=3",$D$8:$D$76,"=U14")+COUNTIFS(CI$8:CI$76,"=3",$D$8:$D$76,"=U16") -> 0 | CL113: =COUNTIFS(CL$8:CL$76,"=3",$D$8:$D$76,"=U14")+COUNTIFS(CL$8:CL$76,"=3",$D$8:$D$76,"=U16") -> 0 | CO113: =COUNTIFS(CO$8:CO$76,"=3",$D$8:$D$76,"=U14")+COUNTIFS(CO$8:CO$76,"=3",$D$8:$D$76,"=U16") -> 0 | CR113: =COUNTIFS(CR$8:CR$76,"=3",$D$8:$D$76,"=U14")+COUNTIFS(CR$8:CR$76,"=3",$D$8:$D$76,"=U16") -> 0 | CU113: =COUNTIFS(CU$8:CU$76,"=3",$D$8:$D$76,"=U14")+COUNTIFS(CU$8:CU$76,"=3",$D$8:$D$76,"=U16") -> 0 | CX113: =COUNTIFS(CX$8:CX$76,"=3",$D$8:$D$76,"=U14")+COUNTIFS(CX$8:CX$76,"=3",$D$8:$D$76,"=U16") -> 0 | DA113: =COUNTIFS(DA$8:DA$76,"=3",$D$8:$D$76,"=U14")+COUNTIFS(DA$8:DA$76,"=3",$D$8:$D$76,"=U16") -> 0 | DC113: =COUNTIFS(DC$8:DC$76,"=3",$D$8:$D$76,"=U14")+COUNTIFS(DC$8:DC$76,"=3",$D$8:$D$76,"=U16") -> 0 | DF113: =COUNTIFS(DF$8:DF$76,"=3",$D$8:$D$76,"=U14")+COUNTIFS(DF$8:DF$76,"=3",$D$8:$D$76,"=U16") -> 0 | DI113: =COUNTIFS(DI$8:DI$76,"=3",$D$8:$D$76,"=U14")+COUNTIFS(DI$8:DI$76,"=3",$D$8:$D$76,"=U16") -> 0 | DL113: =COUNTIFS(DL$8:DL$76,"=3",$D$8:$D$76,"=U14")+COUNTIFS(DL$8:DL$76,"=3",$D$8:$D$76,"=U16") -> 0 | DO113: =COUNTIFS(DO$8:DO$76,"=3",$D$8:$D$76,"=U14")+COUNTIFS(DO$8:DO$76,"=3",$D$8:$D$76,"=U16") -> 0 | DR113: =COUNTIFS(DR$8:DR$76,"=3",$D$8:$D$76,"=U14")+COUNTIFS(DR$8:DR$76,"=3",$D$8:$D$76,"=U16") -> 0 | DU113: =COUNTIFS(DU$8:DU$76,"=3",$D$8:$D$76,"=U14")+COUNTIFS(DU$8:DU$76,"=3",$D$8:$D$76,"=U16") -> 0 | DX113: =COUNTIFS(DX$8:DX$76,"=3",$D$8:$D$76,"=U14")+COUNTIFS(DX$8:DX$76,"=3",$D$8:$D$76,"=U16") -> 0 | EA113: =COUNTIFS(EA$8:EA$76,"=3",$D$8:$D$76,"=U14")+COUNTIFS(EA$8:EA$76,"=3",$D$8:$D$76,"=U16") -> 0 | ED113: =COUNTIFS(ED$8:ED$76,"=3",$D$8:$D$76,"=U14")+COUNTIFS(ED$8:ED$76,"=3",$D$8:$D$76,"=U16") -> 0
E114: JN Overall 1st | M114: 0 | N114: =COUNTIFS(N$8:N$76,"=1",$D$8:$D$76,"=U18")+COUNTIFS(N$8:N$76,"=1",$D$8:$D$76,"=U21") -> 0 | Q114: =COUNTIFS(Q$8:Q$76,"=1",$D$8:$D$76,"=U18")+COUNTIFS(Q$8:Q$76,"=1",$D$8:$D$76,"=U21") -> 0 | U114: =COUNTIFS(U$8:U$76,"=1",$D$8:$D$76,"=U18")+COUNTIFS(U$8:U$76,"=1",$D$8:$D$76,"=U21") -> 0 | Y114: =COUNTIFS(Y$8:Y$76,"=1",$D$8:$D$76,"=U18")+COUNTIFS(Y$8:Y$76,"=1",$D$8:$D$76,"=U21") -> 0 | AB114: =COUNTIFS(AB$8:AB$76,"=1",$D$8:$D$76,"=U18")+COUNTIFS(AB$8:AB$76,"=1",$D$8:$D$76,"=U21") -> 0 | AE114: =COUNTIFS(AE$8:AE$76,"=1",$D$8:$D$76,"=U18")+COUNTIFS(AE$8:AE$76,"=1",$D$8:$D$76,"=U21") -> 0 | AH114: =COUNTIFS(AH$8:AH$76,"=1",$D$8:$D$76,"=U18")+COUNTIFS(AH$8:AH$76,"=1",$D$8:$D$76,"=U21") -> 0 | AK114: =COUNTIFS(AK$8:AK$76,"=1",$D$8:$D$76,"=U18")+COUNTIFS(AK$8:AK$76,"=1",$D$8:$D$76,"=U21") -> 0 | AN114: =COUNTIFS(AN$8:AN$76,"=1",$D$8:$D$76,"=U18")+COUNTIFS(AN$8:AN$76,"=1",$D$8:$D$76,"=U21") -> 0 | AQ114: =COUNTIFS(AQ$8:AQ$76,"=1",$D$8:$D$76,"=U18")+COUNTIFS(AQ$8:AQ$76,"=1",$D$8:$D$76,"=U21") -> 0 | AT114: =COUNTIFS(AT$8:AT$76,"=1",$D$8:$D$76,"=U18")+COUNTIFS(AT$8:AT$76,"=1",$D$8:$D$76,"=U21") -> 0 | AX114: =COUNTIFS(AX$8:AX$76,"=1",$D$8:$D$76,"=U18")+COUNTIFS(AX$8:AX$76,"=1",$D$8:$D$76,"=U21") -> 0 | BA114: =COUNTIFS(BA$8:BA$76,"=1",$D$8:$D$76,"=U18")+COUNTIFS(BA$8:BA$76,"=1",$D$8:$D$76,"=U21") -> 0 | BD114: =COUNTIFS(BD$8:BD$76,"=1",$D$8:$D$76,"=U18")+COUNTIFS(BD$8:BD$76,"=1",$D$8:$D$76,"=U21") -> 0 | BG114: =COUNTIFS(BG$8:BG$76,"=1",$D$8:$D$76,"=U18")+COUNTIFS(BG$8:BG$76,"=1",$D$8:$D$76,"=U21") -> 0 | BJ114: =COUNTIFS(BJ$8:BJ$76,"=1",$D$8:$D$76,"=U18")+COUNTIFS(BJ$8:BJ$76,"=1",$D$8:$D$76,"=U21") -> 0 | BM114: =COUNTIFS(BM$8:BM$76,"=1",$D$8:$D$76,"=U18")+COUNTIFS(BM$8:BM$76,"=1",$D$8:$D$76,"=U21") -> 0 | BP114: =COUNTIFS(BP$8:BP$76,"=1",$D$8:$D$76,"=U18")+COUNTIFS(BP$8:BP$76,"=1",$D$8:$D$76,"=U21") -> 0 | BS114: =COUNTIFS(BS$8:BS$76,"=1",$D$8:$D$76,"=U18")+COUNTIFS(BS$8:BS$76,"=1",$D$8:$D$76,"=U21") -> 0 | BV114: =COUNTIFS(BV$8:BV$76,"=1",$D$8:$D$76,"=U18")+COUNTIFS(BV$8:BV$76,"=1",$D$8:$D$76,"=U21") -> 0 | BY114: =COUNTIFS(BY$8:BY$76,"=1",$D$8:$D$76,"=U18")+COUNTIFS(BY$8:BY$76,"=1",$D$8:$D$76,"=U21") -> 0 | CB114: =COUNTIFS(CB$8:CB$76,"=1",$D$8:$D$76,"=U18")+COUNTIFS(CB$8:CB$76,"=1",$D$8:$D$76,"=U21") -> 0 | CF114: =COUNTIFS(CF$8:CF$76,"=1",$D$8:$D$76,"=U18")+COUNTIFS(CF$8:CF$76,"=1",$D$8:$D$76,"=U21") -> 0 | CI114: =COUNTIFS(CI$8:CI$76,"=1",$D$8:$D$76,"=U18")+COUNTIFS(CI$8:CI$76,"=1",$D$8:$D$76,"=U21") -> 0 | CL114: =COUNTIFS(CL$8:CL$76,"=1",$D$8:$D$76,"=U18")+COUNTIFS(CL$8:CL$76,"=1",$D$8:$D$76,"=U21") -> 0 | CO114: =COUNTIFS(CO$8:CO$76,"=1",$D$8:$D$76,"=U18")+COUNTIFS(CO$8:CO$76,"=1",$D$8:$D$76,"=U21") -> 0 | CR114: =COUNTIFS(CR$8:CR$76,"=1",$D$8:$D$76,"=U18")+COUNTIFS(CR$8:CR$76,"=1",$D$8:$D$76,"=U21") -> 0 | CU114: =COUNTIFS(CU$8:CU$76,"=1",$D$8:$D$76,"=U18")+COUNTIFS(CU$8:CU$76,"=1",$D$8:$D$76,"=U21") -> 0 | CX114: =COUNTIFS(CX$8:CX$76,"=1",$D$8:$D$76,"=U18")+COUNTIFS(CX$8:CX$76,"=1",$D$8:$D$76,"=U21") -> 0 | DA114: =COUNTIFS(DA$8:DA$76,"=1",$D$8:$D$76,"=U18")+COUNTIFS(DA$8:DA$76,"=1",$D$8:$D$76,"=U21") -> 0 | DC114: =COUNTIFS(DC$8:DC$76,"=1",$D$8:$D$76,"=U18")+COUNTIFS(DC$8:DC$76,"=1",$D$8:$D$76,"=U21") -> 0 | DF114: =COUNTIFS(DF$8:DF$76,"=1",$D$8:$D$76,"=U18")+COUNTIFS(DF$8:DF$76,"=1",$D$8:$D$76,"=U21") -> 0 | DI114: =COUNTIFS(DI$8:DI$76,"=1",$D$8:$D$76,"=U18")+COUNTIFS(DI$8:DI$76,"=1",$D$8:$D$76,"=U21") -> 0 | DL114: =COUNTIFS(DL$8:DL$76,"=1",$D$8:$D$76,"=U18")+COUNTIFS(DL$8:DL$76,"=1",$D$8:$D$76,"=U21") -> 0 | DO114: =COUNTIFS(DO$8:DO$76,"=1",$D$8:$D$76,"=U18")+COUNTIFS(DO$8:DO$76,"=1",$D$8:$D$76,"=U21") -> 0 | DR114: =COUNTIFS(DR$8:DR$76,"=1",$D$8:$D$76,"=U18")+COUNTIFS(DR$8:DR$76,"=1",$D$8:$D$76,"=U21") -> 0 | DU114: =COUNTIFS(DU$8:DU$76,"=1",$D$8:$D$76,"=U18")+COUNTIFS(DU$8:DU$76,"=1",$D$8:$D$76,"=U21") -> 0 | DX114: =COUNTIFS(DX$8:DX$76,"=1",$D$8:$D$76,"=U18")+COUNTIFS(DX$8:DX$76,"=1",$D$8:$D$76,"=U21") -> 0 | EA114: =COUNTIFS(EA$8:EA$76,"=1",$D$8:$D$76,"=U18")+COUNTIFS(EA$8:EA$76,"=1",$D$8:$D$76,"=U21") -> 0 | ED114: =COUNTIFS(ED$8:ED$76,"=1",$D$8:$D$76,"=U18")+COUNTIFS(ED$8:ED$76,"=1",$D$8:$D$76,"=U21") -> 0
E115: JN Overall 2nd | M115: 1 | N115: =COUNTIFS(N$8:N$76,"=2",$D$8:$D$76,"=U18")+COUNTIFS(N$8:N$76,"=2",$D$8:$D$76,"=U21") -> 0 | Q115: =COUNTIFS(Q$8:Q$76,"=2",$D$8:$D$76,"=U18")+COUNTIFS(Q$8:Q$76,"=2",$D$8:$D$76,"=U21") -> 0 | U115: =COUNTIFS(U$8:U$76,"=2",$D$8:$D$76,"=U18")+COUNTIFS(U$8:U$76,"=2",$D$8:$D$76,"=U21") -> 0 | Y115: =COUNTIFS(Y$8:Y$76,"=2",$D$8:$D$76,"=U18")+COUNTIFS(Y$8:Y$76,"=2",$D$8:$D$76,"=U21") -> 0 | AB115: =COUNTIFS(AB$8:AB$76,"=2",$D$8:$D$76,"=U18")+COUNTIFS(AB$8:AB$76,"=2",$D$8:$D$76,"=U21") -> 0 | AE115: =COUNTIFS(AE$8:AE$76,"=2",$D$8:$D$76,"=U18")+COUNTIFS(AE$8:AE$76,"=2",$D$8:$D$76,"=U21") -> 0 | AH115: =COUNTIFS(AH$8:AH$76,"=2",$D$8:$D$76,"=U18")+COUNTIFS(AH$8:AH$76,"=2",$D$8:$D$76,"=U21") -> 0 | AK115: =COUNTIFS(AK$8:AK$76,"=2",$D$8:$D$76,"=U18")+COUNTIFS(AK$8:AK$76,"=2",$D$8:$D$76,"=U21") -> 0 | AN115: =COUNTIFS(AN$8:AN$76,"=2",$D$8:$D$76,"=U18")+COUNTIFS(AN$8:AN$76,"=2",$D$8:$D$76,"=U21") -> 0 | AQ115: =COUNTIFS(AQ$8:AQ$76,"=2",$D$8:$D$76,"=U18")+COUNTIFS(AQ$8:AQ$76,"=2",$D$8:$D$76,"=U21") -> 1 | AT115: =COUNTIFS(AT$8:AT$76,"=2",$D$8:$D$76,"=U18")+COUNTIFS(AT$8:AT$76,"=2",$D$8:$D$76,"=U21") -> 0 | AX115: =COUNTIFS(AX$8:AX$76,"=2",$D$8:$D$76,"=U18")+COUNTIFS(AX$8:AX$76,"=2",$D$8:$D$76,"=U21") -> 0 | BA115: =COUNTIFS(BA$8:BA$76,"=2",$D$8:$D$76,"=U18")+COUNTIFS(BA$8:BA$76,"=2",$D$8:$D$76,"=U21") -> 0 | BD115: =COUNTIFS(BD$8:BD$76,"=2",$D$8:$D$76,"=U18")+COUNTIFS(BD$8:BD$76,"=2",$D$8:$D$76,"=U21") -> 0 | BG115: =COUNTIFS(BG$8:BG$76,"=2",$D$8:$D$76,"=U18")+COUNTIFS(BG$8:BG$76,"=2",$D$8:$D$76,"=U21") -> 0 | BJ115: =COUNTIFS(BJ$8:BJ$76,"=2",$D$8:$D$76,"=U18")+COUNTIFS(BJ$8:BJ$76,"=2",$D$8:$D$76,"=U21") -> 0 | BM115: =COUNTIFS(BM$8:BM$76,"=2",$D$8:$D$76,"=U18")+COUNTIFS(BM$8:BM$76,"=2",$D$8:$D$76,"=U21") -> 0 | BP115: =COUNTIFS(BP$8:BP$76,"=2",$D$8:$D$76,"=U18")+COUNTIFS(BP$8:BP$76,"=2",$D$8:$D$76,"=U21") -> 0 | BS115: =COUNTIFS(BS$8:BS$76,"=2",$D$8:$D$76,"=U18")+COUNTIFS(BS$8:BS$76,"=2",$D$8:$D$76,"=U21") -> 0 | BV115: =COUNTIFS(BV$8:BV$76,"=2",$D$8:$D$76,"=U18")+COUNTIFS(BV$8:BV$76,"=2",$D$8:$D$76,"=U21") -> 0 | BY115: =COUNTIFS(BY$8:BY$76,"=2",$D$8:$D$76,"=U18")+COUNTIFS(BY$8:BY$76,"=2",$D$8:$D$76,"=U21") -> 0 | CB115: =COUNTIFS(CB$8:CB$76,"=2",$D$8:$D$76,"=U18")+COUNTIFS(CB$8:CB$76,"=2",$D$8:$D$76,"=U21") -> 0 | CF115: =COUNTIFS(CF$8:CF$76,"=2",$D$8:$D$76,"=U18")+COUNTIFS(CF$8:CF$76,"=2",$D$8:$D$76,"=U21") -> 0 | CI115: =COUNTIFS(CI$8:CI$76,"=2",$D$8:$D$76,"=U18")+COUNTIFS(CI$8:CI$76,"=2",$D$8:$D$76,"=U21") -> 0 | CL115: =COUNTIFS(CL$8:CL$76,"=2",$D$8:$D$76,"=U18")+COUNTIFS(CL$8:CL$76,"=2",$D$8:$D$76,"=U21") -> 0 | CO115: =COUNTIFS(CO$8:CO$76,"=2",$D$8:$D$76,"=U18")+COUNTIFS(CO$8:CO$76,"=2",$D$8:$D$76,"=U21") -> 0 | CR115: =COUNTIFS(CR$8:CR$76,"=2",$D$8:$D$76,"=U18")+COUNTIFS(CR$8:CR$76,"=2",$D$8:$D$76,"=U21") -> 0 | CU115: =COUNTIFS(CU$8:CU$76,"=2",$D$8:$D$76,"=U18")+COUNTIFS(CU$8:CU$76,"=2",$D$8:$D$76,"=U21") -> 0 | CX115: =COUNTIFS(CX$8:CX$76,"=2",$D$8:$D$76,"=U18")+COUNTIFS(CX$8:CX$76,"=2",$D$8:$D$76,"=U21") -> 0 | DA115: =COUNTIFS(DA$8:DA$76,"=2",$D$8:$D$76,"=U18")+COUNTIFS(DA$8:DA$76,"=2",$D$8:$D$76,"=U21") -> 0 | DC115: =COUNTIFS(DC$8:DC$76,"=2",$D$8:$D$76,"=U18")+COUNTIFS(DC$8:DC$76,"=2",$D$8:$D$76,"=U21") -> 0 | DF115: =COUNTIFS(DF$8:DF$76,"=2",$D$8:$D$76,"=U18")+COUNTIFS(DF$8:DF$76,"=2",$D$8:$D$76,"=U21") -> 0 | DI115: =COUNTIFS(DI$8:DI$76,"=2",$D$8:$D$76,"=U18")+COUNTIFS(DI$8:DI$76,"=2",$D$8:$D$76,"=U21") -> 0 | DL115: =COUNTIFS(DL$8:DL$76,"=2",$D$8:$D$76,"=U18")+COUNTIFS(DL$8:DL$76,"=2",$D$8:$D$76,"=U21") -> 0 | DO115: =COUNTIFS(DO$8:DO$76,"=2",$D$8:$D$76,"=U18")+COUNTIFS(DO$8:DO$76,"=2",$D$8:$D$76,"=U21") -> 0 | DR115: =COUNTIFS(DR$8:DR$76,"=2",$D$8:$D$76,"=U18")+COUNTIFS(DR$8:DR$76,"=2",$D$8:$D$76,"=U21") -> 0 | DU115: =COUNTIFS(DU$8:DU$76,"=2",$D$8:$D$76,"=U18")+COUNTIFS(DU$8:DU$76,"=2",$D$8:$D$76,"=U21") -> 0 | DX115: =COUNTIFS(DX$8:DX$76,"=2",$D$8:$D$76,"=U18")+COUNTIFS(DX$8:DX$76,"=2",$D$8:$D$76,"=U21") -> 0 | EA115: =COUNTIFS(EA$8:EA$76,"=2",$D$8:$D$76,"=U18")+COUNTIFS(EA$8:EA$76,"=2",$D$8:$D$76,"=U21") -> 0 | ED115: =COUNTIFS(ED$8:ED$76,"=2",$D$8:$D$76,"=U18")+COUNTIFS(ED$8:ED$76,"=2",$D$8:$D$76,"=U21") -> 0
E116: JN Overall 3rd | M116: 1 | N116: =COUNTIFS(N$8:N$76,"=3",$D$8:$D$76,"=U18")+COUNTIFS(N$8:N$76,"=3",$D$8:$D$76,"=U21") -> 0 | Q116: =COUNTIFS(Q$8:Q$76,"=3",$D$8:$D$76,"=U18")+COUNTIFS(Q$8:Q$76,"=3",$D$8:$D$76,"=U21") -> 0 | U116: =COUNTIFS(U$8:U$76,"=3",$D$8:$D$76,"=U18")+COUNTIFS(U$8:U$76,"=3",$D$8:$D$76,"=U21") -> 0 | Y116: =COUNTIFS(Y$8:Y$76,"=3",$D$8:$D$76,"=U18")+COUNTIFS(Y$8:Y$76,"=3",$D$8:$D$76,"=U21") -> 0 | AB116: =COUNTIFS(AB$8:AB$76,"=3",$D$8:$D$76,"=U18")+COUNTIFS(AB$8:AB$76,"=3",$D$8:$D$76,"=U21") -> 0 | AE116: =COUNTIFS(AE$8:AE$76,"=3",$D$8:$D$76,"=U18")+COUNTIFS(AE$8:AE$76,"=3",$D$8:$D$76,"=U21") -> 0 | AH116: =COUNTIFS(AH$8:AH$76,"=3",$D$8:$D$76,"=U18")+COUNTIFS(AH$8:AH$76,"=3",$D$8:$D$76,"=U21") -> 0 | AK116: =COUNTIFS(AK$8:AK$76,"=3",$D$8:$D$76,"=U18")+COUNTIFS(AK$8:AK$76,"=3",$D$8:$D$76,"=U21") -> 0 | AN116: =COUNTIFS(AN$8:AN$76,"=3",$D$8:$D$76,"=U18")+COUNTIFS(AN$8:AN$76,"=3",$D$8:$D$76,"=U21") -> 0 | AQ116: =COUNTIFS(AQ$8:AQ$76,"=3",$D$8:$D$76,"=U18")+COUNTIFS(AQ$8:AQ$76,"=3",$D$8:$D$76,"=U21") -> 0 | AT116: =COUNTIFS(AT$8:AT$76,"=3",$D$8:$D$76,"=U18")+COUNTIFS(AT$8:AT$76,"=3",$D$8:$D$76,"=U21") -> 0 | AX116: =COUNTIFS(AX$8:AX$76,"=3",$D$8:$D$76,"=U18")+COUNTIFS(AX$8:AX$76,"=3",$D$8:$D$76,"=U21") -> 0 | BA116: =COUNTIFS(BA$8:BA$76,"=3",$D$8:$D$76,"=U18")+COUNTIFS(BA$8:BA$76,"=3",$D$8:$D$76,"=U21") -> 0 | BD116: =COUNTIFS(BD$8:BD$76,"=3",$D$8:$D$76,"=U18")+COUNTIFS(BD$8:BD$76,"=3",$D$8:$D$76,"=U21") -> 0 | BG116: =COUNTIFS(BG$8:BG$76,"=3",$D$8:$D$76,"=U18")+COUNTIFS(BG$8:BG$76,"=3",$D$8:$D$76,"=U21") -> 0 | BJ116: =COUNTIFS(BJ$8:BJ$76,"=3",$D$8:$D$76,"=U18")+COUNTIFS(BJ$8:BJ$76,"=3",$D$8:$D$76,"=U21") -> 0 | BM116: =COUNTIFS(BM$8:BM$76,"=3",$D$8:$D$76,"=U18")+COUNTIFS(BM$8:BM$76,"=3",$D$8:$D$76,"=U21") -> 0 | BP116: =COUNTIFS(BP$8:BP$76,"=3",$D$8:$D$76,"=U18")+COUNTIFS(BP$8:BP$76,"=3",$D$8:$D$76,"=U21") -> 0 | BS116: =COUNTIFS(BS$8:BS$76,"=3",$D$8:$D$76,"=U18")+COUNTIFS(BS$8:BS$76,"=3",$D$8:$D$76,"=U21") -> 0 | BV116: =COUNTIFS(BV$8:BV$76,"=3",$D$8:$D$76,"=U18")+COUNTIFS(BV$8:BV$76,"=3",$D$8:$D$76,"=U21") -> 0 | BY116: =COUNTIFS(BY$8:BY$76,"=3",$D$8:$D$76,"=U18")+COUNTIFS(BY$8:BY$76,"=3",$D$8:$D$76,"=U21") -> 0 | CB116: =COUNTIFS(CB$8:CB$76,"=3",$D$8:$D$76,"=U18")+COUNTIFS(CB$8:CB$76,"=3",$D$8:$D$76,"=U21") -> 0 | CF116: =COUNTIFS(CF$8:CF$76,"=3",$D$8:$D$76,"=U18")+COUNTIFS(CF$8:CF$76,"=3",$D$8:$D$76,"=U21") -> 0 | CI116: =COUNTIFS(CI$8:CI$76,"=3",$D$8:$D$76,"=U18")+COUNTIFS(CI$8:CI$76,"=3",$D$8:$D$76,"=U21") -> 0 | CL116: =COUNTIFS(CL$8:CL$76,"=3",$D$8:$D$76,"=U18")+COUNTIFS(CL$8:CL$76,"=3",$D$8:$D$76,"=U21") -> 0 | CO116: =COUNTIFS(CO$8:CO$76,"=3",$D$8:$D$76,"=U18")+COUNTIFS(CO$8:CO$76,"=3",$D$8:$D$76,"=U21") -> 0 | CR116: =COUNTIFS(CR$8:CR$76,"=3",$D$8:$D$76,"=U18")+COUNTIFS(CR$8:CR$76,"=3",$D$8:$D$76,"=U21") -> 0 | CU116: =COUNTIFS(CU$8:CU$76,"=3",$D$8:$D$76,"=U18")+COUNTIFS(CU$8:CU$76,"=3",$D$8:$D$76,"=U21") -> 0 | CX116: =COUNTIFS(CX$8:CX$76,"=3",$D$8:$D$76,"=U18")+COUNTIFS(CX$8:CX$76,"=3",$D$8:$D$76,"=U21") -> 0 | DA116: =COUNTIFS(DA$8:DA$76,"=3",$D$8:$D$76,"=U18")+COUNTIFS(DA$8:DA$76,"=3",$D$8:$D$76,"=U21") -> 0 | DC116: =COUNTIFS(DC$8:DC$76,"=3",$D$8:$D$76,"=U18")+COUNTIFS(DC$8:DC$76,"=3",$D$8:$D$76,"=U21") -> 0 | DF116: =COUNTIFS(DF$8:DF$76,"=3",$D$8:$D$76,"=U18")+COUNTIFS(DF$8:DF$76,"=3",$D$8:$D$76,"=U21") -> 0 | DI116: =COUNTIFS(DI$8:DI$76,"=3",$D$8:$D$76,"=U18")+COUNTIFS(DI$8:DI$76,"=3",$D$8:$D$76,"=U21") -> 0 | DL116: =COUNTIFS(DL$8:DL$76,"=3",$D$8:$D$76,"=U18")+COUNTIFS(DL$8:DL$76,"=3",$D$8:$D$76,"=U21") -> 0 | DO116: =COUNTIFS(DO$8:DO$76,"=3",$D$8:$D$76,"=U18")+COUNTIFS(DO$8:DO$76,"=3",$D$8:$D$76,"=U21") -> 0 | DR116: =COUNTIFS(DR$8:DR$76,"=3",$D$8:$D$76,"=U18")+COUNTIFS(DR$8:DR$76,"=3",$D$8:$D$76,"=U21") -> 0 | DU116: =COUNTIFS(DU$8:DU$76,"=3",$D$8:$D$76,"=U18")+COUNTIFS(DU$8:DU$76,"=3",$D$8:$D$76,"=U21") -> 1 | DX116: =COUNTIFS(DX$8:DX$76,"=3",$D$8:$D$76,"=U18")+COUNTIFS(DX$8:DX$76,"=3",$D$8:$D$76,"=U21") -> 0 | EA116: =COUNTIFS(EA$8:EA$76,"=3",$D$8:$D$76,"=U18")+COUNTIFS(EA$8:EA$76,"=3",$D$8:$D$76,"=U21") -> 0 | ED116: =COUNTIFS(ED$8:ED$76,"=3",$D$8:$D$76,"=U18")+COUNTIFS(ED$8:ED$76,"=3",$D$8:$D$76,"=U21") -> 0
E117: SEN Overall 1st | M117: 4 | N117: =COUNTIFS(N$8:N$76,"=1",$D$8:$D$76,"=SEN") -> 1 | Q117: =COUNTIFS(Q$8:Q$76,"=1",$D$8:$D$76,"=SEN") -> 0 | U117: =COUNTIFS(U$8:U$76,"=1",$D$8:$D$76,"=SEN") -> 0 | Y117: =COUNTIFS(Y$8:Y$76,"=1",$D$8:$D$76,"=SEN") -> 0 | AB117: =COUNTIFS(AB$8:AB$76,"=1",$D$8:$D$76,"=SEN") -> 0 | AE117: =COUNTIFS(AE$8:AE$76,"=1",$D$8:$D$76,"=SEN") -> 0 | AH117: =COUNTIFS(AH$8:AH$76,"=1",$D$8:$D$76,"=SEN") -> 0 | AK117: =COUNTIFS(AK$8:AK$76,"=1",$D$8:$D$76,"=SEN") -> 0 | AN117: =COUNTIFS(AN$8:AN$76,"=1",$D$8:$D$76,"=SEN") -> 0 | AQ117: =COUNTIFS(AQ$8:AQ$76,"=1",$D$8:$D$76,"=SEN") -> 0 | AT117: =COUNTIFS(AT$8:AT$76,"=1",$D$8:$D$76,"=SEN") -> 0 | AX117: =COUNTIFS(AX$8:AX$76,"=1",$D$8:$D$76,"=SEN") -> 0 | BA117: =COUNTIFS(BA$8:BA$76,"=1",$D$8:$D$76,"=SEN") -> 0 | BD117: =COUNTIFS(BD$8:BD$76,"=1",$D$8:$D$76,"=SEN") -> 0 | BG117: =COUNTIFS(BG$8:BG$76,"=1",$D$8:$D$76,"=SEN") -> 0 | BJ117: =COUNTIFS(BJ$8:BJ$76,"=1",$D$8:$D$76,"=SEN") -> 0 | BM117: =COUNTIFS(BM$8:BM$76,"=1",$D$8:$D$76,"=SEN") -> 1 | BP117: =COUNTIFS(BP$8:BP$76,"=1",$D$8:$D$76,"=SEN") -> 0 | BS117: =COUNTIFS(BS$8:BS$76,"=1",$D$8:$D$76,"=SEN") -> 0 | BV117: =COUNTIFS(BV$8:BV$76,"=1",$D$8:$D$76,"=SEN") -> 1 | BY117: =COUNTIFS(BY$8:BY$76,"=1",$D$8:$D$76,"=SEN") -> 0 | CB117: =COUNTIFS(CB$8:CB$76,"=1",$D$8:$D$76,"=SEN") -> 0 | CF117: =COUNTIFS(CF$8:CF$76,"=1",$D$8:$D$76,"=SEN") -> 0 | CI117: =COUNTIFS(CI$8:CI$76,"=1",$D$8:$D$76,"=SEN") -> 0 | CL117: =COUNTIFS(CL$8:CL$76,"=1",$D$8:$D$76,"=SEN") -> 0 | CO117: =COUNTIFS(CO$8:CO$76,"=1",$D$8:$D$76,"=SEN") -> 0 | CR117: =COUNTIFS(CR$8:CR$76,"=1",$D$8:$D$76,"=SEN") -> 0 | CU117: =COUNTIFS(CU$8:CU$76,"=1",$D$8:$D$76,"=SEN") -> 0 | CX117: =COUNTIFS(CX$8:CX$76,"=1",$D$8:$D$76,"=SEN") -> 0 | DA117: =COUNTIFS(DA$8:DA$76,"=1",$D$8:$D$76,"=SEN") -> 0 | DC117: =COUNTIFS(DC$8:DC$76,"=1",$D$8:$D$76,"=SEN") -> 0 | DF117: =COUNTIFS(DF$8:DF$76,"=1",$D$8:$D$76,"=SEN") -> 0 | DI117: =COUNTIFS(DI$8:DI$76,"=1",$D$8:$D$76,"=SEN") -> 1 | DL117: =COUNTIFS(DL$8:DL$76,"=1",$D$8:$D$76,"=SEN") -> 0 | DO117: =COUNTIFS(DO$8:DO$76,"=1",$D$8:$D$76,"=SEN") -> 0 | DR117: =COUNTIFS(DR$8:DR$76,"=1",$D$8:$D$76,"=SEN") -> 0 | DU117: =COUNTIFS(DU$8:DU$76,"=1",$D$8:$D$76,"=SEN") -> 0 | DX117: =COUNTIFS(DX$8:DX$76,"=1",$D$8:$D$76,"=SEN") -> 0 | EA117: =COUNTIFS(EA$8:EA$76,"=1",$D$8:$D$76,"=SEN") -> 0 | ED117: =COUNTIFS(ED$8:ED$76,"=1",$D$8:$D$76,"=SEN") -> 0
E118: SEN Overall 2nd | M118: 5 | N118: =COUNTIFS(N$8:N$76,"=2",$D$8:$D$76,"=SEN") -> 0 | Q118: =COUNTIFS(Q$8:Q$76,"=2",$D$8:$D$76,"=SEN") -> 0 | U118: =COUNTIFS(U$8:U$76,"=2",$D$8:$D$76,"=SEN") -> 0 | Y118: =COUNTIFS(Y$8:Y$76,"=2",$D$8:$D$76,"=SEN") -> 0 | AB118: =COUNTIFS(AB$8:AB$76,"=2",$D$8:$D$76,"=SEN") -> 0 | AE118: =COUNTIFS(AE$8:AE$76,"=2",$D$8:$D$76,"=SEN") -> 1 | AH118: =COUNTIFS(AH$8:AH$76,"=2",$D$8:$D$76,"=SEN") -> 0 | AK118: =COUNTIFS(AK$8:AK$76,"=2",$D$8:$D$76,"=SEN") -> 0 | AN118: =COUNTIFS(AN$8:AN$76,"=2",$D$8:$D$76,"=SEN") -> 0 | AQ118: =COUNTIFS(AQ$8:AQ$76,"=2",$D$8:$D$76,"=SEN") -> 0 | AT118: =COUNTIFS(AT$8:AT$76,"=2",$D$8:$D$76,"=SEN") -> 0 | AX118: =COUNTIFS(AX$8:AX$76,"=2",$D$8:$D$76,"=SEN") -> 0 | BA118: =COUNTIFS(BA$8:BA$76,"=2",$D$8:$D$76,"=SEN") -> 0 | BD118: =COUNTIFS(BD$8:BD$76,"=2",$D$8:$D$76,"=SEN") -> 0 | BG118: =COUNTIFS(BG$8:BG$76,"=2",$D$8:$D$76,"=SEN") -> 1 | BJ118: =COUNTIFS(BJ$8:BJ$76,"=2",$D$8:$D$76,"=SEN") -> 0 | BM118: =COUNTIFS(BM$8:BM$76,"=2",$D$8:$D$76,"=SEN") -> 1 | BP118: =COUNTIFS(BP$8:BP$76,"=2",$D$8:$D$76,"=SEN") -> 0 | BS118: =COUNTIFS(BS$8:BS$76,"=2",$D$8:$D$76,"=SEN") -> 0 | BV118: =COUNTIFS(BV$8:BV$76,"=2",$D$8:$D$76,"=SEN") -> 0 | BY118: =COUNTIFS(BY$8:BY$76,"=2",$D$8:$D$76,"=SEN") -> 0 | CB118: =COUNTIFS(CB$8:CB$76,"=2",$D$8:$D$76,"=SEN") -> 0 | CF118: =COUNTIFS(CF$8:CF$76,"=2",$D$8:$D$76,"=SEN") -> 0 | CI118: =COUNTIFS(CI$8:CI$76,"=2",$D$8:$D$76,"=SEN") -> 0 | CL118: =COUNTIFS(CL$8:CL$76,"=2",$D$8:$D$76,"=SEN") -> 0 | CO118: =COUNTIFS(CO$8:CO$76,"=2",$D$8:$D$76,"=SEN") -> 0 | CR118: =COUNTIFS(CR$8:CR$76,"=2",$D$8:$D$76,"=SEN") -> 0 | CU118: =COUNTIFS(CU$8:CU$76,"=2",$D$8:$D$76,"=SEN") -> 0 | CX118: =COUNTIFS(CX$8:CX$76,"=2",$D$8:$D$76,"=SEN") -> 0 | DA118: =COUNTIFS(DA$8:DA$76,"=2",$D$8:$D$76,"=SEN") -> 0 | DC118: =COUNTIFS(DC$8:DC$76,"=2",$D$8:$D$76,"=SEN") -> 0 | DF118: =COUNTIFS(DF$8:DF$76,"=2",$D$8:$D$76,"=SEN") -> 0 | DI118: =COUNTIFS(DI$8:DI$76,"=2",$D$8:$D$76,"=SEN") -> 0 | DL118: =COUNTIFS(DL$8:DL$76,"=2",$D$8:$D$76,"=SEN") -> 0 | DO118: =COUNTIFS(DO$8:DO$76,"=2",$D$8:$D$76,"=SEN") -> 0 | DR118: =COUNTIFS(DR$8:DR$76,"=2",$D$8:$D$76,"=SEN") -> 0 | DU118: =COUNTIFS(DU$8:DU$76,"=2",$D$8:$D$76,"=SEN") -> 1 | DX118: =COUNTIFS(DX$8:DX$76,"=2",$D$8:$D$76,"=SEN") -> 1 | EA118: =COUNTIFS(EA$8:EA$76,"=2",$D$8:$D$76,"=SEN") -> 0 | ED118: =COUNTIFS(ED$8:ED$76,"=2",$D$8:$D$76,"=SEN") -> 0
E119: SEN Overall 3rd | M119: 3 | N119: =COUNTIFS(N$8:N$76,"=3",$D$8:$D$76,"=SEN") -> 0 | Q119: =COUNTIFS(Q$8:Q$76,"=3",$D$8:$D$76,"=SEN") -> 0 | U119: =COUNTIFS(U$8:U$76,"=3",$D$8:$D$76,"=SEN") -> 0 | Y119: =COUNTIFS(Y$8:Y$76,"=3",$D$8:$D$76,"=SEN") -> 0 | AB119: =COUNTIFS(AB$8:AB$76,"=3",$D$8:$D$76,"=SEN") -> 0 | AE119: =COUNTIFS(AE$8:AE$76,"=3",$D$8:$D$76,"=SEN") -> 0 | AH119: =COUNTIFS(AH$8:AH$76,"=3",$D$8:$D$76,"=SEN") -> 0 | AK119: =COUNTIFS(AK$8:AK$76,"=3",$D$8:$D$76,"=SEN") -> 0 | AN119: =COUNTIFS(AN$8:AN$76,"=3",$D$8:$D$76,"=SEN") -> 0 | AQ119: =COUNTIFS(AQ$8:AQ$76,"=3",$D$8:$D$76,"=SEN") -> 1 | AT119: =COUNTIFS(AT$8:AT$76,"=3",$D$8:$D$76,"=SEN") -> 0 | AX119: =COUNTIFS(AX$8:AX$76,"=3",$D$8:$D$76,"=SEN") -> 0 | BA119: =COUNTIFS(BA$8:BA$76,"=3",$D$8:$D$76,"=SEN") -> 0 | BD119: =COUNTIFS(BD$8:BD$76,"=3",$D$8:$D$76,"=SEN") -> 0 | BG119: =COUNTIFS(BG$8:BG$76,"=3",$D$8:$D$76,"=SEN") -> 0 | BJ119: =COUNTIFS(BJ$8:BJ$76,"=3",$D$8:$D$76,"=SEN") -> 0 | BM119: =COUNTIFS(BM$8:BM$76,"=3",$D$8:$D$76,"=SEN") -> 0 | BP119: =COUNTIFS(BP$8:BP$76,"=3",$D$8:$D$76,"=SEN") -> 0 | BS119: =COUNTIFS(BS$8:BS$76,"=3",$D$8:$D$76,"=SEN") -> 0 | BV119: =COUNTIFS(BV$8:BV$76,"=3",$D$8:$D$76,"=SEN") -> 0 | BY119: =COUNTIFS(BY$8:BY$76,"=3",$D$8:$D$76,"=SEN") -> 0 | CB119: =COUNTIFS(CB$8:CB$76,"=3",$D$8:$D$76,"=SEN") -> 0 | CF119: =COUNTIFS(CF$8:CF$76,"=3",$D$8:$D$76,"=SEN") -> 0 | CI119: =COUNTIFS(CI$8:CI$76,"=3",$D$8:$D$76,"=SEN") -> 0 | CL119: =COUNTIFS(CL$8:CL$76,"=3",$D$8:$D$76,"=SEN") -> 0 | CO119: =COUNTIFS(CO$8:CO$76,"=3",$D$8:$D$76,"=SEN") -> 0 | CR119: =COUNTIFS(CR$8:CR$76,"=3",$D$8:$D$76,"=SEN") -> 0 | CU119: =COUNTIFS(CU$8:CU$76,"=3",$D$8:$D$76,"=SEN") -> 0 | CX119: =COUNTIFS(CX$8:CX$76,"=3",$D$8:$D$76,"=SEN") -> 1 | DA119: =COUNTIFS(DA$8:DA$76,"=3",$D$8:$D$76,"=SEN") -> 0 | DC119: =COUNTIFS(DC$8:DC$76,"=3",$D$8:$D$76,"=SEN") -> 0 | DF119: =COUNTIFS(DF$8:DF$76,"=3",$D$8:$D$76,"=SEN") -> 0 | DI119: =COUNTIFS(DI$8:DI$76,"=3",$D$8:$D$76,"=SEN") -> 0 | DL119: =COUNTIFS(DL$8:DL$76,"=3",$D$8:$D$76,"=SEN") -> 1 | DO119: =COUNTIFS(DO$8:DO$76,"=3",$D$8:$D$76,"=SEN") -> 0 | DR119: =COUNTIFS(DR$8:DR$76,"=3",$D$8:$D$76,"=SEN") -> 0 | DU119: =COUNTIFS(DU$8:DU$76,"=3",$D$8:$D$76,"=SEN") -> 0 | DX119: =COUNTIFS(DX$8:DX$76,"=3",$D$8:$D$76,"=SEN") -> 0 | EA119: =COUNTIFS(EA$8:EA$76,"=3",$D$8:$D$76,"=SEN") -> 0 | ED119: =COUNTIFS(ED$8:ED$76,"=3",$D$8:$D$76,"=SEN") -> 0
E120: MAS Overall 1st | M120: 0 | N120: =COUNTIFS(N$8:N$76,"=1",$D$8:$D$76,"=MAS") -> 0 | Q120: =COUNTIFS(Q$8:Q$76,"=1",$D$8:$D$76,"=MAS") -> 0 | U120: =COUNTIFS(U$8:U$76,"=1",$D$8:$D$76,"=MAS") -> 0 | Y120: =COUNTIFS(Y$8:Y$76,"=1",$D$8:$D$76,"=MAS") -> 0 | AB120: =COUNTIFS(AB$8:AB$76,"=1",$D$8:$D$76,"=MAS") -> 0 | AE120: =COUNTIFS(AE$8:AE$76,"=1",$D$8:$D$76,"=MAS") -> 0 | AH120: =COUNTIFS(AH$8:AH$76,"=1",$D$8:$D$76,"=MAS") -> 0 | AK120: =COUNTIFS(AK$8:AK$76,"=1",$D$8:$D$76,"=MAS") -> 0 | AN120: =COUNTIFS(AN$8:AN$76,"=1",$D$8:$D$76,"=MAS") -> 0 | AQ120: =COUNTIFS(AQ$8:AQ$76,"=1",$D$8:$D$76,"=MAS") -> 0 | AT120: =COUNTIFS(AT$8:AT$76,"=1",$D$8:$D$76,"=MAS") -> 0 | AX120: =COUNTIFS(AX$8:AX$76,"=1",$D$8:$D$76,"=MAS") -> 0 | BA120: =COUNTIFS(BA$8:BA$76,"=1",$D$8:$D$76,"=MAS") -> 0 | BD120: =COUNTIFS(BD$8:BD$76,"=1",$D$8:$D$76,"=MAS") -> 0 | BG120: =COUNTIFS(BG$8:BG$76,"=1",$D$8:$D$76,"=MAS") -> 0 | BJ120: =COUNTIFS(BJ$8:BJ$76,"=1",$D$8:$D$76,"=MAS") -> 0 | BM120: =COUNTIFS(BM$8:BM$76,"=1",$D$8:$D$76,"=MAS") -> 0 | BP120: =COUNTIFS(BP$8:BP$76,"=1",$D$8:$D$76,"=MAS") -> 0 | BS120: =COUNTIFS(BS$8:BS$76,"=1",$D$8:$D$76,"=MAS") -> 0 | BV120: =COUNTIFS(BV$8:BV$76,"=1",$D$8:$D$76,"=MAS") -> 0 | BY120: =COUNTIFS(BY$8:BY$76,"=1",$D$8:$D$76,"=MAS") -> 0 | CB120: =COUNTIFS(CB$8:CB$76,"=1",$D$8:$D$76,"=MAS") -> 0 | CF120: =COUNTIFS(CF$8:CF$76,"=1",$D$8:$D$76,"=MAS") -> 0 | CI120: =COUNTIFS(CI$8:CI$76,"=1",$D$8:$D$76,"=MAS") -> 0 | CL120: =COUNTIFS(CL$8:CL$76,"=1",$D$8:$D$76,"=MAS") -> 0 | CO120: =COUNTIFS(CO$8:CO$76,"=1",$D$8:$D$76,"=MAS") -> 0 | CR120: =COUNTIFS(CR$8:CR$76,"=1",$D$8:$D$76,"=MAS") -> 0 | CU120: =COUNTIFS(CU$8:CU$76,"=1",$D$8:$D$76,"=MAS") -> 0 | CX120: =COUNTIFS(CX$8:CX$76,"=1",$D$8:$D$76,"=MAS") -> 0 | DA120: =COUNTIFS(DA$8:DA$76,"=1",$D$8:$D$76,"=MAS") -> 0 | DC120: =COUNTIFS(DC$8:DC$76,"=1",$D$8:$D$76,"=MAS") -> 0 | DF120: =COUNTIFS(DF$8:DF$76,"=1",$D$8:$D$76,"=MAS") -> 0 | DI120: =COUNTIFS(DI$8:DI$76,"=1",$D$8:$D$76,"=MAS") -> 0 | DL120: =COUNTIFS(DL$8:DL$76,"=1",$D$8:$D$76,"=MAS") -> 0 | DO120: =COUNTIFS(DO$8:DO$76,"=1",$D$8:$D$76,"=MAS") -> 0 | DR120: =COUNTIFS(DR$8:DR$76,"=1",$D$8:$D$76,"=MAS") -> 0 | DU120: =COUNTIFS(DU$8:DU$76,"=1",$D$8:$D$76,"=MAS") -> 0 | DX120: =COUNTIFS(DX$8:DX$76,"=1",$D$8:$D$76,"=MAS") -> 0 | EA120: =COUNTIFS(EA$8:EA$76,"=1",$D$8:$D$76,"=MAS") -> 0 | ED120: =COUNTIFS(ED$8:ED$76,"=1",$D$8:$D$76,"=MAS") -> 0
E121: MAS Overall 2nd | M121: 0 | N121: =COUNTIFS(N$8:N$76,"=2",$D$8:$D$76,"=MAS") -> 0 | Q121: =COUNTIFS(Q$8:Q$76,"=2",$D$8:$D$76,"=MAS") -> 0 | U121: =COUNTIFS(U$8:U$76,"=2",$D$8:$D$76,"=MAS") -> 0 | Y121: =COUNTIFS(Y$8:Y$76,"=2",$D$8:$D$76,"=MAS") -> 0 | AB121: =COUNTIFS(AB$8:AB$76,"=2",$D$8:$D$76,"=MAS") -> 0 | AE121: =COUNTIFS(AE$8:AE$76,"=2",$D$8:$D$76,"=MAS") -> 0 | AH121: =COUNTIFS(AH$8:AH$76,"=2",$D$8:$D$76,"=MAS") -> 0 | AK121: =COUNTIFS(AK$8:AK$76,"=2",$D$8:$D$76,"=MAS") -> 0 | AN121: =COUNTIFS(AN$8:AN$76,"=2",$D$8:$D$76,"=MAS") -> 0 | AQ121: =COUNTIFS(AQ$8:AQ$76,"=2",$D$8:$D$76,"=MAS") -> 0 | AT121: =COUNTIFS(AT$8:AT$76,"=2",$D$8:$D$76,"=MAS") -> 0 | AX121: =COUNTIFS(AX$8:AX$76,"=2",$D$8:$D$76,"=MAS") -> 0 | BA121: =COUNTIFS(BA$8:BA$76,"=2",$D$8:$D$76,"=MAS") -> 0 | BD121: =COUNTIFS(BD$8:BD$76,"=2",$D$8:$D$76,"=MAS") -> 0 | BG121: =COUNTIFS(BG$8:BG$76,"=2",$D$8:$D$76,"=MAS") -> 0 | BJ121: =COUNTIFS(BJ$8:BJ$76,"=2",$D$8:$D$76,"=MAS") -> 0 | BM121: =COUNTIFS(BM$8:BM$76,"=2",$D$8:$D$76,"=MAS") -> 0 | BP121: =COUNTIFS(BP$8:BP$76,"=2",$D$8:$D$76,"=MAS") -> 0 | BS121: =COUNTIFS(BS$8:BS$76,"=2",$D$8:$D$76,"=MAS") -> 0 | BV121: =COUNTIFS(BV$8:BV$76,"=2",$D$8:$D$76,"=MAS") -> 0 | BY121: =COUNTIFS(BY$8:BY$76,"=2",$D$8:$D$76,"=MAS") -> 0 | CB121: =COUNTIFS(CB$8:CB$76,"=2",$D$8:$D$76,"=MAS") -> 0 | CF121: =COUNTIFS(CF$8:CF$76,"=2",$D$8:$D$76,"=MAS") -> 0 | CI121: =COUNTIFS(CI$8:CI$76,"=2",$D$8:$D$76,"=MAS") -> 0 | CL121: =COUNTIFS(CL$8:CL$76,"=2",$D$8:$D$76,"=MAS") -> 0 | CO121: =COUNTIFS(CO$8:CO$76,"=2",$D$8:$D$76,"=MAS") -> 0 | CR121: =COUNTIFS(CR$8:CR$76,"=2",$D$8:$D$76,"=MAS") -> 0 | CU121: =COUNTIFS(CU$8:CU$76,"=2",$D$8:$D$76,"=MAS") -> 0 | CX121: =COUNTIFS(CX$8:CX$76,"=2",$D$8:$D$76,"=MAS") -> 0 | DA121: =COUNTIFS(DA$8:DA$76,"=2",$D$8:$D$76,"=MAS") -> 0 | DC121: =COUNTIFS(DC$8:DC$76,"=2",$D$8:$D$76,"=MAS") -> 0 | DF121: =COUNTIFS(DF$8:DF$76,"=2",$D$8:$D$76,"=MAS") -> 0 | DI121: =COUNTIFS(DI$8:DI$76,"=2",$D$8:$D$76,"=MAS") -> 0 | DL121: =COUNTIFS(DL$8:DL$76,"=2",$D$8:$D$76,"=MAS") -> 0 | DO121: =COUNTIFS(DO$8:DO$76,"=2",$D$8:$D$76,"=MAS") -> 0 | DR121: =COUNTIFS(DR$8:DR$76,"=2",$D$8:$D$76,"=MAS") -> 0 | DU121: =COUNTIFS(DU$8:DU$76,"=2",$D$8:$D$76,"=MAS") -> 0 | DX121: =COUNTIFS(DX$8:DX$76,"=2",$D$8:$D$76,"=MAS") -> 0 | EA121: =COUNTIFS(EA$8:EA$76,"=2",$D$8:$D$76,"=MAS") -> 0 | ED121: =COUNTIFS(ED$8:ED$76,"=2",$D$8:$D$76,"=MAS") -> 0
E122: MAS Overall 3rd | M122: 0 | N122: =COUNTIFS(N$8:N$76,"=3",$D$8:$D$76,"=MAS") -> 0 | Q122: =COUNTIFS(Q$8:Q$76,"=3",$D$8:$D$76,"=MAS") -> 0 | U122: =COUNTIFS(U$8:U$76,"=3",$D$8:$D$76,"=MAS") -> 0 | Y122: =COUNTIFS(Y$8:Y$76,"=3",$D$8:$D$76,"=MAS") -> 0 | AB122: =COUNTIFS(AB$8:AB$76,"=3",$D$8:$D$76,"=MAS") -> 0 | AE122: =COUNTIFS(AE$8:AE$76,"=3",$D$8:$D$76,"=MAS") -> 0 | AH122: =COUNTIFS(AH$8:AH$76,"=3",$D$8:$D$76,"=MAS") -> 0 | AK122: =COUNTIFS(AK$8:AK$76,"=3",$D$8:$D$76,"=MAS") -> 0 | AN122: =COUNTIFS(AN$8:AN$76,"=3",$D$8:$D$76,"=MAS") -> 0 | AQ122: =COUNTIFS(AQ$8:AQ$76,"=3",$D$8:$D$76,"=MAS") -> 0 | AT122: =COUNTIFS(AT$8:AT$76,"=3",$D$8:$D$76,"=MAS") -> 0 | AX122: =COUNTIFS(AX$8:AX$76,"=3",$D$8:$D$76,"=MAS") -> 0 | BA122: =COUNTIFS(BA$8:BA$76,"=3",$D$8:$D$76,"=MAS") -> 0 | BD122: =COUNTIFS(BD$8:BD$76,"=3",$D$8:$D$76,"=MAS") -> 0 | BG122: =COUNTIFS(BG$8:BG$76,"=3",$D$8:$D$76,"=MAS") -> 0 | BJ122: =COUNTIFS(BJ$8:BJ$76,"=3",$D$8:$D$76,"=MAS") -> 0 | BM122: =COUNTIFS(BM$8:BM$76,"=3",$D$8:$D$76,"=MAS") -> 0 | BP122: =COUNTIFS(BP$8:BP$76,"=3",$D$8:$D$76,"=MAS") -> 0 | BS122: =COUNTIFS(BS$8:BS$76,"=3",$D$8:$D$76,"=MAS") -> 0 | BV122: =COUNTIFS(BV$8:BV$76,"=3",$D$8:$D$76,"=MAS") -> 0 | BY122: =COUNTIFS(BY$8:BY$76,"=3",$D$8:$D$76,"=MAS") -> 0 | CB122: =COUNTIFS(CB$8:CB$76,"=3",$D$8:$D$76,"=MAS") -> 0 | CF122: =COUNTIFS(CF$8:CF$76,"=3",$D$8:$D$76,"=MAS") -> 0 | CI122: =COUNTIFS(CI$8:CI$76,"=3",$D$8:$D$76,"=MAS") -> 0 | CL122: =COUNTIFS(CL$8:CL$76,"=3",$D$8:$D$76,"=MAS") -> 0 | CO122: =COUNTIFS(CO$8:CO$76,"=3",$D$8:$D$76,"=MAS") -> 0 | CR122: =COUNTIFS(CR$8:CR$76,"=3",$D$8:$D$76,"=MAS") -> 0 | CU122: =COUNTIFS(CU$8:CU$76,"=3",$D$8:$D$76,"=MAS") -> 0 | CX122: =COUNTIFS(CX$8:CX$76,"=3",$D$8:$D$76,"=MAS") -> 0 | DA122: =COUNTIFS(DA$8:DA$76,"=3",$D$8:$D$76,"=MAS") -> 0 | DC122: =COUNTIFS(DC$8:DC$76,"=3",$D$8:$D$76,"=MAS") -> 0 | DF122: =COUNTIFS(DF$8:DF$76,"=3",$D$8:$D$76,"=MAS") -> 0 | DI122: =COUNTIFS(DI$8:DI$76,"=3",$D$8:$D$76,"=MAS") -> 0 | DL122: =COUNTIFS(DL$8:DL$76,"=3",$D$8:$D$76,"=MAS") -> 0 | DO122: =COUNTIFS(DO$8:DO$76,"=3",$D$8:$D$76,"=MAS") -> 0 | DR122: =COUNTIFS(DR$8:DR$76,"=3",$D$8:$D$76,"=MAS") -> 0 | DU122: =COUNTIFS(DU$8:DU$76,"=3",$D$8:$D$76,"=MAS") -> 0 | DX122: =COUNTIFS(DX$8:DX$76,"=3",$D$8:$D$76,"=MAS") -> 0 | EA122: =COUNTIFS(EA$8:EA$76,"=3",$D$8:$D$76,"=MAS") -> 0 | ED122: =COUNTIFS(ED$8:ED$76,"=3",$D$8:$D$76,"=MAS") -> 0
E123: Male Overall Podiums | M123: 11 | N123: =COUNTIFS(N$21:N$76,"<=3",N$21:N$76,">=1",$B$21:$B$76,"=M") -> 1 | Q123: =COUNTIFS(Q$21:Q$76,"<=3",Q$21:Q$76,">=1",$B$21:$B$76,"=M") -> 0 | U123: =COUNTIFS(U$21:U$76,"<=3",U$21:U$76,">=1",$B$21:$B$76,"=M") -> 0 | Y123: =COUNTIFS(Y$21:Y$76,"<=3",Y$21:Y$76,">=1",$B$21:$B$76,"=M") -> 0 | AB123: =COUNTIFS(AB$21:AB$76,"<=3",AB$21:AB$76,">=1",$B$21:$B$76,"=M") -> 0 | AE123: =COUNTIFS(AE$21:AE$76,"<=3",AE$21:AE$76,">=1",$B$21:$B$76,"=M") -> 1 | AH123: =COUNTIFS(AH$21:AH$76,"<=3",AH$21:AH$76,">=1",$B$21:$B$76,"=M") -> 0 | AK123: =COUNTIFS(AK$21:AK$76,"<=3",AK$21:AK$76,">=1",$B$21:$B$76,"=M") -> 0 | AN123: =COUNTIFS(AN$21:AN$76,"<=3",AN$21:AN$76,">=1",$B$21:$B$76,"=M") -> 0 | AQ123: =COUNTIFS(AQ$21:AQ$76,"<=3",AQ$21:AQ$76,">=1",$B$21:$B$76,"=M") -> 1 | AT123: =COUNTIFS(AT$21:AT$76,"<=3",AT$21:AT$76,">=1",$B$21:$B$76,"=M") -> 0 | AX123: =COUNTIFS(AX$21:AX$76,"<=3",AX$21:AX$76,">=1",$B$21:$B$76,"=M") -> 0 | BA123: =COUNTIFS(BA$21:BA$76,"<=3",BA$21:BA$76,">=1",$B$21:$B$76,"=M") -> 0 | BD123: =COUNTIFS(BD$21:BD$76,"<=3",BD$21:BD$76,">=1",$B$21:$B$76,"=M") -> 0 | BG123: =COUNTIFS(BG$21:BG$76,"<=3",BG$21:BG$76,">=1",$B$21:$B$76,"=M") -> 0 | BJ123: =COUNTIFS(BJ$21:BJ$76,"<=3",BJ$21:BJ$76,">=1",$B$21:$B$76,"=M") -> 0 | BM123: =COUNTIFS(BM$21:BM$76,"<=3",BM$21:BM$76,">=1",$B$21:$B$76,"=M") -> 1 | BP123: =COUNTIFS(BP$21:BP$76,"<=3",BP$21:BP$76,">=1",$B$21:$B$76,"=M") -> 0 | BS123: =COUNTIFS(BS$21:BS$76,"<=3",BS$21:BS$76,">=1",$B$21:$B$76,"=M") -> 0 | BV123: =COUNTIFS(BV$21:BV$76,"<=3",BV$21:BV$76,">=1",$B$21:$B$76,"=M") -> 1 | BY123: =COUNTIFS(BY$21:BY$76,"<=3",BY$21:BY$76,">=1",$B$21:$B$76,"=M") -> 0 | CB123: =COUNTIFS(CB$21:CB$76,"<=3",CB$21:CB$76,">=1",$B$21:$B$76,"=M") -> 0 | CF123: =COUNTIFS(CF$21:CF$76,"<=3",CF$21:CF$76,">=1",$B$21:$B$76,"=M") -> 0 | CI123: =COUNTIFS(CI$21:CI$76,"<=3",CI$21:CI$76,">=1",$B$21:$B$76,"=M") -> 0 | CL123: =COUNTIFS(CL$21:CL$76,"<=3",CL$21:CL$76,">=1",$B$21:$B$76,"=M") -> 0 | CO123: =COUNTIFS(CO$21:CO$76,"<=3",CO$21:CO$76,">=1",$B$21:$B$76,"=M") -> 0 | CR123: =COUNTIFS(CR$21:CR$76,"<=3",CR$21:CR$76,">=1",$B$21:$B$76,"=M") -> 0 | CU123: =COUNTIFS(CU$21:CU$76,"<=3",CU$21:CU$76,">=1",$B$21:$B$76,"=M") -> 0 | CX123: =COUNTIFS(CX$21:CX$76,"<=3",CX$21:CX$76,">=1",$B$21:$B$76,"=M") -> 1 | DA123: =COUNTIFS(DA$21:DA$76,"<=3",DA$21:DA$76,">=1",$B$21:$B$76,"=M") -> 0 | DC123: =COUNTIFS(DC$21:DC$76,"<=3",DC$21:DC$76,">=1",$B$21:$B$76,"=M") -> 0 | DF123: =COUNTIFS(DF$21:DF$76,"<=3",DF$21:DF$76,">=1",$B$21:$B$76,"=M") -> 0 | DI123: =COUNTIFS(DI$21:DI$76,"<=3",DI$21:DI$76,">=1",$B$21:$B$76,"=M") -> 1 | DL123: =COUNTIFS(DL$21:DL$76,"<=3",DL$21:DL$76,">=1",$B$21:$B$76,"=M") -> 1 | DO123: =COUNTIFS(DO$21:DO$76,"<=3",DO$21:DO$76,">=1",$B$21:$B$76,"=M") -> 0 | DR123: =COUNTIFS(DR$21:DR$76,"<=3",DR$21:DR$76,">=1",$B$21:$B$76,"=M") -> 0 | DU123: =COUNTIFS(DU$21:DU$76,"<=3",DU$21:DU$76,">=1",$B$21:$B$76,"=M") -> 2 | DX123: =COUNTIFS(DX$21:DX$76,"<=3",DX$21:DX$76,">=1",$B$21:$B$76,"=M") -> 1 | EA123: =COUNTIFS(EA$21:EA$76,"<=3",EA$21:EA$76,">=1",$B$21:$B$76,"=M") -> 0 | ED123: =COUNTIFS(ED$21:ED$76,"<=3",ED$21:ED$76,">=1",$B$21:$B$76,"=M") -> 0
E124: Female Overall Podiums | M124: 3 | N124: =COUNTIFS(N$21:N$76,"<=3",N$21:N$76,">=1",$B$21:$B$76,"=F") -> 0 | Q124: =COUNTIFS(Q$21:Q$76,"<=3",Q$21:Q$76,">=1",$B$21:$B$76,"=F") -> 0 | U124: =COUNTIFS(U$21:U$76,"<=3",U$21:U$76,">=1",$B$21:$B$76,"=F") -> 0 | Y124: =COUNTIFS(Y$21:Y$76,"<=3",Y$21:Y$76,">=1",$B$21:$B$76,"=F") -> 0 | AB124: =COUNTIFS(AB$21:AB$76,"<=3",AB$21:AB$76,">=1",$B$21:$B$76,"=F") -> 0 | AE124: =COUNTIFS(AE$21:AE$76,"<=3",AE$21:AE$76,">=1",$B$21:$B$76,"=F") -> 0 | AH124: =COUNTIFS(AH$21:AH$76,"<=3",AH$21:AH$76,">=1",$B$21:$B$76,"=F") -> 0 | AK124: =COUNTIFS(AK$21:AK$76,"<=3",AK$21:AK$76,">=1",$B$21:$B$76,"=F") -> 0 | AN124: =COUNTIFS(AN$21:AN$76,"<=3",AN$21:AN$76,">=1",$B$21:$B$76,"=F") -> 0 | AQ124: =COUNTIFS(AQ$21:AQ$76,"<=3",AQ$21:AQ$76,">=1",$B$21:$B$76,"=F") -> 1 | AT124: =COUNTIFS(AT$21:AT$76,"<=3",AT$21:AT$76,">=1",$B$21:$B$76,"=F") -> 0 | AX124: =COUNTIFS(AX$21:AX$76,"<=3",AX$21:AX$76,">=1",$B$21:$B$76,"=F") -> 0 | BA124: =COUNTIFS(BA$21:BA$76,"<=3",BA$21:BA$76,">=1",$B$21:$B$76,"=F") -> 0 | BD124: =COUNTIFS(BD$21:BD$76,"<=3",BD$21:BD$76,">=1",$B$21:$B$76,"=F") -> 0 | BG124: =COUNTIFS(BG$21:BG$76,"<=3",BG$21:BG$76,">=1",$B$21:$B$76,"=F") -> 1 | BJ124: =COUNTIFS(BJ$21:BJ$76,"<=3",BJ$21:BJ$76,">=1",$B$21:$B$76,"=F") -> 0 | BM124: =COUNTIFS(BM$21:BM$76,"<=3",BM$21:BM$76,">=1",$B$21:$B$76,"=F") -> 1 | BP124: =COUNTIFS(BP$21:BP$76,"<=3",BP$21:BP$76,">=1",$B$21:$B$76,"=F") -> 0 | BS124: =COUNTIFS(BS$21:BS$76,"<=3",BS$21:BS$76,">=1",$B$21:$B$76,"=F") -> 0 | BV124: =COUNTIFS(BV$21:BV$76,"<=3",BV$21:BV$76,">=1",$B$21:$B$76,"=F") -> 0 | BY124: =COUNTIFS(BY$21:BY$76,"<=3",BY$21:BY$76,">=1",$B$21:$B$76,"=F") -> 0 | CB124: =COUNTIFS(CB$21:CB$76,"<=3",CB$21:CB$76,">=1",$B$21:$B$76,"=F") -> 0 | CF124: =COUNTIFS(CF$21:CF$76,"<=3",CF$21:CF$76,">=1",$B$21:$B$76,"=F") -> 0 | CI124: =COUNTIFS(CI$21:CI$76,"<=3",CI$21:CI$76,">=1",$B$21:$B$76,"=F") -> 0 | CL124: =COUNTIFS(CL$21:CL$76,"<=3",CL$21:CL$76,">=1",$B$21:$B$76,"=F") -> 0 | CO124: =COUNTIFS(CO$21:CO$76,"<=3",CO$21:CO$76,">=1",$B$21:$B$76,"=F") -> 0 | CR124: =COUNTIFS(CR$21:CR$76,"<=3",CR$21:CR$76,">=1",$B$21:$B$76,"=F") -> 0 | CU124: =COUNTIFS(CU$21:CU$76,"<=3",CU$21:CU$76,">=1",$B$21:$B$76,"=F") -> 0 | CX124: =COUNTIFS(CX$21:CX$76,"<=3",CX$21:CX$76,">=1",$B$21:$B$76,"=F") -> 0 | DA124: =COUNTIFS(DA$21:DA$76,"<=3",DA$21:DA$76,">=1",$B$21:$B$76,"=F") -> 0 | DC124: =COUNTIFS(DC$21:DC$76,"<=3",DC$21:DC$76,">=1",$B$21:$B$76,"=F") -> 0 | DF124: =COUNTIFS(DF$21:DF$76,"<=3",DF$21:DF$76,">=1",$B$21:$B$76,"=F") -> 0 | DI124: =COUNTIFS(DI$21:DI$76,"<=3",DI$21:DI$76,">=1",$B$21:$B$76,"=F") -> 0 | DL124: =COUNTIFS(DL$21:DL$76,"<=3",DL$21:DL$76,">=1",$B$21:$B$76,"=F") -> 0 | DO124: =COUNTIFS(DO$21:DO$76,"<=3",DO$21:DO$76,">=1",$B$21:$B$76,"=F") -> 0 | DR124: =COUNTIFS(DR$21:DR$76,"<=3",DR$21:DR$76,">=1",$B$21:$B$76,"=F") -> 0 | DU124: =COUNTIFS(DU$21:DU$76,"<=3",DU$21:DU$76,">=1",$B$21:$B$76,"=F") -> 0 | DX124: =COUNTIFS(DX$21:DX$76,"<=3",DX$21:DX$76,">=1",$B$21:$B$76,"=F") -> 0 | EA124: =COUNTIFS(EA$21:EA$76,"<=3",EA$21:EA$76,">=1",$B$21:$B$76,"=F") -> 0 | ED124: =COUNTIFS(ED$21:ED$76,"<=3",ED$21:ED$76,">=1",$B$21:$B$76,"=F") -> 0

Sheet Points Rules
A1: Snowsport England - Seed Points
A3: DETERMINATION OF EVENT POINTS | C3: Year of Birth | D3: Age Category
C4: 2005 | D4: U10
A5: Event Points = Race Points + Penalty Points | C5: 2004 | D5: U10
C6: 2003 | D6: U12
A7: Calculation of Race Points | C7: 2002 | D7: U12
A8: Competitor's time divided by the winner's time, minus 1, multiplied by F (F = 610 in 2012) | C8: 2001 | D8: U14
C9: 2000 | D9: U14
A10: Calculation of Penalty Points | C10: 1999 | D10: U16
A11: A + B - C, divided by 10 | C11: 1998 | D11: U16
C12: 1997 | D12: U18
A13: A = the sum of the seed points of the 5 best seeded competitors in the first 10 finishers | C13: 1996 | D13: U18
A14: B = the sum of the seed points of the 5 best seeded competitors at the start of the race | C14: 1995 | D14: U21
A15: C = the sum of the race points of the 5 best seeded competitors in the first 10 finishers | C15: 1994 | D15: U21
C16: 1993 | D16: U21
A17: Minimum Penalty Points | C17: 1992 | D17: SEN
A18: British, English, Welsh, Scottish and Irish Championships = 0 points | C18: 1991 | D18: SEN
A19: Great British Series = 5 points | C19: 1990 | D19: SEN
A20: Club National = 10 points | C20: 1989 | D20: SEN
A21: Indoor Club National Single run=10 points | C21: 1988 | D21: SEN
A22: Note | C22: 1987 | D22: SEN
A23: Male and Female races are seeded separately and carry their own penalty points. | C23: 1986 | D23: SEN
C24: 1985 | D24: SEN
A25: CALCULATION OF SEED POINTS | C25: 1984 | D25: SEN
C26: 1983 | D26: MAS
A27: Seed points for all but the end-of-season list are the minimum of: | C27: 1982 | D27: MAS
C28: 1981 | D28: MAS
A29: A. Last year's end-of-season points (the basic points) | C29: 1980 | D29: MAS
A30: B. The average of the 2 best results (event points) this season | C30: 1979 | D30: MAS
A31: C. The average of the best result this season and the the basic points | C31: 1978 | D31: MAS
A32: D. The best result this season + 20% (minimum loading = 10 points) | C32: 1977 | D32: MAS
C33: 1976 | D33: MAS
A34: End-of-season seed points are the minimum of: | C34: 1975 | D34: MAS
C35: 1974 | D35: MAS
A36: A. Last year's end-of-season seed points + 20% (minimum loading = 10 points) | C36: 1973 | D36: MAS
A37: B. The average of the 2 best results this season | C37: 1972 | D37: MAS
A38: C. The best result from this season + 20% (minimum loading = 10 points) | C38: 1971 | D38: MAS
C39: 1970 | D39: MAS
A40: Notes | C40: 1969 | D40: MAS
A41: For option B to be valid, the 2 results must be from different venues. | C41: 1968 | D41: MAS
A42: In order to calculate the final end-of-season seed points, the provisional seed points are adjusted by a value | C42: 1967 | D42: MAS
A43: which sets the seed points of the best seeded competitor to zero. | C43: 1966 | D43: MAS
A44: Separate male and female seed points lists are published. | C44: 1965 | D44: MAS
A45: Seed lists are published on www.britski.org and www.gbski.com | C45: 1964 | D45: MAS
C46: 1963 | D46: MAS
C47: 1962 | D47: MAS
C48: 1961 | D48: MAS
C49: 1960 | D49: MAS
C50: 1959 | D50: MAS
C51: 1958 | D51: MAS
C52: 1957 | D52: MAS
C53: 1956 | D53: MAS
C54: 1955 | D54: MAS
C55: 1954 | D55: MAS
C56: 1953 | D56: MAS
C57: 1952 | D57: MAS
C58: 1951 | D58: MAS

Sheet Individual Statistics
B1: MSC Podiums in BARTS Events
I4: 2011 | J4: 2013 | K4: 2013
B5: Racer | C5: Year of | D5: Age | E5: 2013 | F5: 2013 | G5: Overall | H5: Age Grp | I5: ESSKIA | J5: England | K5: Wales
B6: Name | C6: Birth | D6: Group | E6: Start | F6: Change | G6: Podiums | H6: Podiums | I6: Squad | J6: Squad | K6: Squad
B7: GIRLS | C7: =IF(ISERROR(VLOOKUP($B7,'Races, Positions & Points'!$A:$C,3,FALSE)),"",IF((VLOOKUP($B7,'Races, Positions & Points'!$A:$C,3,FALSE))=0,"",VLOOKUP($B7,'Races, Positions & Points'!$A:$C,3,FALSE))) ->  | D7: =IF(ISERROR(VLOOKUP($B7,'Races, Positions & Points'!$A:$D,4,FALSE)),"",IF((VLOOKUP($B7,'Races, Positions & Points'!$A:$D,4,FALSE))=0,"",VLOOKUP($B7,'Races, Positions & Points'!$A:$D,4,FALSE))) ->  | E7: =IF(ISERROR(VLOOKUP($B7,'Races, Positions & Points'!$A:$F,7,FALSE)),"",IF((VLOOKUP($B7,'Races, Positions & Points'!$A:$F,7,FALSE))=0,"",VLOOKUP($B7,'Races, Positions & Points'!$A:$F,7,FALSE))) ->  | F7: =IF(ISERROR(VLOOKUP($B7,'Races, Positions & Points'!$A:$M,9,FALSE)),"",IF((VLOOKUP($B7,'Races, Positions & Points'!$A:$M,9,FALSE))=0,"",VLOOKUP($B7,'Races, Positions & Points'!$A:$M,9,FALSE))) ->  | G7: =IF(ISERROR(VLOOKUP($B7,'Races, Positions & Points'!$A:$EF,131,FALSE)),"",IF((VLOOKUP($B7,'Races, Positions & Points'!$A:$EF,131,FALSE))=0,"",VLOOKUP($B7,'Races, Positions & Points'!$A:$EF,131,FALSE))) ->  | H7: =IF(ISERROR(VLOOKUP($B7,'Races, Positions & Points'!$A:$EF,132,FALSE)),"",IF((VLOOKUP($B7,'Races, Positions & Points'!$A:$EF,132,FALSE))=0,"",VLOOKUP($B7,'Races, Positions & Points'!$A:$EF,132,FALSE))) -> 
B8: ='Races, Positions & Points'!A8 -> Lauren Treuge | C8: ='Races, Positions & Points'!C8 -> 2003 | D8: =IF(ISERROR(VLOOKUP($B8,'Races, Positions & Points'!$A:$D,4,FALSE)),"",IF((VLOOKUP($B8,'Races, Positions & Points'!$A:$D,4,FALSE))=0,"",VLOOKUP($B8,'Races, Positions & Points'!$A:$D,4,FALSE))) -> U12 | E8: 999.99 | G8: =IF(ISERROR(VLOOKUP($B8,'Races, Positions & Points'!$A:$EG,137,FALSE)),"",IF((VLOOKUP($B8,'Races, Positions & Points'!$A:$EG,137,FALSE))=0,"",VLOOKUP($B8,'Races, Positions & Points'!$A:$EG,137,FALSE))) ->  | H8: =IF(ISERROR(VLOOKUP($B8,'Races, Positions & Points'!$A:$EH,138,FALSE)),"",IF((VLOOKUP($B8,'Races, Positions & Points'!$A:$EH,138,FALSE))=0,"",VLOOKUP($B8,'Races, Positions & Points'!$A:$EH,138,FALSE))) -> 
B9: ='Races, Positions & Points'!A9 -> Tilley O'Brien | C9: ='Races, Positions & Points'!C9 -> 2004 | D9: =IF(ISERROR(VLOOKUP($B9,'Races, Positions & Points'!$A:$D,4,FALSE)),"",IF((VLOOKUP($B9,'Races, Positions & Points'!$A:$D,4,FALSE))=0,"",VLOOKUP($B9,'Races, Positions & Points'!$A:$D,4,FALSE))) -> U10 | E9: 999.99 | G9: =IF(ISERROR(VLOOKUP($B9,'Races, Positions & Points'!$A:$EG,137,FALSE)),"",IF((VLOOKUP($B9,'Races, Positions & Points'!$A:$EG,137,FALSE))=0,"",VLOOKUP($B9,'Races, Positions & Points'!$A:$EG,137,FALSE))) ->  | H9: =IF(ISERROR(VLOOKUP($B9,'Races, Positions & Points'!$A:$EH,138,FALSE)),"",IF((VLOOKUP($B9,'Races, Positions & Points'!$A:$EH,138,FALSE))=0,"",VLOOKUP($B9,'Races, Positions & Points'!$A:$EH,138,FALSE))) -> 6
B10: ='Races, Positions & Points'!A10 -> Anya Hemming | C10: ='Races, Positions & Points'!C10 -> 2005 | D10: =IF(ISERROR(VLOOKUP($B10,'Races, Positions & Points'!$A:$D,4,FALSE)),"",IF((VLOOKUP($B10,'Races, Positions & Points'!$A:$D,4,FALSE))=0,"",VLOOKUP($B10,'Races, Positions & Points'!$A:$D,4,FALSE))) -> U10 | E10: 999.99 | G10: =IF(ISERROR(VLOOKUP($B10,'Races, Positions & Points'!$A:$EG,137,FALSE)),"",IF((VLOOKUP($B10,'Races, Positions & Points'!$A:$EG,137,FALSE))=0,"",VLOOKUP($B10,'Races, Positions & Points'!$A:$EG,137,FALSE))) ->  | H10: =IF(ISERROR(VLOOKUP($B10,'Races, Positions & Points'!$A:$EH,138,FALSE)),"",IF((VLOOKUP($B10,'Races, Positions & Points'!$A:$EH,138,FALSE))=0,"",VLOOKUP($B10,'Races, Positions & Points'!$A:$EH,138,FALSE))) -> 11
B11: BOYS | C11: =IF(ISERROR(VLOOKUP($B11,'Races, Positions & Points'!$A:$C,3,FALSE)),"",IF((VLOOKUP($B11,'Races, Positions & Points'!$A:$C,3,FALSE))=0,"",VLOOKUP($B11,'Races, Positions & Points'!$A:$C,3,FALSE))) ->  | D11: =IF(ISERROR(VLOOKUP($B11,'Races, Positions & Points'!$A:$D,4,FALSE)),"",IF((VLOOKUP($B11,'Races, Positions & Points'!$A:$D,4,FALSE))=0,"",VLOOKUP($B11,'Races, Positions & Points'!$A:$D,4,FALSE))) ->  | E11: =IF(ISERROR(VLOOKUP($B11,'Races, Positions & Points'!$A:$F,7,FALSE)),"",IF((VLOOKUP($B11,'Races, Positions & Points'!$A:$F,7,FALSE))=0,"",VLOOKUP($B11,'Races, Positions & Points'!$A:$F,7,FALSE))) ->  | F11: =IF(ISERROR(VLOOKUP($B11,'Races, Positions & Points'!$A:$M,9,FALSE)),"",IF((VLOOKUP($B11,'Races, Positions & Points'!$A:$M,9,FALSE))=0,"",VLOOKUP($B11,'Races, Positions & Points'!$A:$M,9,FALSE))) ->  | G11: =IF(ISERROR(VLOOKUP($B11,'Races, Positions & Points'!$A:$M,9,FALSE)),"",IF((VLOOKUP($B11,'Races, Positions & Points'!$A:$M,9,FALSE))=0,"",VLOOKUP($B11,'Races, Positions & Points'!$A:$M,9,FALSE))) ->  | H11: =IF(ISERROR(VLOOKUP($B11,'Races, Positions & Points'!$A:$EF,132,FALSE)),"",IF((VLOOKUP($B11,'Races, Positions & Points'!$A:$EF,132,FALSE))=0,"",VLOOKUP($B11,'Races, Positions & Points'!$A:$EF,132,FALSE))) -> 
B12: ='Races, Positions & Points'!A12 -> James Care | C12: ='Races, Positions & Points'!C12 -> 2002 | D12: =IF(ISERROR(VLOOKUP($B12,'Races, Positions & Points'!$A:$D,4,FALSE)),"",IF((VLOOKUP($B12,'Races, Positions & Points'!$A:$D,4,FALSE))=0,"",VLOOKUP($B12,'Races, Positions & Points'!$A:$D,4,FALSE))) -> U12 | E12: 999.99 | F12: ='Races, Positions & Points'!M12 ->  | G12: =IF(ISERROR(VLOOKUP($B12,'Races, Positions & Points'!$A:$EG,137,FALSE)),"",IF((VLOOKUP($B12,'Races, Positions & Points'!$A:$EG,137,FALSE))=0,"",VLOOKUP($B12,'Races, Positions & Points'!$A:$EG,137,FALSE))) ->  | H12: =IF(ISERROR(VLOOKUP($B12,'Races, Positions & Points'!$A:$EH,138,FALSE)),"",IF((VLOOKUP($B12,'Races, Positions & Points'!$A:$EH,138,FALSE))=0,"",VLOOKUP($B12,'Races, Positions & Points'!$A:$EH,138,FALSE))) -> 
B13: ='Races, Positions & Points'!A13 -> Macaulay Clover | C13: ='Races, Positions & Points'!C13 -> 2002 | D13: =IF(ISERROR(VLOOKUP($B13,'Races, Positions & Points'!$A:$D,4,FALSE)),"",IF((VLOOKUP($B13,'Races, Positions & Points'!$A:$D,4,FALSE))=0,"",VLOOKUP($B13,'Races, Positions & Points'!$A:$D,4,FALSE))) -> U12 | E13: 999.99 | F13: ='Races, Positions & Points'!M13 ->  | G13: =IF(ISERROR(VLOOKUP($B13,'Races, Positions & Points'!$A:$EG,137,FALSE)),"",IF((VLOOKUP($B13,'Races, Positions & Points'!$A:$EG,137,FALSE))=0,"",VLOOKUP($B13,'Races, Positions & Points'!$A:$EG,137,FALSE))) ->  | H13: =IF(ISERROR(VLOOKUP($B13,'Races, Positions & Points'!$A:$EH,138,FALSE)),"",IF((VLOOKUP($B13,'Races, Positions & Points'!$A:$EH,138,FALSE))=0,"",VLOOKUP($B13,'Races, Positions & Points'!$A:$EH,138,FALSE))) -> 
B14: ='Races, Positions & Points'!A14 -> Seamus O'Brien | C14: ='Races, Positions & Points'!C14 -> 2002 | D14: =IF(ISERROR(VLOOKUP($B14,'Races, Positions & Points'!$A:$D,4,FALSE)),"",IF((VLOOKUP($B14,'Races, Positions & Points'!$A:$D,4,FALSE))=0,"",VLOOKUP($B14,'Races, Positions & Points'!$A:$D,4,FALSE))) -> U12 | E14: 999.99 | F14: ='Races, Positions & Points'!M14 ->  | G14: =IF(ISERROR(VLOOKUP($B14,'Races, Positions & Points'!$A:$EG,137,FALSE)),"",IF((VLOOKUP($B14,'Races, Positions & Points'!$A:$EG,137,FALSE))=0,"",VLOOKUP($B14,'Races, Positions & Points'!$A:$EG,137,FALSE))) ->  | H14: =IF(ISERROR(VLOOKUP($B14,'Races, Positions & Points'!$A:$EH,138,FALSE)),"",IF((VLOOKUP($B14,'Races, Positions & Points'!$A:$EH,138,FALSE))=0,"",VLOOKUP($B14,'Races, Positions & Points'!$A:$EH,138,FALSE))) -> 2
B15: ='Races, Positions & Points'!A15 -> Matthew Treuge | C15: ='Races, Positions & Points'!C15 -> 2002 | D15: =IF(ISERROR(VLOOKUP($B15,'Races, Positions & Points'!$A:$D,4,FALSE)),"",IF((VLOOKUP($B15,'Races, Positions & Points'!$A:$D,4,FALSE))=0,"",VLOOKUP($B15,'Races, Positions & Points'!$A:$D,4,FALSE))) -> U12 | E15: 999.99 | F15: ='Races, Positions & Points'!M15 ->  | G15: =IF(ISERROR(VLOOKUP($B15,'Races, Positions & Points'!$A:$EG,137,FALSE)),"",IF((VLOOKUP($B15,'Races, Positions & Points'!$A:$EG,137,FALSE))=0,"",VLOOKUP($B15,'Races, Positions & Points'!$A:$EG,137,FALSE))) ->  | H15: =IF(ISERROR(VLOOKUP($B15,'Races, Positions & Points'!$A:$EH,138,FALSE)),"",IF((VLOOKUP($B15,'Races, Positions & Points'!$A:$EH,138,FALSE))=0,"",VLOOKUP($B15,'Races, Positions & Points'!$A:$EH,138,FALSE))) -> 
B16: ='Races, Positions & Points'!A16 -> James Shakeshaft | C16: ='Races, Positions & Points'!C16 -> 2003 | D16: =IF(ISERROR(VLOOKUP($B16,'Races, Positions & Points'!$A:$D,4,FALSE)),"",IF((VLOOKUP($B16,'Races, Positions & Points'!$A:$D,4,FALSE))=0,"",VLOOKUP($B16,'Races, Positions & Points'!$A:$D,4,FALSE))) -> U12 | E16: 999.99 | F16: ='Races, Positions & Points'!M16 ->  | G16: =IF(ISERROR(VLOOKUP($B16,'Races, Positions & Points'!$A:$EG,137,FALSE)),"",IF((VLOOKUP($B16,'Races, Positions & Points'!$A:$EG,137,FALSE))=0,"",VLOOKUP($B16,'Races, Positions & Points'!$A:$EG,137,FALSE))) ->  | H16: =IF(ISERROR(VLOOKUP($B16,'Races, Positions & Points'!$A:$EH,138,FALSE)),"",IF((VLOOKUP($B16,'Races, Positions & Points'!$A:$EH,138,FALSE))=0,"",VLOOKUP($B16,'Races, Positions & Points'!$A:$EH,138,FALSE))) -> 
B17: ='Races, Positions & Points'!A17 -> Daniel Hadley | C17: ='Races, Positions & Points'!C17 -> 2004 | D17: =IF(ISERROR(VLOOKUP($B17,'Races, Positions & Points'!$A:$D,4,FALSE)),"",IF((VLOOKUP($B17,'Races, Positions & Points'!$A:$D,4,FALSE))=0,"",VLOOKUP($B17,'Races, Positions & Points'!$A:$D,4,FALSE))) -> U10 | E17: 999.99 | F17: ='Races, Positions & Points'!M17 ->  | G17: =IF(ISERROR(VLOOKUP($B17,'Races, Positions & Points'!$A:$EG,137,FALSE)),"",IF((VLOOKUP($B17,'Races, Positions & Points'!$A:$EG,137,FALSE))=0,"",VLOOKUP($B17,'Races, Positions & Points'!$A:$EG,137,FALSE))) ->  | H17: =IF(ISERROR(VLOOKUP($B17,'Races, Positions & Points'!$A:$EH,138,FALSE)),"",IF((VLOOKUP($B17,'Races, Positions & Points'!$A:$EH,138,FALSE))=0,"",VLOOKUP($B17,'Races, Positions & Points'!$A:$EH,138,FALSE))) -> 2
B18: ='Races, Positions & Points'!A18 -> Jack Teague | C18: ='Races, Positions & Points'!C18 -> 2004 | D18: =IF(ISERROR(VLOOKUP($B18,'Races, Positions & Points'!$A:$D,4,FALSE)),"",IF((VLOOKUP($B18,'Races, Positions & Points'!$A:$D,4,FALSE))=0,"",VLOOKUP($B18,'Races, Positions & Points'!$A:$D,4,FALSE))) -> U10 | E18: 999.99 | F18: ='Races, Positions & Points'!M18 ->  | G18: =IF(ISERROR(VLOOKUP($B18,'Races, Positions & Points'!$A:$EG,137,FALSE)),"",IF((VLOOKUP($B18,'Races, Positions & Points'!$A:$EG,137,FALSE))=0,"",VLOOKUP($B18,'Races, Positions & Points'!$A:$EG,137,FALSE))) ->  | H18: =IF(ISERROR(VLOOKUP($B18,'Races, Positions & Points'!$A:$EH,138,FALSE)),"",IF((VLOOKUP($B18,'Races, Positions & Points'!$A:$EH,138,FALSE))=0,"",VLOOKUP($B18,'Races, Positions & Points'!$A:$EH,138,FALSE))) -> 2
B19: ='Races, Positions & Points'!A19 -> Jack Upton | C19: ='Races, Positions & Points'!C19 -> 2004 | D19: =IF(ISERROR(VLOOKUP($B19,'Races, Positions & Points'!$A:$D,4,FALSE)),"",IF((VLOOKUP($B19,'Races, Positions & Points'!$A:$D,4,FALSE))=0,"",VLOOKUP($B19,'Races, Positions & Points'!$A:$D,4,FALSE))) -> U10 | E19: 999.99 | F19: ='Races, Positions & Points'!M19 ->  | G19: =IF(ISERROR(VLOOKUP($B19,'Races, Positions & Points'!$A:$EG,137,FALSE)),"",IF((VLOOKUP($B19,'Races, Positions & Points'!$A:$EG,137,FALSE))=0,"",VLOOKUP($B19,'Races, Positions & Points'!$A:$EG,137,FALSE))) ->  | H19: =IF(ISERROR(VLOOKUP($B19,'Races, Positions & Points'!$A:$EH,138,FALSE)),"",IF((VLOOKUP($B19,'Races, Positions & Points'!$A:$EH,138,FALSE))=0,"",VLOOKUP($B19,'Races, Positions & Points'!$A:$EH,138,FALSE))) -> 13
B20: FEMALES | C20: =IF(ISERROR(VLOOKUP($B20,'Races, Positions & Points'!$A:$C,3,FALSE)),"",IF((VLOOKUP($B20,'Races, Positions & Points'!$A:$C,3,FALSE))=0,"",VLOOKUP($B20,'Races, Positions & Points'!$A:$C,3,FALSE))) ->  | D20: =IF(ISERROR(VLOOKUP($B20,'Races, Positions & Points'!$A:$D,4,FALSE)),"",IF((VLOOKUP($B20,'Races, Positions & Points'!$A:$D,4,FALSE))=0,"",VLOOKUP($B20,'Races, Positions & Points'!$A:$D,4,FALSE))) ->  | E20: =IF(ISERROR(VLOOKUP($B20,'Races, Positions & Points'!$A:$F,7,FALSE)),"",IF((VLOOKUP($B20,'Races, Positions & Points'!$A:$F,7,FALSE))=0,"",VLOOKUP($B20,'Races, Positions & Points'!$A:$F,7,FALSE))) ->  | F20: =IF(ISERROR(VLOOKUP($B20,'Races, Positions & Points'!$A:$M,9,FALSE)),"",IF((VLOOKUP($B20,'Races, Positions & Points'!$A:$M,9,FALSE))=0,"",VLOOKUP($B20,'Races, Positions & Points'!$A:$M,9,FALSE))) ->  | H20: =IF(ISERROR(VLOOKUP($B20,'Races, Positions & Points'!$A:$EF,132,FALSE)),"",IF((VLOOKUP($B20,'Races, Positions & Points'!$A:$EF,132,FALSE))=0,"",VLOOKUP($B20,'Races, Positions & Points'!$A:$EF,132,FALSE))) -> 
B21: ='Races, Positions & Points'!A21 -> Lucy Deller | C21: ='Races, Positions & Points'!C21 -> 1996 | D21: =IF(ISERROR(VLOOKUP($B21,'Races, Positions & Points'!$A:$D,4,FALSE)),"",IF((VLOOKUP($B21,'Races, Positions & Points'!$A:$D,4,FALSE))=0,"",VLOOKUP($B21,'Races, Positions & Points'!$A:$D,4,FALSE))) -> U18 | E21: ='Races, Positions & Points'!F21 -> 15.68 | F21: ='Races, Positions & Points'!M21 ->  | G21: =IF(ISERROR(VLOOKUP($B21,'Races, Positions & Points'!$A:$EG,137,FALSE)),"",IF((VLOOKUP($B21,'Races, Positions & Points'!$A:$EG,137,FALSE))=0,"",VLOOKUP($B21,'Races, Positions & Points'!$A:$EG,137,FALSE))) -> 1 | H21: =IF(ISERROR(VLOOKUP($B21,'Races, Positions & Points'!$A:$EH,138,FALSE)),"",IF((VLOOKUP($B21,'Races, Positions & Points'!$A:$EH,138,FALSE))=0,"",VLOOKUP($B21,'Races, Positions & Points'!$A:$EH,138,FALSE))) -> 9
B22: ='Races, Positions & Points'!A22 -> Rowan Vernon | C22: ='Races, Positions & Points'!C22 -> 1988 | D22: =IF(ISERROR(VLOOKUP($B22,'Races, Positions & Points'!$A:$D,4,FALSE)),"",IF((VLOOKUP($B22,'Races, Positions & Points'!$A:$D,4,FALSE))=0,"",VLOOKUP($B22,'Races, Positions & Points'!$A:$D,4,FALSE))) -> SEN | E22: ='Races, Positions & Points'!F22 -> 22.84 | F22: ='Races, Positions & Points'!M22 ->  | G22: =IF(ISERROR(VLOOKUP($B22,'Races, Positions & Points'!$A:$EG,137,FALSE)),"",IF((VLOOKUP($B22,'Races, Positions & Points'!$A:$EG,137,FALSE))=0,"",VLOOKUP($B22,'Races, Positions & Points'!$A:$EG,137,FALSE))) ->  | H22: =IF(ISERROR(VLOOKUP($B22,'Races, Positions & Points'!$A:$EH,138,FALSE)),"",IF((VLOOKUP($B22,'Races, Positions & Points'!$A:$EH,138,FALSE))=0,"",VLOOKUP($B22,'Races, Positions & Points'!$A:$EH,138,FALSE))) -> 
B23: ='Races, Positions & Points'!A23 -> Rachel Bill | C23: ='Races, Positions & Points'!C23 -> 1990 | D23: =IF(ISERROR(VLOOKUP($B23,'Races, Positions & Points'!$A:$D,4,FALSE)),"",IF((VLOOKUP($B23,'Races, Positions & Points'!$A:$D,4,FALSE))=0,"",VLOOKUP($B23,'Races, Positions & Points'!$A:$D,4,FALSE))) -> SEN | E23: ='Races, Positions & Points'!F23 -> 33.85 | F23: ='Races, Positions & Points'!M23 -> -10.04 | G23: =IF(ISERROR(VLOOKUP($B23,'Races, Positions & Points'!$A:$EG,137,FALSE)),"",IF((VLOOKUP($B23,'Races, Positions & Points'!$A:$EG,137,FALSE))=0,"",VLOOKUP($B23,'Races, Positions & Points'!$A:$EG,137,FALSE))) -> 2 | H23: =IF(ISERROR(VLOOKUP($B23,'Races, Positions & Points'!$A:$EH,138,FALSE)),"",IF((VLOOKUP($B23,'Races, Positions & Points'!$A:$EH,138,FALSE))=0,"",VLOOKUP($B23,'Races, Positions & Points'!$A:$EH,138,FALSE))) -> 5
B24: ='Races, Positions & Points'!A24 -> Helena Newboult | C24: ='Races, Positions & Points'!C24 -> 1998 | D24: =IF(ISERROR(VLOOKUP($B24,'Races, Positions & Points'!$A:$D,4,FALSE)),"",IF((VLOOKUP($B24,'Races, Positions & Points'!$A:$D,4,FALSE))=0,"",VLOOKUP($B24,'Races, Positions & Points'!$A:$D,4,FALSE))) -> U16 | E24: ='Races, Positions & Points'!F24 -> 30.53 | F24: ='Races, Positions & Points'!M24 -> -3.14 | G24: =IF(ISERROR(VLOOKUP($B24,'Races, Positions & Points'!$A:$EG,137,FALSE)),"",IF((VLOOKUP($B24,'Races, Positions & Points'!$A:$EG,137,FALSE))=0,"",VLOOKUP($B24,'Races, Positions & Points'!$A:$EG,137,FALSE))) ->  | H24: =IF(ISERROR(VLOOKUP($B24,'Races, Positions & Points'!$A:$EH,138,FALSE)),"",IF((VLOOKUP($B24,'Races, Positions & Points'!$A:$EH,138,FALSE))=0,"",VLOOKUP($B24,'Races, Positions & Points'!$A:$EH,138,FALSE))) -> 9
B25: ='Races, Positions & Points'!A25 -> Amy Middleton | C25: ='Races, Positions & Points'!C25 -> 1995 | D25: =IF(ISERROR(VLOOKUP($B25,'Races, Positions & Points'!$A:$D,4,FALSE)),"",IF((VLOOKUP($B25,'Races, Positions & Points'!$A:$D,4,FALSE))=0,"",VLOOKUP($B25,'Races, Positions & Points'!$A:$D,4,FALSE))) -> U21 | E25: ='Races, Positions & Points'!F25 -> 69.36 | F25: ='Races, Positions & Points'!M25 -> -18.21 | G25: =IF(ISERROR(VLOOKUP($B25,'Races, Positions & Points'!$A:$EG,137,FALSE)),"",IF((VLOOKUP($B25,'Races, Positions & Points'!$A:$EG,137,FALSE))=0,"",VLOOKUP($B25,'Races, Positions & Points'!$A:$EG,137,FALSE))) ->  | H25: =IF(ISERROR(VLOOKUP($B25,'Races, Positions & Points'!$A:$EH,138,FALSE)),"",IF((VLOOKUP($B25,'Races, Positions & Points'!$A:$EH,138,FALSE))=0,"",VLOOKUP($B25,'Races, Positions & Points'!$A:$EH,138,FALSE))) -> 6
B26: ='Races, Positions & Points'!A26 -> Elisabeth Thomas | C26: ='Races, Positions & Points'!C26 -> 1996 | D26: =IF(ISERROR(VLOOKUP($B26,'Races, Positions & Points'!$A:$D,4,FALSE)),"",IF((VLOOKUP($B26,'Races, Positions & Points'!$A:$D,4,FALSE))=0,"",VLOOKUP($B26,'Races, Positions & Points'!$A:$D,4,FALSE))) -> U18 | E26: ='Races, Positions & Points'!F26 -> 60.58 | F26: ='Races, Positions & Points'!M26 ->  | G26: =IF(ISERROR(VLOOKUP($B26,'Races, Positions & Points'!$A:$EG,137,FALSE)),"",IF((VLOOKUP($B26,'Races, Positions & Points'!$A:$EG,137,FALSE))=0,"",VLOOKUP($B26,'Races, Positions & Points'!$A:$EG,137,FALSE))) ->  | H26: =IF(ISERROR(VLOOKUP($B26,'Races, Positions & Points'!$A:$EH,138,FALSE)),"",IF((VLOOKUP($B26,'Races, Positions & Points'!$A:$EH,138,FALSE))=0,"",VLOOKUP($B26,'Races, Positions & Points'!$A:$EH,138,FALSE))) -> 
B27: ='Races, Positions & Points'!A27 -> Maxine Hancock | C27: ='Races, Positions & Points'!C27 -> 1997 | D27: =IF(ISERROR(VLOOKUP($B27,'Races, Positions & Points'!$A:$D,4,FALSE)),"",IF((VLOOKUP($B27,'Races, Positions & Points'!$A:$D,4,FALSE))=0,"",VLOOKUP($B27,'Races, Positions & Points'!$A:$D,4,FALSE))) -> U18 | E27: ='Races, Positions & Points'!F27 -> 124.82 | F27: ='Races, Positions & Points'!M27 -> -50.54 | G27: =IF(ISERROR(VLOOKUP($B27,'Races, Positions & Points'!$A:$EG,137,FALSE)),"",IF((VLOOKUP($B27,'Races, Positions & Points'!$A:$EG,137,FALSE))=0,"",VLOOKUP($B27,'Races, Positions & Points'!$A:$EG,137,FALSE))) ->  | H27: =IF(ISERROR(VLOOKUP($B27,'Races, Positions & Points'!$A:$EH,138,FALSE)),"",IF((VLOOKUP($B27,'Races, Positions & Points'!$A:$EH,138,FALSE))=0,"",VLOOKUP($B27,'Races, Positions & Points'!$A:$EH,138,FALSE))) -> 
B28: ='Races, Positions & Points'!A28 -> Jessica Mayhew | C28: ='Races, Positions & Points'!C28 -> 2000 | D28: =IF(ISERROR(VLOOKUP($B28,'Races, Positions & Points'!$A:$D,4,FALSE)),"",IF((VLOOKUP($B28,'Races, Positions & Points'!$A:$D,4,FALSE))=0,"",VLOOKUP($B28,'Races, Positions & Points'!$A:$D,4,FALSE))) -> U14 | E28: ='Races, Positions & Points'!F28 -> 124.09 | F28: ='Races, Positions & Points'!M28 -> -39.91 | G28: =IF(ISERROR(VLOOKUP($B28,'Races, Positions & Points'!$A:$EG,137,FALSE)),"",IF((VLOOKUP($B28,'Races, Positions & Points'!$A:$EG,137,FALSE))=0,"",VLOOKUP($B28,'Races, Positions & Points'!$A:$EG,137,FALSE))) ->  | H28: =IF(ISERROR(VLOOKUP($B28,'Races, Positions & Points'!$A:$EH,138,FALSE)),"",IF((VLOOKUP($B28,'Races, Positions & Points'!$A:$EH,138,FALSE))=0,"",VLOOKUP($B28,'Races, Positions & Points'!$A:$EH,138,FALSE))) -> 9
B29: ='Races, Positions & Points'!A29 -> Hannah Shakeshaft | C29: ='Races, Positions & Points'!C29 -> 1996 | D29: =IF(ISERROR(VLOOKUP($B29,'Races, Positions & Points'!$A:$D,4,FALSE)),"",IF((VLOOKUP($B29,'Races, Positions & Points'!$A:$D,4,FALSE))=0,"",VLOOKUP($B29,'Races, Positions & Points'!$A:$D,4,FALSE))) -> U18 | E29: ='Races, Positions & Points'!F29 -> 116.91 | F29: ='Races, Positions & Points'!M29 ->  | G29: =IF(ISERROR(VLOOKUP($B29,'Races, Positions & Points'!$A:$EG,137,FALSE)),"",IF((VLOOKUP($B29,'Races, Positions & Points'!$A:$EG,137,FALSE))=0,"",VLOOKUP($B29,'Races, Positions & Points'!$A:$EG,137,FALSE))) ->  | H29: =IF(ISERROR(VLOOKUP($B29,'Races, Positions & Points'!$A:$EH,138,FALSE)),"",IF((VLOOKUP($B29,'Races, Positions & Points'!$A:$EH,138,FALSE))=0,"",VLOOKUP($B29,'Races, Positions & Points'!$A:$EH,138,FALSE))) -> 
B30: ='Races, Positions & Points'!A30 -> Chloe Care | C30: ='Races, Positions & Points'!C30 -> 1998 | D30: =IF(ISERROR(VLOOKUP($B30,'Races, Positions & Points'!$A:$D,4,FALSE)),"",IF((VLOOKUP($B30,'Races, Positions & Points'!$A:$D,4,FALSE))=0,"",VLOOKUP($B30,'Races, Positions & Points'!$A:$D,4,FALSE))) -> U16 | E30: ='Races, Positions & Points'!F30 -> 224.39 | F30: ='Races, Positions & Points'!M30 -> -21.38 | G30: =IF(ISERROR(VLOOKUP($B30,'Races, Positions & Points'!$A:$EG,137,FALSE)),"",IF((VLOOKUP($B30,'Races, Positions & Points'!$A:$EG,137,FALSE))=0,"",VLOOKUP($B30,'Races, Positions & Points'!$A:$EG,137,FALSE))) ->  | H30: =IF(ISERROR(VLOOKUP($B30,'Races, Positions & Points'!$A:$EH,138,FALSE)),"",IF((VLOOKUP($B30,'Races, Positions & Points'!$A:$EH,138,FALSE))=0,"",VLOOKUP($B30,'Races, Positions & Points'!$A:$EH,138,FALSE))) -> 2
B31: ='Races, Positions & Points'!A31 -> Geraldine Elgy | C31: ='Races, Positions & Points'!C31 -> 1954 | D31: =IF(ISERROR(VLOOKUP($B31,'Races, Positions & Points'!$A:$D,4,FALSE)),"",IF((VLOOKUP($B31,'Races, Positions & Points'!$A:$D,4,FALSE))=0,"",VLOOKUP($B31,'Races, Positions & Points'!$A:$D,4,FALSE))) -> MAS | E31: ='Races, Positions & Points'!F31 -> 275.21 | F31: ='Races, Positions & Points'!M31 ->  | G31: =IF(ISERROR(VLOOKUP($B31,'Races, Positions & Points'!$A:$EG,137,FALSE)),"",IF((VLOOKUP($B31,'Races, Positions & Points'!$A:$EG,137,FALSE))=0,"",VLOOKUP($B31,'Races, Positions & Points'!$A:$EG,137,FALSE))) ->  | H31: =IF(ISERROR(VLOOKUP($B31,'Races, Positions & Points'!$A:$EH,138,FALSE)),"",IF((VLOOKUP($B31,'Races, Positions & Points'!$A:$EH,138,FALSE))=0,"",VLOOKUP($B31,'Races, Positions & Points'!$A:$EH,138,FALSE))) -> 
B32: ='Races, Positions & Points'!A32 -> Laura Newboult | C32: ='Races, Positions & Points'!C32 -> 1995 | D32: =IF(ISERROR(VLOOKUP($B32,'Races, Positions & Points'!$A:$D,4,FALSE)),"",IF((VLOOKUP($B32,'Races, Positions & Points'!$A:$D,4,FALSE))=0,"",VLOOKUP($B32,'Races, Positions & Points'!$A:$D,4,FALSE))) -> U21 | E32: ='Races, Positions & Points'!F32 -> 357.45 | F32: ='Races, Positions & Points'!M32 ->  | G32: =IF(ISERROR(VLOOKUP($B32,'Races, Positions & Points'!$A:$EG,137,FALSE)),"",IF((VLOOKUP($B32,'Races, Positions & Points'!$A:$EG,137,FALSE))=0,"",VLOOKUP($B32,'Races, Positions & Points'!$A:$EG,137,FALSE))) ->  | H32: =IF(ISERROR(VLOOKUP($B32,'Races, Positions & Points'!$A:$EH,138,FALSE)),"",IF((VLOOKUP($B32,'Races, Positions & Points'!$A:$EH,138,FALSE))=0,"",VLOOKUP($B32,'Races, Positions & Points'!$A:$EH,138,FALSE))) -> 
B33: ='Races, Positions & Points'!A33 -> Robyn Doherty | C33: ='Races, Positions & Points'!C33 -> 1996 | D33: =IF(ISERROR(VLOOKUP($B33,'Races, Positions & Points'!$A:$D,4,FALSE)),"",IF((VLOOKUP($B33,'Races, Positions & Points'!$A:$D,4,FALSE))=0,"",VLOOKUP($B33,'Races, Positions & Points'!$A:$D,4,FALSE))) -> U18 | E33: ='Races, Positions & Points'!F33 -> 530.29 | F33: ='Races, Positions & Points'!M33 ->  | G33: =IF(ISERROR(VLOOKUP($B33,'Races, Positions & Points'!$A:$EG,137,FALSE)),"",IF((VLOOKUP($B33,'Races, Positions & Points'!$A:$EG,137,FALSE))=0,"",VLOOKUP($B33,'Races, Positions & Points'!$A:$EG,137,FALSE))) ->  | H33: =IF(ISERROR(VLOOKUP($B33,'Races, Positions & Points'!$A:$EH,138,FALSE)),"",IF((VLOOKUP($B33,'Races, Positions & Points'!$A:$EH,138,FALSE))=0,"",VLOOKUP($B33,'Races, Positions & Points'!$A:$EH,138,FALSE))) -> 
B34: ='Races, Positions & Points'!A34 -> Jane Lee | C34: ='Races, Positions & Points'!C34 -> 1954 | D34: =IF(ISERROR(VLOOKUP($B34,'Races, Positions & Points'!$A:$D,4,FALSE)),"",IF((VLOOKUP($B34,'Races, Positions & Points'!$A:$D,4,FALSE))=0,"",VLOOKUP($B34,'Races, Positions & Points'!$A:$D,4,FALSE))) -> MAS | E34: ='Races, Positions & Points'!F34 -> 533.71 | F34: ='Races, Positions & Points'!M34 ->  | G34: =IF(ISERROR(VLOOKUP($B34,'Races, Positions & Points'!$A:$EG,137,FALSE)),"",IF((VLOOKUP($B34,'Races, Positions & Points'!$A:$EG,137,FALSE))=0,"",VLOOKUP($B34,'Races, Positions & Points'!$A:$EG,137,FALSE))) ->  | H34: =IF(ISERROR(VLOOKUP($B34,'Races, Positions & Points'!$A:$EH,138,FALSE)),"",IF((VLOOKUP($B34,'Races, Positions & Points'!$A:$EH,138,FALSE))=0,"",VLOOKUP($B34,'Races, Positions & Points'!$A:$EH,138,FALSE))) -> 
B35: ='Races, Positions & Points'!A35 -> Emily Dawes | C35: ='Races, Positions & Points'!C35 -> 1991 | D35: =IF(ISERROR(VLOOKUP($B35,'Races, Positions & Points'!$A:$D,4,FALSE)),"",IF((VLOOKUP($B35,'Races, Positions & Points'!$A:$D,4,FALSE))=0,"",VLOOKUP($B35,'Races, Positions & Points'!$A:$D,4,FALSE))) -> SEN | E35: ='Races, Positions & Points'!F35 -> NR | F35: ='Races, Positions & Points'!M35 ->  | G35: =IF(ISERROR(VLOOKUP($B35,'Races, Positions & Points'!$A:$EG,137,FALSE)),"",IF((VLOOKUP($B35,'Races, Positions & Points'!$A:$EG,137,FALSE))=0,"",VLOOKUP($B35,'Races, Positions & Points'!$A:$EG,137,FALSE))) ->  | H35: =IF(ISERROR(VLOOKUP($B35,'Races, Positions & Points'!$A:$EH,138,FALSE)),"",IF((VLOOKUP($B35,'Races, Positions & Points'!$A:$EH,138,FALSE))=0,"",VLOOKUP($B35,'Races, Positions & Points'!$A:$EH,138,FALSE))) -> 
B36: ='Races, Positions & Points'!A36 -> Sophia Phelps | C36: ='Races, Positions & Points'!C36 -> 1994 | D36: =IF(ISERROR(VLOOKUP($B36,'Races, Positions & Points'!$A:$D,4,FALSE)),"",IF((VLOOKUP($B36,'Races, Positions & Points'!$A:$D,4,FALSE))=0,"",VLOOKUP($B36,'Races, Positions & Points'!$A:$D,4,FALSE))) -> U21 | E36: ='Races, Positions & Points'!F36 -> NR | F36: ='Races, Positions & Points'!M36 ->  | G36: =IF(ISERROR(VLOOKUP($B36,'Races, Positions & Points'!$A:$EG,137,FALSE)),"",IF((VLOOKUP($B36,'Races, Positions & Points'!$A:$EG,137,FALSE))=0,"",VLOOKUP($B36,'Races, Positions & Points'!$A:$EG,137,FALSE))) ->  | H36: =IF(ISERROR(VLOOKUP($B36,'Races, Positions & Points'!$A:$EH,138,FALSE)),"",IF((VLOOKUP($B36,'Races, Positions & Points'!$A:$EH,138,FALSE))=0,"",VLOOKUP($B36,'Races, Positions & Points'!$A:$EH,138,FALSE))) -> 
B37: ='Races, Positions & Points'!A37 -> Olivia Waller | C37: ='Races, Positions & Points'!C37 -> 1994 | D37: =IF(ISERROR(VLOOKUP($B37,'Races, Positions & Points'!$A:$D,4,FALSE)),"",IF((VLOOKUP($B37,'Races, Positions & Points'!$A:$D,4,FALSE))=0,"",VLOOKUP($B37,'Races, Positions & Points'!$A:$D,4,FALSE))) -> U21 | E37: ='Races, Positions & Points'!F37 -> NR | F37: ='Races, Positions & Points'!M37 ->  | G37: =IF(ISERROR(VLOOKUP($B37,'Races, Positions & Points'!$A:$EG,137,FALSE)),"",IF((VLOOKUP($B37,'Races, Positions & Points'!$A:$EG,137,FALSE))=0,"",VLOOKUP($B37,'Races, Positions & Points'!$A:$EG,137,FALSE))) ->  | H37: =IF(ISERROR(VLOOKUP($B37,'Races, Positions & Points'!$A:$EH,138,FALSE)),"",IF((VLOOKUP($B37,'Races, Positions & Points'!$A:$EH,138,FALSE))=0,"",VLOOKUP($B37,'Races, Positions & Points'!$A:$EH,138,FALSE))) -> 
B38: ='Races, Positions & Points'!A38 -> Agathe Vallat | C38: ='Races, Positions & Points'!C38 -> 1999 | D38: =IF(ISERROR(VLOOKUP($B38,'Races, Positions & Points'!$A:$D,4,FALSE)),"",IF((VLOOKUP($B38,'Races, Positions & Points'!$A:$D,4,FALSE))=0,"",VLOOKUP($B38,'Races, Positions & Points'!$A:$D,4,FALSE))) -> U16 | E38: ='Races, Positions & Points'!F38 -> 999.99 | F38: ='Races, Positions & Points'!M38 ->  | G38: =IF(ISERROR(VLOOKUP($B38,'Races, Positions & Points'!$A:$EG,137,FALSE)),"",IF((VLOOKUP($B38,'Races, Positions & Points'!$A:$EG,137,FALSE))=0,"",VLOOKUP($B38,'Races, Positions & Points'!$A:$EG,137,FALSE))) ->  | H38: =IF(ISERROR(VLOOKUP($B38,'Races, Positions & Points'!$A:$EH,138,FALSE)),"",IF((VLOOKUP($B38,'Races, Positions & Points'!$A:$EH,138,FALSE))=0,"",VLOOKUP($B38,'Races, Positions & Points'!$A:$EH,138,FALSE))) -> 
B39: ='Races, Positions & Points'!A39 -> Carys Phillips | C39: ='Races, Positions & Points'!C39 -> 1999 | D39: =IF(ISERROR(VLOOKUP($B39,'Races, Positions & Points'!$A:$D,4,FALSE)),"",IF((VLOOKUP($B39,'Races, Positions & Points'!$A:$D,4,FALSE))=0,"",VLOOKUP($B39,'Races, Positions & Points'!$A:$D,4,FALSE))) -> U16 | E39: ='Races, Positions & Points'!F39 -> NR | F39: ='Races, Positions & Points'!M39 ->  | G39: =IF(ISERROR(VLOOKUP($B39,'Races, Positions & Points'!$A:$EG,137,FALSE)),"",IF((VLOOKUP($B39,'Races, Positions & Points'!$A:$EG,137,FALSE))=0,"",VLOOKUP($B39,'Races, Positions & Points'!$A:$EG,137,FALSE))) ->  | H39: =IF(ISERROR(VLOOKUP($B39,'Races, Positions & Points'!$A:$EH,138,FALSE)),"",IF((VLOOKUP($B39,'Races, Positions & Points'!$A:$EH,138,FALSE))=0,"",VLOOKUP($B39,'Races, Positions & Points'!$A:$EH,138,FALSE))) -> 
B40: MALES | C40: =IF(ISERROR(VLOOKUP($B40,'Races, Positions & Points'!$A:$C,3,FALSE)),"",IF((VLOOKUP($B40,'Races, Positions & Points'!$A:$C,3,FALSE))=0,"",VLOOKUP($B40,'Races, Positions & Points'!$A:$C,3,FALSE))) ->  | D40: =IF(ISERROR(VLOOKUP($B40,'Races, Positions & Points'!$A:$D,4,FALSE)),"",IF((VLOOKUP($B40,'Races, Positions & Points'!$A:$D,4,FALSE))=0,"",VLOOKUP($B40,'Races, Positions & Points'!$A:$D,4,FALSE))) ->  | E40: =IF(ISERROR(VLOOKUP($B40,'Races, Positions & Points'!$A:$F,7,FALSE)),"",IF((VLOOKUP($B40,'Races, Positions & Points'!$A:$F,7,FALSE))=0,"",VLOOKUP($B40,'Races, Positions & Points'!$A:$F,7,FALSE))) ->  | F40: =IF(ISERROR(VLOOKUP($B40,'Races, Positions & Points'!$A:$M,9,FALSE)),"",IF((VLOOKUP($B40,'Races, Positions & Points'!$A:$M,9,FALSE))=0,"",VLOOKUP($B40,'Races, Positions & Points'!$A:$M,9,FALSE))) ->  | H40: =IF(ISERROR(VLOOKUP($B40,'Races, Positions & Points'!$A:$EF,132,FALSE)),"",IF((VLOOKUP($B40,'Races, Positions & Points'!$A:$EF,132,FALSE))=0,"",VLOOKUP($B40,'Races, Positions & Points'!$A:$EF,132,FALSE))) -> 
B41: ='Races, Positions & Points'!A41 -> Harry Hornsby | C41: ='Races, Positions & Points'!C41 -> 1991 | D41: =IF(ISERROR(VLOOKUP($B41,'Races, Positions & Points'!$A:$D,4,FALSE)),"",IF((VLOOKUP($B41,'Races, Positions & Points'!$A:$D,4,FALSE))=0,"",VLOOKUP($B41,'Races, Positions & Points'!$A:$D,4,FALSE))) -> SEN | E41: ='Races, Positions & Points'!F41 -> 4.17 | F41: ='Races, Positions & Points'!M41 ->  | G41: =IF(ISERROR(VLOOKUP($B41,'Races, Positions & Points'!$A:$EG,137,FALSE)),"",IF((VLOOKUP($B41,'Races, Positions & Points'!$A:$EG,137,FALSE))=0,"",VLOOKUP($B41,'Races, Positions & Points'!$A:$EG,137,FALSE))) -> 3 | H41: =IF(ISERROR(VLOOKUP($B41,'Races, Positions & Points'!$A:$EH,138,FALSE)),"",IF((VLOOKUP($B41,'Races, Positions & Points'!$A:$EH,138,FALSE))=0,"",VLOOKUP($B41,'Races, Positions & Points'!$A:$EH,138,FALSE))) -> 5
B42: ='Races, Positions & Points'!A42 -> Andrew Du Plessis | C42: ='Races, Positions & Points'!C42 -> 1985 | D42: =IF(ISERROR(VLOOKUP($B42,'Races, Positions & Points'!$A:$D,4,FALSE)),"",IF((VLOOKUP($B42,'Races, Positions & Points'!$A:$D,4,FALSE))=0,"",VLOOKUP($B42,'Races, Positions & Points'!$A:$D,4,FALSE))) -> SEN | E42: ='Races, Positions & Points'!F42 -> 25.51 | F42: ='Races, Positions & Points'!M42 -> -0.89 | G42: =IF(ISERROR(VLOOKUP($B42,'Races, Positions & Points'!$A:$EG,137,FALSE)),"",IF((VLOOKUP($B42,'Races, Positions & Points'!$A:$EG,137,FALSE))=0,"",VLOOKUP($B42,'Races, Positions & Points'!$A:$EG,137,FALSE))) ->  | H42: =IF(ISERROR(VLOOKUP($B42,'Races, Positions & Points'!$A:$EH,138,FALSE)),"",IF((VLOOKUP($B42,'Races, Positions & Points'!$A:$EH,138,FALSE))=0,"",VLOOKUP($B42,'Races, Positions & Points'!$A:$EH,138,FALSE))) -> 3
B43: ='Races, Positions & Points'!A43 -> Adam Beardmore | C43: ='Races, Positions & Points'!C43 -> 1986 | D43: =IF(ISERROR(VLOOKUP($B43,'Races, Positions & Points'!$A:$D,4,FALSE)),"",IF((VLOOKUP($B43,'Races, Positions & Points'!$A:$D,4,FALSE))=0,"",VLOOKUP($B43,'Races, Positions & Points'!$A:$D,4,FALSE))) -> SEN | E43: ='Races, Positions & Points'!F43 -> 29.85 | F43: ='Races, Positions & Points'!M43 ->  | G43: =IF(ISERROR(VLOOKUP($B43,'Races, Positions & Points'!$A:$EG,137,FALSE)),"",IF((VLOOKUP($B43,'Races, Positions & Points'!$A:$EG,137,FALSE))=0,"",VLOOKUP($B43,'Races, Positions & Points'!$A:$EG,137,FALSE))) ->  | H43: =IF(ISERROR(VLOOKUP($B43,'Races, Positions & Points'!$A:$EH,138,FALSE)),"",IF((VLOOKUP($B43,'Races, Positions & Points'!$A:$EH,138,FALSE))=0,"",VLOOKUP($B43,'Races, Positions & Points'!$A:$EH,138,FALSE))) -> 
B44: ='Races, Positions & Points'!A44 -> Jonny Powell | C44: ='Races, Positions & Points'!C44 -> 1986 | D44: =IF(ISERROR(VLOOKUP($B44,'Races, Positions & Points'!$A:$D,4,FALSE)),"",IF((VLOOKUP($B44,'Races, Positions & Points'!$A:$D,4,FALSE))=0,"",VLOOKUP($B44,'Races, Positions & Points'!$A:$D,4,FALSE))) -> SEN | E44: ='Races, Positions & Points'!F44 -> 30.83 | F44: ='Races, Positions & Points'!M44 -> -7.52 | G44: =IF(ISERROR(VLOOKUP($B44,'Races, Positions & Points'!$A:$EG,137,FALSE)),"",IF((VLOOKUP($B44,'Races, Positions & Points'!$A:$EG,137,FALSE))=0,"",VLOOKUP($B44,'Races, Positions & Points'!$A:$EG,137,FALSE))) -> 7 | H44: =IF(ISERROR(VLOOKUP($B44,'Races, Positions & Points'!$A:$EH,138,FALSE)),"",IF((VLOOKUP($B44,'Races, Positions & Points'!$A:$EH,138,FALSE))=0,"",VLOOKUP($B44,'Races, Positions & Points'!$A:$EH,138,FALSE))) -> 17
B45: ='Races, Positions & Points'!A45 -> Nick Miller | C45: ='Races, Positions & Points'!C45 -> 1993 | D45: =IF(ISERROR(VLOOKUP($B45,'Races, Positions & Points'!$A:$D,4,FALSE)),"",IF((VLOOKUP($B45,'Races, Positions & Points'!$A:$D,4,FALSE))=0,"",VLOOKUP($B45,'Races, Positions & Points'!$A:$D,4,FALSE))) -> U21 | E45: ='Races, Positions & Points'!F45 -> 56.48 | F45: ='Races, Positions & Points'!M45 ->  | G45: =IF(ISERROR(VLOOKUP($B45,'Races, Positions & Points'!$A:$EG,137,FALSE)),"",IF((VLOOKUP($B45,'Races, Positions & Points'!$A:$EG,137,FALSE))=0,"",VLOOKUP($B45,'Races, Positions & Points'!$A:$EG,137,FALSE))) ->  | H45: =IF(ISERROR(VLOOKUP($B45,'Races, Positions & Points'!$A:$EH,138,FALSE)),"",IF((VLOOKUP($B45,'Races, Positions & Points'!$A:$EH,138,FALSE))=0,"",VLOOKUP($B45,'Races, Positions & Points'!$A:$EH,138,FALSE))) -> 
B46: ='Races, Positions & Points'!A46 -> Mark Hawkins | C46: ='Races, Positions & Points'!C46 -> 1979 | D46: =IF(ISERROR(VLOOKUP($B46,'Races, Positions & Points'!$A:$D,4,FALSE)),"",IF((VLOOKUP($B46,'Races, Positions & Points'!$A:$D,4,FALSE))=0,"",VLOOKUP($B46,'Races, Positions & Points'!$A:$D,4,FALSE))) -> MAS | E46: ='Races, Positions & Points'!F46 -> 57.13 | F46: ='Races, Positions & Points'!M46 ->  | G46: =IF(ISERROR(VLOOKUP($B46,'Races, Positions & Points'!$A:$EG,137,FALSE)),"",IF((VLOOKUP($B46,'Races, Positions & Points'!$A:$EG,137,FALSE))=0,"",VLOOKUP($B46,'Races, Positions & Points'!$A:$EG,137,FALSE))) ->  | H46: =IF(ISERROR(VLOOKUP($B46,'Races, Positions & Points'!$A:$EH,138,FALSE)),"",IF((VLOOKUP($B46,'Races, Positions & Points'!$A:$EH,138,FALSE))=0,"",VLOOKUP($B46,'Races, Positions & Points'!$A:$EH,138,FALSE))) -> 12
B47: ='Races, Positions & Points'!A47 -> Jack Rigby | C47: ='Races, Positions & Points'!C47 -> 1995 | D47: =IF(ISERROR(VLOOKUP($B47,'Races, Positions & Points'!$A:$D,4,FALSE)),"",IF((VLOOKUP($B47,'Races, Positions & Points'!$A:$D,4,FALSE))=0,"",VLOOKUP($B47,'Races, Positions & Points'!$A:$D,4,FALSE))) -> U21 | E47: ='Races, Positions & Points'!F47 -> 62.46 | F47: ='Races, Positions & Points'!M47 -> -8.73 | G47: =IF(ISERROR(VLOOKUP($B47,'Races, Positions & Points'!$A:$EG,137,FALSE)),"",IF((VLOOKUP($B47,'Races, Positions & Points'!$A:$EG,137,FALSE))=0,"",VLOOKUP($B47,'Races, Positions & Points'!$A:$EG,137,FALSE))) ->  | H47: =IF(ISERROR(VLOOKUP($B47,'Races, Positions & Points'!$A:$EH,138,FALSE)),"",IF((VLOOKUP($B47,'Races, Positions & Points'!$A:$EH,138,FALSE))=0,"",VLOOKUP($B47,'Races, Positions & Points'!$A:$EH,138,FALSE))) -> 1
B48: ='Races, Positions & Points'!A48 -> Adam. Lee | C48: ='Races, Positions & Points'!C48 -> 1994 | D48: =IF(ISERROR(VLOOKUP($B48,'Races, Positions & Points'!$A:$D,4,FALSE)),"",IF((VLOOKUP($B48,'Races, Positions & Points'!$A:$D,4,FALSE))=0,"",VLOOKUP($B48,'Races, Positions & Points'!$A:$D,4,FALSE))) -> U21 | E48: ='Races, Positions & Points'!F48 -> 59.81 | F48: ='Races, Positions & Points'!M48 -> -16.29 | G48: =IF(ISERROR(VLOOKUP($B48,'Races, Positions & Points'!$A:$EG,137,FALSE)),"",IF((VLOOKUP($B48,'Races, Positions & Points'!$A:$EG,137,FALSE))=0,"",VLOOKUP($B48,'Races, Positions & Points'!$A:$EG,137,FALSE))) -> 1 | H48: =IF(ISERROR(VLOOKUP($B48,'Races, Positions & Points'!$A:$EH,138,FALSE)),"",IF((VLOOKUP($B48,'Races, Positions & Points'!$A:$EH,138,FALSE))=0,"",VLOOKUP($B48,'Races, Positions & Points'!$A:$EH,138,FALSE))) -> 10
B49: ='Races, Positions & Points'!A49 -> Alasdair Thorley | C49: ='Races, Positions & Points'!C49 -> 1994 | D49: =IF(ISERROR(VLOOKUP($B49,'Races, Positions & Points'!$A:$D,4,FALSE)),"",IF((VLOOKUP($B49,'Races, Positions & Points'!$A:$D,4,FALSE))=0,"",VLOOKUP($B49,'Races, Positions & Points'!$A:$D,4,FALSE))) -> U21 | E49: ='Races, Positions & Points'!F49 -> 61.87 | F49: ='Races, Positions & Points'!M49 ->  | G49: =IF(ISERROR(VLOOKUP($B49,'Races, Positions & Points'!$A:$EG,137,FALSE)),"",IF((VLOOKUP($B49,'Races, Positions & Points'!$A:$EG,137,FALSE))=0,"",VLOOKUP($B49,'Races, Positions & Points'!$A:$EG,137,FALSE))) ->  | H49: =IF(ISERROR(VLOOKUP($B49,'Races, Positions & Points'!$A:$EH,138,FALSE)),"",IF((VLOOKUP($B49,'Races, Positions & Points'!$A:$EH,138,FALSE))=0,"",VLOOKUP($B49,'Races, Positions & Points'!$A:$EH,138,FALSE))) -> 
B50: ='Races, Positions & Points'!A50 -> Phil Emmerson | C50: ='Races, Positions & Points'!C50 -> 1990 | D50: =IF(ISERROR(VLOOKUP($B50,'Races, Positions & Points'!$A:$D,4,FALSE)),"",IF((VLOOKUP($B50,'Races, Positions & Points'!$A:$D,4,FALSE))=0,"",VLOOKUP($B50,'Races, Positions & Points'!$A:$D,4,FALSE))) -> SEN | E50: ='Races, Positions & Points'!F50 -> 104.55 | F50: ='Races, Positions & Points'!M50 -> -42.23 | G50: =IF(ISERROR(VLOOKUP($B50,'Races, Positions & Points'!$A:$EG,137,FALSE)),"",IF((VLOOKUP($B50,'Races, Positions & Points'!$A:$EG,137,FALSE))=0,"",VLOOKUP($B50,'Races, Positions & Points'!$A:$EG,137,FALSE))) ->  | H50: =IF(ISERROR(VLOOKUP($B50,'Races, Positions & Points'!$A:$EH,138,FALSE)),"",IF((VLOOKUP($B50,'Races, Positions & Points'!$A:$EH,138,FALSE))=0,"",VLOOKUP($B50,'Races, Positions & Points'!$A:$EH,138,FALSE))) -> 3
B51: ='Races, Positions & Points'!A51 -> Nick Phelps | C51: ='Races, Positions & Points'!C51 -> 1997 | D51: =IF(ISERROR(VLOOKUP($B51,'Races, Positions & Points'!$A:$D,4,FALSE)),"",IF((VLOOKUP($B51,'Races, Positions & Points'!$A:$D,4,FALSE))=0,"",VLOOKUP($B51,'Races, Positions & Points'!$A:$D,4,FALSE))) -> U18 | E51: ='Races, Positions & Points'!F51 -> 62.44 | F51: ='Races, Positions & Points'!M51 ->  | G51: =IF(ISERROR(VLOOKUP($B51,'Races, Positions & Points'!$A:$EG,137,FALSE)),"",IF((VLOOKUP($B51,'Races, Positions & Points'!$A:$EG,137,FALSE))=0,"",VLOOKUP($B51,'Races, Positions & Points'!$A:$EG,137,FALSE))) ->  | H51: =IF(ISERROR(VLOOKUP($B51,'Races, Positions & Points'!$A:$EH,138,FALSE)),"",IF((VLOOKUP($B51,'Races, Positions & Points'!$A:$EH,138,FALSE))=0,"",VLOOKUP($B51,'Races, Positions & Points'!$A:$EH,138,FALSE))) -> 2
B52: ='Races, Positions & Points'!A52 -> James Smith | C52: ='Races, Positions & Points'!C52 -> 1992 | D52: =IF(ISERROR(VLOOKUP($B52,'Races, Positions & Points'!$A:$D,4,FALSE)),"",IF((VLOOKUP($B52,'Races, Positions & Points'!$A:$D,4,FALSE))=0,"",VLOOKUP($B52,'Races, Positions & Points'!$A:$D,4,FALSE))) -> SEN | E52: ='Races, Positions & Points'!F52 -> 999.99 | F52: ='Races, Positions & Points'!M52 ->  | G52: =IF(ISERROR(VLOOKUP($B52,'Races, Positions & Points'!$A:$EG,137,FALSE)),"",IF((VLOOKUP($B52,'Races, Positions & Points'!$A:$EG,137,FALSE))=0,"",VLOOKUP($B52,'Races, Positions & Points'!$A:$EG,137,FALSE))) ->  | H52: =IF(ISERROR(VLOOKUP($B52,'Races, Positions & Points'!$A:$EH,138,FALSE)),"",IF((VLOOKUP($B52,'Races, Positions & Points'!$A:$EH,138,FALSE))=0,"",VLOOKUP($B52,'Races, Positions & Points'!$A:$EH,138,FALSE))) -> 3
B53: ='Races, Positions & Points'!A53 -> Oliver Weeks | C53: ='Races, Positions & Points'!C53 -> 2001 | D53: =IF(ISERROR(VLOOKUP($B53,'Races, Positions & Points'!$A:$D,4,FALSE)),"",IF((VLOOKUP($B53,'Races, Positions & Points'!$A:$D,4,FALSE))=0,"",VLOOKUP($B53,'Races, Positions & Points'!$A:$D,4,FALSE))) -> U14 | E53: ='Races, Positions & Points'!F53 -> 119.29 | F53: ='Races, Positions & Points'!M53 -> -43.71 | G53: =IF(ISERROR(VLOOKUP($B53,'Races, Positions & Points'!$A:$EG,137,FALSE)),"",IF((VLOOKUP($B53,'Races, Positions & Points'!$A:$EG,137,FALSE))=0,"",VLOOKUP($B53,'Races, Positions & Points'!$A:$EG,137,FALSE))) ->  | H53: =IF(ISERROR(VLOOKUP($B53,'Races, Positions & Points'!$A:$EH,138,FALSE)),"",IF((VLOOKUP($B53,'Races, Positions & Points'!$A:$EH,138,FALSE))=0,"",VLOOKUP($B53,'Races, Positions & Points'!$A:$EH,138,FALSE))) -> 21
B54: ='Races, Positions & Points'!A54 -> Roger Crombleholme | C54: ='Races, Positions & Points'!C54 -> 1957 | D54: =IF(ISERROR(VLOOKUP($B54,'Races, Positions & Points'!$A:$D,4,FALSE)),"",IF((VLOOKUP($B54,'Races, Positions & Points'!$A:$D,4,FALSE))=0,"",VLOOKUP($B54,'Races, Positions & Points'!$A:$D,4,FALSE))) -> MAS | E54: ='Races, Positions & Points'!F54 -> 104.12 | F54: ='Races, Positions & Points'!M54 ->  | G54: =IF(ISERROR(VLOOKUP($B54,'Races, Positions & Points'!$A:$EG,137,FALSE)),"",IF((VLOOKUP($B54,'Races, Positions & Points'!$A:$EG,137,FALSE))=0,"",VLOOKUP($B54,'Races, Positions & Points'!$A:$EG,137,FALSE))) ->  | H54: =IF(ISERROR(VLOOKUP($B54,'Races, Positions & Points'!$A:$EH,138,FALSE)),"",IF((VLOOKUP($B54,'Races, Positions & Points'!$A:$EH,138,FALSE))=0,"",VLOOKUP($B54,'Races, Positions & Points'!$A:$EH,138,FALSE))) -> 
B55: ='Races, Positions & Points'!A55 -> Joey Frost | C55: ='Races, Positions & Points'!C55 -> 1995 | D55: =IF(ISERROR(VLOOKUP($B55,'Races, Positions & Points'!$A:$D,4,FALSE)),"",IF((VLOOKUP($B55,'Races, Positions & Points'!$A:$D,4,FALSE))=0,"",VLOOKUP($B55,'Races, Positions & Points'!$A:$D,4,FALSE))) -> U21 | E55: ='Races, Positions & Points'!F55 -> 110.32 | F55: ='Races, Positions & Points'!M55 ->  | G55: =IF(ISERROR(VLOOKUP($B55,'Races, Positions & Points'!$A:$EG,137,FALSE)),"",IF((VLOOKUP($B55,'Races, Positions & Points'!$A:$EG,137,FALSE))=0,"",VLOOKUP($B55,'Races, Positions & Points'!$A:$EG,137,FALSE))) ->  | H55: =IF(ISERROR(VLOOKUP($B55,'Races, Positions & Points'!$A:$EH,138,FALSE)),"",IF((VLOOKUP($B55,'Races, Positions & Points'!$A:$EH,138,FALSE))=0,"",VLOOKUP($B55,'Races, Positions & Points'!$A:$EH,138,FALSE))) -> 
B56: ='Races, Positions & Points'!A56 -> Jordan Rigby | C56: ='Races, Positions & Points'!C56 -> 2000 | D56: =IF(ISERROR(VLOOKUP($B56,'Races, Positions & Points'!$A:$D,4,FALSE)),"",IF((VLOOKUP($B56,'Races, Positions & Points'!$A:$D,4,FALSE))=0,"",VLOOKUP($B56,'Races, Positions & Points'!$A:$D,4,FALSE))) -> U14 | E56: ='Races, Positions & Points'!F56 -> 144.43 | F56: ='Races, Positions & Points'!M56 -> -28.02 | G56: =IF(ISERROR(VLOOKUP($B56,'Races, Positions & Points'!$A:$EG,137,FALSE)),"",IF((VLOOKUP($B56,'Races, Positions & Points'!$A:$EG,137,FALSE))=0,"",VLOOKUP($B56,'Races, Positions & Points'!$A:$EG,137,FALSE))) ->  | H56: =IF(ISERROR(VLOOKUP($B56,'Races, Positions & Points'!$A:$EH,138,FALSE)),"",IF((VLOOKUP($B56,'Races, Positions & Points'!$A:$EH,138,FALSE))=0,"",VLOOKUP($B56,'Races, Positions & Points'!$A:$EH,138,FALSE))) -> 6
B57: ='Races, Positions & Points'!A57 -> James Elgy | C57: ='Races, Positions & Points'!C57 -> 1993 | D57: =IF(ISERROR(VLOOKUP($B57,'Races, Positions & Points'!$A:$D,4,FALSE)),"",IF((VLOOKUP($B57,'Races, Positions & Points'!$A:$D,4,FALSE))=0,"",VLOOKUP($B57,'Races, Positions & Points'!$A:$D,4,FALSE))) -> U21 | E57: ='Races, Positions & Points'!F57 -> 142.46 | F57: ='Races, Positions & Points'!M57 ->  | G57: =IF(ISERROR(VLOOKUP($B57,'Races, Positions & Points'!$A:$EG,137,FALSE)),"",IF((VLOOKUP($B57,'Races, Positions & Points'!$A:$EG,137,FALSE))=0,"",VLOOKUP($B57,'Races, Positions & Points'!$A:$EG,137,FALSE))) ->  | H57: =IF(ISERROR(VLOOKUP($B57,'Races, Positions & Points'!$A:$EH,138,FALSE)),"",IF((VLOOKUP($B57,'Races, Positions & Points'!$A:$EH,138,FALSE))=0,"",VLOOKUP($B57,'Races, Positions & Points'!$A:$EH,138,FALSE))) -> 
B58: ='Races, Positions & Points'!A58 -> Sam Lee | C58: ='Races, Positions & Points'!C58 -> 1996 | D58: =IF(ISERROR(VLOOKUP($B58,'Races, Positions & Points'!$A:$D,4,FALSE)),"",IF((VLOOKUP($B58,'Races, Positions & Points'!$A:$D,4,FALSE))=0,"",VLOOKUP($B58,'Races, Positions & Points'!$A:$D,4,FALSE))) -> U18 | E58: ='Races, Positions & Points'!F58 -> 154.66 | F58: ='Races, Positions & Points'!M58 -> -21.25 | G58: =IF(ISERROR(VLOOKUP($B58,'Races, Positions & Points'!$A:$EG,137,FALSE)),"",IF((VLOOKUP($B58,'Races, Positions & Points'!$A:$EG,137,FALSE))=0,"",VLOOKUP($B58,'Races, Positions & Points'!$A:$EG,137,FALSE))) ->  | H58: =IF(ISERROR(VLOOKUP($B58,'Races, Positions & Points'!$A:$EH,138,FALSE)),"",IF((VLOOKUP($B58,'Races, Positions & Points'!$A:$EH,138,FALSE))=0,"",VLOOKUP($B58,'Races, Positions & Points'!$A:$EH,138,FALSE))) -> 
B59: ='Races, Positions & Points'!A59 -> Sam Dewison | C59: ='Races, Positions & Points'!C59 -> 1998 | D59: =IF(ISERROR(VLOOKUP($B59,'Races, Positions & Points'!$A:$D,4,FALSE)),"",IF((VLOOKUP($B59,'Races, Positions & Points'!$A:$D,4,FALSE))=0,"",VLOOKUP($B59,'Races, Positions & Points'!$A:$D,4,FALSE))) -> U16 | E59: ='Races, Positions & Points'!F59 -> 238.66 | F59: ='Races, Positions & Points'!M59 -> -114.21 | G59: =IF(ISERROR(VLOOKUP($B59,'Races, Positions & Points'!$A:$EG,137,FALSE)),"",IF((VLOOKUP($B59,'Races, Positions & Points'!$A:$EG,137,FALSE))=0,"",VLOOKUP($B59,'Races, Positions & Points'!$A:$EG,137,FALSE))) ->  | H59: =IF(ISERROR(VLOOKUP($B59,'Races, Positions & Points'!$A:$EH,138,FALSE)),"",IF((VLOOKUP($B59,'Races, Positions & Points'!$A:$EH,138,FALSE))=0,"",VLOOKUP($B59,'Races, Positions & Points'!$A:$EH,138,FALSE))) -> 
B60: ='Races, Positions & Points'!A60 -> Thomas Lawrence | C60: ='Races, Positions & Points'!C60 -> 1999 | D60: =IF(ISERROR(VLOOKUP($B60,'Races, Positions & Points'!$A:$D,4,FALSE)),"",IF((VLOOKUP($B60,'Races, Positions & Points'!$A:$D,4,FALSE))=0,"",VLOOKUP($B60,'Races, Positions & Points'!$A:$D,4,FALSE))) -> U16 | E60: ='Races, Positions & Points'!F60 -> 191.81 | F60: ='Races, Positions & Points'!M60 -> -42.61 | G60: =IF(ISERROR(VLOOKUP($B60,'Races, Positions & Points'!$A:$EG,137,FALSE)),"",IF((VLOOKUP($B60,'Races, Positions & Points'!$A:$EG,137,FALSE))=0,"",VLOOKUP($B60,'Races, Positions & Points'!$A:$EG,137,FALSE))) ->  | H60: =IF(ISERROR(VLOOKUP($B60,'Races, Positions & Points'!$A:$EH,138,FALSE)),"",IF((VLOOKUP($B60,'Races, Positions & Points'!$A:$EH,138,FALSE))=0,"",VLOOKUP($B60,'Races, Positions & Points'!$A:$EH,138,FALSE))) -> 
B61: ='Races, Positions & Points'!A61 -> Ethan Hemming | C61: ='Races, Positions & Points'!C61 -> 2001 | D61: =IF(ISERROR(VLOOKUP($B61,'Races, Positions & Points'!$A:$D,4,FALSE)),"",IF((VLOOKUP($B61,'Races, Positions & Points'!$A:$D,4,FALSE))=0,"",VLOOKUP($B61,'Races, Positions & Points'!$A:$D,4,FALSE))) -> U14 | E61: ='Races, Positions & Points'!F61 -> 211.91 | F61: ='Races, Positions & Points'!M61 -> -57.11 | G61: =IF(ISERROR(VLOOKUP($B61,'Races, Positions & Points'!$A:$EG,137,FALSE)),"",IF((VLOOKUP($B61,'Races, Positions & Points'!$A:$EG,137,FALSE))=0,"",VLOOKUP($B61,'Races, Positions & Points'!$A:$EG,137,FALSE))) ->  | H61: =IF(ISERROR(VLOOKUP($B61,'Races, Positions & Points'!$A:$EH,138,FALSE)),"",IF((VLOOKUP($B61,'Races, Positions & Points'!$A:$EH,138,FALSE))=0,"",VLOOKUP($B61,'Races, Positions & Points'!$A:$EH,138,FALSE))) -> 2
B62: ='Races, Positions & Points'!A62 -> Duncan Thorley | C62: ='Races, Positions & Points'!C62 -> 1997 | D62: =IF(ISERROR(VLOOKUP($B62,'Races, Positions & Points'!$A:$D,4,FALSE)),"",IF((VLOOKUP($B62,'Races, Positions & Points'!$A:$D,4,FALSE))=0,"",VLOOKUP($B62,'Races, Positions & Points'!$A:$D,4,FALSE))) -> U18 | E62: ='Races, Positions & Points'!F62 -> 197.45 | F62: ='Races, Positions & Points'!M62 -> -58.91 | G62: =IF(ISERROR(VLOOKUP($B62,'Races, Positions & Points'!$A:$EG,137,FALSE)),"",IF((VLOOKUP($B62,'Races, Positions & Points'!$A:$EG,137,FALSE))=0,"",VLOOKUP($B62,'Races, Positions & Points'!$A:$EG,137,FALSE))) ->  | H62: =IF(ISERROR(VLOOKUP($B62,'Races, Positions & Points'!$A:$EH,138,FALSE)),"",IF((VLOOKUP($B62,'Races, Positions & Points'!$A:$EH,138,FALSE))=0,"",VLOOKUP($B62,'Races, Positions & Points'!$A:$EH,138,FALSE))) -> 1
B63: ='Races, Positions & Points'!A63 -> Toby Tarrant | C63: ='Races, Positions & Points'!C63 -> 1997 | D63: =IF(ISERROR(VLOOKUP($B63,'Races, Positions & Points'!$A:$D,4,FALSE)),"",IF((VLOOKUP($B63,'Races, Positions & Points'!$A:$D,4,FALSE))=0,"",VLOOKUP($B63,'Races, Positions & Points'!$A:$D,4,FALSE))) -> U18 | E63: ='Races, Positions & Points'!F63 -> 999.99 | F63: ='Races, Positions & Points'!M63 ->  | G63: =IF(ISERROR(VLOOKUP($B63,'Races, Positions & Points'!$A:$EG,137,FALSE)),"",IF((VLOOKUP($B63,'Races, Positions & Points'!$A:$EG,137,FALSE))=0,"",VLOOKUP($B63,'Races, Positions & Points'!$A:$EG,137,FALSE))) ->  | H63: =IF(ISERROR(VLOOKUP($B63,'Races, Positions & Points'!$A:$EH,138,FALSE)),"",IF((VLOOKUP($B63,'Races, Positions & Points'!$A:$EH,138,FALSE))=0,"",VLOOKUP($B63,'Races, Positions & Points'!$A:$EH,138,FALSE))) -> 
B64: ='Races, Positions & Points'!A64 -> Thomas Upton | C64: ='Races, Positions & Points'!C64 -> 2001 | D64: =IF(ISERROR(VLOOKUP($B64,'Races, Positions & Points'!$A:$D,4,FALSE)),"",IF((VLOOKUP($B64,'Races, Positions & Points'!$A:$D,4,FALSE))=0,"",VLOOKUP($B64,'Races, Positions & Points'!$A:$D,4,FALSE))) -> U14 | E64: ='Races, Positions & Points'!F64 -> 341.66 | F64: ='Races, Positions & Points'!M64 -> -147.2 | G64: =IF(ISERROR(VLOOKUP($B64,'Races, Positions & Points'!$A:$EG,137,FALSE)),"",IF((VLOOKUP($B64,'Races, Positions & Points'!$A:$EG,137,FALSE))=0,"",VLOOKUP($B64,'Races, Positions & Points'!$A:$EG,137,FALSE))) ->  | H64: =IF(ISERROR(VLOOKUP($B64,'Races, Positions & Points'!$A:$EH,138,FALSE)),"",IF((VLOOKUP($B64,'Races, Positions & Points'!$A:$EH,138,FALSE))=0,"",VLOOKUP($B64,'Races, Positions & Points'!$A:$EH,138,FALSE))) -> 
B65: ='Races, Positions & Points'!A65 -> Edward Guy | C65: ='Races, Positions & Points'!C65 -> 2001 | D65: =IF(ISERROR(VLOOKUP($B65,'Races, Positions & Points'!$A:$D,4,FALSE)),"",IF((VLOOKUP($B65,'Races, Positions & Points'!$A:$D,4,FALSE))=0,"",VLOOKUP($B65,'Races, Positions & Points'!$A:$D,4,FALSE))) -> U14 | E65: ='Races, Positions & Points'!F65 -> 210.93 | F65: ='Races, Positions & Points'!M65 ->  | G65: =IF(ISERROR(VLOOKUP($B65,'Races, Positions & Points'!$A:$EG,137,FALSE)),"",IF((VLOOKUP($B65,'Races, Positions & Points'!$A:$EG,137,FALSE))=0,"",VLOOKUP($B65,'Races, Positions & Points'!$A:$EG,137,FALSE))) ->  | H65: =IF(ISERROR(VLOOKUP($B65,'Races, Positions & Points'!$A:$EH,138,FALSE)),"",IF((VLOOKUP($B65,'Races, Positions & Points'!$A:$EH,138,FALSE))=0,"",VLOOKUP($B65,'Races, Positions & Points'!$A:$EH,138,FALSE))) -> 1
B66: ='Races, Positions & Points'!A66 -> Samuel Doherty | C66: ='Races, Positions & Points'!C66 -> 1999 | D66: =IF(ISERROR(VLOOKUP($B66,'Races, Positions & Points'!$A:$D,4,FALSE)),"",IF((VLOOKUP($B66,'Races, Positions & Points'!$A:$D,4,FALSE))=0,"",VLOOKUP($B66,'Races, Positions & Points'!$A:$D,4,FALSE))) -> U16 | E66: ='Races, Positions & Points'!F66 -> 218.06 | F66: ='Races, Positions & Points'!M66 ->  | G66: =IF(ISERROR(VLOOKUP($B66,'Races, Positions & Points'!$A:$EG,137,FALSE)),"",IF((VLOOKUP($B66,'Races, Positions & Points'!$A:$EG,137,FALSE))=0,"",VLOOKUP($B66,'Races, Positions & Points'!$A:$EG,137,FALSE))) ->  | H66: =IF(ISERROR(VLOOKUP($B66,'Races, Positions & Points'!$A:$EH,138,FALSE)),"",IF((VLOOKUP($B66,'Races, Positions & Points'!$A:$EH,138,FALSE))=0,"",VLOOKUP($B66,'Races, Positions & Points'!$A:$EH,138,FALSE))) -> 
B67: ='Races, Positions & Points'!A67 -> Karl Hancock | C67: ='Races, Positions & Points'!C67 -> 1995 | D67: =IF(ISERROR(VLOOKUP($B67,'Races, Positions & Points'!$A:$D,4,FALSE)),"",IF((VLOOKUP($B67,'Races, Positions & Points'!$A:$D,4,FALSE))=0,"",VLOOKUP($B67,'Races, Positions & Points'!$A:$D,4,FALSE))) -> U21 | E67: ='Races, Positions & Points'!F67 -> 245.23 | F67: ='Races, Positions & Points'!M67 -> -12.63 | G67: =IF(ISERROR(VLOOKUP($B67,'Races, Positions & Points'!$A:$EG,137,FALSE)),"",IF((VLOOKUP($B67,'Races, Positions & Points'!$A:$EG,137,FALSE))=0,"",VLOOKUP($B67,'Races, Positions & Points'!$A:$EG,137,FALSE))) ->  | H67: =IF(ISERROR(VLOOKUP($B67,'Races, Positions & Points'!$A:$EH,138,FALSE)),"",IF((VLOOKUP($B67,'Races, Positions & Points'!$A:$EH,138,FALSE))=0,"",VLOOKUP($B67,'Races, Positions & Points'!$A:$EH,138,FALSE))) -> 
B68: ='Races, Positions & Points'!A68 -> John Elgy | C68: ='Races, Positions & Points'!C68 -> 1951 | D68: =IF(ISERROR(VLOOKUP($B68,'Races, Positions & Points'!$A:$D,4,FALSE)),"",IF((VLOOKUP($B68,'Races, Positions & Points'!$A:$D,4,FALSE))=0,"",VLOOKUP($B68,'Races, Positions & Points'!$A:$D,4,FALSE))) -> MAS | E68: ='Races, Positions & Points'!F68 -> 280.96 | F68: ='Races, Positions & Points'!M68 ->  | G68: =IF(ISERROR(VLOOKUP($B68,'Races, Positions & Points'!$A:$EG,137,FALSE)),"",IF((VLOOKUP($B68,'Races, Positions & Points'!$A:$EG,137,FALSE))=0,"",VLOOKUP($B68,'Races, Positions & Points'!$A:$EG,137,FALSE))) ->  | H68: =IF(ISERROR(VLOOKUP($B68,'Races, Positions & Points'!$A:$EH,138,FALSE)),"",IF((VLOOKUP($B68,'Races, Positions & Points'!$A:$EH,138,FALSE))=0,"",VLOOKUP($B68,'Races, Positions & Points'!$A:$EH,138,FALSE))) -> 
B69: ='Races, Positions & Points'!A69 -> Phil Deller | C69: ='Races, Positions & Points'!C69 -> 1959 | D69: =IF(ISERROR(VLOOKUP($B69,'Races, Positions & Points'!$A:$D,4,FALSE)),"",IF((VLOOKUP($B69,'Races, Positions & Points'!$A:$D,4,FALSE))=0,"",VLOOKUP($B69,'Races, Positions & Points'!$A:$D,4,FALSE))) -> MAS | E69: ='Races, Positions & Points'!F69 -> 654.11 | F69: ='Races, Positions & Points'!M69 ->  | G69: =IF(ISERROR(VLOOKUP($B69,'Races, Positions & Points'!$A:$EG,137,FALSE)),"",IF((VLOOKUP($B69,'Races, Positions & Points'!$A:$EG,137,FALSE))=0,"",VLOOKUP($B69,'Races, Positions & Points'!$A:$EG,137,FALSE))) ->  | H69: =IF(ISERROR(VLOOKUP($B69,'Races, Positions & Points'!$A:$EH,138,FALSE)),"",IF((VLOOKUP($B69,'Races, Positions & Points'!$A:$EH,138,FALSE))=0,"",VLOOKUP($B69,'Races, Positions & Points'!$A:$EH,138,FALSE))) -> 
B70: ='Races, Positions & Points'!A70 -> David Hancock | C70: ='Races, Positions & Points'!C70 -> 1964 | D70: =IF(ISERROR(VLOOKUP($B70,'Races, Positions & Points'!$A:$D,4,FALSE)),"",IF((VLOOKUP($B70,'Races, Positions & Points'!$A:$D,4,FALSE))=0,"",VLOOKUP($B70,'Races, Positions & Points'!$A:$D,4,FALSE))) -> MAS | E70: ='Races, Positions & Points'!F70 -> 999.99 | F70: ='Races, Positions & Points'!M70 ->  | G70: =IF(ISERROR(VLOOKUP($B70,'Races, Positions & Points'!$A:$EG,137,FALSE)),"",IF((VLOOKUP($B70,'Races, Positions & Points'!$A:$EG,137,FALSE))=0,"",VLOOKUP($B70,'Races, Positions & Points'!$A:$EG,137,FALSE))) ->  | H70: =IF(ISERROR(VLOOKUP($B70,'Races, Positions & Points'!$A:$EH,138,FALSE)),"",IF((VLOOKUP($B70,'Races, Positions & Points'!$A:$EH,138,FALSE))=0,"",VLOOKUP($B70,'Races, Positions & Points'!$A:$EH,138,FALSE))) -> 
B71: ='Races, Positions & Points'!A71 -> Matthew Kirkland | C71: ='Races, Positions & Points'!C71 -> 1992 | D71: =IF(ISERROR(VLOOKUP($B71,'Races, Positions & Points'!$A:$D,4,FALSE)),"",IF((VLOOKUP($B71,'Races, Positions & Points'!$A:$D,4,FALSE))=0,"",VLOOKUP($B71,'Races, Positions & Points'!$A:$D,4,FALSE))) -> SEN | E71: ='Races, Positions & Points'!F71 -> 999.99 | F71: ='Races, Positions & Points'!M71 ->  | G71: =IF(ISERROR(VLOOKUP($B71,'Races, Positions & Points'!$A:$EG,137,FALSE)),"",IF((VLOOKUP($B71,'Races, Positions & Points'!$A:$EG,137,FALSE))=0,"",VLOOKUP($B71,'Races, Positions & Points'!$A:$EG,137,FALSE))) ->  | H71: =IF(ISERROR(VLOOKUP($B71,'Races, Positions & Points'!$A:$EH,138,FALSE)),"",IF((VLOOKUP($B71,'Races, Positions & Points'!$A:$EH,138,FALSE))=0,"",VLOOKUP($B71,'Races, Positions & Points'!$A:$EH,138,FALSE))) -> 
B72: ='Races, Positions & Points'!A72 -> Ben Hall | C72: ='Races, Positions & Points'!C72 -> 1994 | D72: =IF(ISERROR(VLOOKUP($B72,'Races, Positions & Points'!$A:$D,4,FALSE)),"",IF((VLOOKUP($B72,'Races, Positions & Points'!$A:$D,4,FALSE))=0,"",VLOOKUP($B72,'Races, Positions & Points'!$A:$D,4,FALSE))) -> U21 | E72: ='Races, Positions & Points'!F72 -> NR | F72: ='Races, Positions & Points'!M72 ->  | G72: =IF(ISERROR(VLOOKUP($B72,'Races, Positions & Points'!$A:$EG,137,FALSE)),"",IF((VLOOKUP($B72,'Races, Positions & Points'!$A:$EG,137,FALSE))=0,"",VLOOKUP($B72,'Races, Positions & Points'!$A:$EG,137,FALSE))) ->  | H72: =IF(ISERROR(VLOOKUP($B72,'Races, Positions & Points'!$A:$EH,138,FALSE)),"",IF((VLOOKUP($B72,'Races, Positions & Points'!$A:$EH,138,FALSE))=0,"",VLOOKUP($B72,'Races, Positions & Points'!$A:$EH,138,FALSE))) -> 
B73: ='Races, Positions & Points'!A73 -> Matthew Waller | C73: ='Races, Positions & Points'!C73 -> 1999 | D73: =IF(ISERROR(VLOOKUP($B73,'Races, Positions & Points'!$A:$D,4,FALSE)),"",IF((VLOOKUP($B73,'Races, Positions & Points'!$A:$D,4,FALSE))=0,"",VLOOKUP($B73,'Races, Positions & Points'!$A:$D,4,FALSE))) -> U16 | E73: ='Races, Positions & Points'!F73 -> NR | F73: ='Races, Positions & Points'!M73 ->  | G73: =IF(ISERROR(VLOOKUP($B73,'Races, Positions & Points'!$A:$EG,137,FALSE)),"",IF((VLOOKUP($B73,'Races, Positions & Points'!$A:$EG,137,FALSE))=0,"",VLOOKUP($B73,'Races, Positions & Points'!$A:$EG,137,FALSE))) ->  | H73: =IF(ISERROR(VLOOKUP($B73,'Races, Positions & Points'!$A:$EH,138,FALSE)),"",IF((VLOOKUP($B73,'Races, Positions & Points'!$A:$EH,138,FALSE))=0,"",VLOOKUP($B73,'Races, Positions & Points'!$A:$EH,138,FALSE))) -> 
B74: ='Races, Positions & Points'!A74 -> JJ Frost | C74: ='Races, Positions & Points'!C74 -> 1993 | D74: =IF(ISERROR(VLOOKUP($B74,'Races, Positions & Points'!$A:$D,4,FALSE)),"",IF((VLOOKUP($B74,'Races, Positions & Points'!$A:$D,4,FALSE))=0,"",VLOOKUP($B74,'Races, Positions & Points'!$A:$D,4,FALSE))) -> U21 | E74: ='Races, Positions & Points'!F74 -> NR | F74: ='Races, Positions & Points'!M74 ->  | G74: =IF(ISERROR(VLOOKUP($B74,'Races, Positions & Points'!$A:$EG,137,FALSE)),"",IF((VLOOKUP($B74,'Races, Positions & Points'!$A:$EG,137,FALSE))=0,"",VLOOKUP($B74,'Races, Positions & Points'!$A:$EG,137,FALSE))) ->  | H74: =IF(ISERROR(VLOOKUP($B74,'Races, Positions & Points'!$A:$EH,138,FALSE)),"",IF((VLOOKUP($B74,'Races, Positions & Points'!$A:$EH,138,FALSE))=0,"",VLOOKUP($B74,'Races, Positions & Points'!$A:$EH,138,FALSE))) -> 
B75: ='Races, Positions & Points'!A75 -> Jake Heard | C75: ='Races, Positions & Points'!C75 -> 1998 | D75: =IF(ISERROR(VLOOKUP($B75,'Races, Positions & Points'!$A:$D,4,FALSE)),"",IF((VLOOKUP($B75,'Races, Positions & Points'!$A:$D,4,FALSE))=0,"",VLOOKUP($B75,'Races, Positions & Points'!$A:$D,4,FALSE))) -> U16 | E75: ='Races, Positions & Points'!F75 -> NR | F75: ='Races, Positions & Points'!M75 ->  | G75: =IF(ISERROR(VLOOKUP($B75,'Races, Positions & Points'!$A:$EG,137,FALSE)),"",IF((VLOOKUP($B75,'Races, Positions & Points'!$A:$EG,137,FALSE))=0,"",VLOOKUP($B75,'Races, Positions & Points'!$A:$EG,137,FALSE))) ->  | H75: =IF(ISERROR(VLOOKUP($B75,'Races, Positions & Points'!$A:$EH,138,FALSE)),"",IF((VLOOKUP($B75,'Races, Positions & Points'!$A:$EH,138,FALSE))=0,"",VLOOKUP($B75,'Races, Positions & Points'!$A:$EH,138,FALSE))) -> 
B76: ='Races, Positions & Points'!A76 -> Joe Bird | C76: ='Races, Positions & Points'!C76 -> 1994 | D76: =IF(ISERROR(VLOOKUP($B76,'Races, Positions & Points'!$A:$D,4,FALSE)),"",IF((VLOOKUP($B76,'Races, Positions & Points'!$A:$D,4,FALSE))=0,"",VLOOKUP($B76,'Races, Positions & Points'!$A:$D,4,FALSE))) -> U21 | E76: ='Races, Positions & Points'!F76 -> 999.99 | F76: ='Races, Positions & Points'!M76 ->  | G76: =IF(ISERROR(VLOOKUP($B76,'Races, Positions & Points'!$A:$EG,137,FALSE)),"",IF((VLOOKUP($B76,'Races, Positions & Points'!$A:$EG,137,FALSE))=0,"",VLOOKUP($B76,'Races, Positions & Points'!$A:$EG,137,FALSE))) ->  | H76: =IF(ISERROR(VLOOKUP($B76,'Races, Positions & Points'!$A:$EH,138,FALSE)),"",IF((VLOOKUP($B76,'Races, Positions & Points'!$A:$EH,138,FALSE))=0,"",VLOOKUP($B76,'Races, Positions & Points'!$A:$EH,138,FALSE))) -> 
B77: ='Races, Positions & Points'!A77 -> Edmund Walker | C77: ='Races, Positions & Points'!C77 -> 1992 | D77: =IF(ISERROR(VLOOKUP($B77,'Races, Positions & Points'!$A:$D,4,FALSE)),"",IF((VLOOKUP($B77,'Races, Positions & Points'!$A:$D,4,FALSE))=0,"",VLOOKUP($B77,'Races, Positions & Points'!$A:$D,4,FALSE))) -> SEN | E77: ='Races, Positions & Points'!F77 -> NR | F77: ='Races, Positions & Points'!M77 ->  | G77: =IF(ISERROR(VLOOKUP($B77,'Races, Positions & Points'!$A:$EG,137,FALSE)),"",IF((VLOOKUP($B77,'Races, Positions & Points'!$A:$EG,137,FALSE))=0,"",VLOOKUP($B77,'Races, Positions & Points'!$A:$EG,137,FALSE))) ->  | H77: =IF(ISERROR(VLOOKUP($B77,'Races, Positions & Points'!$A:$EH,138,FALSE)),"",IF((VLOOKUP($B77,'Races, Positions & Points'!$A:$EH,138,FALSE))=0,"",VLOOKUP($B77,'Races, Positions & Points'!$A:$EH,138,FALSE))) -> 
B78: EOF | C78: =IF(ISERROR(VLOOKUP($B79,'Races, Positions & Points'!$A:$C,3,FALSE)),"",IF((VLOOKUP($B79,'Races, Positions & Points'!$A:$C,3,FALSE))=0,"",VLOOKUP($B79,'Races, Positions & Points'!$A:$C,3,FALSE))) ->  | D78: =IF(ISERROR(VLOOKUP($B79,'Races, Positions & Points'!$A:$D,4,FALSE)),"",IF((VLOOKUP($B79,'Races, Positions & Points'!$A:$D,4,FALSE))=0,"",VLOOKUP($B79,'Races, Positions & Points'!$A:$D,4,FALSE))) ->  | E78: =IF(ISERROR(VLOOKUP($B79,'Races, Positions & Points'!$A:$F,7,FALSE)),"",IF((VLOOKUP($B79,'Races, Positions & Points'!$A:$F,7,FALSE))=0,"",VLOOKUP($B79,'Races, Positions & Points'!$A:$F,7,FALSE))) ->  | F78: =IF(ISERROR(VLOOKUP($B78,'Races, Positions & Points'!$A:$M,9,FALSE)),"",IF((VLOOKUP($B78,'Races, Positions & Points'!$A:$M,9,FALSE))=0,"",VLOOKUP($B78,'Races, Positions & Points'!$A:$M,9,FALSE))) ->  | G78: =SUM(G8:G77) -> 14 | H78: =SUM(H8:H77) -> 163
C79: =IF(ISERROR(VLOOKUP($B80,'Races, Positions & Points'!$A:$C,3,FALSE)),"",IF((VLOOKUP($B80,'Races, Positions & Points'!$A:$C,3,FALSE))=0,"",VLOOKUP($B80,'Races, Positions & Points'!$A:$C,3,FALSE))) ->  | D79: =IF(ISERROR(VLOOKUP($B80,'Races, Positions & Points'!$A:$D,4,FALSE)),"",IF((VLOOKUP($B80,'Races, Positions & Points'!$A:$D,4,FALSE))=0,"",VLOOKUP($B80,'Races, Positions & Points'!$A:$D,4,FALSE))) ->  | E79: =IF(ISERROR(VLOOKUP($B80,'Races, Positions & Points'!$A:$F,7,FALSE)),"",IF((VLOOKUP($B80,'Races, Positions & Points'!$A:$F,7,FALSE))=0,"",VLOOKUP($B80,'Races, Positions & Points'!$A:$F,7,FALSE))) ->  | F79: =IF(ISERROR(VLOOKUP($B79,'Races, Positions & Points'!$A:$M,9,FALSE)),"",IF((VLOOKUP($B79,'Races, Positions & Points'!$A:$M,9,FALSE))=0,"",VLOOKUP($B79,'Races, Positions & Points'!$A:$M,9,FALSE))) -> 
C80: =IF(ISERROR(VLOOKUP($B81,'Races, Positions & Points'!$A:$C,3,FALSE)),"",IF((VLOOKUP($B81,'Races, Positions & Points'!$A:$C,3,FALSE))=0,"",VLOOKUP($B81,'Races, Positions & Points'!$A:$C,3,FALSE))) ->  | D80: =IF(ISERROR(VLOOKUP($B81,'Races, Positions & Points'!$A:$D,4,FALSE)),"",IF((VLOOKUP($B81,'Races, Positions & Points'!$A:$D,4,FALSE))=0,"",VLOOKUP($B81,'Races, Positions & Points'!$A:$D,4,FALSE))) ->  | E80: =IF(ISERROR(VLOOKUP($B81,'Races, Positions & Points'!$A:$F,7,FALSE)),"",IF((VLOOKUP($B81,'Races, Positions & Points'!$A:$F,7,FALSE))=0,"",VLOOKUP($B81,'Races, Positions & Points'!$A:$F,7,FALSE))) ->  | F80: =IF(ISERROR(VLOOKUP($B80,'Races, Positions & Points'!$A:$M,9,FALSE)),"",IF((VLOOKUP($B80,'Races, Positions & Points'!$A:$M,9,FALSE))=0,"",VLOOKUP($B80,'Races, Positions & Points'!$A:$M,9,FALSE))) -> 
C81: =IF(ISERROR(VLOOKUP($B82,'Races, Positions & Points'!$A:$C,3,FALSE)),"",IF((VLOOKUP($B82,'Races, Positions & Points'!$A:$C,3,FALSE))=0,"",VLOOKUP($B82,'Races, Positions & Points'!$A:$C,3,FALSE))) ->  | D81: =IF(ISERROR(VLOOKUP($B82,'Races, Positions & Points'!$A:$D,4,FALSE)),"",IF((VLOOKUP($B82,'Races, Positions & Points'!$A:$D,4,FALSE))=0,"",VLOOKUP($B82,'Races, Positions & Points'!$A:$D,4,FALSE))) ->  | E81: =IF(ISERROR(VLOOKUP($B82,'Races, Positions & Points'!$A:$F,7,FALSE)),"",IF((VLOOKUP($B82,'Races, Positions & Points'!$A:$F,7,FALSE))=0,"",VLOOKUP($B82,'Races, Positions & Points'!$A:$F,7,FALSE))) ->  | F81: =IF(ISERROR(VLOOKUP($B81,'Races, Positions & Points'!$A:$M,9,FALSE)),"",IF((VLOOKUP($B81,'Races, Positions & Points'!$A:$M,9,FALSE))=0,"",VLOOKUP($B81,'Races, Positions & Points'!$A:$M,9,FALSE))) -> 
C82: =IF(ISERROR(VLOOKUP($B83,'Races, Positions & Points'!$A:$C,3,FALSE)),"",IF((VLOOKUP($B83,'Races, Positions & Points'!$A:$C,3,FALSE))=0,"",VLOOKUP($B83,'Races, Positions & Points'!$A:$C,3,FALSE))) ->  | D82: =IF(ISERROR(VLOOKUP($B83,'Races, Positions & Points'!$A:$D,4,FALSE)),"",IF((VLOOKUP($B83,'Races, Positions & Points'!$A:$D,4,FALSE))=0,"",VLOOKUP($B83,'Races, Positions & Points'!$A:$D,4,FALSE))) ->  | E82: =IF(ISERROR(VLOOKUP($B83,'Races, Positions & Points'!$A:$F,7,FALSE)),"",IF((VLOOKUP($B83,'Races, Positions & Points'!$A:$F,7,FALSE))=0,"",VLOOKUP($B83,'Races, Positions & Points'!$A:$F,7,FALSE))) ->  | F82: =IF(ISERROR(VLOOKUP($B82,'Races, Positions & Points'!$A:$M,9,FALSE)),"",IF((VLOOKUP($B82,'Races, Positions & Points'!$A:$M,9,FALSE))=0,"",VLOOKUP($B82,'Races, Positions & Points'!$A:$M,9,FALSE))) -> 
C83: =IF(ISERROR(VLOOKUP($B84,'Races, Positions & Points'!$A:$C,3,FALSE)),"",IF((VLOOKUP($B84,'Races, Positions & Points'!$A:$C,3,FALSE))=0,"",VLOOKUP($B84,'Races, Positions & Points'!$A:$C,3,FALSE))) ->  | D83: =IF(ISERROR(VLOOKUP($B84,'Races, Positions & Points'!$A:$D,4,FALSE)),"",IF((VLOOKUP($B84,'Races, Positions & Points'!$A:$D,4,FALSE))=0,"",VLOOKUP($B84,'Races, Positions & Points'!$A:$D,4,FALSE))) ->  | E83: =IF(ISERROR(VLOOKUP($B84,'Races, Positions & Points'!$A:$F,7,FALSE)),"",IF((VLOOKUP($B84,'Races, Positions & Points'!$A:$F,7,FALSE))=0,"",VLOOKUP($B84,'Races, Positions & Points'!$A:$F,7,FALSE))) ->  | F83: =IF(ISERROR(VLOOKUP($B83,'Races, Positions & Points'!$A:$M,9,FALSE)),"",IF((VLOOKUP($B83,'Races, Positions & Points'!$A:$M,9,FALSE))=0,"",VLOOKUP($B83,'Races, Positions & Points'!$A:$M,9,FALSE))) -> 
C84: =IF(ISERROR(VLOOKUP($B85,'Races, Positions & Points'!$A:$C,3,FALSE)),"",IF((VLOOKUP($B85,'Races, Positions & Points'!$A:$C,3,FALSE))=0,"",VLOOKUP($B85,'Races, Positions & Points'!$A:$C,3,FALSE))) ->  | D84: =IF(ISERROR(VLOOKUP($B85,'Races, Positions & Points'!$A:$D,4,FALSE)),"",IF((VLOOKUP($B85,'Races, Positions & Points'!$A:$D,4,FALSE))=0,"",VLOOKUP($B85,'Races, Positions & Points'!$A:$D,4,FALSE))) ->  | E84: =IF(ISERROR(VLOOKUP($B85,'Races, Positions & Points'!$A:$F,7,FALSE)),"",IF((VLOOKUP($B85,'Races, Positions & Points'!$A:$F,7,FALSE))=0,"",VLOOKUP($B85,'Races, Positions & Points'!$A:$F,7,FALSE))) ->  | F84: =IF(ISERROR(VLOOKUP($B84,'Races, Positions & Points'!$A:$M,9,FALSE)),"",IF((VLOOKUP($B84,'Races, Positions & Points'!$A:$M,9,FALSE))=0,"",VLOOKUP($B84,'Races, Positions & Points'!$A:$M,9,FALSE))) -> 
C85: =IF(ISERROR(VLOOKUP($B86,'Races, Positions & Points'!$A:$C,3,FALSE)),"",IF((VLOOKUP($B86,'Races, Positions & Points'!$A:$C,3,FALSE))=0,"",VLOOKUP($B86,'Races, Positions & Points'!$A:$C,3,FALSE))) ->  | D85: =IF(ISERROR(VLOOKUP($B86,'Races, Positions & Points'!$A:$D,4,FALSE)),"",IF((VLOOKUP($B86,'Races, Positions & Points'!$A:$D,4,FALSE))=0,"",VLOOKUP($B86,'Races, Positions & Points'!$A:$D,4,FALSE))) ->  | E85: =IF(ISERROR(VLOOKUP($B86,'Races, Positions & Points'!$A:$F,7,FALSE)),"",IF((VLOOKUP($B86,'Races, Positions & Points'!$A:$F,7,FALSE))=0,"",VLOOKUP($B86,'Races, Positions & Points'!$A:$F,7,FALSE))) ->  | F85: =IF(ISERROR(VLOOKUP($B85,'Races, Positions & Points'!$A:$M,9,FALSE)),"",IF((VLOOKUP($B85,'Races, Positions & Points'!$A:$M,9,FALSE))=0,"",VLOOKUP($B85,'Races, Positions & Points'!$A:$M,9,FALSE))) -> 
C86: =IF(ISERROR(VLOOKUP($B87,'Races, Positions & Points'!$A:$C,3,FALSE)),"",IF((VLOOKUP($B87,'Races, Positions & Points'!$A:$C,3,FALSE))=0,"",VLOOKUP($B87,'Races, Positions & Points'!$A:$C,3,FALSE))) ->  | D86: =IF(ISERROR(VLOOKUP($B87,'Races, Positions & Points'!$A:$D,4,FALSE)),"",IF((VLOOKUP($B87,'Races, Positions & Points'!$A:$D,4,FALSE))=0,"",VLOOKUP($B87,'Races, Positions & Points'!$A:$D,4,FALSE))) ->  | E86: =IF(ISERROR(VLOOKUP($B87,'Races, Positions & Points'!$A:$F,7,FALSE)),"",IF((VLOOKUP($B87,'Races, Positions & Points'!$A:$F,7,FALSE))=0,"",VLOOKUP($B87,'Races, Positions & Points'!$A:$F,7,FALSE))) ->  | F86: =IF(ISERROR(VLOOKUP($B86,'Races, Positions & Points'!$A:$M,9,FALSE)),"",IF((VLOOKUP($B86,'Races, Positions & Points'!$A:$M,9,FALSE))=0,"",VLOOKUP($B86,'Races, Positions & Points'!$A:$M,9,FALSE))) -> 
C87: =IF(ISERROR(VLOOKUP($B88,'Races, Positions & Points'!$A:$C,3,FALSE)),"",IF((VLOOKUP($B88,'Races, Positions & Points'!$A:$C,3,FALSE))=0,"",VLOOKUP($B88,'Races, Positions & Points'!$A:$C,3,FALSE))) ->  | D87: =IF(ISERROR(VLOOKUP($B88,'Races, Positions & Points'!$A:$D,4,FALSE)),"",IF((VLOOKUP($B88,'Races, Positions & Points'!$A:$D,4,FALSE))=0,"",VLOOKUP($B88,'Races, Positions & Points'!$A:$D,4,FALSE))) ->  | E87: =IF(ISERROR(VLOOKUP($B88,'Races, Positions & Points'!$A:$F,7,FALSE)),"",IF((VLOOKUP($B88,'Races, Positions & Points'!$A:$F,7,FALSE))=0,"",VLOOKUP($B88,'Races, Positions & Points'!$A:$F,7,FALSE))) ->  | F87: =IF(ISERROR(VLOOKUP($B87,'Races, Positions & Points'!$A:$M,9,FALSE)),"",IF((VLOOKUP($B87,'Races, Positions & Points'!$A:$M,9,FALSE))=0,"",VLOOKUP($B87,'Races, Positions & Points'!$A:$M,9,FALSE))) -> 
C88: =IF(ISERROR(VLOOKUP($B89,'Races, Positions & Points'!$A:$C,3,FALSE)),"",IF((VLOOKUP($B89,'Races, Positions & Points'!$A:$C,3,FALSE))=0,"",VLOOKUP($B89,'Races, Positions & Points'!$A:$C,3,FALSE))) ->  | D88: =IF(ISERROR(VLOOKUP($B89,'Races, Positions & Points'!$A:$D,4,FALSE)),"",IF((VLOOKUP($B89,'Races, Positions & Points'!$A:$D,4,FALSE))=0,"",VLOOKUP($B89,'Races, Positions & Points'!$A:$D,4,FALSE))) ->  | E88: =IF(ISERROR(VLOOKUP($B89,'Races, Positions & Points'!$A:$F,7,FALSE)),"",IF((VLOOKUP($B89,'Races, Positions & Points'!$A:$F,7,FALSE))=0,"",VLOOKUP($B89,'Races, Positions & Points'!$A:$F,7,FALSE))) ->  | F88: =IF(ISERROR(VLOOKUP($B88,'Races, Positions & Points'!$A:$M,9,FALSE)),"",IF((VLOOKUP($B88,'Races, Positions & Points'!$A:$M,9,FALSE))=0,"",VLOOKUP($B88,'Races, Positions & Points'!$A:$M,9,FALSE))) -> 
C89: =IF(ISERROR(VLOOKUP($B90,'Races, Positions & Points'!$A:$C,3,FALSE)),"",IF((VLOOKUP($B90,'Races, Positions & Points'!$A:$C,3,FALSE))=0,"",VLOOKUP($B90,'Races, Positions & Points'!$A:$C,3,FALSE))) ->  | D89: =IF(ISERROR(VLOOKUP($B90,'Races, Positions & Points'!$A:$D,4,FALSE)),"",IF((VLOOKUP($B90,'Races, Positions & Points'!$A:$D,4,FALSE))=0,"",VLOOKUP($B90,'Races, Positions & Points'!$A:$D,4,FALSE))) ->  | E89: =IF(ISERROR(VLOOKUP($B90,'Races, Positions & Points'!$A:$F,7,FALSE)),"",IF((VLOOKUP($B90,'Races, Positions & Points'!$A:$F,7,FALSE))=0,"",VLOOKUP($B90,'Races, Positions & Points'!$A:$F,7,FALSE))) ->  | F89: =IF(ISERROR(VLOOKUP($B89,'Races, Positions & Points'!$A:$M,9,FALSE)),"",IF((VLOOKUP($B89,'Races, Positions & Points'!$A:$M,9,FALSE))=0,"",VLOOKUP($B89,'Races, Positions & Points'!$A:$M,9,FALSE))) -> 
C90: =IF(ISERROR(VLOOKUP($B91,'Races, Positions & Points'!$A:$C,3,FALSE)),"",IF((VLOOKUP($B91,'Races, Positions & Points'!$A:$C,3,FALSE))=0,"",VLOOKUP($B91,'Races, Positions & Points'!$A:$C,3,FALSE))) ->  | D90: =IF(ISERROR(VLOOKUP($B91,'Races, Positions & Points'!$A:$D,4,FALSE)),"",IF((VLOOKUP($B91,'Races, Positions & Points'!$A:$D,4,FALSE))=0,"",VLOOKUP($B91,'Races, Positions & Points'!$A:$D,4,FALSE))) ->  | E90: =IF(ISERROR(VLOOKUP($B91,'Races, Positions & Points'!$A:$F,7,FALSE)),"",IF((VLOOKUP($B91,'Races, Positions & Points'!$A:$F,7,FALSE))=0,"",VLOOKUP($B91,'Races, Positions & Points'!$A:$F,7,FALSE))) ->  | F90: =IF(ISERROR(VLOOKUP($B90,'Races, Positions & Points'!$A:$M,9,FALSE)),"",IF((VLOOKUP($B90,'Races, Positions & Points'!$A:$M,9,FALSE))=0,"",VLOOKUP($B90,'Races, Positions & Points'!$A:$M,9,FALSE))) -> 
C91: =IF(ISERROR(VLOOKUP($B92,'Races, Positions & Points'!$A:$C,3,FALSE)),"",IF((VLOOKUP($B92,'Races, Positions & Points'!$A:$C,3,FALSE))=0,"",VLOOKUP($B92,'Races, Positions & Points'!$A:$C,3,FALSE))) ->  | D91: =IF(ISERROR(VLOOKUP($B92,'Races, Positions & Points'!$A:$D,4,FALSE)),"",IF((VLOOKUP($B92,'Races, Positions & Points'!$A:$D,4,FALSE))=0,"",VLOOKUP($B92,'Races, Positions & Points'!$A:$D,4,FALSE))) ->  | E91: =IF(ISERROR(VLOOKUP($B92,'Races, Positions & Points'!$A:$F,7,FALSE)),"",IF((VLOOKUP($B92,'Races, Positions & Points'!$A:$F,7,FALSE))=0,"",VLOOKUP($B92,'Races, Positions & Points'!$A:$F,7,FALSE))) ->  | F91: =IF(ISERROR(VLOOKUP($B91,'Races, Positions & Points'!$A:$M,9,FALSE)),"",IF((VLOOKUP($B91,'Races, Positions & Points'!$A:$M,9,FALSE))=0,"",VLOOKUP($B91,'Races, Positions & Points'!$A:$M,9,FALSE))) -> 
C92: =IF(ISERROR(VLOOKUP($B93,'Races, Positions & Points'!$A:$C,3,FALSE)),"",IF((VLOOKUP($B93,'Races, Positions & Points'!$A:$C,3,FALSE))=0,"",VLOOKUP($B93,'Races, Positions & Points'!$A:$C,3,FALSE))) ->  | D92: =IF(ISERROR(VLOOKUP($B93,'Races, Positions & Points'!$A:$D,4,FALSE)),"",IF((VLOOKUP($B93,'Races, Positions & Points'!$A:$D,4,FALSE))=0,"",VLOOKUP($B93,'Races, Positions & Points'!$A:$D,4,FALSE))) ->  | E92: =IF(ISERROR(VLOOKUP($B93,'Races, Positions & Points'!$A:$F,7,FALSE)),"",IF((VLOOKUP($B93,'Races, Positions & Points'!$A:$F,7,FALSE))=0,"",VLOOKUP($B93,'Races, Positions & Points'!$A:$F,7,FALSE))) ->  | F92: =IF(ISERROR(VLOOKUP($B92,'Races, Positions & Points'!$A:$M,9,FALSE)),"",IF((VLOOKUP($B92,'Races, Positions & Points'!$A:$M,9,FALSE))=0,"",VLOOKUP($B92,'Races, Positions & Points'!$A:$M,9,FALSE))) -> 
C93: =IF(ISERROR(VLOOKUP($B94,'Races, Positions & Points'!$A:$C,3,FALSE)),"",IF((VLOOKUP($B94,'Races, Positions & Points'!$A:$C,3,FALSE))=0,"",VLOOKUP($B94,'Races, Positions & Points'!$A:$C,3,FALSE))) ->  | D93: =IF(ISERROR(VLOOKUP($B94,'Races, Positions & Points'!$A:$D,4,FALSE)),"",IF((VLOOKUP($B94,'Races, Positions & Points'!$A:$D,4,FALSE))=0,"",VLOOKUP($B94,'Races, Positions & Points'!$A:$D,4,FALSE))) ->  | E93: =IF(ISERROR(VLOOKUP($B94,'Races, Positions & Points'!$A:$F,7,FALSE)),"",IF((VLOOKUP($B94,'Races, Positions & Points'!$A:$F,7,FALSE))=0,"",VLOOKUP($B94,'Races, Positions & Points'!$A:$F,7,FALSE))) ->  | F93: =IF(ISERROR(VLOOKUP($B93,'Races, Positions & Points'!$A:$M,9,FALSE)),"",IF((VLOOKUP($B93,'Races, Positions & Points'!$A:$M,9,FALSE))=0,"",VLOOKUP($B93,'Races, Positions & Points'!$A:$M,9,FALSE))) -> 
C94: =IF(ISERROR(VLOOKUP($B95,'Races, Positions & Points'!$A:$C,3,FALSE)),"",IF((VLOOKUP($B95,'Races, Positions & Points'!$A:$C,3,FALSE))=0,"",VLOOKUP($B95,'Races, Positions & Points'!$A:$C,3,FALSE))) ->  | D94: =IF(ISERROR(VLOOKUP($B95,'Races, Positions & Points'!$A:$D,4,FALSE)),"",IF((VLOOKUP($B95,'Races, Positions & Points'!$A:$D,4,FALSE))=0,"",VLOOKUP($B95,'Races, Positions & Points'!$A:$D,4,FALSE))) ->  | E94: =IF(ISERROR(VLOOKUP($B95,'Races, Positions & Points'!$A:$F,7,FALSE)),"",IF((VLOOKUP($B95,'Races, Positions & Points'!$A:$F,7,FALSE))=0,"",VLOOKUP($B95,'Races, Positions & Points'!$A:$F,7,FALSE))) ->  | F94: =IF(ISERROR(VLOOKUP($B94,'Races, Positions & Points'!$A:$M,9,FALSE)),"",IF((VLOOKUP($B94,'Races, Positions & Points'!$A:$M,9,FALSE))=0,"",VLOOKUP($B94,'Races, Positions & Points'!$A:$M,9,FALSE))) -> 
C95: =IF(ISERROR(VLOOKUP($B96,'Races, Positions & Points'!$A:$C,3,FALSE)),"",IF((VLOOKUP($B96,'Races, Positions & Points'!$A:$C,3,FALSE))=0,"",VLOOKUP($B96,'Races, Positions & Points'!$A:$C,3,FALSE))) ->  | D95: =IF(ISERROR(VLOOKUP($B96,'Races, Positions & Points'!$A:$D,4,FALSE)),"",IF((VLOOKUP($B96,'Races, Positions & Points'!$A:$D,4,FALSE))=0,"",VLOOKUP($B96,'Races, Positions & Points'!$A:$D,4,FALSE))) ->  | E95: =IF(ISERROR(VLOOKUP($B96,'Races, Positions & Points'!$A:$F,7,FALSE)),"",IF((VLOOKUP($B96,'Races, Positions & Points'!$A:$F,7,FALSE))=0,"",VLOOKUP($B96,'Races, Positions & Points'!$A:$F,7,FALSE))) ->  | F95: =IF(ISERROR(VLOOKUP($B95,'Races, Positions & Points'!$A:$M,9,FALSE)),"",IF((VLOOKUP($B95,'Races, Positions & Points'!$A:$M,9,FALSE))=0,"",VLOOKUP($B95,'Races, Positions & Points'!$A:$M,9,FALSE))) -> 
C96: =IF(ISERROR(VLOOKUP($B97,'Races, Positions & Points'!$A:$C,3,FALSE)),"",IF((VLOOKUP($B97,'Races, Positions & Points'!$A:$C,3,FALSE))=0,"",VLOOKUP($B97,'Races, Positions & Points'!$A:$C,3,FALSE))) ->  | D96: =IF(ISERROR(VLOOKUP($B97,'Races, Positions & Points'!$A:$D,4,FALSE)),"",IF((VLOOKUP($B97,'Races, Positions & Points'!$A:$D,4,FALSE))=0,"",VLOOKUP($B97,'Races, Positions & Points'!$A:$D,4,FALSE))) ->  | E96: =IF(ISERROR(VLOOKUP($B97,'Races, Positions & Points'!$A:$F,7,FALSE)),"",IF((VLOOKUP($B97,'Races, Positions & Points'!$A:$F,7,FALSE))=0,"",VLOOKUP($B97,'Races, Positions & Points'!$A:$F,7,FALSE))) ->  | F96: =IF(ISERROR(VLOOKUP($B96,'Races, Positions & Points'!$A:$M,9,FALSE)),"",IF((VLOOKUP($B96,'Races, Positions & Points'!$A:$M,9,FALSE))=0,"",VLOOKUP($B96,'Races, Positions & Points'!$A:$M,9,FALSE))) -> 
F97: =IF(ISERROR(VLOOKUP($B97,'Races, Positions & Points'!$A:$M,9,FALSE)),"",IF((VLOOKUP($B97,'Races, Positions & Points'!$A:$M,9,FALSE))=0,"",VLOOKUP($B97,'Races, Positions & Points'!$A:$M,9,FALSE))) -> 

Sheet Club Statistics
C1: MSC Total Podiums in BARTS Events
C3: Total Podiums | F3: Total Podiums - By Age Category | N3: Total Podiums - By Gender | S3: 2013 Total Place Podiums
C4: Year | D4: Total | F4: Year | G4: Mini | H4: CH | I4: JN | J4: SEN | K4: MAS | L4: Total | N4: Year | O4: Female | P4: Male | Q4: Total | S4: By Age Category and Position
C5: 2001 | D5: 1 | F5: 2001 | G5: 0 | H5: 0 | I5: 1 | J5: 0 | K5: 0 | L5: =SUM(G5:K5) -> 1 | N5: 2001 | O5: 1 | P5: 0 | Q5: =SUM(O5:P5) -> 1 | S5: Year | T5: 1st | U5: 2nd | V5: 3rd | W5: Total
C6: 2002 | D6: 0 | F6: 2002 | G6: 0 | H6: 0 | I6: 0 | J6: 0 | K6: 0 | L6: 0 | N6: 2002 | O6: 0 | P6: 0 | Q6: 0 | S6: Mini | T6: =W25+W44 -> 22 | U6: 8 | V6: 6 | W6: =SUM(T6:V6) -> 36
C7: 2003 | D7: 0 | F7: 2003 | G7: 0 | H7: 0 | I7: 0 | J7: 0 | K7: 0 | L7: 0 | N7: 2003 | O7: 0 | P7: 0 | Q7: 0 | S7: CH | T7: 29 | U7: 14 | V7: 7 | W7: =SUM(T7:V7) -> 50
C8: 2004 | D8: 1 | F8: 2004 | G8: 0 | H8: 0 | I8: 0 | J8: 1 | K8: 0 | L8: 1 | N8: 2004 | O8: 1 | P8: 0 | Q8: 1 | S8: JN | T8: 4 | U8: 13 | V8: 14 | W8: =SUM(T8:V8) -> 31
C9: 2005 | D9: 1 | F9: 2005 | G9: 0 | H9: 1 | I9: 0 | J9: 0 | K9: 0 | L9: 1 | N9: 2005 | O9: 0 | P9: 1 | Q9: 1 | S9: SEN | T9: 16 | U9: 19 | V9: 13 | W9: =SUM(T9:V9) -> 48
C10: 2006 | D10: 1 | F10: 2006 | G10: 1 | H10: 0 | I10: 0 | J10: 0 | K10: 0 | L10: 1 | N10: 2006 | O10: 1 | P10: 0 | Q10: 1 | S10: MAS | T10: 9 | U10: 2 | V10: 1 | W10: =SUM(T10:V10) -> 12
C11: 2007 | D11: 29 | F11: 2007 | G11: 2 | H11: 0 | I11: 8 | J11: 1 | K11: 18 | L11: 29 | N11: 2007 | O11: 17 | P11: 12 | Q11: 29 | S11: Total | T11: =SUM(T6:T10) -> 80 | U11: =SUM(U6:U10) -> 56 | V11: =SUM(V6:V10) -> 41 | W11: =SUM(W6:W10) -> 177
C12: 2008 | D12: 77 | F12: 2008 | G12: 19 | H12: 7 | I12: 13 | J12: 7 | K12: 31 | L12: 77 | N12: 2008 | O12: 43 | P12: 34 | Q12: 77
C13: 2009 | D13: 99 | F13: 2009 | G13: 22 | H13: 14 | I13: 25 | J13: 9 | K13: 29 | L13: =SUM(G13:K13) -> 99 | N13: 2009 | O13: 26 | P13: 73 | Q13: 99
C14: 2010 | D14: 102 | F14: 2010 | G14: 12 | H14: 20 | I14: 35 | J14: 19 | K14: 16 | L14: =SUM(G14:K14) -> 102 | N14: 2010 | O14: 42 | P14: 60 | Q14: 102
C15: 2011 | D15: 109 | F15: 2011 | G15: 23 | H15: 17 | I15: 18 | J15: 39 | K15: 12 | L15: 109 | N15: 2011 | O15: =R34+R53 -> 34 | P15: =S34+S53 -> 75 | Q15: =SUM(O15:P15) -> 109
C16: 2013 | D16: 169 | F16: 2013 | G16: 7 | H16: 58 | I16: 34 | J16: 57 | K16: 13 | L16: 169 | N16: 2012 | O16: 50 | P16: 119 | Q16: 169
C17: 2013 | D17: =L17 -> 177 | F17: 2013 | G17: =J36+J55 -> 36 | H17: =K36+K55 -> 50 | I17: =L36+L55 -> 31 | J17: =M36+M55 -> 48 | K17: =N36+N55 -> 12 | L17: =SUM(G17:K17) -> 177 | N17: 2013 | O17: =R36+R55 -> 60 | P17: =S36+S55 -> 117 | Q17: =SUM(O17:P17) -> 177
C18: Total | D18: =SUM(D5:D17) -> 766 | F18: Total | G18: =SUM(G5:G17) -> 122 | H18: 167 | I18: 165 | J18: 181 | K18: 131 | L18: 766 | N18: Total | O18: =SUM(O5:O17) -> 275 | P18: =SUM(P5:P17) -> 491 | Q18: =SUM(Q5:Q17) -> 766
C20: MSC Overall Podiums in BARTS Events
C22: Overall Place Podiums - By Position | I22: Overall Place Podiums - By Age Category | Q22: Overall Place Podiums - By Gender | V22: 2013 Overall Place Podiums
C23: Year | D23: 1st | E23: 2nd | F23: 3rd | G23: Total | I23: Year | J23: Mini | K23: CH | L23: JN | M23: SEN | N23: MAS | O23: Total | Q23: Year | R23: Female | S23: Male | T23: Total | V23: By Age Category and Position
C24: 2001 | D24: 0 | E24: 0 | F24: 0 | G24: =SUM(D24:F24) -> 0 | I24: 2001 | J24: 0 | K24: 0 | L24: 0 | M24: 0 | N24: 0 | O24: =SUM(J24:N24) -> 0 | Q24: 2001 | R24: 0 | S24: 0 | T24: 0 | V24: Year | W24: 1st | X24: 2nd | Y24: 3rd | Z24: Total
C25: 2002 | D25: 0 | E25: 0 | F25: 0 | G25: 0 | I25: 2002 | J25: 0 | K25: 0 | L25: =SUM(J25:K25) -> 0 | M25: =SUM(L25) -> 0 | N25: 0 | O25: =SUM(N25) -> 0 | Q25: 2002 | R25: 0 | S25: 0 | T25: =SUM(R25:S25) -> 0 | V25: Mini | W25: 0 | X25: 0 | Y25: 0 | Z25: =SUM(W25:Y25) -> 0
C26: 2003 | D26: 0 | E26: 0 | F26: 0 | G26: 0 | I26: 2003 | J26: 0 | K26: 0 | L26: =SUM(J26:K26) -> 0 | M26: =SUM(L26) -> 0 | N26: 0 | O26: =SUM(O24:O25) -> 0 | Q26: 2003 | R26: 0 | S26: 0 | T26: =SUM(R26:S26) -> 0 | V26: CH | W26: ='Races, Positions & Points'!M111 -> 0 | X26: ='Races, Positions & Points'!M112 -> 0 | Y26: ='Races, Positions & Points'!M113 -> 0 | Z26: =SUM(W26:Y26) -> 0
C27: 2004 | D27: 0 | E27: 0 | F27: 0 | G27: 0 | I27: 2004 | J27: 0 | K27: 0 | L27: 0 | M27: 0 | N27: 0 | O27: =SUM(J27:N27) -> 0 | Q27: 2004 | R27: 0 | S27: 0 | T27: 0 | V27: JN | W27: ='Races, Positions & Points'!M114 -> 0 | X27: ='Races, Positions & Points'!M115 -> 1 | Y27: ='Races, Positions & Points'!M116 -> 1 | Z27: =SUM(W27:Y27) -> 2
C28: 2005 | D28: 0 | E28: 0 | F28: 0 | G28: 0 | I28: 2005 | J28: 0 | K28: 0 | L28: 0 | M28: =SUM(J28:L28) -> 0 | N28: 0 | O28: =SUM(N28) -> 0 | Q28: 2005 | R28: 0 | S28: 0 | T28: 0 | V28: SEN | W28: ='Races, Positions & Points'!M117 -> 4 | X28: ='Races, Positions & Points'!M118 -> 5 | Y28: ='Races, Positions & Points'!M119 -> 3 | Z28: =SUM(W28:Y28) -> 12
C29: 2006 | D29: 0 | E29: 0 | F29: 0 | G29: 0 | I29: 2006 | J29: 0 | K29: 0 | L29: 0 | M29: 0 | N29: 0 | O29: =SUM(J29:N29) -> 0 | Q29: 2006 | R29: 0 | S29: 0 | T29: 0 | V29: MAS | W29: ='Races, Positions & Points'!M120 -> 0 | X29: ='Races, Positions & Points'!M121 -> 0 | Y29: ='Races, Positions & Points'!M122 -> 0 | Z29: =SUM(W29:Y29) -> 0
C30: 2007 | D30: 0 | E30: 0 | F30: 0 | G30: 0 | I30: 2007 | J30: 0 | K30: 0 | L30: 0 | M30: 0 | N30: 0 | O30: =SUM(J30:N30) -> 0 | Q30: 2007 | R30: 0 | S30: 0 | T30: 0 | V30: Total | W30: =SUM(W25:W29) -> 4 | X30: =SUM(X25:X29) -> 6 | Y30: =SUM(Y25:Y29) -> 4 | Z30: =SUM(Z25:Z29) -> 14
C31: 2008 | D31: 0 | E31: 1 | F31: 1 | G31: =SUM(D31:F31) -> 2 | I31: 2008 | J31: 0 | K31: 0 | L31: 2 | M31: 0 | N31: 0 | O31: =SUM(J31:N31) -> 2 | Q31: 2008 | R31: 0 | S31: 2 | T31: =SUM(R31:S31) -> 2
C32: 2009 | D32: 1 | E32: 1 | F32: 2 | G32: =SUM(D32:F32) -> 4 | I32: 2009 | J32: 0 | K32: 0 | L32: 3 | M32: 0 | N32: 1 | O32: =SUM(J32:N32) -> 4 | Q32: 2009 | R32: 0 | S32: 4 | T32: 4
C33: 2010 | D33: 4 | E33: 8 | F33: 3 | G33: =SUM(D33:F33) -> 15 | I33: 2010 | J33: 0 | K33: 0 | L33: 14 | M33: 1 | N33: 0 | O33: =SUM(J33:N33) -> 15 | Q33: 2010 | R33: 3 | S33: 12 | T33: 15
C34: 2011 | D34: 2 | E34: 6 | F34: 4 | G34: 12 | I34: 2011 | J34: 0 | K34: 0 | L34: 2 | M34: 10 | N34: 0 | O34: 12 | Q34: 2011 | R34: 2 | S34: 10 | T34: 12
C35: 2012 | D35: 2 | E35: 10 | F35: 8 | G35: 20 | I35: 2012 | J35: 0 | K35: 3 | L35: 3 | M35: 14 | N35: 0 | O35: 20 | Q35: 2012 | R35: 7 | S35: 13 | T35: 20
C36: 2013 | D36: ='Races, Positions & Points'!M111+'Races, Positions & Points'!M114+'Races, Positions & Points'!M117+'Races, Positions & Points'!M120 -> 4 | E36: ='Races, Positions & Points'!M112+'Races, Positions & Points'!M115+'Races, Positions & Points'!M118+'Races, Positions & Points'!M121 -> 6 | F36: ='Races, Positions & Points'!M113+'Races, Positions & Points'!M116+'Races, Positions & Points'!M119+'Races, Positions & Points'!M122 -> 4 | G36: =SUM(D36:F36) -> 14 | I36: 2013 | J36: 0 | K36: =Z26 -> 0 | L36: =Z27 -> 2 | M36: =Z28 -> 12 | N36: =Z29 -> 0 | O36: =SUM(J36:N36) -> 14 | Q36: 2013 | R36: ='Races, Positions & Points'!M124 -> 3 | S36: ='Races, Positions & Points'!M123 -> 11 | T36: 14
C37: Total | D37: =SUM(D24:D36) -> 13 | E37: =SUM(E24:E36) -> 32 | F37: =SUM(F24:F36) -> 22 | G37: =SUM(G24:G36) -> 67 | I37: Total | J37: =SUM(J24:J36) -> 0 | K37: 3 | L37: 26 | M37: 37 | N37: 1 | O37: 67 | Q37: Total | R37: =SUM(R24:R36) -> 15 | S37: =SUM(S24:S36) -> 52 | T37: =SUM(T24:T36) -> 67
C39: MSC Age Group Podiums in BARTS Events
C41: Age Group Podiums | I41: Age Group Podiums - By Age Category | Q41: Age Group Podiums - By Gender | V41: 2013 Age Category Place Podiums
C42: Year | D42: 1st | E42: 2nd | F42: 3rd | G42: Total | I42: Year | J42: Mini | K42: CH | L42: JN | M42: SEN | N42: MAS | O42: Total | Q42: Year | R42: Female | S42: Male | T42: Total | V42: By Age Category and Position
C43: 2001 | D43: 0 | E43: 0 | F43: 1 | G43: =SUM(D43:F43) -> 1 | I43: 2001 | J43: 0 | K43: 0 | L43: 1 | M43: 0 | N43: 0 | O43: =SUM(J43:N43) -> 1 | Q43: 2001 | R43: 1 | S43: 0 | T43: =SUM(R43:S43) -> 1 | V43: Year | W43: 1st | X43: 2nd | Y43: 3rd | Z43: Total
C44: 2002 | D44: 0 | E44: 0 | F44: 0 | G44: =SUM(D44:F44) -> 0 | I44: 2002 | J44: 0 | K44: 0 | L44: 0 | M44: 0 | N44: 0 | O44: 0 | Q44: 2002 | R44: 0 | S44: 0 | T44: 0 | V44: Mini | W44: ='Races, Positions & Points'!M94 -> 22 | X44: ='Races, Positions & Points'!M95 -> 8 | Y44: ='Races, Positions & Points'!M96 -> 6 | Z44: =SUM(W44:Y44) -> 36
C45: 2003 | D45: 0 | E45: 0 | F45: 0 | G45: =SUM(D45:F45) -> 0 | I45: 2003 | J45: 0 | K45: 0 | L45: 0 | M45: 0 | N45: 0 | O45: 0 | Q45: 2003 | R45: 0 | S45: 0 | T45: 0 | V45: CH | W45: ='Races, Positions & Points'!M97 -> 29 | X45: ='Races, Positions & Points'!M98 -> 14 | Y45: ='Races, Positions & Points'!M99 -> 7 | Z45: =SUM(W45:Y45) -> 50
C46: 2004 | D46: 0 | E46: 0 | F46: 1 | G46: =SUM(D46:F46) -> 1 | I46: 2004 | J46: 0 | K46: 0 | L46: 0 | M46: 1 | N46: 0 | O46: 1 | Q46: 2004 | R46: 1 | S46: 0 | T46: 1 | V46: JN | W46: ='Races, Positions & Points'!M100 -> 4 | X46: ='Races, Positions & Points'!M101 -> 12 | Y46: ='Races, Positions & Points'!M102 -> 13 | Z46: =SUM(W46:Y46) -> 29
C47: 2005 | D47: 0 | E47: 1 | F47: 0 | G47: =SUM(D47:F47) -> 1 | I47: 2005 | J47: 0 | K47: 1 | L47: 0 | M47: 0 | N47: 0 | O47: 1 | Q47: 2005 | R47: 0 | S47: 1 | T47: 1 | V47: SEN | W47: ='Races, Positions & Points'!M103 -> 12 | X47: ='Races, Positions & Points'!M104 -> 14 | Y47: ='Races, Positions & Points'!M105 -> 10 | Z47: =SUM(W47:Y47) -> 36
C48: 2006 | D48: 0 | E48: 0 | F48: 1 | G48: =SUM(F48) -> 1 | I48: 2006 | J48: 1 | K48: 0 | L48: 0 | M48: 0 | N48: 0 | O48: 1 | Q48: 2006 | R48: 1 | S48: 0 | T48: 1 | V48: MAS | W48: ='Races, Positions & Points'!M106 -> 9 | X48: ='Races, Positions & Points'!M107 -> 2 | Y48: ='Races, Positions & Points'!M108 -> 1 | Z48: =SUM(W48:Y48) -> 12
C49: 2007 | D49: 6 | E49: 8 | F49: 15 | G49: =SUM(D49:F49) -> 29 | I49: 2007 | J49: 2 | K49: 0 | L49: 8 | M49: 1 | N49: 18 | O49: 29 | Q49: 2007 | R49: 17 | S49: 12 | T49: 29 | V49: Total | W49: =SUM(W44:W48) -> 76 | X49: =SUM(X44:X48) -> 50 | Y49: =SUM(Y44:Y48) -> 37 | Z49: =SUM(Z44:Z48) -> 163
C50: 2008 | D50: 15 | E50: 26 | F50: 34 | G50: 75 | I50: 2008 | J50: 19 | K50: 7 | L50: 11 | M50: 7 | N50: 31 | O50: 75 | Q50: 2008 | R50: 43 | S50: 32 | T50: 75
C51: 2009 | D51: 20 | E51: 34 | F51: 41 | G51: 95 | I51: 2009 | J51: 22 | K51: 14 | L51: 22 | M51: 9 | N51: 28 | O51: 95 | Q51: 2009 | R51: 26 | S51: 69 | T51: 95
C52: 2010 | D52: 23 | E52: 36 | F52: 28 | G52: 87 | I52: 2010 | J52: 12 | K52: 20 | L52: 21 | M52: 18 | N52: 16 | O52: 87 | Q52: 2010 | R52: 39 | S52: 48 | T52: 87
C53: 2011 | D53: 34 | E53: 36 | F53: 27 | G53: 97 | I53: 2011 | J53: 23 | K53: 17 | L53: 16 | M53: 29 | N53: 12 | O53: 97 | Q53: 2011 | R53: 32 | S53: 65 | T53: 97
C54: 2012 | D54: 47 | E54: 53 | F54: 49 | G54: 149 | I54: 2012 | J54: 7 | K54: 55 | L54: 31 | M54: 43 | N54: 13 | O54: 149 | Q54: 2012 | R54: 43 | S54: 106 | T54: 149
C55: 2013 | D55: =W49 -> 76 | E55: =X49 -> 50 | F55: =Y49 -> 37 | G55: 163 | I55: 2013 | J55: =Z44 -> 36 | K55: =Z45 -> 50 | L55: =Z46 -> 29 | M55: =Z47 -> 36 | N55: =Z48 -> 12 | O55: 163 | Q55: 2013 | R55: ='Races, Positions & Points'!M110 -> 57 | S55: ='Races, Positions & Points'!M109 -> 106 | T55: =SUM(R55:S55) -> 163
C56: Total | D56: =SUM(D43:D55) -> 221 | E56: =SUM(E43:E55) -> 244 | F56: =SUM(F43:F55) -> 234 | G56: =SUM(G43:G55) -> 699 | I56: Total | J56: =SUM(J43:J55) -> 122 | K56: 164 | L56: 139 | M56: 144 | N56: 130 | O56: 699 | Q56: Total | R56: =SUM(R43:R55) -> 260 | S56: =SUM(S43:S55) -> 439 | T56: =SUM(T43:T55) -> 699
C58: MSC BARTS Points Statistics | N58: MSC Attendance Statistics
C60: BARTS Points - registered racers taking part in seeded races in the year | O60: BARTS Points - registered racers taking part in seeded races in the year
C61: Year | D61: Sub-10 | E61: Sub-25 | F61: Sub-50 | G61: Sub-100 | H61: Sub-150 | I61: Sub-200 | J61: Sub-250 | K61: 250+ | L61: Minis | M61: Total | O61: Year | P61: 1-2 | Q61: 3-5 | R61: 6-10 | S61: 11-15 | T61: 16-20 | U61: 21-25 | V61: 26-29 | W61: 30+ | X61: Skiers | Y61: Starts
C62: 2001 | D62: 0 | E62: 0 | F62: 0 | G62: 0 | H62: 1 | I62: 0 | J62: 0 | K62: 0 | L62: 0 | M62: =SUM(D62:L62) -> 1
C63: 2002 | D63: 0 | E63: 0 | F63: 0 | G63: 0 | H63: 1 | I63: 0 | J63: 0 | K63: 0 | L63: 0 | M63: 1
C64: 2003 | D64: 0 | E64: 0 | F64: 0 | G64: 1 | H64: 0 | I64: 0 | J64: 0 | K64: 3 | L64: 1 | M64: 5
C65: 2004 | D65: 0 | E65: 0 | F65: 0 | G65: 1 | H65: 0 | I65: 0 | J65: 2 | K65: 2 | L65: 1 | M65: 6 | O65: 2004 | P65: 4 | Q65: 4 | X65: 8 | Y65: 17
C66: 2005 | D66: 0 | E66: 0 | F66: 0 | G66: 1 | H66: 0 | I66: 3 | J66: 2 | K66: 4 | L66: 1 | M66: 11 | O66: 2005 | P66: 2 | Q66: 3 | R66: 5 | X66: 10 | Y66: 53
C67: 2006 | D67: 0 | E67: 0 | F67: 0 | G67: 2 | H67: 2 | I67: 3 | J67: 2 | K67: 2 | L67: 5 | M67: 16 | O67: 2006 | P67: 2 | Q67: 7 | R67: 6 | S67: 1 | X67: 16 | Y67: 90
C68: 2007 | D68: 0 | E68: 0 | F68: 0 | G68: 5 | H68: 3 | I68: 5 | J68: 3 | K68: 8 | L68: 5 | M68: 29 | O68: 2007 | P68: 3 | Q68: 9 | R68: 12 | S68: 2 | T68: 3 | X68: 29 | Y68: 217
C69: 2008 | D69: 0 | E69: 0 | F69: 1 | G69: 5 | H69: 7 | I69: 8 | J69: 2 | K69: 10 | L69: 5 | M69: 38 | O69: 2008 | P69: 1 | Q69: 7 | R69: 14 | S69: 9 | T69: 5 | U69: 1 | V69: 1 | X69: 38 | Y69: 385
C70: 2009 | D70: 0 | E70: 2 | F70: 3 | G70: 3 | H70: 10 | I70: 6 | J70: 1 | K70: 7 | L70: 6 | M70: 38 | O70: 2009 | P70: 4 | Q70: 5 | R70: 10 | S70: 12 | T70: 5 | U70: 1 | V70: 1 | X70: 38 | Y70: 399
C71: 2010 | D71: 1 | E71: 3 | F71: 3 | G71: 7 | H71: 6 | I71: 4 | J71: 3 | K71: 4 | L71: 3 | M71: =SUM(D71:L71) -> 34 | O71: 2010 | P71: 18 | Q71: 3 | R71: 13 | S71: 11 | T71: 5 | X71: 50 | Y71: 366
C72: 2011 | D72: 3 | E72: 5 | F72: 6 | G72: 6 | H72: 7 | I72: 2 | J72: 5 | K72: 9 | L72: 9 | M72: 52 | O72: 2011 | P72: 6 | Q72: 9 | R72: 14 | S72: 11 | T72: 2 | U72: 1 | W72: 1 | X72: 44 | Y72: 394
C73: 2012 | D73: 1 | E73: 1 | F73: 5 | G73: 6 | H73: 9 | I73: 4 | J73: 6 | K73: 5 | L73: 4 | M73: 41 | O73: 2012 | P73: 9 | Q73: 13 | R73: 6 | S73: 4 | T73: 5 | U73: 1 | V73: 1 | W73: 3 | X73: 42 | Y73: 395
C74: 2013 | D74: =COUNTIFS(Attendance!$G$21:$G$76,"<10",Attendance!$R$21:$R$76,">0") -> 1 | E74: =COUNTIFS(Attendance!$G$21:$G$76,"<25",Attendance!$G$21:$G$76,">=10",Attendance!$R$21:$R$76,">0") -> 2 | F74: =COUNTIFS(Attendance!$G$21:$G$76,"<50",Attendance!$G$21:$G$76,">=25",Attendance!$R$21:$R$76,">0") -> 4 | G74: =COUNTIFS(Attendance!$G$21:$G$76,"<100",Attendance!$G$21:$G$76,">=50",Attendance!$R$21:$R$76,">0") -> 11 | H74: =COUNTIFS(Attendance!$G$21:$G$76,"<150",Attendance!$G$21:$G$76,">=100",Attendance!$R$21:$R$76,">0") -> 5 | I74: =COUNTIFS(Attendance!$G$21:$G$76,"<200",Attendance!$G$21:$G$76,">=150",Attendance!$R$21:$R$76,">0") -> 3 | J74: =COUNTIFS(Attendance!$G$21:$G$76,"<250",Attendance!$G$21:$G$76,">=200",Attendance!$R$21:$R$76,">0") -> 4 | K74: =COUNTIFS(Attendance!$G$21:$G$76,">=250",Attendance!$R$21:$R$76,">0",Attendance!$E$21:$E$76,">0") -> 2 | L74: =COUNTIFS(Attendance!$G$8:$G$19,">0",Attendance!$R$8:$R$19,">0") -> 10 | M74: =SUM(D74:L74) -> 42 | O74: 2013 | P74: =COUNTIFS(Attendance!$E$8:$E$76,">0",Attendance!$G$8:$G$76,">0",Attendance!$R$8:$R$76,">0",Attendance!$R$8:$R$76,"<3") -> 11 | Q74: =COUNTIFS(Attendance!$E$8:$E$76,">0",Attendance!$G$8:$G$76,">0",Attendance!$R$8:$R$76,">2",Attendance!$R$8:$R$76,"<6") -> 4 | R74: =COUNTIFS(Attendance!$E$8:$E$76,">0",Attendance!$G$8:$G$76,">0",Attendance!$R$8:$R$76,">5",Attendance!$R$8:$R$76,"<11") -> 10 | S74: =COUNTIFS(Attendance!$E$8:$E$76,">0",Attendance!$G$8:$G$76,">0",Attendance!$R$8:$R$76,">10",Attendance!$R$8:$R$76,"<16") -> 11 | T74: =COUNTIFS(Attendance!$E$8:$E$76,">0",Attendance!$G$8:$G$76,">0",Attendance!$R$8:$R$76,">15",Attendance!$R$8:$R$76,"<21") -> 2 | U74: =COUNTIFS(Attendance!$E$8:$E$76,">0",Attendance!$G$8:$G$76,">0",Attendance!$R$8:$R$76,">20",Attendance!$R$8:$R$76,"<26") -> 2 | V74: =COUNTIFS(Attendance!$E$8:$E$76,">0",Attendance!$G$8:$G$76,">0",Attendance!$R$8:$R$76,">25",Attendance!$R$8:$R$76,"<30") -> 1 | W74: =COUNTIFS(Attendance!$E$8:$E$76,">0",Attendance!$G$8:$G$76,">0",Attendance!$R$8:$R$76,">30") -> 1 | X74: =SUM(P74:W74) -> 42 | Y74: =Attendance!R82 -> 394
C75: Total | D75: =SUM(D62:D74) -> 6 | E75: =SUM(E62:E74) -> 13 | F75: =SUM(F62:F74) -> 22 | G75: =SUM(G62:G74) -> 48 | H75: 51 | I75: 38 | J75: 30 | K75: 56 | L75: 50 | M75: =SUM(E75:L75) -> 308 | O75: Total | P75: =SUM(P62:P74) -> 60 | Q75: =SUM(Q62:Q74) -> 64 | R75: =SUM(R62:R74) -> 90 | S75: =SUM(S62:S74) -> 61 | T75: 27 | U75: 6 | V75: 4 | W75: 5 | X75: 317 | Y75: =SUM(Y65:Y74) -> 2710

Sheet Attendance
A5: Britski | B5: M/F | D5: AGE | E5: REG | F5: POINTS | G5: CURRENT | I5: 2013 | T5: 2012
A6: Seeding | C6: YEAR | D6: GROUP | E6: NUM | F6: 2013 | G6: 2013.2 | I6: CN/10pt In | J6: CN/10 pt Out | K6: GBR In | L6: GBR Out | M6: Ch In | N6: Ch Out | P6: Total In | Q6: Total out | R6: Total | T6: CN In | U6: CN OUT | V6: GBR In | W6: GBR Out | X6: Ch In | Y6: Ch Out | AA6: Total In | AB6: Total out | AC6: Total
A7: GIRLS
A8: ='Races, Positions & Points'!A8 -> Lauren Treuge | B8: ='Races, Positions & Points'!B8 -> F | C8: ='Races, Positions & Points'!C8 -> 2003 | D8: ='Races, Positions & Points'!D8 -> U12 | E8: ='Races, Positions & Points'!E8 -> 20669 | F8: ='Races, Positions & Points'!F8 -> 999.99 | G8: ='Races, Positions & Points'!I8 -> 999.99 | I8: ='Points Calculation'!AS8 -> 0 | J8: ='Points Calculation'!AT8 -> 1 | K8: ='Points Calculation'!AU8 -> 0 | L8: ='Points Calculation'!AV8 -> 0 | M8: ='Points Calculation'!AW8 -> 0 | N8: ='Points Calculation'!AX8 -> 1 | P8: =I8+K8+M8 -> 0 | Q8: =J8+L8+N8 -> 2 | R8: =P8+Q8 -> 2
A9: ='Races, Positions & Points'!A9 -> Tilley O'Brien | B9: ='Races, Positions & Points'!B9 -> F | C9: ='Races, Positions & Points'!C9 -> 2004 | D9: ='Races, Positions & Points'!D9 -> U10 | E9: ='Races, Positions & Points'!E9 -> 20809 | F9: ='Races, Positions & Points'!F9 -> 999.99 | G9: ='Races, Positions & Points'!I9 -> 999.99 | I9: ='Points Calculation'!AS9 -> 4 | J9: ='Points Calculation'!AT9 -> 0 | K9: ='Points Calculation'!AU9 -> 1 | L9: ='Points Calculation'!AV9 -> 0 | M9: ='Points Calculation'!AW9 -> 1 | N9: ='Points Calculation'!AX9 -> 0 | P9: =I9+K9+M9 -> 6 | Q9: =J9+L9+N9 -> 0 | R9: =P9+Q9 -> 6 | U9: 3 | AA9: =T9+V9+X9 -> 0 | AB9: =U9+W9+Y9 -> 3 | AC9: =AA9+AB9 -> 3
A10: ='Races, Positions & Points'!A10 -> Anya Hemming | B10: ='Races, Positions & Points'!B10 -> F | C10: ='Races, Positions & Points'!C10 -> 2005 | D10: ='Races, Positions & Points'!D10 -> U10 | E10: ='Races, Positions & Points'!E10 -> 21569 | F10: ='Races, Positions & Points'!F10 -> 999.99 | G10: ='Races, Positions & Points'!I10 -> 999.99 | I10: ='Points Calculation'!AS10 -> 0 | J10: ='Points Calculation'!AT10 -> 8 | K10: ='Points Calculation'!AU10 -> 0 | L10: ='Points Calculation'!AV10 -> 0 | M10: ='Points Calculation'!AW10 -> 1 | N10: ='Points Calculation'!AX10 -> 3 | P10: 1 | Q10: 11 | R10: 12 | T10: 3 | AA10: =T10+V10+X10 -> 3 | AC10: =AA10+AB10 -> 3
A11: BOYS
A12: ='Races, Positions & Points'!A12 -> James Care | B12: ='Races, Positions & Points'!B12 -> M | C12: ='Races, Positions & Points'!C12 -> 2002 | D12: ='Races, Positions & Points'!D12 -> U12 | E12: ='Races, Positions & Points'!E12 -> 20590 | F12: ='Races, Positions & Points'!F12 -> 999.99 | G12: ='Races, Positions & Points'!I12 -> 999.99 | I12: ='Points Calculation'!AS12 -> 0 | J12: ='Points Calculation'!AT12 -> 2 | K12: ='Points Calculation'!AU12 -> 0 | L12: ='Points Calculation'!AV12 -> 0 | M12: ='Points Calculation'!AW12 -> 0 | N12: ='Points Calculation'!AX12 -> 0 | P12: 0 | Q12: 2 | R12: 2
A13: ='Races, Positions & Points'!A13 -> Macaulay Clover | B13: ='Races, Positions & Points'!B13 -> M | C13: ='Races, Positions & Points'!C13 -> 2002 | D13: ='Races, Positions & Points'!D13 -> U12 | E13: ='Races, Positions & Points'!E13 -> Day | F13: ='Races, Positions & Points'!F13 -> NR | G13: ='Races, Positions & Points'!I13 -> NR | I13: ='Points Calculation'!AS13 -> 0 | J13: ='Points Calculation'!AT13 -> 1 | K13: ='Points Calculation'!AU13 -> 0 | L13: ='Points Calculation'!AV13 -> 0 | M13: ='Points Calculation'!AW13 -> 0 | N13: ='Points Calculation'!AX13 -> 0 | P13: 0 | Q13: 1 | R13: 1 | U13: 1 | AB13: =U13+W13+Y13 -> 1 | AC13: =AA13+AB13 -> 1
A14: ='Races, Positions & Points'!A14 -> Seamus O'Brien | B14: ='Races, Positions & Points'!B14 -> M | C14: ='Races, Positions & Points'!C14 -> 2002 | D14: ='Races, Positions & Points'!D14 -> U12 | E14: ='Races, Positions & Points'!E14 -> 19737 | F14: ='Races, Positions & Points'!F14 -> 999.99 | G14: ='Races, Positions & Points'!I14 -> 999.99 | I14: ='Points Calculation'!AS14 -> 3 | J14: ='Points Calculation'!AT14 -> 0 | K14: ='Points Calculation'!AU14 -> 3 | L14: ='Points Calculation'!AV14 -> 0 | M14: ='Points Calculation'!AW14 -> 1 | N14: ='Points Calculation'!AX14 -> 0 | P14: 7 | Q14: 0 | R14: 7
A15: ='Races, Positions & Points'!A15 -> Matthew Treuge | B15: ='Races, Positions & Points'!B15 -> M | C15: ='Races, Positions & Points'!C15 -> 2002 | D15: ='Races, Positions & Points'!D15 -> U12 | E15: ='Races, Positions & Points'!E15 -> 20670 | F15: ='Races, Positions & Points'!F15 -> 999.99 | G15: ='Races, Positions & Points'!I15 -> 999.99 | I15: ='Points Calculation'!AS15 -> 0 | J15: ='Points Calculation'!AT15 -> 1 | K15: ='Points Calculation'!AU15 -> 0 | L15: ='Points Calculation'!AV15 -> 0 | M15: ='Points Calculation'!AW15 -> 0 | N15: ='Points Calculation'!AX15 -> 1 | P15: 0 | Q15: 2 | R15: 2 | T15: 3 | AA15: =T15+V15+X15 -> 3 | AC15: =AA15+AB15 -> 3
A16: ='Races, Positions & Points'!A16 -> James Shakeshaft | B16: ='Races, Positions & Points'!B16 -> M | C16: ='Races, Positions & Points'!C16 -> 2003 | D16: ='Races, Positions & Points'!D16 -> U12 | E16: ='Races, Positions & Points'!E16 -> 20340 | F16: ='Races, Positions & Points'!F16 -> 999.99 | G16: ='Races, Positions & Points'!I16 -> 999.99 | I16: ='Points Calculation'!AS16 -> 0 | J16: ='Points Calculation'!AT16 -> 1 | K16: ='Points Calculation'!AU16 -> 0 | L16: ='Points Calculation'!AV16 -> 0 | M16: ='Points Calculation'!AW16 -> 0 | N16: ='Points Calculation'!AX16 -> 0 | P16: 0 | Q16: 1 | R16: 1 | U16: 3 | AB16: 3 | AC16: =AA16+AB16 -> 3
A17: ='Races, Positions & Points'!A17 -> Daniel Hadley | B17: ='Races, Positions & Points'!B17 -> M | C17: ='Races, Positions & Points'!C17 -> 2004 | D17: ='Races, Positions & Points'!D17 -> U10 | E17: ='Races, Positions & Points'!E17 -> 20719 | F17: ='Races, Positions & Points'!F17 -> 999.99 | G17: ='Races, Positions & Points'!I17 -> 999.99 | I17: ='Points Calculation'!AS17 -> 1 | J17: ='Points Calculation'!AT17 -> 1 | K17: ='Points Calculation'!AU17 -> 1 | L17: ='Points Calculation'!AV17 -> 0 | M17: ='Points Calculation'!AW17 -> 1 | N17: ='Points Calculation'!AX17 -> 0 | P17: 3 | Q17: 1 | R17: 4
A18: ='Races, Positions & Points'!A18 -> Jack Teague | B18: ='Races, Positions & Points'!B18 -> M | C18: ='Races, Positions & Points'!C18 -> 2004 | D18: ='Races, Positions & Points'!D18 -> U10 | E18: ='Races, Positions & Points'!E18 -> 20630 | F18: ='Races, Positions & Points'!F18 -> 999.99 | G18: ='Races, Positions & Points'!I18 -> 999.99 | I18: ='Points Calculation'!AS18 -> 0 | J18: ='Points Calculation'!AT18 -> 2 | K18: ='Points Calculation'!AU18 -> 0 | L18: ='Points Calculation'!AV18 -> 0 | M18: ='Points Calculation'!AW18 -> 0 | N18: ='Points Calculation'!AX18 -> 0 | P18: 0 | Q18: 2 | R18: 2 | T18: 2 | U18: 4 | W18: 1 | Y18: 1 | AA18: =T18+V18+X18 -> 2 | AB18: 6 | AC18: =AA18+AB18 -> 8
A19: ='Races, Positions & Points'!A19 -> Jack Upton | B19: ='Races, Positions & Points'!B19 -> M | C19: ='Races, Positions & Points'!C19 -> 2004 | D19: ='Races, Positions & Points'!D19 -> U10 | E19: ='Races, Positions & Points'!E19 -> 21052 | F19: ='Races, Positions & Points'!F19 -> 999.99 | G19: ='Races, Positions & Points'!I19 -> 999.99 | I19: ='Points Calculation'!AS19 -> 1 | J19: ='Points Calculation'!AT19 -> 6 | K19: ='Points Calculation'!AU19 -> 0 | L19: ='Points Calculation'!AV19 -> 3 | M19: ='Points Calculation'!AW19 -> 1 | N19: ='Points Calculation'!AX19 -> 3 | P19: =I19+K19+M19 -> 2 | Q19: =J19+L19+N19 -> 12 | R19: =P19+Q19 -> 14
A20: FEMALES
A21: ='Races, Positions & Points'!A21 -> Lucy Deller | B21: ='Races, Positions & Points'!B21 -> F | C21: ='Races, Positions & Points'!C21 -> 1996 | D21: ='Races, Positions & Points'!D21 -> U18 | E21: ='Races, Positions & Points'!E21 -> 17888 | F21: ='Races, Positions & Points'!F21 -> 15.68 | G21: ='Races, Positions & Points'!I21 -> 15.68 | I21: ='Points Calculation'!AS21 -> 2 | J21: ='Points Calculation'!AT21 -> 8 | K21: ='Points Calculation'!AU21 -> 6 | L21: ='Points Calculation'!AV21 -> 6 | M21: ='Points Calculation'!AW21 -> 4 | N21: ='Points Calculation'!AX21 -> 5 | P21: 12 | Q21: 19 | R21: 31 | T21: 4 | U21: 10 | V21: 3 | W21: 5 | X21: 2 | Y21: 5 | AA21: =T21+V21+X21 -> 9 | AB21: 20 | AC21: =AA21+AB21 -> 29
A22: ='Races, Positions & Points'!A22 -> Rowan Vernon | B22: ='Races, Positions & Points'!B22 -> F | C22: ='Races, Positions & Points'!C22 -> 1988 | D22: ='Races, Positions & Points'!D22 -> SEN | E22: ='Races, Positions & Points'!E22 -> 13381 | F22: ='Races, Positions & Points'!F22 -> 22.84 | G22: ='Races, Positions & Points'!I22 -> 22.84 | I22: ='Points Calculation'!AS22 -> 0 | J22: ='Points Calculation'!AT22 -> 0 | K22: ='Points Calculation'!AU22 -> 0 | L22: ='Points Calculation'!AV22 -> 0 | M22: ='Points Calculation'!AW22 -> 0 | N22: ='Points Calculation'!AX22 -> 0 | P22: 0 | Q22: 0 | R22: 0
A23: ='Races, Positions & Points'!A23 -> Rachel Bill | B23: ='Races, Positions & Points'!B23 -> F | C23: ='Races, Positions & Points'!C23 -> 1990 | D23: ='Races, Positions & Points'!D23 -> SEN | E23: ='Races, Positions & Points'!E23 -> 20168 | F23: ='Races, Positions & Points'!F23 -> 33.85 | G23: ='Races, Positions & Points'!I23 -> 23.81 | I23: ='Points Calculation'!AS23 -> 0 | J23: ='Points Calculation'!AT23 -> 7 | K23: ='Points Calculation'!AU23 -> 1 | L23: ='Points Calculation'!AV23 -> 2 | M23: ='Points Calculation'!AW23 -> 0 | N23: ='Points Calculation'!AX23 -> 2 | P23: 1 | Q23: 11 | R23: 12 | T23: 2 | U23: 7 | V23: 2 | W23: 6 | X23: 1 | Y23: 2 | AA23: =T23+V23+X23 -> 5 | AB23: 15 | AC23: =AA23+AB23 -> 20
A24: ='Races, Positions & Points'!A24 -> Helena Newboult | B24: ='Races, Positions & Points'!B24 -> F | C24: ='Races, Positions & Points'!C24 -> 1998 | D24: ='Races, Positions & Points'!D24 -> U16 | E24: ='Races, Positions & Points'!E24 -> 20696 | F24: ='Races, Positions & Points'!F24 -> 30.53 | G24: ='Races, Positions & Points'!I24 -> 27.39 | I24: ='Points Calculation'!AS24 -> 2 | J24: ='Points Calculation'!AT24 -> 7 | K24: ='Points Calculation'!AU24 -> 0 | L24: ='Points Calculation'!AV24 -> 2 | M24: ='Points Calculation'!AW24 -> 0 | N24: ='Points Calculation'!AX24 -> 2 | P24: 2 | Q24: 11 | R24: 13 | T24: 3 | U24: 7 | V24: 4 | W24: 2 | Y24: 2 | AA24: =T24+V24+X24 -> 7 | AB24: 11 | AC24: =AA24+AB24 -> 18
